{"text_format":"1","workbook":"xlsx","n_sheets":4,"sheets":["Índice","Equilibrio Oferta-Utilización","Catálogo","Datos"],"not_rendered":{"charts":0,"images":1,"macros":1,"external_links":1,"defined_names":7,"comments":1,"pivot_tables":0},"unopened":[],"bounds":{"document_bytes":16777216,"sheet_cells":100000,"rows_first":2000,"rows_last":500,"rows_between":2000,"halvings":0,"cell_chars":16384,"cell_head_chars":4096},"cells_cut":0,"cells_raw":0,"read":"whole","date_system":"1900"}

{"sheet":"Índice","index":0,"n_rows":26,"n_cols":3,"rows_kept":26,"cut":false,"hidden":false,"merged":[[12,1,12,2],[13,1,13,2],[14,1,14,2]]}
[]
[]
[]
[]
[]
[]
[]
[]
[]
[]
[]
[]
[null,"CUENTAS NACIONALES ANUALES"]
[null,"Equilibrios de oferta y utilización"]
[null,"Año de referencia 2013"]
[]
[null,"3","EQUILIBRIOS DE OFERTA Y UTILIZACIÓN. AÑOS 2013 - 2022"]
[null," "]
[null,null,"Equilibrios de oferta y utilización por producto. Millones de quetzales "]
[]
[null,null,"Catálogo"]
[]
[null,null,"Generar todos los equilibrios"]
[]
[]
[null,"Nota:","Para generar un equilibrio de oferta y utilización debe habilitar macros (en las opciones de Excel) y posteriormente seleccionar el código NPG correspondiente en la hoja catálogo."]

{"sheet":"Equilibrio Oferta-Utilización","index":1,"n_rows":55,"n_cols":13,"rows_kept":55,"cut":false,"hidden":false,"merged":[[6,2,6,7]]}
[]
[null,{"$f":"+CONCATENATE(\"Cuadro \",IFERROR(INDEX(Catálogo!$B$7:$D$158,MATCH($C$8,Catálogo!$C$7:$C$158,0),1),3))","v":"Cuadro 3.1"}]
[null,"Equilibrio de oferta y utilización"]
[null,"Años 2013 - 2022"]
[null,"Millones de quetzales"]
[]
[null,"Producto:",{"$f":"IFERROR(+VLOOKUP($C$8,Catálogo!$C:$D,2,0),\"\")","v":"Maíz"}]
[null,"Código NPG:","P001",null,null,null,null,null,null,null,null,null,"Catálogo"]
[]
[null,"Concepto",null,2013,2014,2015,2016,2017,2018,2019,2020,"2021 p/","2022 p/"]
[null,"Producción (PB)",null,{"$f":"+SUMIFS(Datos!$C:$C,Datos!$A:$A,$C$8,Datos!$B:$B,$C$7,Datos!$D:$D,$B11,Datos!$E:$E,D$10)","v":4738.5275949999996},{"$f":"+SUMIFS(Datos!$C:$C,Datos!$A:$A,$C$8,Datos!$B:$B,$C$7,Datos!$D:$D,$B11,Datos!$E:$E,E$10)","v":5080.6027539999995},{"$f":"+SUMIFS(Datos!$C:$C,Datos!$A:$A,$C$8,Datos!$B:$B,$C$7,Datos!$D:$D,$B11,Datos!$E:$E,F$10)","v":5175.017296},{"$f":"+SUMIFS(Datos!$C:$C,Datos!$A:$A,$C$8,Datos!$B:$B,$C$7,Datos!$D:$D,$B11,Datos!$E:$E,G$10)","v":5476.1529330000003},{"$f":"+SUMIFS(Datos!$C:$C,Datos!$A:$A,$C$8,Datos!$B:$B,$C$7,Datos!$D:$D,$B11,Datos!$E:$E,H$10)","v":4756.5473279999997},{"$f":"+SUMIFS(Datos!$C:$C,Datos!$A:$A,$C$8,Datos!$B:$B,$C$7,Datos!$D:$D,$B11,Datos!$E:$E,I$10)","v":5390.4606519999998},{"$f":"+SUMIFS(Datos!$C:$C,Datos!$A:$A,$C$8,Datos!$B:$B,$C$7,Datos!$D:$D,$B11,Datos!$E:$E,J$10)","v":5873.9922310000002},{"$f":"+SUMIFS(Datos!$C:$C,Datos!$A:$A,$C$8,Datos!$B:$B,$C$7,Datos!$D:$D,$B11,Datos!$E:$E,K$10)","v":5947.6382899999999},{"$f":"+SUMIFS(Datos!$C:$C,Datos!$A:$A,$C$8,Datos!$B:$B,$C$7,Datos!$D:$D,$B11,Datos!$E:$E,L$10)","v":6685.43984},{"$f":"+SUMIFS(Datos!$C:$C,Datos!$A:$A,$C$8,Datos!$B:$B,$C$7,Datos!$D:$D,$B11,Datos!$E:$E,M$10)","v":8902.3375799999994}]
[null,"Impuestos sobre los productos, excepto IVA e impuestos sobre las importaciones",null,{"$f":"+SUMIFS(Datos!$C:$C,Datos!$A:$A,$C$8,Datos!$B:$B,$C$7,Datos!$D:$D,$B12,Datos!$E:$E,D$10)","v":0},{"$f":"+SUMIFS(Datos!$C:$C,Datos!$A:$A,$C$8,Datos!$B:$B,$C$7,Datos!$D:$D,$B12,Datos!$E:$E,E$10)","v":0},{"$f":"+SUMIFS(Datos!$C:$C,Datos!$A:$A,$C$8,Datos!$B:$B,$C$7,Datos!$D:$D,$B12,Datos!$E:$E,F$10)","v":0},{"$f":"+SUMIFS(Datos!$C:$C,Datos!$A:$A,$C$8,Datos!$B:$B,$C$7,Datos!$D:$D,$B12,Datos!$E:$E,G$10)","v":0},{"$f":"+SUMIFS(Datos!$C:$C,Datos!$A:$A,$C$8,Datos!$B:$B,$C$7,Datos!$D:$D,$B12,Datos!$E:$E,H$10)","v":0},{"$f":"+SUMIFS(Datos!$C:$C,Datos!$A:$A,$C$8,Datos!$B:$B,$C$7,Datos!$D:$D,$B12,Datos!$E:$E,I$10)","v":0},{"$f":"+SUMIFS(Datos!$C:$C,Datos!$A:$A,$C$8,Datos!$B:$B,$C$7,Datos!$D:$D,$B12,Datos!$E:$E,J$10)","v":0},{"$f":"+SUMIFS(Datos!$C:$C,Datos!$A:$A,$C$8,Datos!$B:$B,$C$7,Datos!$D:$D,$B12,Datos!$E:$E,K$10)","v":0},{"$f":"+SUMIFS(Datos!$C:$C,Datos!$A:$A,$C$8,Datos!$B:$B,$C$7,Datos!$D:$D,$B12,Datos!$E:$E,L$10)","v":0},{"$f":"+SUMIFS(Datos!$C:$C,Datos!$A:$A,$C$8,Datos!$B:$B,$C$7,Datos!$D:$D,$B12,Datos!$E:$E,M$10)","v":0}]
[null,"Subvenciones a los productos",null,{"$f":"+SUMIFS(Datos!$C:$C,Datos!$A:$A,$C$8,Datos!$B:$B,$C$7,Datos!$D:$D,$B13,Datos!$E:$E,D$10)","v":0},{"$f":"+SUMIFS(Datos!$C:$C,Datos!$A:$A,$C$8,Datos!$B:$B,$C$7,Datos!$D:$D,$B13,Datos!$E:$E,E$10)","v":0},{"$f":"+SUMIFS(Datos!$C:$C,Datos!$A:$A,$C$8,Datos!$B:$B,$C$7,Datos!$D:$D,$B13,Datos!$E:$E,F$10)","v":0},{"$f":"+SUMIFS(Datos!$C:$C,Datos!$A:$A,$C$8,Datos!$B:$B,$C$7,Datos!$D:$D,$B13,Datos!$E:$E,G$10)","v":0},{"$f":"+SUMIFS(Datos!$C:$C,Datos!$A:$A,$C$8,Datos!$B:$B,$C$7,Datos!$D:$D,$B13,Datos!$E:$E,H$10)","v":0},{"$f":"+SUMIFS(Datos!$C:$C,Datos!$A:$A,$C$8,Datos!$B:$B,$C$7,Datos!$D:$D,$B13,Datos!$E:$E,I$10)","v":0},{"$f":"+SUMIFS(Datos!$C:$C,Datos!$A:$A,$C$8,Datos!$B:$B,$C$7,Datos!$D:$D,$B13,Datos!$E:$E,J$10)","v":0},{"$f":"+SUMIFS(Datos!$C:$C,Datos!$A:$A,$C$8,Datos!$B:$B,$C$7,Datos!$D:$D,$B13,Datos!$E:$E,K$10)","v":0},{"$f":"+SUMIFS(Datos!$C:$C,Datos!$A:$A,$C$8,Datos!$B:$B,$C$7,Datos!$D:$D,$B13,Datos!$E:$E,L$10)","v":0},{"$f":"+SUMIFS(Datos!$C:$C,Datos!$A:$A,$C$8,Datos!$B:$B,$C$7,Datos!$D:$D,$B13,Datos!$E:$E,M$10)","v":0}]
[null,"Importaciones (CIF)",null,{"$f":"+SUMIFS(Datos!$C:$C,Datos!$A:$A,$C$8,Datos!$B:$B,$C$7,Datos!$D:$D,$B14,Datos!$E:$E,D$10)","v":1926.576568},{"$f":"+SUMIFS(Datos!$C:$C,Datos!$A:$A,$C$8,Datos!$B:$B,$C$7,Datos!$D:$D,$B14,Datos!$E:$E,E$10)","v":1956.010428},{"$f":"+SUMIFS(Datos!$C:$C,Datos!$A:$A,$C$8,Datos!$B:$B,$C$7,Datos!$D:$D,$B14,Datos!$E:$E,F$10)","v":1937.5284630000001},{"$f":"+SUMIFS(Datos!$C:$C,Datos!$A:$A,$C$8,Datos!$B:$B,$C$7,Datos!$D:$D,$B14,Datos!$E:$E,G$10)","v":1962.7691789999999},{"$f":"+SUMIFS(Datos!$C:$C,Datos!$A:$A,$C$8,Datos!$B:$B,$C$7,Datos!$D:$D,$B14,Datos!$E:$E,H$10)","v":1866.521152},{"$f":"+SUMIFS(Datos!$C:$C,Datos!$A:$A,$C$8,Datos!$B:$B,$C$7,Datos!$D:$D,$B14,Datos!$E:$E,I$10)","v":2096.1708669999998},{"$f":"+SUMIFS(Datos!$C:$C,Datos!$A:$A,$C$8,Datos!$B:$B,$C$7,Datos!$D:$D,$B14,Datos!$E:$E,J$10)","v":2504.7953699999998},{"$f":"+SUMIFS(Datos!$C:$C,Datos!$A:$A,$C$8,Datos!$B:$B,$C$7,Datos!$D:$D,$B14,Datos!$E:$E,K$10)","v":2725.1497610000001},{"$f":"+SUMIFS(Datos!$C:$C,Datos!$A:$A,$C$8,Datos!$B:$B,$C$7,Datos!$D:$D,$B14,Datos!$E:$E,L$10)","v":3673.0260309999999},{"$f":"+SUMIFS(Datos!$C:$C,Datos!$A:$A,$C$8,Datos!$B:$B,$C$7,Datos!$D:$D,$B14,Datos!$E:$E,M$10)","v":4859.7301390000002}]
[null,"Ajuste CIF/FOB",null,{"$f":"+SUMIFS(Datos!$C:$C,Datos!$A:$A,$C$8,Datos!$B:$B,$C$7,Datos!$D:$D,$B15,Datos!$E:$E,D$10)","v":0},{"$f":"+SUMIFS(Datos!$C:$C,Datos!$A:$A,$C$8,Datos!$B:$B,$C$7,Datos!$D:$D,$B15,Datos!$E:$E,E$10)","v":0},{"$f":"+SUMIFS(Datos!$C:$C,Datos!$A:$A,$C$8,Datos!$B:$B,$C$7,Datos!$D:$D,$B15,Datos!$E:$E,F$10)","v":0},{"$f":"+SUMIFS(Datos!$C:$C,Datos!$A:$A,$C$8,Datos!$B:$B,$C$7,Datos!$D:$D,$B15,Datos!$E:$E,G$10)","v":0},{"$f":"+SUMIFS(Datos!$C:$C,Datos!$A:$A,$C$8,Datos!$B:$B,$C$7,Datos!$D:$D,$B15,Datos!$E:$E,H$10)","v":0},{"$f":"+SUMIFS(Datos!$C:$C,Datos!$A:$A,$C$8,Datos!$B:$B,$C$7,Datos!$D:$D,$B15,Datos!$E:$E,I$10)","v":0},{"$f":"+SUMIFS(Datos!$C:$C,Datos!$A:$A,$C$8,Datos!$B:$B,$C$7,Datos!$D:$D,$B15,Datos!$E:$E,J$10)","v":0},{"$f":"+SUMIFS(Datos!$C:$C,Datos!$A:$A,$C$8,Datos!$B:$B,$C$7,Datos!$D:$D,$B15,Datos!$E:$E,K$10)","v":0},{"$f":"+SUMIFS(Datos!$C:$C,Datos!$A:$A,$C$8,Datos!$B:$B,$C$7,Datos!$D:$D,$B15,Datos!$E:$E,L$10)","v":0},{"$f":"+SUMIFS(Datos!$C:$C,Datos!$A:$A,$C$8,Datos!$B:$B,$C$7,Datos!$D:$D,$B15,Datos!$E:$E,M$10)","v":0}]
[null,"Impuestos y derechos sobre las importaciones excepto IVA",null,{"$f":"+SUMIFS(Datos!$C:$C,Datos!$A:$A,$C$8,Datos!$B:$B,$C$7,Datos!$D:$D,$B16,Datos!$E:$E,D$10)","v":1.3095000000000001E-2},{"$f":"+SUMIFS(Datos!$C:$C,Datos!$A:$A,$C$8,Datos!$B:$B,$C$7,Datos!$D:$D,$B16,Datos!$E:$E,E$10)","v":1.2174000000000001E-2},{"$f":"+SUMIFS(Datos!$C:$C,Datos!$A:$A,$C$8,Datos!$B:$B,$C$7,Datos!$D:$D,$B16,Datos!$E:$E,F$10)","v":1.2119E-2},{"$f":"+SUMIFS(Datos!$C:$C,Datos!$A:$A,$C$8,Datos!$B:$B,$C$7,Datos!$D:$D,$B16,Datos!$E:$E,G$10)","v":1.207867},{"$f":"+SUMIFS(Datos!$C:$C,Datos!$A:$A,$C$8,Datos!$B:$B,$C$7,Datos!$D:$D,$B16,Datos!$E:$E,H$10)","v":0.11444600000000001},{"$f":"+SUMIFS(Datos!$C:$C,Datos!$A:$A,$C$8,Datos!$B:$B,$C$7,Datos!$D:$D,$B16,Datos!$E:$E,I$10)","v":0.12887000000000001},{"$f":"+SUMIFS(Datos!$C:$C,Datos!$A:$A,$C$8,Datos!$B:$B,$C$7,Datos!$D:$D,$B16,Datos!$E:$E,J$10)","v":0.15424299999999999},{"$f":"+SUMIFS(Datos!$C:$C,Datos!$A:$A,$C$8,Datos!$B:$B,$C$7,Datos!$D:$D,$B16,Datos!$E:$E,K$10)","v":0.16805700000000001},{"$f":"+SUMIFS(Datos!$C:$C,Datos!$A:$A,$C$8,Datos!$B:$B,$C$7,Datos!$D:$D,$B16,Datos!$E:$E,L$10)","v":0.22651199999999999},{"$f":"+SUMIFS(Datos!$C:$C,Datos!$A:$A,$C$8,Datos!$B:$B,$C$7,Datos!$D:$D,$B16,Datos!$E:$E,M$10)","v":0.343692}]
[null,"Impuesto tipo valor agregado (IVA)",null,{"$f":"+SUMIFS(Datos!$C:$C,Datos!$A:$A,$C$8,Datos!$B:$B,$C$7,Datos!$D:$D,$B17,Datos!$E:$E,D$10)","v":56.302073999999998},{"$f":"+SUMIFS(Datos!$C:$C,Datos!$A:$A,$C$8,Datos!$B:$B,$C$7,Datos!$D:$D,$B17,Datos!$E:$E,E$10)","v":64.448783000000006},{"$f":"+SUMIFS(Datos!$C:$C,Datos!$A:$A,$C$8,Datos!$B:$B,$C$7,Datos!$D:$D,$B17,Datos!$E:$E,F$10)","v":63.156509},{"$f":"+SUMIFS(Datos!$C:$C,Datos!$A:$A,$C$8,Datos!$B:$B,$C$7,Datos!$D:$D,$B17,Datos!$E:$E,G$10)","v":66.6374},{"$f":"+SUMIFS(Datos!$C:$C,Datos!$A:$A,$C$8,Datos!$B:$B,$C$7,Datos!$D:$D,$B17,Datos!$E:$E,H$10)","v":74.990100999999996},{"$f":"+SUMIFS(Datos!$C:$C,Datos!$A:$A,$C$8,Datos!$B:$B,$C$7,Datos!$D:$D,$B17,Datos!$E:$E,I$10)","v":75.529437000000001},{"$f":"+SUMIFS(Datos!$C:$C,Datos!$A:$A,$C$8,Datos!$B:$B,$C$7,Datos!$D:$D,$B17,Datos!$E:$E,J$10)","v":83.781882999999993},{"$f":"+SUMIFS(Datos!$C:$C,Datos!$A:$A,$C$8,Datos!$B:$B,$C$7,Datos!$D:$D,$B17,Datos!$E:$E,K$10)","v":106.756379},{"$f":"+SUMIFS(Datos!$C:$C,Datos!$A:$A,$C$8,Datos!$B:$B,$C$7,Datos!$D:$D,$B17,Datos!$E:$E,L$10)","v":119.76857699999999},{"$f":"+SUMIFS(Datos!$C:$C,Datos!$A:$A,$C$8,Datos!$B:$B,$C$7,Datos!$D:$D,$B17,Datos!$E:$E,M$10)","v":157.707562}]
[null,"Márgenes de comercio, transporte y distribución de energía",null,{"$f":"+SUMIFS(Datos!$C:$C,Datos!$A:$A,$C$8,Datos!$B:$B,$C$7,Datos!$D:$D,$B18,Datos!$E:$E,D$10)","v":1236.1941449999999},{"$f":"+SUMIFS(Datos!$C:$C,Datos!$A:$A,$C$8,Datos!$B:$B,$C$7,Datos!$D:$D,$B18,Datos!$E:$E,E$10)","v":1105.7036350000001},{"$f":"+SUMIFS(Datos!$C:$C,Datos!$A:$A,$C$8,Datos!$B:$B,$C$7,Datos!$D:$D,$B18,Datos!$E:$E,F$10)","v":1264.3501940000001},{"$f":"+SUMIFS(Datos!$C:$C,Datos!$A:$A,$C$8,Datos!$B:$B,$C$7,Datos!$D:$D,$B18,Datos!$E:$E,G$10)","v":1207.606935},{"$f":"+SUMIFS(Datos!$C:$C,Datos!$A:$A,$C$8,Datos!$B:$B,$C$7,Datos!$D:$D,$B18,Datos!$E:$E,H$10)","v":1775.4645109999999},{"$f":"+SUMIFS(Datos!$C:$C,Datos!$A:$A,$C$8,Datos!$B:$B,$C$7,Datos!$D:$D,$B18,Datos!$E:$E,I$10)","v":1862.0701730000001},{"$f":"+SUMIFS(Datos!$C:$C,Datos!$A:$A,$C$8,Datos!$B:$B,$C$7,Datos!$D:$D,$B18,Datos!$E:$E,J$10)","v":2076.7218400000002},{"$f":"+SUMIFS(Datos!$C:$C,Datos!$A:$A,$C$8,Datos!$B:$B,$C$7,Datos!$D:$D,$B18,Datos!$E:$E,K$10)","v":2337.9927269999998},{"$f":"+SUMIFS(Datos!$C:$C,Datos!$A:$A,$C$8,Datos!$B:$B,$C$7,Datos!$D:$D,$B18,Datos!$E:$E,L$10)","v":2567.5584690000001},{"$f":"+SUMIFS(Datos!$C:$C,Datos!$A:$A,$C$8,Datos!$B:$B,$C$7,Datos!$D:$D,$B18,Datos!$E:$E,M$10)","v":3443.4672019999998}]
[null,"Oferta total",null,{"$f":"+SUM(D11:D18)","v":7957.6134770000008},8206.7777740000001,8440.0645810000005,8714.3743140000006,8473.637537999999,9424.3599990000002,{"$f":"+SUM(J11:J18)","v":10539.445567000001},11117.705214000001,13046.019429,{"$f":"+SUM(M11:M18)","v":17363.586174999997}]
[null,"Consumo intermedio (PC)",null,{"$f":"+SUMIFS(Datos!$C:$C,Datos!$A:$A,$C$8,Datos!$B:$B,$C$7,Datos!$D:$D,$B20,Datos!$E:$E,D$10)","v":3302.630165},{"$f":"+SUMIFS(Datos!$C:$C,Datos!$A:$A,$C$8,Datos!$B:$B,$C$7,Datos!$D:$D,$B20,Datos!$E:$E,E$10)","v":3412.4971310000001},{"$f":"+SUMIFS(Datos!$C:$C,Datos!$A:$A,$C$8,Datos!$B:$B,$C$7,Datos!$D:$D,$B20,Datos!$E:$E,F$10)","v":3476.5390120000002},{"$f":"+SUMIFS(Datos!$C:$C,Datos!$A:$A,$C$8,Datos!$B:$B,$C$7,Datos!$D:$D,$B20,Datos!$E:$E,G$10)","v":3597.5077160000001},{"$f":"+SUMIFS(Datos!$C:$C,Datos!$A:$A,$C$8,Datos!$B:$B,$C$7,Datos!$D:$D,$B20,Datos!$E:$E,H$10)","v":3274.1293620000001},{"$f":"+SUMIFS(Datos!$C:$C,Datos!$A:$A,$C$8,Datos!$B:$B,$C$7,Datos!$D:$D,$B20,Datos!$E:$E,I$10)","v":3704.2621789999998},{"$f":"+SUMIFS(Datos!$C:$C,Datos!$A:$A,$C$8,Datos!$B:$B,$C$7,Datos!$D:$D,$B20,Datos!$E:$E,J$10)","v":4065.477832},{"$f":"+SUMIFS(Datos!$C:$C,Datos!$A:$A,$C$8,Datos!$B:$B,$C$7,Datos!$D:$D,$B20,Datos!$E:$E,K$10)","v":4188.7452910000002},{"$f":"+SUMIFS(Datos!$C:$C,Datos!$A:$A,$C$8,Datos!$B:$B,$C$7,Datos!$D:$D,$B20,Datos!$E:$E,L$10)","v":5288.9027980000001},{"$f":"+SUMIFS(Datos!$C:$C,Datos!$A:$A,$C$8,Datos!$B:$B,$C$7,Datos!$D:$D,$B20,Datos!$E:$E,M$10)","v":6886.3398829999996}]
[null,"Consumo final privado (PC)",null,{"$f":"+SUMIFS(Datos!$C:$C,Datos!$A:$A,$C$8,Datos!$B:$B,$C$7,Datos!$D:$D,$B21,Datos!$E:$E,D$10)","v":4580.0363850000003},{"$f":"+SUMIFS(Datos!$C:$C,Datos!$A:$A,$C$8,Datos!$B:$B,$C$7,Datos!$D:$D,$B21,Datos!$E:$E,E$10)","v":4664.5760769999997},{"$f":"+SUMIFS(Datos!$C:$C,Datos!$A:$A,$C$8,Datos!$B:$B,$C$7,Datos!$D:$D,$B21,Datos!$E:$E,F$10)","v":4908.7973549999997},{"$f":"+SUMIFS(Datos!$C:$C,Datos!$A:$A,$C$8,Datos!$B:$B,$C$7,Datos!$D:$D,$B21,Datos!$E:$E,G$10)","v":5030.7944020000004},{"$f":"+SUMIFS(Datos!$C:$C,Datos!$A:$A,$C$8,Datos!$B:$B,$C$7,Datos!$D:$D,$B21,Datos!$E:$E,H$10)","v":5138.9054400000005},{"$f":"+SUMIFS(Datos!$C:$C,Datos!$A:$A,$C$8,Datos!$B:$B,$C$7,Datos!$D:$D,$B21,Datos!$E:$E,I$10)","v":5726.608776},{"$f":"+SUMIFS(Datos!$C:$C,Datos!$A:$A,$C$8,Datos!$B:$B,$C$7,Datos!$D:$D,$B21,Datos!$E:$E,J$10)","v":6291.0989529999997},{"$f":"+SUMIFS(Datos!$C:$C,Datos!$A:$A,$C$8,Datos!$B:$B,$C$7,Datos!$D:$D,$B21,Datos!$E:$E,K$10)","v":6762.6794760000002},{"$f":"+SUMIFS(Datos!$C:$C,Datos!$A:$A,$C$8,Datos!$B:$B,$C$7,Datos!$D:$D,$B21,Datos!$E:$E,L$10)","v":7480.7803089999998},{"$f":"+SUMIFS(Datos!$C:$C,Datos!$A:$A,$C$8,Datos!$B:$B,$C$7,Datos!$D:$D,$B21,Datos!$E:$E,M$10)","v":10028.960501}]
[null,"Consumo final del gobierno (PC)",null,{"$f":"+SUMIFS(Datos!$C:$C,Datos!$A:$A,$C$8,Datos!$B:$B,$C$7,Datos!$D:$D,$B22,Datos!$E:$E,D$10)","v":0},{"$f":"+SUMIFS(Datos!$C:$C,Datos!$A:$A,$C$8,Datos!$B:$B,$C$7,Datos!$D:$D,$B22,Datos!$E:$E,E$10)","v":121.93507},{"$f":"+SUMIFS(Datos!$C:$C,Datos!$A:$A,$C$8,Datos!$B:$B,$C$7,Datos!$D:$D,$B22,Datos!$E:$E,F$10)","v":34.290210000000002},{"$f":"+SUMIFS(Datos!$C:$C,Datos!$A:$A,$C$8,Datos!$B:$B,$C$7,Datos!$D:$D,$B22,Datos!$E:$E,G$10)","v":60.153328000000002},{"$f":"+SUMIFS(Datos!$C:$C,Datos!$A:$A,$C$8,Datos!$B:$B,$C$7,Datos!$D:$D,$B22,Datos!$E:$E,H$10)","v":70.978345000000004},{"$f":"+SUMIFS(Datos!$C:$C,Datos!$A:$A,$C$8,Datos!$B:$B,$C$7,Datos!$D:$D,$B22,Datos!$E:$E,I$10)","v":5.1579550000000003},{"$f":"+SUMIFS(Datos!$C:$C,Datos!$A:$A,$C$8,Datos!$B:$B,$C$7,Datos!$D:$D,$B22,Datos!$E:$E,J$10)","v":11.485080999999999},{"$f":"+SUMIFS(Datos!$C:$C,Datos!$A:$A,$C$8,Datos!$B:$B,$C$7,Datos!$D:$D,$B22,Datos!$E:$E,K$10)","v":169.92567199999999},{"$f":"+SUMIFS(Datos!$C:$C,Datos!$A:$A,$C$8,Datos!$B:$B,$C$7,Datos!$D:$D,$B22,Datos!$E:$E,L$10)","v":207.84014500000001},{"$f":"+SUMIFS(Datos!$C:$C,Datos!$A:$A,$C$8,Datos!$B:$B,$C$7,Datos!$D:$D,$B22,Datos!$E:$E,M$10)","v":250.561893}]
[null,"Formación bruta de capital fijo (PC)",null,{"$f":"+SUMIFS(Datos!$C:$C,Datos!$A:$A,$C$8,Datos!$B:$B,$C$7,Datos!$D:$D,$B23,Datos!$E:$E,D$10)","v":0},{"$f":"+SUMIFS(Datos!$C:$C,Datos!$A:$A,$C$8,Datos!$B:$B,$C$7,Datos!$D:$D,$B23,Datos!$E:$E,E$10)","v":0},{"$f":"+SUMIFS(Datos!$C:$C,Datos!$A:$A,$C$8,Datos!$B:$B,$C$7,Datos!$D:$D,$B23,Datos!$E:$E,F$10)","v":0},{"$f":"+SUMIFS(Datos!$C:$C,Datos!$A:$A,$C$8,Datos!$B:$B,$C$7,Datos!$D:$D,$B23,Datos!$E:$E,G$10)","v":0},{"$f":"+SUMIFS(Datos!$C:$C,Datos!$A:$A,$C$8,Datos!$B:$B,$C$7,Datos!$D:$D,$B23,Datos!$E:$E,H$10)","v":0},{"$f":"+SUMIFS(Datos!$C:$C,Datos!$A:$A,$C$8,Datos!$B:$B,$C$7,Datos!$D:$D,$B23,Datos!$E:$E,I$10)","v":0},{"$f":"+SUMIFS(Datos!$C:$C,Datos!$A:$A,$C$8,Datos!$B:$B,$C$7,Datos!$D:$D,$B23,Datos!$E:$E,J$10)","v":0},{"$f":"+SUMIFS(Datos!$C:$C,Datos!$A:$A,$C$8,Datos!$B:$B,$C$7,Datos!$D:$D,$B23,Datos!$E:$E,K$10)","v":0},{"$f":"+SUMIFS(Datos!$C:$C,Datos!$A:$A,$C$8,Datos!$B:$B,$C$7,Datos!$D:$D,$B23,Datos!$E:$E,L$10)","v":0},{"$f":"+SUMIFS(Datos!$C:$C,Datos!$A:$A,$C$8,Datos!$B:$B,$C$7,Datos!$D:$D,$B23,Datos!$E:$E,M$10)","v":0}]
[null,"Variación de existencias (PC)",null,{"$f":"+SUMIFS(Datos!$C:$C,Datos!$A:$A,$C$8,Datos!$B:$B,$C$7,Datos!$D:$D,$B24,Datos!$E:$E,D$10)","v":38.522311999999999},{"$f":"+SUMIFS(Datos!$C:$C,Datos!$A:$A,$C$8,Datos!$B:$B,$C$7,Datos!$D:$D,$B24,Datos!$E:$E,E$10)","v":-7.9680280000000003},{"$f":"+SUMIFS(Datos!$C:$C,Datos!$A:$A,$C$8,Datos!$B:$B,$C$7,Datos!$D:$D,$B24,Datos!$E:$E,F$10)","v":-3.6261860000000001},{"$f":"+SUMIFS(Datos!$C:$C,Datos!$A:$A,$C$8,Datos!$B:$B,$C$7,Datos!$D:$D,$B24,Datos!$E:$E,G$10)","v":4.3459149999999998},{"$f":"+SUMIFS(Datos!$C:$C,Datos!$A:$A,$C$8,Datos!$B:$B,$C$7,Datos!$D:$D,$B24,Datos!$E:$E,H$10)","v":-19.729437000000001},{"$f":"+SUMIFS(Datos!$C:$C,Datos!$A:$A,$C$8,Datos!$B:$B,$C$7,Datos!$D:$D,$B24,Datos!$E:$E,I$10)","v":-20.213403},{"$f":"+SUMIFS(Datos!$C:$C,Datos!$A:$A,$C$8,Datos!$B:$B,$C$7,Datos!$D:$D,$B24,Datos!$E:$E,J$10)","v":162.05027200000001},{"$f":"+SUMIFS(Datos!$C:$C,Datos!$A:$A,$C$8,Datos!$B:$B,$C$7,Datos!$D:$D,$B24,Datos!$E:$E,K$10)","v":-13.196681999999999},{"$f":"+SUMIFS(Datos!$C:$C,Datos!$A:$A,$C$8,Datos!$B:$B,$C$7,Datos!$D:$D,$B24,Datos!$E:$E,L$10)","v":41.301605000000002},{"$f":"+SUMIFS(Datos!$C:$C,Datos!$A:$A,$C$8,Datos!$B:$B,$C$7,Datos!$D:$D,$B24,Datos!$E:$E,M$10)","v":105.890739}]
[null,"Exportaciones (FOB)",null,{"$f":"+SUMIFS(Datos!$C:$C,Datos!$A:$A,$C$8,Datos!$B:$B,$C$7,Datos!$D:$D,$B25,Datos!$E:$E,D$10)","v":36.424615000000003},{"$f":"+SUMIFS(Datos!$C:$C,Datos!$A:$A,$C$8,Datos!$B:$B,$C$7,Datos!$D:$D,$B25,Datos!$E:$E,E$10)","v":15.737524000000001},{"$f":"+SUMIFS(Datos!$C:$C,Datos!$A:$A,$C$8,Datos!$B:$B,$C$7,Datos!$D:$D,$B25,Datos!$E:$E,F$10)","v":24.06419},{"$f":"+SUMIFS(Datos!$C:$C,Datos!$A:$A,$C$8,Datos!$B:$B,$C$7,Datos!$D:$D,$B25,Datos!$E:$E,G$10)","v":21.572953999999999},{"$f":"+SUMIFS(Datos!$C:$C,Datos!$A:$A,$C$8,Datos!$B:$B,$C$7,Datos!$D:$D,$B25,Datos!$E:$E,H$10)","v":9.3538289999999993},{"$f":"+SUMIFS(Datos!$C:$C,Datos!$A:$A,$C$8,Datos!$B:$B,$C$7,Datos!$D:$D,$B25,Datos!$E:$E,I$10)","v":8.544492},{"$f":"+SUMIFS(Datos!$C:$C,Datos!$A:$A,$C$8,Datos!$B:$B,$C$7,Datos!$D:$D,$B25,Datos!$E:$E,J$10)","v":9.3334299999999999},{"$f":"+SUMIFS(Datos!$C:$C,Datos!$A:$A,$C$8,Datos!$B:$B,$C$7,Datos!$D:$D,$B25,Datos!$E:$E,K$10)","v":9.5514569999999992},{"$f":"+SUMIFS(Datos!$C:$C,Datos!$A:$A,$C$8,Datos!$B:$B,$C$7,Datos!$D:$D,$B25,Datos!$E:$E,L$10)","v":27.194572000000001},{"$f":"+SUMIFS(Datos!$C:$C,Datos!$A:$A,$C$8,Datos!$B:$B,$C$7,Datos!$D:$D,$B25,Datos!$E:$E,M$10)","v":91.833158999999995}]
[null,"Utilización total",null,{"$f":"+SUM(D20:D25)","v":7957.6134769999999},8206.7777739999983,8440.0645809999987,{"$f":"+SUM(G20:G25)","v":8714.3743149999991},8473.6375389999994,{"$f":"+SUM(I20:I25)","v":9424.3599990000021},10539.445568000001,11117.705214,13046.019429000002,17363.586174999997]
[]
[null,"Estructura porcentual"]
[]
[null,"Concepto",null,2013,2014,2015,2016,2017,2018,2019,2020,"2021 p/","2022 p/"]
[null,"Producción (PB)",null,{"$f":"+IFERROR(D11/D$19*100,0)","v":59.547094222354872},61.907400125977865,61.314901637717689,62.84046032085557,{"$f":"+IFERROR(H11/H$19*100,0)","v":56.133476404546215},{"$f":"+IFERROR(I11/I$19*100,0)","v":57.19710041394822},55.73340830557563,53.49699578749776,51.245055063607637,51.270155198800694]
[null,"Impuestos sobre los productos, excepto IVA e impuestos sobre las importaciones ",null,0,0,0,0,0,0,0,0,0,0]
[null,"Subvenciones a los productos",null,0,0,0,0,0,0,0,0,0,0]
[null,"Importaciones (CIF)",null,24.210481868319071,23.834085457959667,22.956322720109291,22.523351743644181,22.027389578909791,22.242050040771151,23.7659121068261,24.51180084868906,28.154381119770751,27.988055520448967]
[null,"Ajuste CIF/FOB",null,0,0,0,0,0,0,0,0,0,0]
[null,"Impuestos y derechos sobre las importaciones excepto IVA",null,1.6455938753306702E-4,1.4834080238615218E-4,1.4358894868271384E-4,1.3860627928955404E-2,1.3506124080333542E-3,1.3674138086159076E-3,1.4634830553416339E-3,1.5116159024289812E-3,1.7362537380289837E-3,1.9793837317710668E-3]
[null,"Impuesto tipo valor agregado (IVA)",null,0.7075246135380997,0.78531166280852682,0.74829414388813908,0.76468370073275693,0.88498122162657,0.80142775751365891,0.79493634145546499,0.96023753953798607,0.91804690044969883,0.9082660713664471]
[null,"Márgenes de comercio, transporte y distribución de energía",null,15.534734736400416,13.47305441245155,14.980337909336194,13.857643606838529,20.952802182509402,19.758054373958345,19.704279763087467,21.029454208372751,19.680780662433889,19.831543825652137]
[null,"Oferta total",null,100,100,100,100,100,100,100,100,100,100]
[null,"Consumo intermedio (PC)",null,41.502771836627119,41.581449199357841,41.190905337694595,41.28245570333668,38.639006534291539,39.305185491567087,38.573925033868903,37.676347864713222,40.540356595233149,39.65966369847559]
[null,"Consumo final privado (PC)",null,57.555401481081518,56.838094139430751,58.16066106947244,57.729840614234604,60.645801958776225,60.763900960995109,59.690985763976279,60.82801572651951,57.341477603283117,57.758578210298786]
[null,"Consumo final del gobierno (PC)",null,0,1.4857849616240868,0.40627900024832758,0.6902770736317948,0.83763725651112475,5.473002941894517E-2,0.10897234514840963,1.5284239753543798,1.5931307333330511,1.4430307799016642]
[null,"Formación bruta de capital fijo (PC)",null,0,0,0,0,0,0,0,0,0,0]
[null,"Variación de existencias (PC)",null,0.48409378152559895,-9.7090821994030518E-2,-4.2963960348871649E-2,4.9870648693826576E-2,-0.23283314764790691,-0.21448037853121915,1.5375597413529485,-0.11869969338080705,0.31658396053121501,0.60984371507575397]
[null,"Exportaciones (FOB)",null,0.45773290076577056,0.19176252158134774,0.28511855293349919,0.24755597157838585,0.11038740987035126,9.0663896550074896E-2,8.8557125141609447E-2,8.5912126793686705E-2,0.20845110761945657,0.52888359624822734]
[null,"Utilización total",null,99.999999999999986,99.999999999999972,99.999999999999972,100.00000001147527,100.00000001180132,100.00000000000003,100.00000000948816,99.999999999999986,100.00000000000003,100]
[]
[null,"Fuente:   Banco de Guatemala"]
[null,"p/ Cifras preliminares"]
[]
[null,"Notas:    NPG","Nomenclatura de productos para Guatemala"]
[null,"           CIF","Costo, seguro y flete"]
[null,"           FOB","Libre a bordo"]
[null,"           PB","Precio básico"]
[null,"           PC","Precio de comprador"]

{"sheet":"Catálogo","index":2,"n_rows":159,"n_cols":4,"rows_kept":159,"cut":false,"hidden":false,"merged":[[1,1,1,3]]}
[]
[null,"Productos"]
[]
[null,null,null,"Índice"]
[]
[null,"Cuadro","Código\nNPG 1/","Concepto"]
[null,"3.1","P001","Maíz"]
[null,"3.2","P002","Frijoles"]
[null,"3.3","P003","Leguminosas (legumbres secas) y semillas oleaginosas"]
[null,"3.4","P004","Arroz"]
[null,"3.5","P005","Otros cereales"]
[null,"3.6","P006","Hortalizas"]
[null,"3.7","P007","Sandías y melones"]
[null,"3.8","P008","Ejotes y arvejas"]
[null,"3.9","P009","Raíces y tubérculos"]
[null,"3.10","P010","Caña de azúcar y otras plantas azucareras"]
[null,"3.11","P011","Tabaco y otras plantas no perennes"]
[null,"3.12","P012","Bananos, plátanos y otros"]
[null,"3.13","P013","Frutas tropicales y subtropicales"]
[null,"3.14","P014","Berries, otras frutas y semillas de frutas"]
[null,"3.15","P015","Palma africana"]
[null,"3.16","P016","Café en grano"]
[null,"3.17","P017","Cardamomo"]
[null,"3.18","P018","Caucho natural"]
[null,"3.19","P019","Propagación de plantas"]
[null,"3.20","P020","Otros frutos oleaginosos, otras plantas bebestibles y especias aromáticas"]
[null,"3.21","P021","Ganado bovino"]
[null,"3.22","P022","Ganado porcino y otro tipo de animales vivos n.c.p."]
[null,"3.23","P023","Aves de corral"]
[null,"3.24","P024","Leche cruda"]
[null,"3.25","P025","Huevos"]
[null,"3.26","P026","Otros productos de animales vivos"]
[null,"3.27","P027","Troncos de madera y leña"]
[null,"3.28","P028","Productos forestales no madereros"]
[null,"3.29","P029","Peces vivos, frescos o refrigerados"]
[null,"3.30","P030","Crustáceos sin congelar y otros productos de la pesca"]
[null,"3.31","P031","Petróleo crudo y gas natural"]
[null,"3.32","P032","Minerales metálicos"]
[null,"3.33","P033","Minerales no metálicos"]
[null,"3.34","P034","Carne y despojos comestibles de ganado bovino; cueros y pieles de bovino y de otros animales"]
[null,"3.35","P035","Carne y despojos comestibles de ganado porcino"]
[null,"3.36","P036","Carne y despojos comestibles de aves"]
[null,"3.37","P037","Carne y despojos de otros animales y conservas y preparados de carne"]
[null,"3.38","P038","Pescado congelado, preparado o en conserva y sus productos"]
[null,"3.39","P039","Crustáceos, moluscos y demás invertebrados acuáticos congelados, preparados o en conserva y sus productos"]
[null,"3.40","P040","Vegetales preparados o en conserva, legumbres y papas"]
[null,"3.41","P041","Preparaciones y conservas de frutas y nueces"]
[null,"3.42","P042","Jugos de frutas"]
[null,"3.43","P043","Aceites de origen vegetal"]
[null,"3.44","P044","Margarina, grasas y otros aceites de origen animal y vegetal"]
[null,"3.45","P045","Leche líquida y crema procesada"]
[null,"3.46","P046","Otros productos lácteos n.c.p."]
[null,"3.47","P047","Harina de trigo"]
[null,"3.48","P048","Arroz sin cáscara"]
[null,"3.49","P049","Otros productos de molinería, almidones y productos de almidón"]
[null,"3.50","P050","Pan y otros productos de panadería y repostería n.c.p."]
[null,"3.51","P051","Tortillas de maíz, incluso tostadas, horneadas o fritas"]
[null,"3.52","P052","Azúcar de caña sin refinar y refinada, melaza y los demás azúcares n.c.p."]
[null,"3.53","P053","Productos alimenticios n.c.p."]
[null,"3.54","P054","Preparados para alimentación animal"]
[null,"3.55","P055","Aguardientes, licores, vinos, demás bebidas espirituosas y productos del tabaco"]
[null,"3.56","P056","Malta y cerveza de malta"]
[null,"3.57","P057","Bebidas no alcohólicas"]
[null,"3.58","P058","Aguas minerales y otras aguas embotelladas"]
[null,"3.59","P059","Hilados, tejidos, telas y otros productos textiles excepto prendas de vestir"]
[null,"3.60","P060","Prendas de vestir, adobo y teñido de pieles"]
[null,"3.61","P061","Cuero de piel curtida o adobada y cuero artificial o regenerado y artículos de cuero"]
[null,"3.62","P062","Calzado y sus partes, de cualquier material y de cualquier uso"]
[null,"3.63","P063","Madera aserrada y acepillada, productos de madera, corcho, paja y materiales trenzables"]
[null,"3.64","P064","Pasta de papel y papel"]
[null,"3.65","P065","Envases de papel y cartón"]
[null,"3.66","P066","Productos de la edición"]
[null,"3.67","P067","Productos de la impresión"]
[null,"3.68","P068","Gasolinas, diésel oil y fuel oils"]
[null,"3.69","P069","Aceites, grasas lubricantes y otros aceites preparados"]
[null,"3.70","P070","Gases de petróleo, otros productos de la refinación de petróleo n.c.p."]
[null,"3.71","P071","Abonos, fertilizantes y pesticidas"]
[null,"3.72","P072","Pinturas, barnices, tintas y productos relacionados"]
[null,"3.73","P073","Jabón, preparados de limpieza, perfumes y preparados de toilet"]
[null,"3.74","P074","Otros productos químicos"]
[null,"3.75","P075","Productos farmacéuticos"]
[null,"3.76","P076","Productos de caucho y plástico"]
[null,"3.77","P077","Vidrio y productos de vidrio"]
[null,"3.78","P078","Productos de cerámica y arcilla"]
[null,"3.79","P079","Cemento, cal y yeso"]
[null,"3.80","P080","Artículos de hormigón, cemento y yeso"]
[null,"3.81","P081","Piedras talladas para construcción y otros productos minerales no metálicos n.c.p."]
[null,"3.82","P082","Métales básicos de hierro y acero, productos primarios de metales preciosos y otros metales no ferrosos"]
[null,"3.83","P083","Productos metálicos estructurales y sus partes de hierro o de acero"]
[null,"3.84","P084","Otros productos elaborados de metal"]
[null,"3.85","P085","Maquinaria para usos generales y especiales, sus partes y piezas, excepto electrodomésticos"]
[null,"3.86","P086","Electrodomésticos y sus partes"]
[null,"3.87","P087","Maquinaria de oficina, contabilidad e informática, sus partes y piezas"]
[null,"3.88","P088","Maquinaria y aparatos eléctricos, sus partes y piezas"]
[null,"3.89","P089","Equipo y aparatos de radio, televisión y comunicaciones"]
[null,"3.90","P090","Aparatos médicos, instrumentos ópticos y de precisión, relojes"]
[null,"3.91","P091","Equipo de transporte"]
[null,"3.92","P092","Muebles"]
[null,"3.93","P093","Otros artículos n.c.p."]
[null,"3.94","P094","Residuos y desechos"]
[null,"3.95","P095","Generación y distribución de energía eléctrica, gas, vapor y aire acondicionado"]
[null,"3.96","P096","Agua natural y distribución de agua natural"]
[null,"3.97","P097","Evacuación de aguas residuales, recogida, tratamiento y eliminación de desechos"]
[null,"3.98","P098","Edificaciones residenciales"]
[null,"3.99","P099","Edificaciones no residenciales"]
[null,"3.100","P100","Obras de ingeniería civil"]
[null,"3.101","P101","Servicios generales y especializados de construcción"]
[null,"3.102","P102","Servicios de comercio"]
[null,"3.103","P103","Mantenimiento y reparación de vehículos automotores y motocicletas"]
[null,"3.104","P104","Servicio de transporte de pasajeros por vía terrestre"]
[null,"3.105","P105","Servicio de transporte de carga por vía terrestre"]
[null,"3.106","P106","Otros tipos de transporte"]
[null,"3.107","P107","Servicios de almacenamiento y depósito"]
[null,"3.108","P108","Otros servicios de apoyo al transporte"]
[null,"3.109","P109","Servicios postales y de mensajería"]
[null,"3.110","P110","Servicio de alojamiento"]
[null,"3.111","P111","Servicio de suministro de comidas y bebidas"]
[null,"3.112","P112","Servicios de información, telecomunicaciones y radiodifusión"]
[null,"3.113","P113","Servicios de banco central"]
[null,"3.114","P114","Otros servicios financieros y servicios de banca de inversión"]
[null,"3.115","P115","Servicios de Intermediación Financiera Medidos Indirectamente (SIFMI)"]
[null,"3.116","P116","Servicios de seguro, reaseguro y fondos de pensiones"]
[null,"3.117","P117","Servicios auxiliares de la intermediación financiera"]
[null,"3.118","P118","Servicios de alquiler de vivienda"]
[null,"3.119","P119","Otros servicios inmobiliarios, excepto alquiler de vivienda"]
[null,"3.120","P120","Servicios jurídicos, de contabilidad, auditoría, teneduría de libros y consultoría fiscal"]
[null,"3.121","P121","Servicios de tecnología de la información"]
[null,"3.122","P122","Servicios de arquitectura e ingeniería, ensayos y análisis técnicos"]
[null,"3.123","P123","Otros servicios profesionales, científicos y técnicos"]
[null,"3.124","P124","Servicios de publicidad y estudios de mercado"]
[null,"3.125","P125","Servicios de arrendamiento o alquiler sin operador"]
[null,"3.126","P126","Servicios  de agencias de empleo y de dotación de recursos humanos"]
[null,"3.127","P127","Servicios de agencias de viajes, operadores turísticos y actividades conexas"]
[null,"3.128","P128","Servicios de seguridad, sistemas de seguridad e investigación privada"]
[null,"3.129","P129","Servicios de limpieza"]
[null,"3.130","P130","Servicios telefónicos de centros de llamadas"]
[null,"3.131","P131","Servicios administrativos, de apoyo de oficina y otros servicios de apoyo a las empresas"]
[null,"3.132","P132","Servicios de mantenimiento, reparación e instalación de productos metálicos elaborados, maquinaria y equipo"]
[null,"3.133","P133","Servicios de reparación de otros bienes"]
[null,"3.134","P134","Servicios de apoyo a la agricultura, caza, silvicultura y pesca"]
[null,"3.135","P135","Servicios de apoyo a la explotación de minas y canteras y los relacionados con la distribución de electricidad, gas y agua"]
[null,"3.136","P136","Servicios de manufactura"]
[null,"3.137","P137","Servicios públicos del gobierno general"]
[null,"3.138","P138","Servicios públicos administrativos relacionados con la provisión de servicios educativos, de salud, servicios sociales, culturales y otros, sin contar los servicios de seguridad social"]
[null,"3.139","P139","Otros servicios administrativos"]
[null,"3.140","P140","Servicios públicos administrativos prestados a la comunidad en su conjunto"]
[null,"3.141","P141","Servicios administrativos relacionados con los sistemas de seguridad social de afiliación obligatoria"]
[null,"3.142","P142","Servicios de enseñanza"]
[null,"3.143","P143","Servicios de hospitalización"]
[null,"3.144","P144","Servicios médicos y dentales"]
[null,"3.145","P145","Otros servicios de atención de la salud humana"]
[null,"3.146","P146","Servicios audiovisuales, recreativos, culturales y deportivos"]
[null,"3.147","P147","Servicios de asociaciones que sirven a las empresas"]
[null,"3.148","P148","Servicios de asociaciones que sirven a los hogares"]
[null,"3.149","P149","Otros servicios"]
[null,"3.150","P150","Servicios domésticos"]
[null,"3.151","P151","Compras directas en el exterior por residentes"]
[null,"3.152","P152","Compras directas en el territorio nacional por no residentes"]
[null,"1/ Nomenclatura de productos para Guatemala"]

{"sheet":"Datos","index":3,"n_rows":21281,"n_cols":5,"rows_kept":4500,"cut":true,"hidden":false,"merged":[],"bounds":{"rows_first":2000,"rows_last":500,"rows_between":2000,"halvings":0}}
["Código","Producto","Monto","Concepto","Año"]
["P001","Maíz",4738.5275949999996,"Producción (PB)",2013]
["P002","Frijoles",1539.4167849999999,"Producción (PB)",2013]
["P003","Leguminosas (legumbres secas) y semillas oleaginosas",664.93744100000004,"Producción (PB)",2013]
["P004","Arroz",116.239071,"Producción (PB)",2013]
["P005","Otros cereales",106.479292,"Producción (PB)",2013]
["P006","Hortalizas",5264.6820399999997,"Producción (PB)",2013]
["P007","Sandías y melones",1261.6824779999999,"Producción (PB)",2013]
["P008","Ejotes y arvejas",771.17068200000006,"Producción (PB)",2013]
["P009","Raíces y tubérculos",1747.910875,"Producción (PB)",2013]
["P010","Caña de azúcar y otras plantas azucareras",6154.0217499999999,"Producción (PB)",2013]
["P011","Tabaco y otras plantas no perennes",1283.655291,"Producción (PB)",2013]
["P012","Bananos, plátanos y otros",6040.0700450000004,"Producción (PB)",2013]
["P013","Frutas tropicales y subtropicales",1653.6531259999999,"Producción (PB)",2013]
["P014","Berries, otras frutas y semillas de frutas",1714.381488,"Producción (PB)",2013]
["P015","Palma africana",2414.8983130000001,"Producción (PB)",2013]
["P016","Café en grano",9653.351541,"Producción (PB)",2013]
["P017","Cardamomo",2322.3962069999998,"Producción (PB)",2013]
["P018","Caucho natural",2982.8295819999998,"Producción (PB)",2013]
["P019","Propagación de plantas",566.54510600000003,"Producción (PB)",2013]
["P020","Otros frutos oleaginosos, otras plantas bebestibles y especias aromáticas",232.12553700000001,"Producción (PB)",2013]
["P021","Ganado bovino",4026.8818670000001,"Producción (PB)",2013]
["P022","Ganado porcino y otro tipo de animales vivos n.c.p.",1370.8941910000001,"Producción (PB)",2013]
["P023","Aves de corral",6672.8339569999998,"Producción (PB)",2013]
["P024","Leche cruda",1747.589759,"Producción (PB)",2013]
["P025","Huevos",2841.0390729999999,"Producción (PB)",2013]
["P026","Otros productos de animales vivos",115.807453,"Producción (PB)",2013]
["P027","Troncos de madera y leña",4653.6519070000004,"Producción (PB)",2013]
["P028","Productos forestales no madereros",231.532974,"Producción (PB)",2013]
["P029","Peces vivos, frescos o refrigerados",885.904901,"Producción (PB)",2013]
["P030","Crustáceos sin congelar y otros productos de la pesca",888.22815400000002,"Producción (PB)",2013]
["P031","Petróleo crudo y gas natural",2522.5645690000001,"Producción (PB)",2013]
["P032","Minerales metálicos",4027.6882439999999,"Producción (PB)",2013]
["P033","Minerales no metálicos",1899.9799740000001,"Producción (PB)",2013]
["P034","Carne y despojos comestibles de ganado bovino; cueros y pieles de bovino y de otros animales",6361.3497280000001,"Producción (PB)",2013]
["P035","Carne y despojos comestibles de ganado porcino",1270.3845449999999,"Producción (PB)",2013]
["P036","Carne y despojos comestibles de aves",7706.970671,"Producción (PB)",2013]
["P037","Carne y despojos de otros animales y conservas y preparados de carne",2521.8593900000001,"Producción (PB)",2013]
["P038","Pescado congelado, preparado o en conserva y sus productos",607.66577800000005,"Producción (PB)",2013]
["P039","Crustáceos, moluscos y demás invertebrados acuáticos congelados, preparados o en conserva y sus productos",468.21812899999998,"Producción (PB)",2013]
["P040","Vegetales preparados o en conserva, legumbres y papas",1010.114732,"Producción (PB)",2013]
["P041","Preparaciones y conservas de frutas y nueces",987.50069399999995,"Producción (PB)",2013]
["P042","Jugos de frutas",1135.475539,"Producción (PB)",2013]
["P043","Aceites de origen vegetal",4548.2427049999997,"Producción (PB)",2013]
["P044","Margarina, grasas y otros aceites de origen animal y vegetal",1112.9268340000001,"Producción (PB)",2013]
["P045","Leche líquida y crema procesada",1036.4886570000001,"Producción (PB)",2013]
["P046","Otros productos lácteos n.c.p.",1933.4236619999999,"Producción (PB)",2013]
["P047","Harina de trigo",2168.863742,"Producción (PB)",2013]
["P048","Arroz sin cáscara",543.08131500000002,"Producción (PB)",2013]
["P049","Otros productos de molinería, almidones y productos de almidón",1139.6597420000001,"Producción (PB)",2013]
["P050","Pan y otros productos de panadería y repostería n.c.p.",7600.8120490000001,"Producción (PB)",2013]
["P051","Tortillas de maíz, incluso tostadas, horneadas o fritas",5718.2908930000003,"Producción (PB)",2013]
["P052","Azúcar de caña sin refinar y refinada, melaza y los demás azúcares n.c.p.",13042.761296000001,"Producción (PB)",2013]
["P053","Productos alimenticios n.c.p.",7151.6582179999996,"Producción (PB)",2013]
["P054","Preparados para alimentación animal",6030.8949659999998,"Producción (PB)",2013]
["P055","Aguardientes, licores, vinos, demás bebidas espirituosas y productos del tabaco",1493.5566349999999,"Producción (PB)",2013]
["P056","Malta y cerveza de malta",1419.583367,"Producción (PB)",2013]
["P057","Bebidas no alcohólicas",7152.1578300000001,"Producción (PB)",2013]
["P058","Aguas minerales y otras aguas embotelladas",1151.2906310000001,"Producción (PB)",2013]
["P059","Hilados, tejidos, telas y otros productos textiles excepto prendas de vestir",4618.5948209999997,"Producción (PB)",2013]
["P060","Prendas de vestir, adobo y teñido de pieles",6479.8290070000003,"Producción (PB)",2013]
["P061","Cuero de piel curtida o adobada y cuero artificial o regenerado y artículos de cuero",1141.1186170000001,"Producción (PB)",2013]
["P062","Calzado y sus partes, de cualquier material y de cualquier uso",1371.7039689999999,"Producción (PB)",2013]
["P063","Madera aserrada y acepillada, productos de madera, corcho, paja y materiales trenzables",3232.631261,"Producción (PB)",2013]
["P064","Pasta de papel y papel",1609.0735460000001,"Producción (PB)",2013]
["P065","Envases de papel y cartón",2720.9221280000002,"Producción (PB)",2013]
["P066","Productos de la edición",1307.726848,"Producción (PB)",2013]
["P067","Productos de la impresión",1683.715455,"Producción (PB)",2013]
["P068","Gasolinas, diésel oil y fuel oils",119.18752600000001,"Producción (PB)",2013]
["P069","Aceites, grasas lubricantes y otros aceites preparados",0,"Producción (PB)",2013]
["P070","Gases de petróleo, otros productos de la refinación de petróleo n.c.p.",187.927719,"Producción (PB)",2013]
["P071","Abonos, fertilizantes y pesticidas",4425.0100860000002,"Producción (PB)",2013]
["P072","Pinturas, barnices, tintas y productos relacionados",1030.8568339999999,"Producción (PB)",2013]
["P073","Jabón, preparados de limpieza, perfumes y preparados de toilet",4141.020837,"Producción (PB)",2013]
["P074","Otros productos químicos",3266.282201,"Producción (PB)",2013]
["P075","Productos farmacéuticos",2427.519299,"Producción (PB)",2013]
["P076","Productos de caucho y plástico",7898.7152669999996,"Producción (PB)",2013]
["P077","Vidrio y productos de vidrio",698.56314999999995,"Producción (PB)",2013]
["P078","Productos de cerámica y arcilla",1318.059207,"Producción (PB)",2013]
["P079","Cemento, cal y yeso",4270.9037950000002,"Producción (PB)",2013]
["P080","Artículos de hormigón, cemento y yeso",2121.4280570000001,"Producción (PB)",2013]
["P081","Piedras talladas para construcción y otros productos minerales no metálicos n.c.p.",587.78490299999999,"Producción (PB)",2013]
["P082","Métales básicos de hierro y acero, productos primarios de metales preciosos y otros metales no ferrosos",4879.7175820000002,"Producción (PB)",2013]
["P083","Productos metálicos estructurales y sus partes de hierro o de acero",1571.0939370000001,"Producción (PB)",2013]
["P084","Otros productos elaborados de metal",2538.605364,"Producción (PB)",2013]
["P085","Maquinaria para usos generales y especiales, sus partes y piezas, excepto electrodomésticos",1942.761139,"Producción (PB)",2013]
["P086","Electrodomésticos y sus partes",0,"Producción (PB)",2013]
["P087","Maquinaria de oficina, contabilidad e informática, sus partes y piezas",0,"Producción (PB)",2013]
["P088","Maquinaria y aparatos eléctricos, sus partes y piezas",1258.812713,"Producción (PB)",2013]
["P089","Equipo y aparatos de radio, televisión y comunicaciones",0,"Producción (PB)",2013]
["P090","Aparatos médicos, instrumentos ópticos y de precisión, relojes",48.189135,"Producción (PB)",2013]
["P091","Equipo de transporte",665.76440100000002,"Producción (PB)",2013]
["P092","Muebles",4894.3384390000001,"Producción (PB)",2013]
["P093","Otros artículos n.c.p.",1571.3472260000001,"Producción (PB)",2013]
["P094","Residuos y desechos",1356.7667309999999,"Producción (PB)",2013]
["P095","Generación y distribución de energía eléctrica, gas, vapor y aire acondicionado",14244.333328999999,"Producción (PB)",2013]
["P096","Agua natural y distribución de agua natural",3403.6119669999998,"Producción (PB)",2013]
["P097","Evacuación de aguas residuales, recogida, tratamiento y eliminación de desechos",729.17586700000004,"Producción (PB)",2013]
["P098","Edificaciones residenciales",15309.235231000001,"Producción (PB)",2013]
["P099","Edificaciones no residenciales",6341.6955500000004,"Producción (PB)",2013]
["P100","Obras de ingeniería civil",11112.924306999999,"Producción (PB)",2013]
["P101","Servicios generales y especializados de construcción",9928.6868979999999,"Producción (PB)",2013]
["P102","Servicios de comercio",102043.63823,"Producción (PB)",2013]
["P103","Mantenimiento y reparación de vehículos automotores y motocicletas",8257.9241849999999,"Producción (PB)",2013]
["P104","Servicio de transporte de pasajeros por vía terrestre",5949.8103160000001,"Producción (PB)",2013]
["P105","Servicio de transporte de carga por vía terrestre",11417.858404000001,"Producción (PB)",2013]
["P106","Otros tipos de transporte",484.035527,"Producción (PB)",2013]
["P107","Servicios de almacenamiento y depósito",259.31421699999999,"Producción (PB)",2013]
["P108","Otros servicios de apoyo al transporte",5874.5549209999999,"Producción (PB)",2013]
["P109","Servicios postales y de mensajería",1105.4016140000001,"Producción (PB)",2013]
["P110","Servicio de alojamiento",1875.4451790000001,"Producción (PB)",2013]
["P111","Servicio de suministro de comidas y bebidas",27427.269646000001,"Producción (PB)",2013]
["P112","Servicios de información, telecomunicaciones y radiodifusión",23512.792580000001,"Producción (PB)",2013]
["P113","Servicios de banco central",696.02774699999998,"Producción (PB)",2013]
["P114","Otros servicios financieros y servicios de banca de inversión",2169.2497629999998,"Producción (PB)",2013]
["P115","Servicios de Intermediación Financiera Medidos Indirectamente (SIFMI)",13885.113292,"Producción (PB)",2013]
["P116","Servicios de seguro, reaseguro y fondos de pensiones",3772.9036460000002,"Producción (PB)",2013]
["P117","Servicios auxiliares de la intermediación financiera",4359.1684080000005,"Producción (PB)",2013]
["P118","Servicios de alquiler de vivienda",30462.774868,"Producción (PB)",2013]
["P119","Otros servicios inmobiliarios, excepto alquiler de vivienda",10648.615365,"Producción (PB)",2013]
["P120","Servicios jurídicos, de contabilidad, auditoría, teneduría de libros y consultoría fiscal",3795.3278529999998,"Producción (PB)",2013]
["P121","Servicios de tecnología de la información",2234.7804230000002,"Producción (PB)",2013]
["P122","Servicios de arquitectura e ingeniería, ensayos y análisis técnicos",2625.1571429999999,"Producción (PB)",2013]
["P123","Otros servicios profesionales, científicos y técnicos",6769.1124239999999,"Producción (PB)",2013]
["P124","Servicios de publicidad y estudios de mercado",4401.4705780000004,"Producción (PB)",2013]
["P125","Servicios de arrendamiento o alquiler sin operador",4856.5502859999997,"Producción (PB)",2013]
["P126","Servicios  de agencias de empleo y de dotación de recursos humanos",5859.536838,"Producción (PB)",2013]
["P127","Servicios de agencias de viajes, operadores turísticos y actividades conexas",707.712401,"Producción (PB)",2013]
["P128","Servicios de seguridad, sistemas de seguridad e investigación privada",3393.231597,"Producción (PB)",2013]
["P129","Servicios de limpieza",1014.429111,"Producción (PB)",2013]
["P130","Servicios telefónicos de centros de llamadas",2128.5282550000002,"Producción (PB)",2013]
["P131","Servicios administrativos, de apoyo de oficina y otros servicios de apoyo a las empresas",2293.6383660000001,"Producción (PB)",2013]
["P132","Servicios de mantenimiento, reparación e instalación de productos metálicos elaborados, maquinaria y equipo",3791.2587530000001,"Producción (PB)",2013]
["P133","Servicios de reparación de otros bienes",1250.1931079999999,"Producción (PB)",2013]
["P134","Servicios de apoyo a la agricultura, caza, silvicultura y pesca",3070.5959769999999,"Producción (PB)",2013]
["P135","Servicios de apoyo a la explotación de minas y canteras y los relacionados con la distribución de electricidad, gas y agua",381.873379,"Producción (PB)",2013]
["P136","Servicios de manufactura",6817.2061469999999,"Producción (PB)",2013]
["P137","Servicios públicos del gobierno general",10283.765883,"Producción (PB)",2013]
["P138","Servicios públicos administrativos relacionados con la provisión de servicios educativos, de salud, servicios sociales, culturales y otros, sin contar los servicios de seguridad social",1832.1676010000001,"Producción (PB)",2013]
["P139","Otros servicios administrativos",4099.4894729999996,"Producción (PB)",2013]
["P140","Servicios públicos administrativos prestados a la comunidad en su conjunto",8682.3336519999993,"Producción (PB)",2013]
["P141","Servicios administrativos relacionados con los sistemas de seguridad social de afiliación obligatoria",738.22770300000002,"Producción (PB)",2013]
["P142","Servicios de enseñanza",19863.937951,"Producción (PB)",2013]
["P143","Servicios de hospitalización",6404.9938439999996,"Producción (PB)",2013]
["P144","Servicios médicos y dentales",4544.5508090000003,"Producción (PB)",2013]
["P145","Otros servicios de atención de la salud humana",2663.413607,"Producción (PB)",2013]
["P146","Servicios audiovisuales, recreativos, culturales y deportivos",2198.5149649999998,"Producción (PB)",2013]
["P147","Servicios de asociaciones que sirven a las empresas",265.54951899999998,"Producción (PB)",2013]
["P148","Servicios de asociaciones que sirven a los hogares",1925.973125,"Producción (PB)",2013]
["P149","Otros servicios",7674.6114950000001,"Producción (PB)",2013]
["P150","Servicios domésticos",7294.099819,"Producción (PB)",2013]
["P151","Compras directas en el exterior por residentes",0,"Producción (PB)",2013]
["P152","Compras directas en el territorio nacional por no residentes",0,"Producción (PB)",2013]
["P001","Maíz",0,"Impuestos sobre los productos, excepto IVA e impuestos sobre las importaciones",2013]
["P002","Frijoles",0,"Impuestos sobre los productos, excepto IVA e impuestos sobre las importaciones",2013]
["P003","Leguminosas (legumbres secas) y semillas oleaginosas",0,"Impuestos sobre los productos, excepto IVA e impuestos sobre las importaciones",2013]
["P004","Arroz",0,"Impuestos sobre los productos, excepto IVA e impuestos sobre las importaciones",2013]
["P005","Otros cereales",0,"Impuestos sobre los productos, excepto IVA e impuestos sobre las importaciones",2013]
["P006","Hortalizas",0,"Impuestos sobre los productos, excepto IVA e impuestos sobre las importaciones",2013]
["P007","Sandías y melones",0,"Impuestos sobre los productos, excepto IVA e impuestos sobre las importaciones",2013]
["P008","Ejotes y arvejas",0,"Impuestos sobre los productos, excepto IVA e impuestos sobre las importaciones",2013]
["P009","Raíces y tubérculos",0,"Impuestos sobre los productos, excepto IVA e impuestos sobre las importaciones",2013]
["P010","Caña de azúcar y otras plantas azucareras",0,"Impuestos sobre los productos, excepto IVA e impuestos sobre las importaciones",2013]
["P011","Tabaco y otras plantas no perennes",0,"Impuestos sobre los productos, excepto IVA e impuestos sobre las importaciones",2013]
["P012","Bananos, plátanos y otros",0,"Impuestos sobre los productos, excepto IVA e impuestos sobre las importaciones",2013]
["P013","Frutas tropicales y subtropicales",0,"Impuestos sobre los productos, excepto IVA e impuestos sobre las importaciones",2013]
["P014","Berries, otras frutas y semillas de frutas",0,"Impuestos sobre los productos, excepto IVA e impuestos sobre las importaciones",2013]
["P015","Palma africana",0,"Impuestos sobre los productos, excepto IVA e impuestos sobre las importaciones",2013]
["P016","Café en grano",56.389183000000003,"Impuestos sobre los productos, excepto IVA e impuestos sobre las importaciones",2013]
["P017","Cardamomo",0,"Impuestos sobre los productos, excepto IVA e impuestos sobre las importaciones",2013]
["P018","Caucho natural",0,"Impuestos sobre los productos, excepto IVA e impuestos sobre las importaciones",2013]
["P019","Propagación de plantas",0,"Impuestos sobre los productos, excepto IVA e impuestos sobre las importaciones",2013]
["P020","Otros frutos oleaginosos, otras plantas bebestibles y especias aromáticas",0,"Impuestos sobre los productos, excepto IVA e impuestos sobre las importaciones",2013]
["P021","Ganado bovino",0,"Impuestos sobre los productos, excepto IVA e impuestos sobre las importaciones",2013]
["P022","Ganado porcino y otro tipo de animales vivos n.c.p.",0,"Impuestos sobre los productos, excepto IVA e impuestos sobre las importaciones",2013]
["P023","Aves de corral",0,"Impuestos sobre los productos, excepto IVA e impuestos sobre las importaciones",2013]
["P024","Leche cruda",0,"Impuestos sobre los productos, excepto IVA e impuestos sobre las importaciones",2013]
["P025","Huevos",0,"Impuestos sobre los productos, excepto IVA e impuestos sobre las importaciones",2013]
["P026","Otros productos de animales vivos",0,"Impuestos sobre los productos, excepto IVA e impuestos sobre las importaciones",2013]
["P027","Troncos de madera y leña",0,"Impuestos sobre los productos, excepto IVA e impuestos sobre las importaciones",2013]
["P028","Productos forestales no madereros",0,"Impuestos sobre los productos, excepto IVA e impuestos sobre las importaciones",2013]
["P029","Peces vivos, frescos o refrigerados",0,"Impuestos sobre los productos, excepto IVA e impuestos sobre las importaciones",2013]
["P030","Crustáceos sin congelar y otros productos de la pesca",0,"Impuestos sobre los productos, excepto IVA e impuestos sobre las importaciones",2013]
["P031","Petróleo crudo y gas natural",0,"Impuestos sobre los productos, excepto IVA e impuestos sobre las importaciones",2013]
["P032","Minerales metálicos",0,"Impuestos sobre los productos, excepto IVA e impuestos sobre las importaciones",2013]
["P033","Minerales no metálicos",0,"Impuestos sobre los productos, excepto IVA e impuestos sobre las importaciones",2013]
["P034","Carne y despojos comestibles de ganado bovino; cueros y pieles de bovino y de otros animales",0,"Impuestos sobre los productos, excepto IVA e impuestos sobre las importaciones",2013]
["P035","Carne y despojos comestibles de ganado porcino",0,"Impuestos sobre los productos, excepto IVA e impuestos sobre las importaciones",2013]
["P036","Carne y despojos comestibles de aves",0,"Impuestos sobre los productos, excepto IVA e impuestos sobre las importaciones",2013]
["P037","Carne y despojos de otros animales y conservas y preparados de carne",0,"Impuestos sobre los productos, excepto IVA e impuestos sobre las importaciones",2013]
["P038","Pescado congelado, preparado o en conserva y sus productos",0,"Impuestos sobre los productos, excepto IVA e impuestos sobre las importaciones",2013]
["P039","Crustáceos, moluscos y demás invertebrados acuáticos congelados, preparados o en conserva y sus productos",0,"Impuestos sobre los productos, excepto IVA e impuestos sobre las importaciones",2013]
["P040","Vegetales preparados o en conserva, legumbres y papas",0,"Impuestos sobre los productos, excepto IVA e impuestos sobre las importaciones",2013]
["P041","Preparaciones y conservas de frutas y nueces",0,"Impuestos sobre los productos, excepto IVA e impuestos sobre las importaciones",2013]
["P042","Jugos de frutas",29.591398000000002,"Impuestos sobre los productos, excepto IVA e impuestos sobre las importaciones",2013]
["P043","Aceites de origen vegetal",0,"Impuestos sobre los productos, excepto IVA e impuestos sobre las importaciones",2013]
["P044","Margarina, grasas y otros aceites de origen animal y vegetal",0,"Impuestos sobre los productos, excepto IVA e impuestos sobre las importaciones",2013]
["P045","Leche líquida y crema procesada",0,"Impuestos sobre los productos, excepto IVA e impuestos sobre las importaciones",2013]
["P046","Otros productos lácteos n.c.p.",1.2915080000000001,"Impuestos sobre los productos, excepto IVA e impuestos sobre las importaciones",2013]
["P047","Harina de trigo",0,"Impuestos sobre los productos, excepto IVA e impuestos sobre las importaciones",2013]
["P048","Arroz sin cáscara",0,"Impuestos sobre los productos, excepto IVA e impuestos sobre las importaciones",2013]
["P049","Otros productos de molinería, almidones y productos de almidón",0,"Impuestos sobre los productos, excepto IVA e impuestos sobre las importaciones",2013]
["P050","Pan y otros productos de panadería y repostería n.c.p.",0,"Impuestos sobre los productos, excepto IVA e impuestos sobre las importaciones",2013]
["P051","Tortillas de maíz, incluso tostadas, horneadas o fritas",0,"Impuestos sobre los productos, excepto IVA e impuestos sobre las importaciones",2013]
["P052","Azúcar de caña sin refinar y refinada, melaza y los demás azúcares n.c.p.",0,"Impuestos sobre los productos, excepto IVA e impuestos sobre las importaciones",2013]
["P053","Productos alimenticios n.c.p.",0,"Impuestos sobre los productos, excepto IVA e impuestos sobre las importaciones",2013]
["P054","Preparados para alimentación animal",0,"Impuestos sobre los productos, excepto IVA e impuestos sobre las importaciones",2013]
["P055","Aguardientes, licores, vinos, demás bebidas espirituosas y productos del tabaco",475.01746000000003,"Impuestos sobre los productos, excepto IVA e impuestos sobre las importaciones",2013]
["P056","Malta y cerveza de malta",217.107327,"Impuestos sobre los productos, excepto IVA e impuestos sobre las importaciones",2013]
["P057","Bebidas no alcohólicas",242.29592400000001,"Impuestos sobre los productos, excepto IVA e impuestos sobre las importaciones",2013]
["P058","Aguas minerales y otras aguas embotelladas",8.6743410000000001,"Impuestos sobre los productos, excepto IVA e impuestos sobre las importaciones",2013]
["P059","Hilados, tejidos, telas y otros productos textiles excepto prendas de vestir",0,"Impuestos sobre los productos, excepto IVA e impuestos sobre las importaciones",2013]
["P060","Prendas de vestir, adobo y teñido de pieles",0,"Impuestos sobre los productos, excepto IVA e impuestos sobre las importaciones",2013]
["P061","Cuero de piel curtida o adobada y cuero artificial o regenerado y artículos de cuero",0,"Impuestos sobre los productos, excepto IVA e impuestos sobre las importaciones",2013]
["P062","Calzado y sus partes, de cualquier material y de cualquier uso",0,"Impuestos sobre los productos, excepto IVA e impuestos sobre las importaciones",2013]
["P063","Madera aserrada y acepillada, productos de madera, corcho, paja y materiales trenzables",0,"Impuestos sobre los productos, excepto IVA e impuestos sobre las importaciones",2013]
["P064","Pasta de papel y papel",0,"Impuestos sobre los productos, excepto IVA e impuestos sobre las importaciones",2013]
["P065","Envases de papel y cartón",0,"Impuestos sobre los productos, excepto IVA e impuestos sobre las importaciones",2013]
["P066","Productos de la edición",0,"Impuestos sobre los productos, excepto IVA e impuestos sobre las importaciones",2013]
["P067","Productos de la impresión",0,"Impuestos sobre los productos, excepto IVA e impuestos sobre las importaciones",2013]
["P068","Gasolinas, diésel oil y fuel oils",2281.6210299999998,"Impuestos sobre los productos, excepto IVA e impuestos sobre las importaciones",2013]
["P069","Aceites, grasas lubricantes y otros aceites preparados",0,"Impuestos sobre los productos, excepto IVA e impuestos sobre las importaciones",2013]
["P070","Gases de petróleo, otros productos de la refinación de petróleo n.c.p.",32.65381,"Impuestos sobre los productos, excepto IVA e impuestos sobre las importaciones",2013]
["P071","Abonos, fertilizantes y pesticidas",0,"Impuestos sobre los productos, excepto IVA e impuestos sobre las importaciones",2013]
["P072","Pinturas, barnices, tintas y productos relacionados",0,"Impuestos sobre los productos, excepto IVA e impuestos sobre las importaciones",2013]
["P073","Jabón, preparados de limpieza, perfumes y preparados de toilet",0,"Impuestos sobre los productos, excepto IVA e impuestos sobre las importaciones",2013]
["P074","Otros productos químicos",1.493E-3,"Impuestos sobre los productos, excepto IVA e impuestos sobre las importaciones",2013]
["P075","Productos farmacéuticos",0,"Impuestos sobre los productos, excepto IVA e impuestos sobre las importaciones",2013]
["P076","Productos de caucho y plástico",0,"Impuestos sobre los productos, excepto IVA e impuestos sobre las importaciones",2013]
["P077","Vidrio y productos de vidrio",0,"Impuestos sobre los productos, excepto IVA e impuestos sobre las importaciones",2013]
["P078","Productos de cerámica y arcilla",0,"Impuestos sobre los productos, excepto IVA e impuestos sobre las importaciones",2013]
["P079","Cemento, cal y yeso",99.887760999999998,"Impuestos sobre los productos, excepto IVA e impuestos sobre las importaciones",2013]
["P080","Artículos de hormigón, cemento y yeso",0,"Impuestos sobre los productos, excepto IVA e impuestos sobre las importaciones",2013]
["P081","Piedras talladas para construcción y otros productos minerales no metálicos n.c.p.",0,"Impuestos sobre los productos, excepto IVA e impuestos sobre las importaciones",2013]
["P082","Métales básicos de hierro y acero, productos primarios de metales preciosos y otros metales no ferrosos",0,"Impuestos sobre los productos, excepto IVA e impuestos sobre las importaciones",2013]
["P083","Productos metálicos estructurales y sus partes de hierro o de acero",0,"Impuestos sobre los productos, excepto IVA e impuestos sobre las importaciones",2013]
["P084","Otros productos elaborados de metal",0,"Impuestos sobre los productos, excepto IVA e impuestos sobre las importaciones",2013]
["P085","Maquinaria para usos generales y especiales, sus partes y piezas, excepto electrodomésticos",0,"Impuestos sobre los productos, excepto IVA e impuestos sobre las importaciones",2013]
["P086","Electrodomésticos y sus partes",0,"Impuestos sobre los productos, excepto IVA e impuestos sobre las importaciones",2013]
["P087","Maquinaria de oficina, contabilidad e informática, sus partes y piezas",0,"Impuestos sobre los productos, excepto IVA e impuestos sobre las importaciones",2013]
["P088","Maquinaria y aparatos eléctricos, sus partes y piezas",0,"Impuestos sobre los productos, excepto IVA e impuestos sobre las importaciones",2013]
["P089","Equipo y aparatos de radio, televisión y comunicaciones",0,"Impuestos sobre los productos, excepto IVA e impuestos sobre las importaciones",2013]
["P090","Aparatos médicos, instrumentos ópticos y de precisión, relojes",0,"Impuestos sobre los productos, excepto IVA e impuestos sobre las importaciones",2013]
["P091","Equipo de transporte",0,"Impuestos sobre los productos, excepto IVA e impuestos sobre las importaciones",2013]
["P092","Muebles",0,"Impuestos sobre los productos, excepto IVA e impuestos sobre las importaciones",2013]
["P093","Otros artículos n.c.p.",0,"Impuestos sobre los productos, excepto IVA e impuestos sobre las importaciones",2013]
["P094","Residuos y desechos",0,"Impuestos sobre los productos, excepto IVA e impuestos sobre las importaciones",2013]
["P095","Generación y distribución de energía eléctrica, gas, vapor y aire acondicionado",0,"Impuestos sobre los productos, excepto IVA e impuestos sobre las importaciones",2013]
["P096","Agua natural y distribución de agua natural",0,"Impuestos sobre los productos, excepto IVA e impuestos sobre las importaciones",2013]
["P097","Evacuación de aguas residuales, recogida, tratamiento y eliminación de desechos",0,"Impuestos sobre los productos, excepto IVA e impuestos sobre las importaciones",2013]
["P098","Edificaciones residenciales",0,"Impuestos sobre los productos, excepto IVA e impuestos sobre las importaciones",2013]
["P099","Edificaciones no residenciales",0,"Impuestos sobre los productos, excepto IVA e impuestos sobre las importaciones",2013]
["P100","Obras de ingeniería civil",0,"Impuestos sobre los productos, excepto IVA e impuestos sobre las importaciones",2013]
["P101","Servicios generales y especializados de construcción",0,"Impuestos sobre los productos, excepto IVA e impuestos sobre las importaciones",2013]
["P102","Servicios de comercio",0,"Impuestos sobre los productos, excepto IVA e impuestos sobre las importaciones",2013]
["P103","Mantenimiento y reparación de vehículos automotores y motocicletas",0,"Impuestos sobre los productos, excepto IVA e impuestos sobre las importaciones",2013]
["P104","Servicio de transporte de pasajeros por vía terrestre",0,"Impuestos sobre los productos, excepto IVA e impuestos sobre las importaciones",2013]
["P105","Servicio de transporte de carga por vía terrestre",0,"Impuestos sobre los productos, excepto IVA e impuestos sobre las importaciones",2013]
["P106","Otros tipos de transporte",0,"Impuestos sobre los productos, excepto IVA e impuestos sobre las importaciones",2013]
["P107","Servicios de almacenamiento y depósito",0,"Impuestos sobre los productos, excepto IVA e impuestos sobre las importaciones",2013]
["P108","Otros servicios de apoyo al transporte",0,"Impuestos sobre los productos, excepto IVA e impuestos sobre las importaciones",2013]
["P109","Servicios postales y de mensajería",0,"Impuestos sobre los productos, excepto IVA e impuestos sobre las importaciones",2013]
["P110","Servicio de alojamiento",86.690190000000001,"Impuestos sobre los productos, excepto IVA e impuestos sobre las importaciones",2013]
["P111","Servicio de suministro de comidas y bebidas",0,"Impuestos sobre los productos, excepto IVA e impuestos sobre las importaciones",2013]
["P112","Servicios de información, telecomunicaciones y radiodifusión",0,"Impuestos sobre los productos, excepto IVA e impuestos sobre las importaciones",2013]
["P113","Servicios de banco central",0,"Impuestos sobre los productos, excepto IVA e impuestos sobre las importaciones",2013]
["P114","Otros servicios financieros y servicios de banca de inversión",0,"Impuestos sobre los productos, excepto IVA e impuestos sobre las importaciones",2013]
["P115","Servicios de Intermediación Financiera Medidos Indirectamente (SIFMI)",0,"Impuestos sobre los productos, excepto IVA e impuestos sobre las importaciones",2013]
["P116","Servicios de seguro, reaseguro y fondos de pensiones",14.204537,"Impuestos sobre los productos, excepto IVA e impuestos sobre las importaciones",2013]
["P117","Servicios auxiliares de la intermediación financiera",0,"Impuestos sobre los productos, excepto IVA e impuestos sobre las importaciones",2013]
["P118","Servicios de alquiler de vivienda",0,"Impuestos sobre los productos, excepto IVA e impuestos sobre las importaciones",2013]
["P119","Otros servicios inmobiliarios, excepto alquiler de vivienda",4.006E-3,"Impuestos sobre los productos, excepto IVA e impuestos sobre las importaciones",2013]
["P120","Servicios jurídicos, de contabilidad, auditoría, teneduría de libros y consultoría fiscal",0,"Impuestos sobre los productos, excepto IVA e impuestos sobre las importaciones",2013]
["P121","Servicios de tecnología de la información",0,"Impuestos sobre los productos, excepto IVA e impuestos sobre las importaciones",2013]
["P122","Servicios de arquitectura e ingeniería, ensayos y análisis técnicos",0,"Impuestos sobre los productos, excepto IVA e impuestos sobre las importaciones",2013]
["P123","Otros servicios profesionales, científicos y técnicos",0,"Impuestos sobre los productos, excepto IVA e impuestos sobre las importaciones",2013]
["P124","Servicios de publicidad y estudios de mercado",0,"Impuestos sobre los productos, excepto IVA e impuestos sobre las importaciones",2013]
["P125","Servicios de arrendamiento o alquiler sin operador",0,"Impuestos sobre los productos, excepto IVA e impuestos sobre las importaciones",2013]
["P126","Servicios  de agencias de empleo y de dotación de recursos humanos",0,"Impuestos sobre los productos, excepto IVA e impuestos sobre las importaciones",2013]
["P127","Servicios de agencias de viajes, operadores turísticos y actividades conexas",0,"Impuestos sobre los productos, excepto IVA e impuestos sobre las importaciones",2013]
["P128","Servicios de seguridad, sistemas de seguridad e investigación privada",0,"Impuestos sobre los productos, excepto IVA e impuestos sobre las importaciones",2013]
["P129","Servicios de limpieza",0,"Impuestos sobre los productos, excepto IVA e impuestos sobre las importaciones",2013]
["P130","Servicios telefónicos de centros de llamadas",0,"Impuestos sobre los productos, excepto IVA e impuestos sobre las importaciones",2013]
["P131","Servicios administrativos, de apoyo de oficina y otros servicios de apoyo a las empresas",0,"Impuestos sobre los productos, excepto IVA e impuestos sobre las importaciones",2013]
["P132","Servicios de mantenimiento, reparación e instalación de productos metálicos elaborados, maquinaria y equipo",0,"Impuestos sobre los productos, excepto IVA e impuestos sobre las importaciones",2013]
["P133","Servicios de reparación de otros bienes",0,"Impuestos sobre los productos, excepto IVA e impuestos sobre las importaciones",2013]
["P134","Servicios de apoyo a la agricultura, caza, silvicultura y pesca",0,"Impuestos sobre los productos, excepto IVA e impuestos sobre las importaciones",2013]
["P135","Servicios de apoyo a la explotación de minas y canteras y los relacionados con la distribución de electricidad, gas y agua",0,"Impuestos sobre los productos, excepto IVA e impuestos sobre las importaciones",2013]
["P136","Servicios de manufactura",0,"Impuestos sobre los productos, excepto IVA e impuestos sobre las importaciones",2013]
["P137","Servicios públicos del gobierno general",0,"Impuestos sobre los productos, excepto IVA e impuestos sobre las importaciones",2013]
["P138","Servicios públicos administrativos relacionados con la provisión de servicios educativos, de salud, servicios sociales, culturales y otros, sin contar los servicios de seguridad social",0,"Impuestos sobre los productos, excepto IVA e impuestos sobre las importaciones",2013]
["P139","Otros servicios administrativos",0,"Impuestos sobre los productos, excepto IVA e impuestos sobre las importaciones",2013]
["P140","Servicios públicos administrativos prestados a la comunidad en su conjunto",0,"Impuestos sobre los productos, excepto IVA e impuestos sobre las importaciones",2013]
["P141","Servicios administrativos relacionados con los sistemas de seguridad social de afiliación obligatoria",0,"Impuestos sobre los productos, excepto IVA e impuestos sobre las importaciones",2013]
["P142","Servicios de enseñanza",0,"Impuestos sobre los productos, excepto IVA e impuestos sobre las importaciones",2013]
["P143","Servicios de hospitalización",0,"Impuestos sobre los productos, excepto IVA e impuestos sobre las importaciones",2013]
["P144","Servicios médicos y dentales",0,"Impuestos sobre los productos, excepto IVA e impuestos sobre las importaciones",2013]
["P145","Otros servicios de atención de la salud humana",0,"Impuestos sobre los productos, excepto IVA e impuestos sobre las importaciones",2013]
["P146","Servicios audiovisuales, recreativos, culturales y deportivos",0,"Impuestos sobre los productos, excepto IVA e impuestos sobre las importaciones",2013]
["P147","Servicios de asociaciones que sirven a las empresas",0,"Impuestos sobre los productos, excepto IVA e impuestos sobre las importaciones",2013]
["P148","Servicios de asociaciones que sirven a los hogares",0,"Impuestos sobre los productos, excepto IVA e impuestos sobre las importaciones",2013]
["P149","Otros servicios",0,"Impuestos sobre los productos, excepto IVA e impuestos sobre las importaciones",2013]
["P150","Servicios domésticos",0,"Impuestos sobre los productos, excepto IVA e impuestos sobre las importaciones",2013]
["P151","Compras directas en el exterior por residentes",0,"Impuestos sobre los productos, excepto IVA e impuestos sobre las importaciones",2013]
["P152","Compras directas en el territorio nacional por no residentes",0,"Impuestos sobre los productos, excepto IVA e impuestos sobre las importaciones",2013]
["P001","Maíz",0,"Subvenciones a los productos",2013]
["P002","Frijoles",0,"Subvenciones a los productos",2013]
["P003","Leguminosas (legumbres secas) y semillas oleaginosas",0,"Subvenciones a los productos",2013]
["P004","Arroz",0,"Subvenciones a los productos",2013]
["P005","Otros cereales",0,"Subvenciones a los productos",2013]
["P006","Hortalizas",0,"Subvenciones a los productos",2013]
["P007","Sandías y melones",0,"Subvenciones a los productos",2013]
["P008","Ejotes y arvejas",0,"Subvenciones a los productos",2013]
["P009","Raíces y tubérculos",0,"Subvenciones a los productos",2013]
["P010","Caña de azúcar y otras plantas azucareras",0,"Subvenciones a los productos",2013]
["P011","Tabaco y otras plantas no perennes",0,"Subvenciones a los productos",2013]
["P012","Bananos, plátanos y otros",0,"Subvenciones a los productos",2013]
["P013","Frutas tropicales y subtropicales",0,"Subvenciones a los productos",2013]
["P014","Berries, otras frutas y semillas de frutas",0,"Subvenciones a los productos",2013]
["P015","Palma africana",0,"Subvenciones a los productos",2013]
["P016","Café en grano",0,"Subvenciones a los productos",2013]
["P017","Cardamomo",0,"Subvenciones a los productos",2013]
["P018","Caucho natural",0,"Subvenciones a los productos",2013]
["P019","Propagación de plantas",0,"Subvenciones a los productos",2013]
["P020","Otros frutos oleaginosos, otras plantas bebestibles y especias aromáticas",0,"Subvenciones a los productos",2013]
["P021","Ganado bovino",0,"Subvenciones a los productos",2013]
["P022","Ganado porcino y otro tipo de animales vivos n.c.p.",0,"Subvenciones a los productos",2013]
["P023","Aves de corral",0,"Subvenciones a los productos",2013]
["P024","Leche cruda",0,"Subvenciones a los productos",2013]
["P025","Huevos",0,"Subvenciones a los productos",2013]
["P026","Otros productos de animales vivos",0,"Subvenciones a los productos",2013]
["P027","Troncos de madera y leña",0,"Subvenciones a los productos",2013]
["P028","Productos forestales no madereros",0,"Subvenciones a los productos",2013]
["P029","Peces vivos, frescos o refrigerados",0,"Subvenciones a los productos",2013]
["P030","Crustáceos sin congelar y otros productos de la pesca",0,"Subvenciones a los productos",2013]
["P031","Petróleo crudo y gas natural",0,"Subvenciones a los productos",2013]
["P032","Minerales metálicos",0,"Subvenciones a los productos",2013]
["P033","Minerales no metálicos",0,"Subvenciones a los productos",2013]
["P034","Carne y despojos comestibles de ganado bovino; cueros y pieles de bovino y de otros animales",0,"Subvenciones a los productos",2013]
["P035","Carne y despojos comestibles de ganado porcino",0,"Subvenciones a los productos",2013]
["P036","Carne y despojos comestibles de aves",0,"Subvenciones a los productos",2013]
["P037","Carne y despojos de otros animales y conservas y preparados de carne",0,"Subvenciones a los productos",2013]
["P038","Pescado congelado, preparado o en conserva y sus productos",0,"Subvenciones a los productos",2013]
["P039","Crustáceos, moluscos y demás invertebrados acuáticos congelados, preparados o en conserva y sus productos",0,"Subvenciones a los productos",2013]
["P040","Vegetales preparados o en conserva, legumbres y papas",0,"Subvenciones a los productos",2013]
["P041","Preparaciones y conservas de frutas y nueces",0,"Subvenciones a los productos",2013]
["P042","Jugos de frutas",0,"Subvenciones a los productos",2013]
["P043","Aceites de origen vegetal",0,"Subvenciones a los productos",2013]
["P044","Margarina, grasas y otros aceites de origen animal y vegetal",0,"Subvenciones a los productos",2013]
["P045","Leche líquida y crema procesada",0,"Subvenciones a los productos",2013]
["P046","Otros productos lácteos n.c.p.",0,"Subvenciones a los productos",2013]
["P047","Harina de trigo",0,"Subvenciones a los productos",2013]
["P048","Arroz sin cáscara",0,"Subvenciones a los productos",2013]
["P049","Otros productos de molinería, almidones y productos de almidón",0,"Subvenciones a los productos",2013]
["P050","Pan y otros productos de panadería y repostería n.c.p.",0,"Subvenciones a los productos",2013]
["P051","Tortillas de maíz, incluso tostadas, horneadas o fritas",0,"Subvenciones a los productos",2013]
["P052","Azúcar de caña sin refinar y refinada, melaza y los demás azúcares n.c.p.",0,"Subvenciones a los productos",2013]
["P053","Productos alimenticios n.c.p.",0,"Subvenciones a los productos",2013]
["P054","Preparados para alimentación animal",0,"Subvenciones a los productos",2013]
["P055","Aguardientes, licores, vinos, demás bebidas espirituosas y productos del tabaco",0,"Subvenciones a los productos",2013]
["P056","Malta y cerveza de malta",0,"Subvenciones a los productos",2013]
["P057","Bebidas no alcohólicas",0,"Subvenciones a los productos",2013]
["P058","Aguas minerales y otras aguas embotelladas",0,"Subvenciones a los productos",2013]
["P059","Hilados, tejidos, telas y otros productos textiles excepto prendas de vestir",0,"Subvenciones a los productos",2013]
["P060","Prendas de vestir, adobo y teñido de pieles",0,"Subvenciones a los productos",2013]
["P061","Cuero de piel curtida o adobada y cuero artificial o regenerado y artículos de cuero",0,"Subvenciones a los productos",2013]
["P062","Calzado y sus partes, de cualquier material y de cualquier uso",0,"Subvenciones a los productos",2013]
["P063","Madera aserrada y acepillada, productos de madera, corcho, paja y materiales trenzables",0,"Subvenciones a los productos",2013]
["P064","Pasta de papel y papel",0,"Subvenciones a los productos",2013]
["P065","Envases de papel y cartón",0,"Subvenciones a los productos",2013]
["P066","Productos de la edición",0,"Subvenciones a los productos",2013]
["P067","Productos de la impresión",0,"Subvenciones a los productos",2013]
["P068","Gasolinas, diésel oil y fuel oils",0,"Subvenciones a los productos",2013]
["P069","Aceites, grasas lubricantes y otros aceites preparados",0,"Subvenciones a los productos",2013]
["P070","Gases de petróleo, otros productos de la refinación de petróleo n.c.p.",0,"Subvenciones a los productos",2013]
["P071","Abonos, fertilizantes y pesticidas",-256.17562900000001,"Subvenciones a los productos",2013]
["P072","Pinturas, barnices, tintas y productos relacionados",0,"Subvenciones a los productos",2013]
["P073","Jabón, preparados de limpieza, perfumes y preparados de toilet",0,"Subvenciones a los productos",2013]
["P074","Otros productos químicos",0,"Subvenciones a los productos",2013]
["P075","Productos farmacéuticos",0,"Subvenciones a los productos",2013]
["P076","Productos de caucho y plástico",0,"Subvenciones a los productos",2013]
["P077","Vidrio y productos de vidrio",0,"Subvenciones a los productos",2013]
["P078","Productos de cerámica y arcilla",0,"Subvenciones a los productos",2013]
["P079","Cemento, cal y yeso",0,"Subvenciones a los productos",2013]
["P080","Artículos de hormigón, cemento y yeso",0,"Subvenciones a los productos",2013]
["P081","Piedras talladas para construcción y otros productos minerales no metálicos n.c.p.",0,"Subvenciones a los productos",2013]
["P082","Métales básicos de hierro y acero, productos primarios de metales preciosos y otros metales no ferrosos",0,"Subvenciones a los productos",2013]
["P083","Productos metálicos estructurales y sus partes de hierro o de acero",0,"Subvenciones a los productos",2013]
["P084","Otros productos elaborados de metal",0,"Subvenciones a los productos",2013]
["P085","Maquinaria para usos generales y especiales, sus partes y piezas, excepto electrodomésticos",0,"Subvenciones a los productos",2013]
["P086","Electrodomésticos y sus partes",0,"Subvenciones a los productos",2013]
["P087","Maquinaria de oficina, contabilidad e informática, sus partes y piezas",0,"Subvenciones a los productos",2013]
["P088","Maquinaria y aparatos eléctricos, sus partes y piezas",0,"Subvenciones a los productos",2013]
["P089","Equipo y aparatos de radio, televisión y comunicaciones",0,"Subvenciones a los productos",2013]
["P090","Aparatos médicos, instrumentos ópticos y de precisión, relojes",0,"Subvenciones a los productos",2013]
["P091","Equipo de transporte",0,"Subvenciones a los productos",2013]
["P092","Muebles",0,"Subvenciones a los productos",2013]
["P093","Otros artículos n.c.p.",0,"Subvenciones a los productos",2013]
["P094","Residuos y desechos",0,"Subvenciones a los productos",2013]
["P095","Generación y distribución de energía eléctrica, gas, vapor y aire acondicionado",-1493.554705,"Subvenciones a los productos",2013]
["P096","Agua natural y distribución de agua natural",0,"Subvenciones a los productos",2013]
["P097","Evacuación de aguas residuales, recogida, tratamiento y eliminación de desechos",0,"Subvenciones a los productos",2013]
["P098","Edificaciones residenciales",0,"Subvenciones a los productos",2013]
["P099","Edificaciones no residenciales",0,"Subvenciones a los productos",2013]
["P100","Obras de ingeniería civil",0,"Subvenciones a los productos",2013]
["P101","Servicios generales y especializados de construcción",0,"Subvenciones a los productos",2013]
["P102","Servicios de comercio",0,"Subvenciones a los productos",2013]
["P103","Mantenimiento y reparación de vehículos automotores y motocicletas",0,"Subvenciones a los productos",2013]
["P104","Servicio de transporte de pasajeros por vía terrestre",-476.23512399999998,"Subvenciones a los productos",2013]
["P105","Servicio de transporte de carga por vía terrestre",0,"Subvenciones a los productos",2013]
["P106","Otros tipos de transporte",0,"Subvenciones a los productos",2013]
["P107","Servicios de almacenamiento y depósito",0,"Subvenciones a los productos",2013]
["P108","Otros servicios de apoyo al transporte",0,"Subvenciones a los productos",2013]
["P109","Servicios postales y de mensajería",0,"Subvenciones a los productos",2013]
["P110","Servicio de alojamiento",0,"Subvenciones a los productos",2013]
["P111","Servicio de suministro de comidas y bebidas",0,"Subvenciones a los productos",2013]
["P112","Servicios de información, telecomunicaciones y radiodifusión",0,"Subvenciones a los productos",2013]
["P113","Servicios de banco central",0,"Subvenciones a los productos",2013]
["P114","Otros servicios financieros y servicios de banca de inversión",0,"Subvenciones a los productos",2013]
["P115","Servicios de Intermediación Financiera Medidos Indirectamente (SIFMI)",0,"Subvenciones a los productos",2013]
["P116","Servicios de seguro, reaseguro y fondos de pensiones",0,"Subvenciones a los productos",2013]
["P117","Servicios auxiliares de la intermediación financiera",0,"Subvenciones a los productos",2013]
["P118","Servicios de alquiler de vivienda",0,"Subvenciones a los productos",2013]
["P119","Otros servicios inmobiliarios, excepto alquiler de vivienda",0,"Subvenciones a los productos",2013]
["P120","Servicios jurídicos, de contabilidad, auditoría, teneduría de libros y consultoría fiscal",0,"Subvenciones a los productos",2013]
["P121","Servicios de tecnología de la información",0,"Subvenciones a los productos",2013]
["P122","Servicios de arquitectura e ingeniería, ensayos y análisis técnicos",0,"Subvenciones a los productos",2013]
["P123","Otros servicios profesionales, científicos y técnicos",0,"Subvenciones a los productos",2013]
["P124","Servicios de publicidad y estudios de mercado",0,"Subvenciones a los productos",2013]
["P125","Servicios de arrendamiento o alquiler sin operador",0,"Subvenciones a los productos",2013]
["P126","Servicios  de agencias de empleo y de dotación de recursos humanos",0,"Subvenciones a los productos",2013]
["P127","Servicios de agencias de viajes, operadores turísticos y actividades conexas",0,"Subvenciones a los productos",2013]
["P128","Servicios de seguridad, sistemas de seguridad e investigación privada",0,"Subvenciones a los productos",2013]
["P129","Servicios de limpieza",0,"Subvenciones a los productos",2013]
["P130","Servicios telefónicos de centros de llamadas",0,"Subvenciones a los productos",2013]
["P131","Servicios administrativos, de apoyo de oficina y otros servicios de apoyo a las empresas",0,"Subvenciones a los productos",2013]
["P132","Servicios de mantenimiento, reparación e instalación de productos metálicos elaborados, maquinaria y equipo",0,"Subvenciones a los productos",2013]
["P133","Servicios de reparación de otros bienes",0,"Subvenciones a los productos",2013]
["P134","Servicios de apoyo a la agricultura, caza, silvicultura y pesca",0,"Subvenciones a los productos",2013]
["P135","Servicios de apoyo a la explotación de minas y canteras y los relacionados con la distribución de electricidad, gas y agua",0,"Subvenciones a los productos",2013]
["P136","Servicios de manufactura",0,"Subvenciones a los productos",2013]
["P137","Servicios públicos del gobierno general",0,"Subvenciones a los productos",2013]
["P138","Servicios públicos administrativos relacionados con la provisión de servicios educativos, de salud, servicios sociales, culturales y otros, sin contar los servicios de seguridad social",0,"Subvenciones a los productos",2013]
["P139","Otros servicios administrativos",0,"Subvenciones a los productos",2013]
["P140","Servicios públicos administrativos prestados a la comunidad en su conjunto",0,"Subvenciones a los productos",2013]
["P141","Servicios administrativos relacionados con los sistemas de seguridad social de afiliación obligatoria",0,"Subvenciones a los productos",2013]
["P142","Servicios de enseñanza",0,"Subvenciones a los productos",2013]
["P143","Servicios de hospitalización",0,"Subvenciones a los productos",2013]
["P144","Servicios médicos y dentales",0,"Subvenciones a los productos",2013]
["P145","Otros servicios de atención de la salud humana",0,"Subvenciones a los productos",2013]
["P146","Servicios audiovisuales, recreativos, culturales y deportivos",0,"Subvenciones a los productos",2013]
["P147","Servicios de asociaciones que sirven a las empresas",0,"Subvenciones a los productos",2013]
["P148","Servicios de asociaciones que sirven a los hogares",0,"Subvenciones a los productos",2013]
["P149","Otros servicios",0,"Subvenciones a los productos",2013]
["P150","Servicios domésticos",0,"Subvenciones a los productos",2013]
["P151","Compras directas en el exterior por residentes",0,"Subvenciones a los productos",2013]
["P152","Compras directas en el territorio nacional por no residentes",0,"Subvenciones a los productos",2013]
["P001","Maíz",1926.576568,"Importaciones (CIF)",2013]
["P002","Frijoles",105.259585,"Importaciones (CIF)",2013]
["P003","Leguminosas (legumbres secas) y semillas oleaginosas",144.78020799999999,"Importaciones (CIF)",2013]
["P004","Arroz",273.30903799999999,"Importaciones (CIF)",2013]
["P005","Otros cereales",1285.4458520000001,"Importaciones (CIF)",2013]
["P006","Hortalizas",125.52135199999999,"Importaciones (CIF)",2013]
["P007","Sandías y melones",1.2125090000000001,"Importaciones (CIF)",2013]
["P008","Ejotes y arvejas",2.2336740000000002,"Importaciones (CIF)",2013]
["P009","Raíces y tubérculos",22.767258000000002,"Importaciones (CIF)",2013]
["P010","Caña de azúcar y otras plantas azucareras",0.15756899999999999,"Importaciones (CIF)",2013]
["P011","Tabaco y otras plantas no perennes",517.38221699999997,"Importaciones (CIF)",2013]
["P012","Bananos, plátanos y otros",11.340589,"Importaciones (CIF)",2013]
["P013","Frutas tropicales y subtropicales",14.572469999999999,"Importaciones (CIF)",2013]
["P014","Berries, otras frutas y semillas de frutas",468.98600599999997,"Importaciones (CIF)",2013]
["P015","Palma africana",22.324894,"Importaciones (CIF)",2013]
["P016","Café en grano",8.0754000000000006E-2,"Importaciones (CIF)",2013]
["P017","Cardamomo",0.642984,"Importaciones (CIF)",2013]
["P018","Caucho natural",38.532386000000002,"Importaciones (CIF)",2013]
["P019","Propagación de plantas",35.644416999999997,"Importaciones (CIF)",2013]
["P020","Otros frutos oleaginosos, otras plantas bebestibles y especias aromáticas",74.750713000000005,"Importaciones (CIF)",2013]
["P021","Ganado bovino",13.792669,"Importaciones (CIF)",2013]
["P022","Ganado porcino y otro tipo de animales vivos n.c.p.",8.4092880000000001,"Importaciones (CIF)",2013]
["P023","Aves de corral",112.66151000000001,"Importaciones (CIF)",2013]
["P024","Leche cruda",0,"Importaciones (CIF)",2013]
["P025","Huevos",587.79578100000003,"Importaciones (CIF)",2013]
["P026","Otros productos de animales vivos",1.670536,"Importaciones (CIF)",2013]
["P027","Troncos de madera y leña",0.36051899999999998,"Importaciones (CIF)",2013]
["P028","Productos forestales no madereros",18.524802999999999,"Importaciones (CIF)",2013]
["P029","Peces vivos, frescos o refrigerados",5.4491769999999997,"Importaciones (CIF)",2013]
["P030","Crustáceos sin congelar y otros productos de la pesca",17.35989,"Importaciones (CIF)",2013]
["P031","Petróleo crudo y gas natural",0,"Importaciones (CIF)",2013]
["P032","Minerales metálicos",17.102557999999998,"Importaciones (CIF)",2013]
["P033","Minerales no metálicos",1050.62384,"Importaciones (CIF)",2013]
["P034","Carne y despojos comestibles de ganado bovino; cueros y pieles de bovino y de otros animales",208.480558,"Importaciones (CIF)",2013]
["P035","Carne y despojos comestibles de ganado porcino",167.06711899999999,"Importaciones (CIF)",2013]
["P036","Carne y despojos comestibles de aves",575.03981899999997,"Importaciones (CIF)",2013]
["P037","Carne y despojos de otros animales y conservas y preparados de carne",382.81138299999998,"Importaciones (CIF)",2013]
["P038","Pescado congelado, preparado o en conserva y sus productos",526.88769200000002,"Importaciones (CIF)",2013]
["P039","Crustáceos, moluscos y demás invertebrados acuáticos congelados, preparados o en conserva y sus productos",225.50381999999999,"Importaciones (CIF)",2013]
["P040","Vegetales preparados o en conserva, legumbres y papas",477.81638900000002,"Importaciones (CIF)",2013]
["P041","Preparaciones y conservas de frutas y nueces",436.08295800000002,"Importaciones (CIF)",2013]
["P042","Jugos de frutas",143.183156,"Importaciones (CIF)",2013]
["P043","Aceites de origen vegetal",1029.076818,"Importaciones (CIF)",2013]
["P044","Margarina, grasas y otros aceites de origen animal y vegetal",1728.8952159999999,"Importaciones (CIF)",2013]
["P045","Leche líquida y crema procesada",267.39837,"Importaciones (CIF)",2013]
["P046","Otros productos lácteos n.c.p.",1062.7283870000001,"Importaciones (CIF)",2013]
["P047","Harina de trigo",225.287646,"Importaciones (CIF)",2013]
["P048","Arroz sin cáscara",81.039365000000004,"Importaciones (CIF)",2013]
["P049","Otros productos de molinería, almidones y productos de almidón",1139.5048549999999,"Importaciones (CIF)",2013]
["P050","Pan y otros productos de panadería y repostería n.c.p.",488.56776500000001,"Importaciones (CIF)",2013]
["P051","Tortillas de maíz, incluso tostadas, horneadas o fritas",0,"Importaciones (CIF)",2013]
["P052","Azúcar de caña sin refinar y refinada, melaza y los demás azúcares n.c.p.",7.8579990000000004,"Importaciones (CIF)",2013]
["P053","Productos alimenticios n.c.p.",3924.140155,"Importaciones (CIF)",2013]
["P054","Preparados para alimentación animal",400.95102900000001,"Importaciones (CIF)",2013]
["P055","Aguardientes, licores, vinos, demás bebidas espirituosas y productos del tabaco",386.11155400000001,"Importaciones (CIF)",2013]
["P056","Malta y cerveza de malta",303.14479899999998,"Importaciones (CIF)",2013]
["P057","Bebidas no alcohólicas",551.94500600000003,"Importaciones (CIF)",2013]
["P058","Aguas minerales y otras aguas embotelladas",7.1111089999999999,"Importaciones (CIF)",2013]
["P059","Hilados, tejidos, telas y otros productos textiles excepto prendas de vestir",2290.2708440000001,"Importaciones (CIF)",2013]
["P060","Prendas de vestir, adobo y teñido de pieles",2007.0804450000001,"Importaciones (CIF)",2013]
["P061","Cuero de piel curtida o adobada y cuero artificial o regenerado y artículos de cuero",368.14787799999999,"Importaciones (CIF)",2013]
["P062","Calzado y sus partes, de cualquier material y de cualquier uso",1194.7479390000001,"Importaciones (CIF)",2013]
["P063","Madera aserrada y acepillada, productos de madera, corcho, paja y materiales trenzables",476.86208199999999,"Importaciones (CIF)",2013]
["P064","Pasta de papel y papel",4462.4894260000001,"Importaciones (CIF)",2013]
["P065","Envases de papel y cartón",304.78474299999999,"Importaciones (CIF)",2013]
["P066","Productos de la edición",715.18694400000004,"Importaciones (CIF)",2013]
["P067","Productos de la impresión",120.06995999999999,"Importaciones (CIF)",2013]
["P068","Gasolinas, diésel oil y fuel oils",20442.383409999999,"Importaciones (CIF)",2013]
["P069","Aceites, grasas lubricantes y otros aceites preparados",907.32079399999998,"Importaciones (CIF)",2013]
["P070","Gases de petróleo, otros productos de la refinación de petróleo n.c.p.",3334.2309300000002,"Importaciones (CIF)",2013]
["P071","Abonos, fertilizantes y pesticidas",3610.7623239999998,"Importaciones (CIF)",2013]
["P072","Pinturas, barnices, tintas y productos relacionados",817.39177299999994,"Importaciones (CIF)",2013]
["P073","Jabón, preparados de limpieza, perfumes y preparados de toilet",2428.7098080000001,"Importaciones (CIF)",2013]
["P074","Otros productos químicos",9153.8717749999996,"Importaciones (CIF)",2013]
["P075","Productos farmacéuticos",4481.8031790000005,"Importaciones (CIF)",2013]
["P076","Productos de caucho y plástico",5033.150251,"Importaciones (CIF)",2013]
["P077","Vidrio y productos de vidrio",494.29595499999999,"Importaciones (CIF)",2013]
["P078","Productos de cerámica y arcilla",476.05192699999998,"Importaciones (CIF)",2013]
["P079","Cemento, cal y yeso",153.65882400000001,"Importaciones (CIF)",2013]
["P080","Artículos de hormigón, cemento y yeso",114.2388,"Importaciones (CIF)",2013]
["P081","Piedras talladas para construcción y otros productos minerales no metálicos n.c.p.",176.330839,"Importaciones (CIF)",2013]
["P082","Métales básicos de hierro y acero, productos primarios de metales preciosos y otros metales no ferrosos",5534.465878,"Importaciones (CIF)",2013]
["P083","Productos metálicos estructurales y sus partes de hierro o de acero",427.13250599999998,"Importaciones (CIF)",2013]
["P084","Otros productos elaborados de metal",3245.3681919999999,"Importaciones (CIF)",2013]
["P085","Maquinaria para usos generales y especiales, sus partes y piezas, excepto electrodomésticos",9458.7619240000004,"Importaciones (CIF)",2013]
["P086","Electrodomésticos y sus partes",980.01196300000004,"Importaciones (CIF)",2013]
["P087","Maquinaria de oficina, contabilidad e informática, sus partes y piezas",1900.919238,"Importaciones (CIF)",2013]
["P088","Maquinaria y aparatos eléctricos, sus partes y piezas",4217.9976980000001,"Importaciones (CIF)",2013]
["P089","Equipo y aparatos de radio, televisión y comunicaciones",6489.9872290000003,"Importaciones (CIF)",2013]
["P090","Aparatos médicos, instrumentos ópticos y de precisión, relojes",1677.4874600000001,"Importaciones (CIF)",2013]
["P091","Equipo de transporte",7772.9845599999999,"Importaciones (CIF)",2013]
["P092","Muebles",574.35697900000002,"Importaciones (CIF)",2013]
["P093","Otros artículos n.c.p.",1273.001004,"Importaciones (CIF)",2013]
["P094","Residuos y desechos",514.15271499999994,"Importaciones (CIF)",2013]
["P095","Generación y distribución de energía eléctrica, gas, vapor y aire acondicionado",136.555813,"Importaciones (CIF)",2013]
["P096","Agua natural y distribución de agua natural",0,"Importaciones (CIF)",2013]
["P097","Evacuación de aguas residuales, recogida, tratamiento y eliminación de desechos",0,"Importaciones (CIF)",2013]
["P098","Edificaciones residenciales",0,"Importaciones (CIF)",2013]
["P099","Edificaciones no residenciales",0,"Importaciones (CIF)",2013]
["P100","Obras de ingeniería civil",0,"Importaciones (CIF)",2013]
["P101","Servicios generales y especializados de construcción",88.139913000000007,"Importaciones (CIF)",2013]
["P102","Servicios de comercio",0,"Importaciones (CIF)",2013]
["P103","Mantenimiento y reparación de vehículos automotores y motocicletas",3.769577,"Importaciones (CIF)",2013]
["P104","Servicio de transporte de pasajeros por vía terrestre",43.400914999999998,"Importaciones (CIF)",2013]
["P105","Servicio de transporte de carga por vía terrestre",1508.316779,"Importaciones (CIF)",2013]
["P106","Otros tipos de transporte",7793.7042190000002,"Importaciones (CIF)",2013]
["P107","Servicios de almacenamiento y depósito",6.8560000000000001E-3,"Importaciones (CIF)",2013]
["P108","Otros servicios de apoyo al transporte",188.51360399999999,"Importaciones (CIF)",2013]
["P109","Servicios postales y de mensajería",92.914567000000005,"Importaciones (CIF)",2013]
["P110","Servicio de alojamiento",0,"Importaciones (CIF)",2013]
["P111","Servicio de suministro de comidas y bebidas",14.645206,"Importaciones (CIF)",2013]
["P112","Servicios de información, telecomunicaciones y radiodifusión",1809.286644,"Importaciones (CIF)",2013]
["P113","Servicios de banco central",0,"Importaciones (CIF)",2013]
["P114","Otros servicios financieros y servicios de banca de inversión",451.47432300000003,"Importaciones (CIF)",2013]
["P115","Servicios de Intermediación Financiera Medidos Indirectamente (SIFMI)",844.35284899999999,"Importaciones (CIF)",2013]
["P116","Servicios de seguro, reaseguro y fondos de pensiones",1928.742195,"Importaciones (CIF)",2013]
["P117","Servicios auxiliares de la intermediación financiera",0,"Importaciones (CIF)",2013]
["P118","Servicios de alquiler de vivienda",0,"Importaciones (CIF)",2013]
["P119","Otros servicios inmobiliarios, excepto alquiler de vivienda",0,"Importaciones (CIF)",2013]
["P120","Servicios jurídicos, de contabilidad, auditoría, teneduría de libros y consultoría fiscal",25.252783999999998,"Importaciones (CIF)",2013]
["P121","Servicios de tecnología de la información",259.12080700000001,"Importaciones (CIF)",2013]
["P122","Servicios de arquitectura e ingeniería, ensayos y análisis técnicos",27.156455999999999,"Importaciones (CIF)",2013]
["P123","Otros servicios profesionales, científicos y técnicos",420.00590999999997,"Importaciones (CIF)",2013]
["P124","Servicios de publicidad y estudios de mercado",164.671122,"Importaciones (CIF)",2013]
["P125","Servicios de arrendamiento o alquiler sin operador",820.21403699999996,"Importaciones (CIF)",2013]
["P126","Servicios  de agencias de empleo y de dotación de recursos humanos",0,"Importaciones (CIF)",2013]
["P127","Servicios de agencias de viajes, operadores turísticos y actividades conexas",0,"Importaciones (CIF)",2013]
["P128","Servicios de seguridad, sistemas de seguridad e investigación privada",0,"Importaciones (CIF)",2013]
["P129","Servicios de limpieza",0,"Importaciones (CIF)",2013]
["P130","Servicios telefónicos de centros de llamadas",78.153979000000007,"Importaciones (CIF)",2013]
["P131","Servicios administrativos, de apoyo de oficina y otros servicios de apoyo a las empresas",34.731901000000001,"Importaciones (CIF)",2013]
["P132","Servicios de mantenimiento, reparación e instalación de productos metálicos elaborados, maquinaria y equipo",0.589229,"Importaciones (CIF)",2013]
["P133","Servicios de reparación de otros bienes",0,"Importaciones (CIF)",2013]
["P134","Servicios de apoyo a la agricultura, caza, silvicultura y pesca",0,"Importaciones (CIF)",2013]
["P135","Servicios de apoyo a la explotación de minas y canteras y los relacionados con la distribución de electricidad, gas y agua",0,"Importaciones (CIF)",2013]
["P136","Servicios de manufactura",0,"Importaciones (CIF)",2013]
["P137","Servicios públicos del gobierno general",0,"Importaciones (CIF)",2013]
["P138","Servicios públicos administrativos relacionados con la provisión de servicios educativos, de salud, servicios sociales, culturales y otros, sin contar los servicios de seguridad social",0,"Importaciones (CIF)",2013]
["P139","Otros servicios administrativos",0,"Importaciones (CIF)",2013]
["P140","Servicios públicos administrativos prestados a la comunidad en su conjunto",252.573702,"Importaciones (CIF)",2013]
["P141","Servicios administrativos relacionados con los sistemas de seguridad social de afiliación obligatoria",0,"Importaciones (CIF)",2013]
["P142","Servicios de enseñanza",3.6162179999999999,"Importaciones (CIF)",2013]
["P143","Servicios de hospitalización",0,"Importaciones (CIF)",2013]
["P144","Servicios médicos y dentales",0,"Importaciones (CIF)",2013]
["P145","Otros servicios de atención de la salud humana",0,"Importaciones (CIF)",2013]
["P146","Servicios audiovisuales, recreativos, culturales y deportivos",172.76897,"Importaciones (CIF)",2013]
["P147","Servicios de asociaciones que sirven a las empresas",2.262931,"Importaciones (CIF)",2013]
["P148","Servicios de asociaciones que sirven a los hogares",0,"Importaciones (CIF)",2013]
["P149","Otros servicios",0,"Importaciones (CIF)",2013]
["P150","Servicios domésticos",0,"Importaciones (CIF)",2013]
["P151","Compras directas en el exterior por residentes",6304.4615839999997,"Importaciones (CIF)",2013]
["P152","Compras directas en el territorio nacional por no residentes",0,"Importaciones (CIF)",2013]
["P001","Maíz",1.3095000000000001E-2,"Impuestos y derechos sobre las importaciones excepto IVA",2013]
["P002","Frijoles",6.0101120000000003,"Impuestos y derechos sobre las importaciones excepto IVA",2013]
["P003","Leguminosas (legumbres secas) y semillas oleaginosas",0.21742500000000001,"Impuestos y derechos sobre las importaciones excepto IVA",2013]
["P004","Arroz",5.118303,"Impuestos y derechos sobre las importaciones excepto IVA",2013]
["P005","Otros cereales",0.28831499999999999,"Impuestos y derechos sobre las importaciones excepto IVA",2013]
["P006","Hortalizas",1.376401,"Impuestos y derechos sobre las importaciones excepto IVA",2013]
["P007","Sandías y melones",2.3491999999999999E-2,"Impuestos y derechos sobre las importaciones excepto IVA",2013]
["P008","Ejotes y arvejas",2.1937999999999999E-2,"Impuestos y derechos sobre las importaciones excepto IVA",2013]
["P009","Raíces y tubérculos",1.8364579999999999,"Impuestos y derechos sobre las importaciones excepto IVA",2013]
["P010","Caña de azúcar y otras plantas azucareras",0,"Impuestos y derechos sobre las importaciones excepto IVA",2013]
["P011","Tabaco y otras plantas no perennes",7.9450999999999994E-2,"Impuestos y derechos sobre las importaciones excepto IVA",2013]
["P012","Bananos, plátanos y otros",0.639208,"Impuestos y derechos sobre las importaciones excepto IVA",2013]
["P013","Frutas tropicales y subtropicales",1.706949,"Impuestos y derechos sobre las importaciones excepto IVA",2013]
["P014","Berries, otras frutas y semillas de frutas",2.1732840000000002,"Impuestos y derechos sobre las importaciones excepto IVA",2013]
["P015","Palma africana",0,"Impuestos y derechos sobre las importaciones excepto IVA",2013]
["P016","Café en grano",1.0486000000000001E-2,"Impuestos y derechos sobre las importaciones excepto IVA",2013]
["P017","Cardamomo",0,"Impuestos y derechos sobre las importaciones excepto IVA",2013]
["P018","Caucho natural",7.8100000000000001E-3,"Impuestos y derechos sobre las importaciones excepto IVA",2013]
["P019","Propagación de plantas",0.58506899999999995,"Impuestos y derechos sobre las importaciones excepto IVA",2013]
["P020","Otros frutos oleaginosos, otras plantas bebestibles y especias aromáticas",1.5469200000000001,"Impuestos y derechos sobre las importaciones excepto IVA",2013]
["P021","Ganado bovino",0,"Impuestos y derechos sobre las importaciones excepto IVA",2013]
["P022","Ganado porcino y otro tipo de animales vivos n.c.p.",7.2090000000000001E-2,"Impuestos y derechos sobre las importaciones excepto IVA",2013]
["P023","Aves de corral",1.9840000000000001E-3,"Impuestos y derechos sobre las importaciones excepto IVA",2013]
["P024","Leche cruda",0,"Impuestos y derechos sobre las importaciones excepto IVA",2013]
["P025","Huevos",4.339E-3,"Impuestos y derechos sobre las importaciones excepto IVA",2013]
["P026","Otros productos de animales vivos",2.5099999999999998E-4,"Impuestos y derechos sobre las importaciones excepto IVA",2013]
["P027","Troncos de madera y leña",0,"Impuestos y derechos sobre las importaciones excepto IVA",2013]
["P028","Productos forestales no madereros",1.0966E-2,"Impuestos y derechos sobre las importaciones excepto IVA",2013]
["P029","Peces vivos, frescos o refrigerados",7.8199000000000005E-2,"Impuestos y derechos sobre las importaciones excepto IVA",2013]
["P030","Crustáceos sin congelar y otros productos de la pesca",0.20960400000000001,"Impuestos y derechos sobre las importaciones excepto IVA",2013]
["P031","Petróleo crudo y gas natural",0,"Impuestos y derechos sobre las importaciones excepto IVA",2013]
["P032","Minerales metálicos",3.6120000000000002E-3,"Impuestos y derechos sobre las importaciones excepto IVA",2013]
["P033","Minerales no metálicos",28.324197999999999,"Impuestos y derechos sobre las importaciones excepto IVA",2013]
["P034","Carne y despojos comestibles de ganado bovino; cueros y pieles de bovino y de otros animales",0.11142000000000001,"Impuestos y derechos sobre las importaciones excepto IVA",2013]
["P035","Carne y despojos comestibles de ganado porcino",2.8252290000000002,"Impuestos y derechos sobre las importaciones excepto IVA",2013]
["P036","Carne y despojos comestibles de aves",5.4383160000000004,"Impuestos y derechos sobre las importaciones excepto IVA",2013]
["P037","Carne y despojos de otros animales y conservas y preparados de carne",6.2930000000000001,"Impuestos y derechos sobre las importaciones excepto IVA",2013]
["P038","Pescado congelado, preparado o en conserva y sus productos",9.0251110000000008,"Impuestos y derechos sobre las importaciones excepto IVA",2013]
["P039","Crustáceos, moluscos y demás invertebrados acuáticos congelados, preparados o en conserva y sus productos",0.71170999999999995,"Impuestos y derechos sobre las importaciones excepto IVA",2013]
["P040","Vegetales preparados o en conserva, legumbres y papas",7.9039219999999997,"Impuestos y derechos sobre las importaciones excepto IVA",2013]
["P041","Preparaciones y conservas de frutas y nueces",5.6945230000000002,"Impuestos y derechos sobre las importaciones excepto IVA",2013]
["P042","Jugos de frutas",0.70909999999999995,"Impuestos y derechos sobre las importaciones excepto IVA",2013]
["P043","Aceites de origen vegetal",6.3574650000000004,"Impuestos y derechos sobre las importaciones excepto IVA",2013]
["P044","Margarina, grasas y otros aceites de origen animal y vegetal",2.3273510000000002,"Impuestos y derechos sobre las importaciones excepto IVA",2013]
["P045","Leche líquida y crema procesada",4.9486090000000003,"Impuestos y derechos sobre las importaciones excepto IVA",2013]
["P046","Otros productos lácteos n.c.p.",69.035622000000004,"Impuestos y derechos sobre las importaciones excepto IVA",2013]
["P047","Harina de trigo",0,"Impuestos y derechos sobre las importaciones excepto IVA",2013]
["P048","Arroz sin cáscara",4.2802740000000004,"Impuestos y derechos sobre las importaciones excepto IVA",2013]
["P049","Otros productos de molinería, almidones y productos de almidón",9.5215969999999999,"Impuestos y derechos sobre las importaciones excepto IVA",2013]
["P050","Pan y otros productos de panadería y repostería n.c.p.",4.9894360000000004,"Impuestos y derechos sobre las importaciones excepto IVA",2013]
["P051","Tortillas de maíz, incluso tostadas, horneadas o fritas",0,"Impuestos y derechos sobre las importaciones excepto IVA",2013]
["P052","Azúcar de caña sin refinar y refinada, melaza y los demás azúcares n.c.p.",0.21085100000000001,"Impuestos y derechos sobre las importaciones excepto IVA",2013]
["P053","Productos alimenticios n.c.p.",62.758946000000002,"Impuestos y derechos sobre las importaciones excepto IVA",2013]
["P054","Preparados para alimentación animal",3.6737690000000001,"Impuestos y derechos sobre las importaciones excepto IVA",2013]
["P055","Aguardientes, licores, vinos, demás bebidas espirituosas y productos del tabaco",44.549036000000001,"Impuestos y derechos sobre las importaciones excepto IVA",2013]
["P056","Malta y cerveza de malta",10.362541999999999,"Impuestos y derechos sobre las importaciones excepto IVA",2013]
["P057","Bebidas no alcohólicas",5.5522559999999999,"Impuestos y derechos sobre las importaciones excepto IVA",2013]
["P058","Aguas minerales y otras aguas embotelladas",0.28362999999999999,"Impuestos y derechos sobre las importaciones excepto IVA",2013]
["P059","Hilados, tejidos, telas y otros productos textiles excepto prendas de vestir",48.191851999999997,"Impuestos y derechos sobre las importaciones excepto IVA",2013]
["P060","Prendas de vestir, adobo y teñido de pieles",143.549387,"Impuestos y derechos sobre las importaciones excepto IVA",2013]
["P061","Cuero de piel curtida o adobada y cuero artificial o regenerado y artículos de cuero",28.548895999999999,"Impuestos y derechos sobre las importaciones excepto IVA",2013]
["P062","Calzado y sus partes, de cualquier material y de cualquier uso",104.65356300000001,"Impuestos y derechos sobre las importaciones excepto IVA",2013]
["P063","Madera aserrada y acepillada, productos de madera, corcho, paja y materiales trenzables",16.454395000000002,"Impuestos y derechos sobre las importaciones excepto IVA",2013]
["P064","Pasta de papel y papel",27.288879000000001,"Impuestos y derechos sobre las importaciones excepto IVA",2013]
["P065","Envases de papel y cartón",2.380112,"Impuestos y derechos sobre las importaciones excepto IVA",2013]
["P066","Productos de la edición",24.246775,"Impuestos y derechos sobre las importaciones excepto IVA",2013]
["P067","Productos de la impresión",1.301472,"Impuestos y derechos sobre las importaciones excepto IVA",2013]
["P068","Gasolinas, diésel oil y fuel oils",4.4837000000000002E-2,"Impuestos y derechos sobre las importaciones excepto IVA",2013]
["P069","Aceites, grasas lubricantes y otros aceites preparados",10.983378,"Impuestos y derechos sobre las importaciones excepto IVA",2013]
["P070","Gases de petróleo, otros productos de la refinación de petróleo n.c.p.",8.6398000000000003E-2,"Impuestos y derechos sobre las importaciones excepto IVA",2013]
["P071","Abonos, fertilizantes y pesticidas",49.696069999999999,"Impuestos y derechos sobre las importaciones excepto IVA",2013]
["P072","Pinturas, barnices, tintas y productos relacionados",10.029738,"Impuestos y derechos sobre las importaciones excepto IVA",2013]
["P073","Jabón, preparados de limpieza, perfumes y preparados de toilet",163.30729600000001,"Impuestos y derechos sobre las importaciones excepto IVA",2013]
["P074","Otros productos químicos",34.166791000000003,"Impuestos y derechos sobre las importaciones excepto IVA",2013]
["P075","Productos farmacéuticos",88.799699000000004,"Impuestos y derechos sobre las importaciones excepto IVA",2013]
["P076","Productos de caucho y plástico",152.66666799999999,"Impuestos y derechos sobre las importaciones excepto IVA",2013]
["P077","Vidrio y productos de vidrio",14.346356999999999,"Impuestos y derechos sobre las importaciones excepto IVA",2013]
["P078","Productos de cerámica y arcilla",29.125387,"Impuestos y derechos sobre las importaciones excepto IVA",2013]
["P079","Cemento, cal y yeso",9.1461710000000007,"Impuestos y derechos sobre las importaciones excepto IVA",2013]
["P080","Artículos de hormigón, cemento y yeso",0.89545799999999998,"Impuestos y derechos sobre las importaciones excepto IVA",2013]
["P081","Piedras talladas para construcción y otros productos minerales no metálicos n.c.p.",4.0666079999999996,"Impuestos y derechos sobre las importaciones excepto IVA",2013]
["P082","Métales básicos de hierro y acero, productos primarios de metales preciosos y otros metales no ferrosos",33.974898000000003,"Impuestos y derechos sobre las importaciones excepto IVA",2013]
["P083","Productos metálicos estructurales y sus partes de hierro o de acero",14.141559000000001,"Impuestos y derechos sobre las importaciones excepto IVA",2013]
["P084","Otros productos elaborados de metal",63.647938000000003,"Impuestos y derechos sobre las importaciones excepto IVA",2013]
["P085","Maquinaria para usos generales y especiales, sus partes y piezas, excepto electrodomésticos",54.655141999999998,"Impuestos y derechos sobre las importaciones excepto IVA",2013]
["P086","Electrodomésticos y sus partes",63.480289999999997,"Impuestos y derechos sobre las importaciones excepto IVA",2013]
["P087","Maquinaria de oficina, contabilidad e informática, sus partes y piezas",0,"Impuestos y derechos sobre las importaciones excepto IVA",2013]
["P088","Maquinaria y aparatos eléctricos, sus partes y piezas",74.055276000000006,"Impuestos y derechos sobre las importaciones excepto IVA",2013]
["P089","Equipo y aparatos de radio, televisión y comunicaciones",75.941328999999996,"Impuestos y derechos sobre las importaciones excepto IVA",2013]
["P090","Aparatos médicos, instrumentos ópticos y de precisión, relojes",16.732696000000001,"Impuestos y derechos sobre las importaciones excepto IVA",2013]
["P091","Equipo de transporte",87.651760999999993,"Impuestos y derechos sobre las importaciones excepto IVA",2013]
["P092","Muebles",50.644219,"Impuestos y derechos sobre las importaciones excepto IVA",2013]
["P093","Otros artículos n.c.p.",120.814988,"Impuestos y derechos sobre las importaciones excepto IVA",2013]
["P094","Residuos y desechos",14.772373999999999,"Impuestos y derechos sobre las importaciones excepto IVA",2013]
["P095","Generación y distribución de energía eléctrica, gas, vapor y aire acondicionado",0,"Impuestos y derechos sobre las importaciones excepto IVA",2013]
["P096","Agua natural y distribución de agua natural",0,"Impuestos y derechos sobre las importaciones excepto IVA",2013]
["P097","Evacuación de aguas residuales, recogida, tratamiento y eliminación de desechos",0,"Impuestos y derechos sobre las importaciones excepto IVA",2013]
["P098","Edificaciones residenciales",0,"Impuestos y derechos sobre las importaciones excepto IVA",2013]
["P099","Edificaciones no residenciales",0,"Impuestos y derechos sobre las importaciones excepto IVA",2013]
["P100","Obras de ingeniería civil",0,"Impuestos y derechos sobre las importaciones excepto IVA",2013]
["P101","Servicios generales y especializados de construcción",0,"Impuestos y derechos sobre las importaciones excepto IVA",2013]
["P102","Servicios de comercio",0,"Impuestos y derechos sobre las importaciones excepto IVA",2013]
["P103","Mantenimiento y reparación de vehículos automotores y motocicletas",0,"Impuestos y derechos sobre las importaciones excepto IVA",2013]
["P104","Servicio de transporte de pasajeros por vía terrestre",0,"Impuestos y derechos sobre las importaciones excepto IVA",2013]
["P105","Servicio de transporte de carga por vía terrestre",0,"Impuestos y derechos sobre las importaciones excepto IVA",2013]
["P106","Otros tipos de transporte",0,"Impuestos y derechos sobre las importaciones excepto IVA",2013]
["P107","Servicios de almacenamiento y depósito",0,"Impuestos y derechos sobre las importaciones excepto IVA",2013]
["P108","Otros servicios de apoyo al transporte",0,"Impuestos y derechos sobre las importaciones excepto IVA",2013]
["P109","Servicios postales y de mensajería",0,"Impuestos y derechos sobre las importaciones excepto IVA",2013]
["P110","Servicio de alojamiento",0,"Impuestos y derechos sobre las importaciones excepto IVA",2013]
["P111","Servicio de suministro de comidas y bebidas",0,"Impuestos y derechos sobre las importaciones excepto IVA",2013]
["P112","Servicios de información, telecomunicaciones y radiodifusión",0,"Impuestos y derechos sobre las importaciones excepto IVA",2013]
["P113","Servicios de banco central",0,"Impuestos y derechos sobre las importaciones excepto IVA",2013]
["P114","Otros servicios financieros y servicios de banca de inversión",0,"Impuestos y derechos sobre las importaciones excepto IVA",2013]
["P115","Servicios de Intermediación Financiera Medidos Indirectamente (SIFMI)",0,"Impuestos y derechos sobre las importaciones excepto IVA",2013]
["P116","Servicios de seguro, reaseguro y fondos de pensiones",0,"Impuestos y derechos sobre las importaciones excepto IVA",2013]
["P117","Servicios auxiliares de la intermediación financiera",0,"Impuestos y derechos sobre las importaciones excepto IVA",2013]
["P118","Servicios de alquiler de vivienda",0,"Impuestos y derechos sobre las importaciones excepto IVA",2013]
["P119","Otros servicios inmobiliarios, excepto alquiler de vivienda",0,"Impuestos y derechos sobre las importaciones excepto IVA",2013]
["P120","Servicios jurídicos, de contabilidad, auditoría, teneduría de libros y consultoría fiscal",0,"Impuestos y derechos sobre las importaciones excepto IVA",2013]
["P121","Servicios de tecnología de la información",0,"Impuestos y derechos sobre las importaciones excepto IVA",2013]
["P122","Servicios de arquitectura e ingeniería, ensayos y análisis técnicos",0,"Impuestos y derechos sobre las importaciones excepto IVA",2013]
["P123","Otros servicios profesionales, científicos y técnicos",0,"Impuestos y derechos sobre las importaciones excepto IVA",2013]
["P124","Servicios de publicidad y estudios de mercado",0,"Impuestos y derechos sobre las importaciones excepto IVA",2013]
["P125","Servicios de arrendamiento o alquiler sin operador",0,"Impuestos y derechos sobre las importaciones excepto IVA",2013]
["P126","Servicios  de agencias de empleo y de dotación de recursos humanos",0,"Impuestos y derechos sobre las importaciones excepto IVA",2013]
["P127","Servicios de agencias de viajes, operadores turísticos y actividades conexas",0,"Impuestos y derechos sobre las importaciones excepto IVA",2013]
["P128","Servicios de seguridad, sistemas de seguridad e investigación privada",0,"Impuestos y derechos sobre las importaciones excepto IVA",2013]
["P129","Servicios de limpieza",0,"Impuestos y derechos sobre las importaciones excepto IVA",2013]
["P130","Servicios telefónicos de centros de llamadas",0,"Impuestos y derechos sobre las importaciones excepto IVA",2013]
["P131","Servicios administrativos, de apoyo de oficina y otros servicios de apoyo a las empresas",0,"Impuestos y derechos sobre las importaciones excepto IVA",2013]
["P132","Servicios de mantenimiento, reparación e instalación de productos metálicos elaborados, maquinaria y equipo",0,"Impuestos y derechos sobre las importaciones excepto IVA",2013]
["P133","Servicios de reparación de otros bienes",0,"Impuestos y derechos sobre las importaciones excepto IVA",2013]
["P134","Servicios de apoyo a la agricultura, caza, silvicultura y pesca",0,"Impuestos y derechos sobre las importaciones excepto IVA",2013]
["P135","Servicios de apoyo a la explotación de minas y canteras y los relacionados con la distribución de electricidad, gas y agua",0,"Impuestos y derechos sobre las importaciones excepto IVA",2013]
["P136","Servicios de manufactura",0,"Impuestos y derechos sobre las importaciones excepto IVA",2013]
["P137","Servicios públicos del gobierno general",0,"Impuestos y derechos sobre las importaciones excepto IVA",2013]
["P138","Servicios públicos administrativos relacionados con la provisión de servicios educativos, de salud, servicios sociales, culturales y otros, sin contar los servicios de seguridad social",0,"Impuestos y derechos sobre las importaciones excepto IVA",2013]
["P139","Otros servicios administrativos",0,"Impuestos y derechos sobre las importaciones excepto IVA",2013]
["P140","Servicios públicos administrativos prestados a la comunidad en su conjunto",0,"Impuestos y derechos sobre las importaciones excepto IVA",2013]
["P141","Servicios administrativos relacionados con los sistemas de seguridad social de afiliación obligatoria",0,"Impuestos y derechos sobre las importaciones excepto IVA",2013]
["P142","Servicios de enseñanza",0,"Impuestos y derechos sobre las importaciones excepto IVA",2013]
["P143","Servicios de hospitalización",0,"Impuestos y derechos sobre las importaciones excepto IVA",2013]
["P144","Servicios médicos y dentales",0,"Impuestos y derechos sobre las importaciones excepto IVA",2013]
["P145","Otros servicios de atención de la salud humana",0,"Impuestos y derechos sobre las importaciones excepto IVA",2013]
["P146","Servicios audiovisuales, recreativos, culturales y deportivos",0,"Impuestos y derechos sobre las importaciones excepto IVA",2013]
["P147","Servicios de asociaciones que sirven a las empresas",0,"Impuestos y derechos sobre las importaciones excepto IVA",2013]
["P148","Servicios de asociaciones que sirven a los hogares",0,"Impuestos y derechos sobre las importaciones excepto IVA",2013]
["P149","Otros servicios",0,"Impuestos y derechos sobre las importaciones excepto IVA",2013]
["P150","Servicios domésticos",0,"Impuestos y derechos sobre las importaciones excepto IVA",2013]
["P151","Compras directas en el exterior por residentes",0,"Impuestos y derechos sobre las importaciones excepto IVA",2013]
["P152","Compras directas en el territorio nacional por no residentes",0,"Impuestos y derechos sobre las importaciones excepto IVA",2013]
["P001","Maíz",56.302073999999998,"Impuesto tipo valor agregado (IVA)",2013]
["P002","Frijoles",81.876501000000005,"Impuesto tipo valor agregado (IVA)",2013]
["P003","Leguminosas (legumbres secas) y semillas oleaginosas",2.6714690000000001,"Impuesto tipo valor agregado (IVA)",2013]
["P004","Arroz",0.32741900000000002,"Impuesto tipo valor agregado (IVA)",2013]
["P005","Otros cereales",4.3267740000000003,"Impuesto tipo valor agregado (IVA)",2013]
["P006","Hortalizas",170.741668,"Impuesto tipo valor agregado (IVA)",2013]
["P007","Sandías y melones",7.8625220000000002,"Impuesto tipo valor agregado (IVA)",2013]
["P008","Ejotes y arvejas",3.4850500000000002,"Impuesto tipo valor agregado (IVA)",2013]
["P009","Raíces y tubérculos",54.887884,"Impuesto tipo valor agregado (IVA)",2013]
["P010","Caña de azúcar y otras plantas azucareras",0,"Impuesto tipo valor agregado (IVA)",2013]
["P011","Tabaco y otras plantas no perennes",10.712678,"Impuesto tipo valor agregado (IVA)",2013]
["P012","Bananos, plátanos y otros",29.668102999999999,"Impuesto tipo valor agregado (IVA)",2013]
["P013","Frutas tropicales y subtropicales",52.966315000000002,"Impuesto tipo valor agregado (IVA)",2013]
["P014","Berries, otras frutas y semillas de frutas",55.654024999999997,"Impuesto tipo valor agregado (IVA)",2013]
["P015","Palma africana",0,"Impuesto tipo valor agregado (IVA)",2013]
["P016","Café en grano",6.3759999999999997E-3,"Impuesto tipo valor agregado (IVA)",2013]
["P017","Cardamomo",0,"Impuesto tipo valor agregado (IVA)",2013]
["P018","Caucho natural",0,"Impuesto tipo valor agregado (IVA)",2013]
["P019","Propagación de plantas",0.92154000000000003,"Impuesto tipo valor agregado (IVA)",2013]
["P020","Otros frutos oleaginosos, otras plantas bebestibles y especias aromáticas",4.641686,"Impuesto tipo valor agregado (IVA)",2013]
["P021","Ganado bovino",2.032591,"Impuesto tipo valor agregado (IVA)",2013]
["P022","Ganado porcino y otro tipo de animales vivos n.c.p.",1.761617,"Impuesto tipo valor agregado (IVA)",2013]
["P023","Aves de corral",1.6081890000000001,"Impuesto tipo valor agregado (IVA)",2013]
["P024","Leche cruda",0.75222999999999995,"Impuesto tipo valor agregado (IVA)",2013]
["P025","Huevos",191.99264400000001,"Impuesto tipo valor agregado (IVA)",2013]
["P026","Otros productos de animales vivos",1.723149,"Impuesto tipo valor agregado (IVA)",2013]
["P027","Troncos de madera y leña",2.2492359999999998,"Impuesto tipo valor agregado (IVA)",2013]
["P028","Productos forestales no madereros",1.284073,"Impuesto tipo valor agregado (IVA)",2013]
["P029","Peces vivos, frescos o refrigerados",15.592727,"Impuesto tipo valor agregado (IVA)",2013]
["P030","Crustáceos sin congelar y otros productos de la pesca",6.4233479999999998,"Impuesto tipo valor agregado (IVA)",2013]
["P031","Petróleo crudo y gas natural",0,"Impuesto tipo valor agregado (IVA)",2013]
["P032","Minerales metálicos",5.6455999999999999E-2,"Impuesto tipo valor agregado (IVA)",2013]
["P033","Minerales no metálicos",21.742066000000001,"Impuesto tipo valor agregado (IVA)",2013]
["P034","Carne y despojos comestibles de ganado bovino; cueros y pieles de bovino y de otros animales",161.80892399999999,"Impuesto tipo valor agregado (IVA)",2013]
["P035","Carne y despojos comestibles de ganado porcino",9.2883460000000007,"Impuesto tipo valor agregado (IVA)",2013]
["P036","Carne y despojos comestibles de aves",428.36083200000002,"Impuesto tipo valor agregado (IVA)",2013]
["P037","Carne y despojos de otros animales y conservas y preparados de carne",153.88554300000001,"Impuesto tipo valor agregado (IVA)",2013]
["P038","Pescado congelado, preparado o en conserva y sus productos",8.4126829999999995,"Impuesto tipo valor agregado (IVA)",2013]
["P039","Crustáceos, moluscos y demás invertebrados acuáticos congelados, preparados o en conserva y sus productos",4.9980450000000003,"Impuesto tipo valor agregado (IVA)",2013]
["P040","Vegetales preparados o en conserva, legumbres y papas",60.096558999999999,"Impuesto tipo valor agregado (IVA)",2013]
["P041","Preparaciones y conservas de frutas y nueces",38.048825999999998,"Impuesto tipo valor agregado (IVA)",2013]
["P042","Jugos de frutas",96.891683999999998,"Impuesto tipo valor agregado (IVA)",2013]
["P043","Aceites de origen vegetal",197.61382800000001,"Impuesto tipo valor agregado (IVA)",2013]
["P044","Margarina, grasas y otros aceites de origen animal y vegetal",46.266848000000003,"Impuesto tipo valor agregado (IVA)",2013]
["P045","Leche líquida y crema procesada",38.723286999999999,"Impuesto tipo valor agregado (IVA)",2013]
["P046","Otros productos lácteos n.c.p.",228.02466799999999,"Impuesto tipo valor agregado (IVA)",2013]
["P047","Harina de trigo",16.260650999999999,"Impuesto tipo valor agregado (IVA)",2013]
["P048","Arroz sin cáscara",59.583160999999997,"Impuesto tipo valor agregado (IVA)",2013]
["P049","Otros productos de molinería, almidones y productos de almidón",148.771027,"Impuesto tipo valor agregado (IVA)",2013]
["P050","Pan y otros productos de panadería y repostería n.c.p.",184.73915,"Impuesto tipo valor agregado (IVA)",2013]
["P051","Tortillas de maíz, incluso tostadas, horneadas o fritas",10.915025,"Impuesto tipo valor agregado (IVA)",2013]
["P052","Azúcar de caña sin refinar y refinada, melaza y los demás azúcares n.c.p.",423.451751,"Impuesto tipo valor agregado (IVA)",2013]
["P053","Productos alimenticios n.c.p.",670.57607399999995,"Impuesto tipo valor agregado (IVA)",2013]
["P054","Preparados para alimentación animal",50.248894999999997,"Impuesto tipo valor agregado (IVA)",2013]
["P055","Aguardientes, licores, vinos, demás bebidas espirituosas y productos del tabaco",92.198632000000003,"Impuesto tipo valor agregado (IVA)",2013]
["P056","Malta y cerveza de malta",216.31446299999999,"Impuesto tipo valor agregado (IVA)",2013]
["P057","Bebidas no alcohólicas",810.00760000000002,"Impuesto tipo valor agregado (IVA)",2013]
["P058","Aguas minerales y otras aguas embotelladas",101.93432199999999,"Impuesto tipo valor agregado (IVA)",2013]
["P059","Hilados, tejidos, telas y otros productos textiles excepto prendas de vestir",154.940854,"Impuesto tipo valor agregado (IVA)",2013]
["P060","Prendas de vestir, adobo y teñido de pieles",460.01257199999998,"Impuesto tipo valor agregado (IVA)",2013]
["P061","Cuero de piel curtida o adobada y cuero artificial o regenerado y artículos de cuero",62.437404999999998,"Impuesto tipo valor agregado (IVA)",2013]
["P062","Calzado y sus partes, de cualquier material y de cualquier uso",246.90091000000001,"Impuesto tipo valor agregado (IVA)",2013]
["P063","Madera aserrada y acepillada, productos de madera, corcho, paja y materiales trenzables",21.112179000000001,"Impuesto tipo valor agregado (IVA)",2013]
["P064","Pasta de papel y papel",271.25948599999998,"Impuesto tipo valor agregado (IVA)",2013]
["P065","Envases de papel y cartón",4.2942260000000001,"Impuesto tipo valor agregado (IVA)",2013]
["P066","Productos de la edición",170.750552,"Impuesto tipo valor agregado (IVA)",2013]
["P067","Productos de la impresión",56.714376999999999,"Impuesto tipo valor agregado (IVA)",2013]
["P068","Gasolinas, diésel oil y fuel oils",1378.5921969999999,"Impuesto tipo valor agregado (IVA)",2013]
["P069","Aceites, grasas lubricantes y otros aceites preparados",15.554821,"Impuesto tipo valor agregado (IVA)",2013]
["P070","Gases de petróleo, otros productos de la refinación de petróleo n.c.p.",262.47031199999998,"Impuesto tipo valor agregado (IVA)",2013]
["P071","Abonos, fertilizantes y pesticidas",8.8702880000000004,"Impuesto tipo valor agregado (IVA)",2013]
["P072","Pinturas, barnices, tintas y productos relacionados",41.093138000000003,"Impuesto tipo valor agregado (IVA)",2013]
["P073","Jabón, preparados de limpieza, perfumes y preparados de toilet",620.85667699999999,"Impuesto tipo valor agregado (IVA)",2013]
["P074","Otros productos químicos",103.302735,"Impuesto tipo valor agregado (IVA)",2013]
["P075","Productos farmacéuticos",762.00070400000004,"Impuesto tipo valor agregado (IVA)",2013]
["P076","Productos de caucho y plástico",393.593478,"Impuesto tipo valor agregado (IVA)",2013]
["P077","Vidrio y productos de vidrio",13.753641999999999,"Impuesto tipo valor agregado (IVA)",2013]
["P078","Productos de cerámica y arcilla",22.643568999999999,"Impuesto tipo valor agregado (IVA)",2013]
["P079","Cemento, cal y yeso",84.179191000000003,"Impuesto tipo valor agregado (IVA)",2013]
["P080","Artículos de hormigón, cemento y yeso",69.722711000000004,"Impuesto tipo valor agregado (IVA)",2013]
["P081","Piedras talladas para construcción y otros productos minerales no metálicos n.c.p.",6.2135199999999999,"Impuesto tipo valor agregado (IVA)",2013]
["P082","Métales básicos de hierro y acero, productos primarios de metales preciosos y otros metales no ferrosos",55.142128,"Impuesto tipo valor agregado (IVA)",2013]
["P083","Productos metálicos estructurales y sus partes de hierro o de acero",25.63016,"Impuesto tipo valor agregado (IVA)",2013]
["P084","Otros productos elaborados de metal",72.723546999999996,"Impuesto tipo valor agregado (IVA)",2013]
["P085","Maquinaria para usos generales y especiales, sus partes y piezas, excepto electrodomésticos",76.919296000000003,"Impuesto tipo valor agregado (IVA)",2013]
["P086","Electrodomésticos y sus partes",127.26478,"Impuesto tipo valor agregado (IVA)",2013]
["P087","Maquinaria de oficina, contabilidad e informática, sus partes y piezas",110.098794,"Impuesto tipo valor agregado (IVA)",2013]
["P088","Maquinaria y aparatos eléctricos, sus partes y piezas",57.551357000000003,"Impuesto tipo valor agregado (IVA)",2013]
["P089","Equipo y aparatos de radio, televisión y comunicaciones",834.30934600000001,"Impuesto tipo valor agregado (IVA)",2013]
["P090","Aparatos médicos, instrumentos ópticos y de precisión, relojes",56.307293999999999,"Impuesto tipo valor agregado (IVA)",2013]
["P091","Equipo de transporte",511.54883599999999,"Impuesto tipo valor agregado (IVA)",2013]
["P092","Muebles",115.37363499999999,"Impuesto tipo valor agregado (IVA)",2013]
["P093","Otros artículos n.c.p.",177.60736,"Impuesto tipo valor agregado (IVA)",2013]
["P094","Residuos y desechos",2.1073819999999999,"Impuesto tipo valor agregado (IVA)",2013]
["P095","Generación y distribución de energía eléctrica, gas, vapor y aire acondicionado",776.61359300000004,"Impuesto tipo valor agregado (IVA)",2013]
["P096","Agua natural y distribución de agua natural",82.816869999999994,"Impuesto tipo valor agregado (IVA)",2013]
["P097","Evacuación de aguas residuales, recogida, tratamiento y eliminación de desechos",13.890352999999999,"Impuesto tipo valor agregado (IVA)",2013]
["P098","Edificaciones residenciales",342.56662,"Impuesto tipo valor agregado (IVA)",2013]
["P099","Edificaciones no residenciales",170.653852,"Impuesto tipo valor agregado (IVA)",2013]
["P100","Obras de ingeniería civil",505.19962800000002,"Impuesto tipo valor agregado (IVA)",2013]
["P101","Servicios generales y especializados de construcción",256.11245000000002,"Impuesto tipo valor agregado (IVA)",2013]
["P102","Servicios de comercio",0,"Impuesto tipo valor agregado (IVA)",2013]
["P103","Mantenimiento y reparación de vehículos automotores y motocicletas",289.02838800000001,"Impuesto tipo valor agregado (IVA)",2013]
["P104","Servicio de transporte de pasajeros por vía terrestre",263.15351199999998,"Impuesto tipo valor agregado (IVA)",2013]
["P105","Servicio de transporte de carga por vía terrestre",37.813462000000001,"Impuesto tipo valor agregado (IVA)",2013]
["P106","Otros tipos de transporte",176.81652099999999,"Impuesto tipo valor agregado (IVA)",2013]
["P107","Servicios de almacenamiento y depósito",0.37169099999999999,"Impuesto tipo valor agregado (IVA)",2013]
["P108","Otros servicios de apoyo al transporte",81.382930999999999,"Impuesto tipo valor agregado (IVA)",2013]
["P109","Servicios postales y de mensajería",43.419322000000001,"Impuesto tipo valor agregado (IVA)",2013]
["P110","Servicio de alojamiento",84.547814000000002,"Impuesto tipo valor agregado (IVA)",2013]
["P111","Servicio de suministro de comidas y bebidas",1379.064871,"Impuesto tipo valor agregado (IVA)",2013]
["P112","Servicios de información, telecomunicaciones y radiodifusión",1703.5261519999999,"Impuesto tipo valor agregado (IVA)",2013]
["P113","Servicios de banco central",0,"Impuesto tipo valor agregado (IVA)",2013]
["P114","Otros servicios financieros y servicios de banca de inversión",0,"Impuesto tipo valor agregado (IVA)",2013]
["P115","Servicios de Intermediación Financiera Medidos Indirectamente (SIFMI)",0,"Impuesto tipo valor agregado (IVA)",2013]
["P116","Servicios de seguro, reaseguro y fondos de pensiones",410.10033800000002,"Impuesto tipo valor agregado (IVA)",2013]
["P117","Servicios auxiliares de la intermediación financiera",3.5766439999999999,"Impuesto tipo valor agregado (IVA)",2013]
["P118","Servicios de alquiler de vivienda",12.400988999999999,"Impuesto tipo valor agregado (IVA)",2013]
["P119","Otros servicios inmobiliarios, excepto alquiler de vivienda",293.08284099999997,"Impuesto tipo valor agregado (IVA)",2013]
["P120","Servicios jurídicos, de contabilidad, auditoría, teneduría de libros y consultoría fiscal",72.042869999999994,"Impuesto tipo valor agregado (IVA)",2013]
["P121","Servicios de tecnología de la información",35.924619,"Impuesto tipo valor agregado (IVA)",2013]
["P122","Servicios de arquitectura e ingeniería, ensayos y análisis técnicos",45.987243999999997,"Impuesto tipo valor agregado (IVA)",2013]
["P123","Otros servicios profesionales, científicos y técnicos",173.19415900000001,"Impuesto tipo valor agregado (IVA)",2013]
["P124","Servicios de publicidad y estudios de mercado",88.861215999999999,"Impuesto tipo valor agregado (IVA)",2013]
["P125","Servicios de arrendamiento o alquiler sin operador",110.99659,"Impuesto tipo valor agregado (IVA)",2013]
["P126","Servicios  de agencias de empleo y de dotación de recursos humanos",126.476528,"Impuesto tipo valor agregado (IVA)",2013]
["P127","Servicios de agencias de viajes, operadores turísticos y actividades conexas",15.886803,"Impuesto tipo valor agregado (IVA)",2013]
["P128","Servicios de seguridad, sistemas de seguridad e investigación privada",91.405533000000005,"Impuesto tipo valor agregado (IVA)",2013]
["P129","Servicios de limpieza",23.782620000000001,"Impuesto tipo valor agregado (IVA)",2013]
["P130","Servicios telefónicos de centros de llamadas",4.8682280000000002,"Impuesto tipo valor agregado (IVA)",2013]
["P131","Servicios administrativos, de apoyo de oficina y otros servicios de apoyo a las empresas",35.007880999999998,"Impuesto tipo valor agregado (IVA)",2013]
["P132","Servicios de mantenimiento, reparación e instalación de productos metálicos elaborados, maquinaria y equipo",55.186776000000002,"Impuesto tipo valor agregado (IVA)",2013]
["P133","Servicios de reparación de otros bienes",22.694454,"Impuesto tipo valor agregado (IVA)",2013]
["P134","Servicios de apoyo a la agricultura, caza, silvicultura y pesca",6.5528969999999997,"Impuesto tipo valor agregado (IVA)",2013]
["P135","Servicios de apoyo a la explotación de minas y canteras y los relacionados con la distribución de electricidad, gas y agua",0,"Impuesto tipo valor agregado (IVA)",2013]
["P136","Servicios de manufactura",0,"Impuesto tipo valor agregado (IVA)",2013]
["P137","Servicios públicos del gobierno general",0,"Impuesto tipo valor agregado (IVA)",2013]
["P138","Servicios públicos administrativos relacionados con la provisión de servicios educativos, de salud, servicios sociales, culturales y otros, sin contar los servicios de seguridad social",0,"Impuesto tipo valor agregado (IVA)",2013]
["P139","Otros servicios administrativos",0,"Impuesto tipo valor agregado (IVA)",2013]
["P140","Servicios públicos administrativos prestados a la comunidad en su conjunto",0,"Impuesto tipo valor agregado (IVA)",2013]
["P141","Servicios administrativos relacionados con los sistemas de seguridad social de afiliación obligatoria",0,"Impuesto tipo valor agregado (IVA)",2013]
["P142","Servicios de enseñanza",33.009343999999999,"Impuesto tipo valor agregado (IVA)",2013]
["P143","Servicios de hospitalización",152.55686800000001,"Impuesto tipo valor agregado (IVA)",2013]
["P144","Servicios médicos y dentales",250.84777199999999,"Impuesto tipo valor agregado (IVA)",2013]
["P145","Otros servicios de atención de la salud humana",123.38853899999999,"Impuesto tipo valor agregado (IVA)",2013]
["P146","Servicios audiovisuales, recreativos, culturales y deportivos",119.250806,"Impuesto tipo valor agregado (IVA)",2013]
["P147","Servicios de asociaciones que sirven a las empresas",0.14918100000000001,"Impuesto tipo valor agregado (IVA)",2013]
["P148","Servicios de asociaciones que sirven a los hogares",0,"Impuesto tipo valor agregado (IVA)",2013]
["P149","Otros servicios",83.420794999999998,"Impuesto tipo valor agregado (IVA)",2013]
["P150","Servicios domésticos",0,"Impuesto tipo valor agregado (IVA)",2013]
["P151","Compras directas en el exterior por residentes",0,"Impuesto tipo valor agregado (IVA)",2013]
["P152","Compras directas en el territorio nacional por no residentes",0,"Impuesto tipo valor agregado (IVA)",2013]
["P001","Maíz",1236.1941449999999,"Márgenes de comercio, transporte y distribución de energía",2013]
["P002","Frijoles",778.09383400000002,"Márgenes de comercio, transporte y distribución de energía",2013]
["P003","Leguminosas (legumbres secas) y semillas oleaginosas",154.83643699999999,"Márgenes de comercio, transporte y distribución de energía",2013]
["P004","Arroz",37.629528000000001,"Márgenes de comercio, transporte y distribución de energía",2013]
["P005","Otros cereales",73.261381999999998,"Márgenes de comercio, transporte y distribución de energía",2013]
["P006","Hortalizas",11632.339635,"Márgenes de comercio, transporte y distribución de energía",2013]
["P007","Sandías y melones",249.34479400000001,"Márgenes de comercio, transporte y distribución de energía",2013]
["P008","Ejotes y arvejas",178.107674,"Márgenes de comercio, transporte y distribución de energía",2013]
["P009","Raíces y tubérculos",3798.389866,"Márgenes de comercio, transporte y distribución de energía",2013]
["P010","Caña de azúcar y otras plantas azucareras",492.385312,"Márgenes de comercio, transporte y distribución de energía",2013]
["P011","Tabaco y otras plantas no perennes",218.12059300000001,"Márgenes de comercio, transporte y distribución de energía",2013]
["P012","Bananos, plátanos y otros",2610.3296310000001,"Márgenes de comercio, transporte y distribución de energía",2013]
["P013","Frutas tropicales y subtropicales",2619.4768549999999,"Márgenes de comercio, transporte y distribución de energía",2013]
["P014","Berries, otras frutas y semillas de frutas",2646.2468130000002,"Márgenes de comercio, transporte y distribución de energía",2013]
["P015","Palma africana",12.957027999999999,"Márgenes de comercio, transporte y distribución de energía",2013]
["P016","Café en grano",140.63015300000001,"Márgenes de comercio, transporte y distribución de energía",2013]
["P017","Cardamomo",48.337380000000003,"Márgenes de comercio, transporte y distribución de energía",2013]
["P018","Caucho natural",44.384281000000001,"Márgenes de comercio, transporte y distribución de energía",2013]
["P019","Propagación de plantas",59.374257999999998,"Márgenes de comercio, transporte y distribución de energía",2013]
["P020","Otros frutos oleaginosos, otras plantas bebestibles y especias aromáticas",109.826992,"Márgenes de comercio, transporte y distribución de energía",2013]
["P021","Ganado bovino",300.21339899999998,"Márgenes de comercio, transporte y distribución de energía",2013]
["P022","Ganado porcino y otro tipo de animales vivos n.c.p.",79.841468000000006,"Márgenes de comercio, transporte y distribución de energía",2013]
["P023","Aves de corral",548.21959800000002,"Márgenes de comercio, transporte y distribución de energía",2013]
["P024","Leche cruda",184.806051,"Márgenes de comercio, transporte y distribución de energía",2013]
["P025","Huevos",598.34198300000003,"Márgenes de comercio, transporte y distribución de energía",2013]
["P026","Otros productos de animales vivos",29.703747,"Márgenes de comercio, transporte y distribución de energía",2013]
["P027","Troncos de madera y leña",304.036541,"Márgenes de comercio, transporte y distribución de energía",2013]
["P028","Productos forestales no madereros",26.895458999999999,"Márgenes de comercio, transporte y distribución de energía",2013]
["P029","Peces vivos, frescos o refrigerados",542.70942700000001,"Márgenes de comercio, transporte y distribución de energía",2013]
["P030","Crustáceos sin congelar y otros productos de la pesca",205.454194,"Márgenes de comercio, transporte y distribución de energía",2013]
["P031","Petróleo crudo y gas natural",112.623829,"Márgenes de comercio, transporte y distribución de energía",2013]
["P032","Minerales metálicos",2.2672999999999999E-2,"Márgenes de comercio, transporte y distribución de energía",2013]
["P033","Minerales no metálicos",341.13923,"Márgenes de comercio, transporte y distribución de energía",2013]
["P034","Carne y despojos comestibles de ganado bovino; cueros y pieles de bovino y de otros animales",3993.1143280000001,"Márgenes de comercio, transporte y distribución de energía",2013]
["P035","Carne y despojos comestibles de ganado porcino",342.58297700000003,"Márgenes de comercio, transporte y distribución de energía",2013]
["P036","Carne y despojos comestibles de aves",1972.2743740000001,"Márgenes de comercio, transporte y distribución de energía",2013]
["P037","Carne y despojos de otros animales y conservas y preparados de carne",1030.086789,"Márgenes de comercio, transporte y distribución de energía",2013]
["P038","Pescado congelado, preparado o en conserva y sus productos",133.25717700000001,"Márgenes de comercio, transporte y distribución de energía",2013]
["P039","Crustáceos, moluscos y demás invertebrados acuáticos congelados, preparados o en conserva y sus productos",73.660988000000003,"Márgenes de comercio, transporte y distribución de energía",2013]
["P040","Vegetales preparados o en conserva, legumbres y papas",314.27399500000001,"Márgenes de comercio, transporte y distribución de energía",2013]
["P041","Preparaciones y conservas de frutas y nueces",278.20810499999999,"Márgenes de comercio, transporte y distribución de energía",2013]
["P042","Jugos de frutas",475.85661499999998,"Márgenes de comercio, transporte y distribución de energía",2013]
["P043","Aceites de origen vegetal",970.56126400000005,"Márgenes de comercio, transporte y distribución de energía",2013]
["P044","Margarina, grasas y otros aceites de origen animal y vegetal",388.05423999999999,"Márgenes de comercio, transporte y distribución de energía",2013]
["P045","Leche líquida y crema procesada",561.90745000000004,"Márgenes de comercio, transporte y distribución de energía",2013]
["P046","Otros productos lácteos n.c.p.",1066.7999380000001,"Márgenes de comercio, transporte y distribución de energía",2013]
["P047","Harina de trigo",313.80803600000002,"Márgenes de comercio, transporte y distribución de energía",2013]
["P048","Arroz sin cáscara",273.19027499999999,"Márgenes de comercio, transporte y distribución de energía",2013]
["P049","Otros productos de molinería, almidones y productos de almidón",751.59063600000002,"Márgenes de comercio, transporte y distribución de energía",2013]
["P050","Pan y otros productos de panadería y repostería n.c.p.",860.68419500000005,"Márgenes de comercio, transporte y distribución de energía",2013]
["P051","Tortillas de maíz, incluso tostadas, horneadas o fritas",9.2916170000000005,"Márgenes de comercio, transporte y distribución de energía",2013]
["P052","Azúcar de caña sin refinar y refinada, melaza y los demás azúcares n.c.p.",1993.1486030000001,"Márgenes de comercio, transporte y distribución de energía",2013]
["P053","Productos alimenticios n.c.p.",3821.7395069999998,"Márgenes de comercio, transporte y distribución de energía",2013]
["P054","Preparados para alimentación animal",394.46243299999998,"Márgenes de comercio, transporte y distribución de energía",2013]
["P055","Aguardientes, licores, vinos, demás bebidas espirituosas y productos del tabaco",996.86877500000003,"Márgenes de comercio, transporte y distribución de energía",2013]
["P056","Malta y cerveza de malta",1007.003954,"Márgenes de comercio, transporte y distribución de energía",2013]
["P057","Bebidas no alcohólicas",3284.471207,"Márgenes de comercio, transporte y distribución de energía",2013]
["P058","Aguas minerales y otras aguas embotelladas",324.45280100000002,"Márgenes de comercio, transporte y distribución de energía",2013]
["P059","Hilados, tejidos, telas y otros productos textiles excepto prendas de vestir",1299.844666,"Márgenes de comercio, transporte y distribución de energía",2013]
["P060","Prendas de vestir, adobo y teñido de pieles",4593.1003719999999,"Márgenes de comercio, transporte y distribución de energía",2013]
["P061","Cuero de piel curtida o adobada y cuero artificial o regenerado y artículos de cuero",374.749661,"Márgenes de comercio, transporte y distribución de energía",2013]
["P062","Calzado y sus partes, de cualquier material y de cualquier uso",2071.154978,"Márgenes de comercio, transporte y distribución de energía",2013]
["P063","Madera aserrada y acepillada, productos de madera, corcho, paja y materiales trenzables",400.37884500000001,"Márgenes de comercio, transporte y distribución de energía",2013]
["P064","Pasta de papel y papel",1869.3426770000001,"Márgenes de comercio, transporte y distribución de energía",2013]
["P065","Envases de papel y cartón",115.555791,"Márgenes de comercio, transporte y distribución de energía",2013]
["P066","Productos de la edición",587.56168600000001,"Márgenes de comercio, transporte y distribución de energía",2013]
["P067","Productos de la impresión",401.80654700000002,"Márgenes de comercio, transporte y distribución de energía",2013]
["P068","Gasolinas, diésel oil y fuel oils",5257.7848249999997,"Márgenes de comercio, transporte y distribución de energía",2013]
["P069","Aceites, grasas lubricantes y otros aceites preparados",262.040234,"Márgenes de comercio, transporte y distribución de energía",2013]
["P070","Gases de petróleo, otros productos de la refinación de petróleo n.c.p.",2102.4743429999999,"Márgenes de comercio, transporte y distribución de energía",2013]
["P071","Abonos, fertilizantes y pesticidas",1240.6027899999999,"Márgenes de comercio, transporte y distribución de energía",2013]
["P072","Pinturas, barnices, tintas y productos relacionados",407.265376,"Márgenes de comercio, transporte y distribución de energía",2013]
["P073","Jabón, preparados de limpieza, perfumes y preparados de toilet",2735.1954089999999,"Márgenes de comercio, transporte y distribución de energía",2013]
["P074","Otros productos químicos",951.712671,"Márgenes de comercio, transporte y distribución de energía",2013]
["P075","Productos farmacéuticos",2692.2307040000001,"Márgenes de comercio, transporte y distribución de energía",2013]
["P076","Productos de caucho y plástico",2953.5752109999999,"Márgenes de comercio, transporte y distribución de energía",2013]
["P077","Vidrio y productos de vidrio",165.78006300000001,"Márgenes de comercio, transporte y distribución de energía",2013]
["P078","Productos de cerámica y arcilla",363.94996700000002,"Márgenes de comercio, transporte y distribución de energía",2013]
["P079","Cemento, cal y yeso",376.57861500000001,"Márgenes de comercio, transporte y distribución de energía",2013]
["P080","Artículos de hormigón, cemento y yeso",436.56843700000002,"Márgenes de comercio, transporte y distribución de energía",2013]
["P081","Piedras talladas para construcción y otros productos minerales no metálicos n.c.p.",97.683227000000002,"Márgenes de comercio, transporte y distribución de energía",2013]
["P082","Métales básicos de hierro y acero, productos primarios de metales preciosos y otros metales no ferrosos",981.851809,"Márgenes de comercio, transporte y distribución de energía",2013]
["P083","Productos metálicos estructurales y sus partes de hierro o de acero",294.97655099999997,"Márgenes de comercio, transporte y distribución de energía",2013]
["P084","Otros productos elaborados de metal",673.05805399999997,"Márgenes de comercio, transporte y distribución de energía",2013]
["P085","Maquinaria para usos generales y especiales, sus partes y piezas, excepto electrodomésticos",2439.9740459999998,"Márgenes de comercio, transporte y distribución de energía",2013]
["P086","Electrodomésticos y sus partes",544.013598,"Márgenes de comercio, transporte y distribución de energía",2013]
["P087","Maquinaria de oficina, contabilidad e informática, sus partes y piezas",799.39279299999998,"Márgenes de comercio, transporte y distribución de energía",2013]
["P088","Maquinaria y aparatos eléctricos, sus partes y piezas",697.98335999999995,"Márgenes de comercio, transporte y distribución de energía",2013]
["P089","Equipo y aparatos de radio, televisión y comunicaciones",3162.7613259999998,"Márgenes de comercio, transporte y distribución de energía",2013]
["P090","Aparatos médicos, instrumentos ópticos y de precisión, relojes",731.08896700000003,"Márgenes de comercio, transporte y distribución de energía",2013]
["P091","Equipo de transporte",4329.3780210000004,"Márgenes de comercio, transporte y distribución de energía",2013]
["P092","Muebles",1270.6243939999999,"Márgenes de comercio, transporte y distribución de energía",2013]
["P093","Otros artículos n.c.p.",2190.014036,"Márgenes de comercio, transporte y distribución de energía",2013]
["P094","Residuos y desechos",443.76589999999999,"Márgenes de comercio, transporte y distribución de energía",2013]
["P095","Generación y distribución de energía eléctrica, gas, vapor y aire acondicionado",1270.989538,"Márgenes de comercio, transporte y distribución de energía",2013]
["P096","Agua natural y distribución de agua natural",0,"Márgenes de comercio, transporte y distribución de energía",2013]
["P097","Evacuación de aguas residuales, recogida, tratamiento y eliminación de desechos",0,"Márgenes de comercio, transporte y distribución de energía",2013]
["P098","Edificaciones residenciales",0,"Márgenes de comercio, transporte y distribución de energía",2013]
["P099","Edificaciones no residenciales",0,"Márgenes de comercio, transporte y distribución de energía",2013]
["P100","Obras de ingeniería civil",0,"Márgenes de comercio, transporte y distribución de energía",2013]
["P101","Servicios generales y especializados de construcción",0,"Márgenes de comercio, transporte y distribución de energía",2013]
["P102","Servicios de comercio",-102043.63823,"Márgenes de comercio, transporte y distribución de energía",2013]
["P103","Mantenimiento y reparación de vehículos automotores y motocicletas",0,"Márgenes de comercio, transporte y distribución de energía",2013]
["P104","Servicio de transporte de pasajeros por vía terrestre",0,"Márgenes de comercio, transporte y distribución de energía",2013]
["P105","Servicio de transporte de carga por vía terrestre",-5476.1719009999997,"Márgenes de comercio, transporte y distribución de energía",2013]
["P106","Otros tipos de transporte",-112.623829,"Márgenes de comercio, transporte y distribución de energía",2013]
["P107","Servicios de almacenamiento y depósito",0,"Márgenes de comercio, transporte y distribución de energía",2013]
["P108","Otros servicios de apoyo al transporte",0,"Márgenes de comercio, transporte y distribución de energía",2013]
["P109","Servicios postales y de mensajería",0,"Márgenes de comercio, transporte y distribución de energía",2013]
["P110","Servicio de alojamiento",0,"Márgenes de comercio, transporte y distribución de energía",2013]
["P111","Servicio de suministro de comidas y bebidas",0,"Márgenes de comercio, transporte y distribución de energía",2013]
["P112","Servicios de información, telecomunicaciones y radiodifusión",0,"Márgenes de comercio, transporte y distribución de energía",2013]
["P113","Servicios de banco central",0,"Márgenes de comercio, transporte y distribución de energía",2013]
["P114","Otros servicios financieros y servicios de banca de inversión",0,"Márgenes de comercio, transporte y distribución de energía",2013]
["P115","Servicios de Intermediación Financiera Medidos Indirectamente (SIFMI)",0,"Márgenes de comercio, transporte y distribución de energía",2013]
["P116","Servicios de seguro, reaseguro y fondos de pensiones",0,"Márgenes de comercio, transporte y distribución de energía",2013]
["P117","Servicios auxiliares de la intermediación financiera",0,"Márgenes de comercio, transporte y distribución de energía",2013]
["P118","Servicios de alquiler de vivienda",0,"Márgenes de comercio, transporte y distribución de energía",2013]
["P119","Otros servicios inmobiliarios, excepto alquiler de vivienda",0,"Márgenes de comercio, transporte y distribución de energía",2013]
["P120","Servicios jurídicos, de contabilidad, auditoría, teneduría de libros y consultoría fiscal",0,"Márgenes de comercio, transporte y distribución de energía",2013]
["P121","Servicios de tecnología de la información",0,"Márgenes de comercio, transporte y distribución de energía",2013]
["P122","Servicios de arquitectura e ingeniería, ensayos y análisis técnicos",0,"Márgenes de comercio, transporte y distribución de energía",2013]
["P123","Otros servicios profesionales, científicos y técnicos",0,"Márgenes de comercio, transporte y distribución de energía",2013]
["P124","Servicios de publicidad y estudios de mercado",0,"Márgenes de comercio, transporte y distribución de energía",2013]
["P125","Servicios de arrendamiento o alquiler sin operador",0,"Márgenes de comercio, transporte y distribución de energía",2013]
["P126","Servicios  de agencias de empleo y de dotación de recursos humanos",0,"Márgenes de comercio, transporte y distribución de energía",2013]
["P127","Servicios de agencias de viajes, operadores turísticos y actividades conexas",0,"Márgenes de comercio, transporte y distribución de energía",2013]
["P128","Servicios de seguridad, sistemas de seguridad e investigación privada",0,"Márgenes de comercio, transporte y distribución de energía",2013]
["P129","Servicios de limpieza",0,"Márgenes de comercio, transporte y distribución de energía",2013]
["P130","Servicios telefónicos de centros de llamadas",0,"Márgenes de comercio, transporte y distribución de energía",2013]
["P131","Servicios administrativos, de apoyo de oficina y otros servicios de apoyo a las empresas",0,"Márgenes de comercio, transporte y distribución de energía",2013]
["P132","Servicios de mantenimiento, reparación e instalación de productos metálicos elaborados, maquinaria y equipo",0,"Márgenes de comercio, transporte y distribución de energía",2013]
["P133","Servicios de reparación de otros bienes",0,"Márgenes de comercio, transporte y distribución de energía",2013]
["P134","Servicios de apoyo a la agricultura, caza, silvicultura y pesca",0,"Márgenes de comercio, transporte y distribución de energía",2013]
["P135","Servicios de apoyo a la explotación de minas y canteras y los relacionados con la distribución de electricidad, gas y agua",0,"Márgenes de comercio, transporte y distribución de energía",2013]
["P136","Servicios de manufactura",0,"Márgenes de comercio, transporte y distribución de energía",2013]
["P137","Servicios públicos del gobierno general",0,"Márgenes de comercio, transporte y distribución de energía",2013]
["P138","Servicios públicos administrativos relacionados con la provisión de servicios educativos, de salud, servicios sociales, culturales y otros, sin contar los servicios de seguridad social",0,"Márgenes de comercio, transporte y distribución de energía",2013]
["P139","Otros servicios administrativos",0,"Márgenes de comercio, transporte y distribución de energía",2013]
["P140","Servicios públicos administrativos prestados a la comunidad en su conjunto",0,"Márgenes de comercio, transporte y distribución de energía",2013]
["P141","Servicios administrativos relacionados con los sistemas de seguridad social de afiliación obligatoria",0,"Márgenes de comercio, transporte y distribución de energía",2013]
["P142","Servicios de enseñanza",0,"Márgenes de comercio, transporte y distribución de energía",2013]
["P143","Servicios de hospitalización",0,"Márgenes de comercio, transporte y distribución de energía",2013]
["P144","Servicios médicos y dentales",0,"Márgenes de comercio, transporte y distribución de energía",2013]
["P145","Otros servicios de atención de la salud humana",0,"Márgenes de comercio, transporte y distribución de energía",2013]
["P146","Servicios audiovisuales, recreativos, culturales y deportivos",0,"Márgenes de comercio, transporte y distribución de energía",2013]
["P147","Servicios de asociaciones que sirven a las empresas",0,"Márgenes de comercio, transporte y distribución de energía",2013]
["P148","Servicios de asociaciones que sirven a los hogares",0,"Márgenes de comercio, transporte y distribución de energía",2013]
["P149","Otros servicios",0,"Márgenes de comercio, transporte y distribución de energía",2013]
["P150","Servicios domésticos",0,"Márgenes de comercio, transporte y distribución de energía",2013]
["P151","Compras directas en el exterior por residentes",0,"Márgenes de comercio, transporte y distribución de energía",2013]
["P152","Compras directas en el territorio nacional por no residentes",0,"Márgenes de comercio, transporte y distribución de energía",2013]
["P001","Maíz",3302.630165,"Consumo Intermedio (PC)",2013]
["P002","Frijoles",305.28478999999999,"Consumo Intermedio (PC)",2013]
["P003","Leguminosas (legumbres secas) y semillas oleaginosas",426.52202899999997,"Consumo Intermedio (PC)",2013]
["P004","Arroz",427.979332,"Consumo Intermedio (PC)",2013]
["P005","Otros cereales",1385.401973,"Consumo Intermedio (PC)",2013]
["P006","Hortalizas",1207.865438,"Consumo Intermedio (PC)",2013]
["P007","Sandías y melones",17.448602000000001,"Consumo Intermedio (PC)",2013]
["P008","Ejotes y arvejas",53.838920000000002,"Consumo Intermedio (PC)",2013]
["P009","Raíces y tubérculos",555.70433200000002,"Consumo Intermedio (PC)",2013]
["P010","Caña de azúcar y otras plantas azucareras",6593.2944040000002,"Consumo Intermedio (PC)",2013]
["P011","Tabaco y otras plantas no perennes",1384.1577749999999,"Consumo Intermedio (PC)",2013]
["P012","Bananos, plátanos y otros",131.43719999999999,"Consumo Intermedio (PC)",2013]
["P013","Frutas tropicales y subtropicales",222.11612099999999,"Consumo Intermedio (PC)",2013]
["P014","Berries, otras frutas y semillas de frutas",426.55709000000002,"Consumo Intermedio (PC)",2013]
["P015","Palma africana",1841.1248189999999,"Consumo Intermedio (PC)",2013]
["P016","Café en grano",4292.2164830000002,"Consumo Intermedio (PC)",2013]
["P017","Cardamomo",769.66113700000005,"Consumo Intermedio (PC)",2013]
["P018","Caucho natural",1171.970982,"Consumo Intermedio (PC)",2013]
["P019","Propagación de plantas",357.93937,"Consumo Intermedio (PC)",2013]
["P020","Otros frutos oleaginosos, otras plantas bebestibles y especias aromáticas",124.390854,"Consumo Intermedio (PC)",2013]
["P021","Ganado bovino",4220.8995020000002,"Consumo Intermedio (PC)",2013]
["P022","Ganado porcino y otro tipo de animales vivos n.c.p.",1267.1358540000001,"Consumo Intermedio (PC)",2013]
["P023","Aves de corral",6295.0044239999997,"Consumo Intermedio (PC)",2013]
["P024","Leche cruda",1239.485308,"Consumo Intermedio (PC)",2013]
["P025","Huevos",430.14805999999999,"Consumo Intermedio (PC)",2013]
["P026","Otros productos de animales vivos",48.696300999999998,"Consumo Intermedio (PC)",2013]
["P027","Troncos de madera y leña",1718.5348100000001,"Consumo Intermedio (PC)",2013]
["P028","Productos forestales no madereros",10.280756999999999,"Consumo Intermedio (PC)",2013]
["P029","Peces vivos, frescos o refrigerados",39.777082999999998,"Consumo Intermedio (PC)",2013]
["P030","Crustáceos sin congelar y otros productos de la pesca",371.80134399999997,"Consumo Intermedio (PC)",2013]
["P031","Petróleo crudo y gas natural",284.77505200000002,"Consumo Intermedio (PC)",2013]
["P032","Minerales metálicos",17.414044000000001,"Consumo Intermedio (PC)",2013]
["P033","Minerales no metálicos",2991.85617,"Consumo Intermedio (PC)",2013]
["P034","Carne y despojos comestibles de ganado bovino; cueros y pieles de bovino y de otros animales",1763.3252709999999,"Consumo Intermedio (PC)",2013]
["P035","Carne y despojos comestibles de ganado porcino",857.221183,"Consumo Intermedio (PC)",2013]
["P036","Carne y despojos comestibles de aves",1879.0866659999999,"Consumo Intermedio (PC)",2013]
["P037","Carne y despojos de otros animales y conservas y preparados de carne",1103.633977,"Consumo Intermedio (PC)",2013]
["P038","Pescado congelado, preparado o en conserva y sus productos",503.91142600000001,"Consumo Intermedio (PC)",2013]
["P039","Crustáceos, moluscos y demás invertebrados acuáticos congelados, preparados o en conserva y sus productos",364.75945300000001,"Consumo Intermedio (PC)",2013]
["P040","Vegetales preparados o en conserva, legumbres y papas",484.15537599999999,"Consumo Intermedio (PC)",2013]
["P041","Preparaciones y conservas de frutas y nueces",325.14256899999998,"Consumo Intermedio (PC)",2013]
["P042","Jugos de frutas",183.41471799999999,"Consumo Intermedio (PC)",2013]
["P043","Aceites de origen vegetal",1736.379492,"Consumo Intermedio (PC)",2013]
["P044","Margarina, grasas y otros aceites de origen animal y vegetal",2132.2624980000001,"Consumo Intermedio (PC)",2013]
["P045","Leche líquida y crema procesada",240.35553400000001,"Consumo Intermedio (PC)",2013]
["P046","Otros productos lácteos n.c.p.",629.99971900000003,"Consumo Intermedio (PC)",2013]
["P047","Harina de trigo",2610.2461170000001,"Consumo Intermedio (PC)",2013]
["P048","Arroz sin cáscara",163.10193100000001,"Consumo Intermedio (PC)",2013]
["P049","Otros productos de molinería, almidones y productos de almidón",881.96022500000004,"Consumo Intermedio (PC)",2013]
["P050","Pan y otros productos de panadería y repostería n.c.p.",804.38485500000002,"Consumo Intermedio (PC)",2013]
["P051","Tortillas de maíz, incluso tostadas, horneadas o fritas",319.34743400000002,"Consumo Intermedio (PC)",2013]
["P052","Azúcar de caña sin refinar y refinada, melaza y los demás azúcares n.c.p.",2870.3793679999999,"Consumo Intermedio (PC)",2013]
["P053","Productos alimenticios n.c.p.",3277.3014330000001,"Consumo Intermedio (PC)",2013]
["P054","Preparados para alimentación animal",5970.9760509999996,"Consumo Intermedio (PC)",2013]
["P055","Aguardientes, licores, vinos, demás bebidas espirituosas y productos del tabaco",504.562926,"Consumo Intermedio (PC)",2013]
["P056","Malta y cerveza de malta",354.127657,"Consumo Intermedio (PC)",2013]
["P057","Bebidas no alcohólicas",554.61243400000001,"Consumo Intermedio (PC)",2013]
["P058","Aguas minerales y otras aguas embotelladas",290.31964699999997,"Consumo Intermedio (PC)",2013]
["P059","Hilados, tejidos, telas y otros productos textiles excepto prendas de vestir",4141.3687520000003,"Consumo Intermedio (PC)",2013]
["P060","Prendas de vestir, adobo y teñido de pieles",853.73295800000005,"Consumo Intermedio (PC)",2013]
["P061","Cuero de piel curtida o adobada y cuero artificial o regenerado y artículos de cuero",793.69217600000002,"Consumo Intermedio (PC)",2013]
["P062","Calzado y sus partes, de cualquier material y de cualquier uso",147.291087,"Consumo Intermedio (PC)",2013]
["P063","Madera aserrada y acepillada, productos de madera, corcho, paja y materiales trenzables",3494.6243850000001,"Consumo Intermedio (PC)",2013]
["P064","Pasta de papel y papel",4433.8557689999998,"Consumo Intermedio (PC)",2013]
["P065","Envases de papel y cartón",2186.9897030000002,"Consumo Intermedio (PC)",2013]
["P066","Productos de la edición",686.26559899999995,"Consumo Intermedio (PC)",2013]
["P067","Productos de la impresión",1796.912288,"Consumo Intermedio (PC)",2013]
["P068","Gasolinas, diésel oil y fuel oils",17099.603511000001,"Consumo Intermedio (PC)",2013]
["P069","Aceites, grasas lubricantes y otros aceites preparados",1091.3462039999999,"Consumo Intermedio (PC)",2013]
["P070","Gases de petróleo, otros productos de la refinación de petróleo n.c.p.",1674.090185,"Consumo Intermedio (PC)",2013]
["P071","Abonos, fertilizantes y pesticidas",7996.8773069999997,"Consumo Intermedio (PC)",2013]
["P072","Pinturas, barnices, tintas y productos relacionados",1792.135745,"Consumo Intermedio (PC)",2013]
["P073","Jabón, preparados de limpieza, perfumes y preparados de toilet",1005.996788,"Consumo Intermedio (PC)",2013]
["P074","Otros productos químicos",9996.4394769999999,"Consumo Intermedio (PC)",2013]
["P075","Productos farmacéuticos",1365.632899,"Consumo Intermedio (PC)",2013]
["P076","Productos de caucho y plástico",9484.0102599999991,"Consumo Intermedio (PC)",2013]
["P077","Vidrio y productos de vidrio",857.51723500000003,"Consumo Intermedio (PC)",2013]
["P078","Productos de cerámica y arcilla",1477.9366829999999,"Consumo Intermedio (PC)",2013]
["P079","Cemento, cal y yeso",4781.1484979999996,"Consumo Intermedio (PC)",2013]
["P080","Artículos de hormigón, cemento y yeso",2698.8422150000001,"Consumo Intermedio (PC)",2013]
["P081","Piedras talladas para construcción y otros productos minerales no metálicos n.c.p.",781.99409100000003,"Consumo Intermedio (PC)",2013]
["P082","Métales básicos de hierro y acero, productos primarios de metales preciosos y otros metales no ferrosos",9680.7801569999992,"Consumo Intermedio (PC)",2013]
["P083","Productos metálicos estructurales y sus partes de hierro o de acero",1333.600457,"Consumo Intermedio (PC)",2013]
["P084","Otros productos elaborados de metal",3895.7063720000001,"Consumo Intermedio (PC)",2013]
["P085","Maquinaria para usos generales y especiales, sus partes y piezas, excepto electrodomésticos",4488.9165389999998,"Consumo Intermedio (PC)",2013]
["P086","Electrodomésticos y sus partes",61.542332999999999,"Consumo Intermedio (PC)",2013]
["P087","Maquinaria de oficina, contabilidad e informática, sus partes y piezas",377.85200300000002,"Consumo Intermedio (PC)",2013]
["P088","Maquinaria y aparatos eléctricos, sus partes y piezas",2809.599514,"Consumo Intermedio (PC)",2013]
["P089","Equipo y aparatos de radio, televisión y comunicaciones",807.81365000000005,"Consumo Intermedio (PC)",2013]
["P090","Aparatos médicos, instrumentos ópticos y de precisión, relojes",543.93845499999998,"Consumo Intermedio (PC)",2013]
["P091","Equipo de transporte",1472.6116050000001,"Consumo Intermedio (PC)",2013]
["P092","Muebles",136.410965,"Consumo Intermedio (PC)",2013]
["P093","Otros artículos n.c.p.",1304.6857869999999,"Consumo Intermedio (PC)",2013]
["P094","Residuos y desechos",1698.8376370000001,"Consumo Intermedio (PC)",2013]
["P095","Generación y distribución de energía eléctrica, gas, vapor y aire acondicionado",9873.1169890000001,"Consumo Intermedio (PC)",2013]
["P096","Agua natural y distribución de agua natural",2271.5849950000002,"Consumo Intermedio (PC)",2013]
["P097","Evacuación de aguas residuales, recogida, tratamiento y eliminación de desechos",284.26827400000002,"Consumo Intermedio (PC)",2013]
["P098","Edificaciones residenciales",0,"Consumo Intermedio (PC)",2013]
["P099","Edificaciones no residenciales",0,"Consumo Intermedio (PC)",2013]
["P100","Obras de ingeniería civil",0,"Consumo Intermedio (PC)",2013]
["P101","Servicios generales y especializados de construcción",9946.4334980000003,"Consumo Intermedio (PC)",2013]
["P102","Servicios de comercio",0,"Consumo Intermedio (PC)",2013]
["P103","Mantenimiento y reparación de vehículos automotores y motocicletas",2572.1435070000002,"Consumo Intermedio (PC)",2013]
["P104","Servicio de transporte de pasajeros por vía terrestre",279.12965100000002,"Consumo Intermedio (PC)",2013]
["P105","Servicio de transporte de carga por vía terrestre",5215.2420169999996,"Consumo Intermedio (PC)",2013]
["P106","Otros tipos de transporte",679.37323000000004,"Consumo Intermedio (PC)",2013]
["P107","Servicios de almacenamiento y depósito",258.06286999999998,"Consumo Intermedio (PC)",2013]
["P108","Otros servicios de apoyo al transporte",2578.3930129999999,"Consumo Intermedio (PC)",2013]
["P109","Servicios postales y de mensajería",841.84525900000006,"Consumo Intermedio (PC)",2013]
["P110","Servicio de alojamiento",1069.9541610000001,"Consumo Intermedio (PC)",2013]
["P111","Servicio de suministro de comidas y bebidas",1836.8247899999999,"Consumo Intermedio (PC)",2013]
["P112","Servicios de información, telecomunicaciones y radiodifusión",8417.3958340000008,"Consumo Intermedio (PC)",2013]
["P113","Servicios de banco central",0,"Consumo Intermedio (PC)",2013]
["P114","Otros servicios financieros y servicios de banca de inversión",2033.619336,"Consumo Intermedio (PC)",2013]
["P115","Servicios de Intermediación Financiera Medidos Indirectamente (SIFMI)",5495.1824550000001,"Consumo Intermedio (PC)",2013]
["P116","Servicios de seguro, reaseguro y fondos de pensiones",3204.227136,"Consumo Intermedio (PC)",2013]
["P117","Servicios auxiliares de la intermediación financiera",2402.2160669999998,"Consumo Intermedio (PC)",2013]
["P118","Servicios de alquiler de vivienda",0,"Consumo Intermedio (PC)",2013]
["P119","Otros servicios inmobiliarios, excepto alquiler de vivienda",10910.989388,"Consumo Intermedio (PC)",2013]
["P120","Servicios jurídicos, de contabilidad, auditoría, teneduría de libros y consultoría fiscal",3722.7721139999999,"Consumo Intermedio (PC)",2013]
["P121","Servicios de tecnología de la información",1720.3694170000001,"Consumo Intermedio (PC)",2013]
["P122","Servicios de arquitectura e ingeniería, ensayos y análisis técnicos",2243.4676589999999,"Consumo Intermedio (PC)",2013]
["P123","Otros servicios profesionales, científicos y técnicos",6757.2265639999996,"Consumo Intermedio (PC)",2013]
["P124","Servicios de publicidad y estudios de mercado",4614.3178870000002,"Consumo Intermedio (PC)",2013]
["P125","Servicios de arrendamiento o alquiler sin operador",5310.0679520000003,"Consumo Intermedio (PC)",2013]
["P126","Servicios  de agencias de empleo y de dotación de recursos humanos",5986.0133660000001,"Consumo Intermedio (PC)",2013]
["P127","Servicios de agencias de viajes, operadores turísticos y actividades conexas",45.653095,"Consumo Intermedio (PC)",2013]
["P128","Servicios de seguridad, sistemas de seguridad e investigación privada",3200.0519479999998,"Consumo Intermedio (PC)",2013]
["P129","Servicios de limpieza",1009.028633,"Consumo Intermedio (PC)",2013]
["P130","Servicios telefónicos de centros de llamadas",363.59601700000002,"Consumo Intermedio (PC)",2013]
["P131","Servicios administrativos, de apoyo de oficina y otros servicios de apoyo a las empresas",1965.0660290000001,"Consumo Intermedio (PC)",2013]
["P132","Servicios de mantenimiento, reparación e instalación de productos metálicos elaborados, maquinaria y equipo",3740.4544860000001,"Consumo Intermedio (PC)",2013]
["P133","Servicios de reparación de otros bienes",566.61452299999996,"Consumo Intermedio (PC)",2013]
["P134","Servicios de apoyo a la agricultura, caza, silvicultura y pesca",3077.1488749999999,"Consumo Intermedio (PC)",2013]
["P135","Servicios de apoyo a la explotación de minas y canteras y los relacionados con la distribución de electricidad, gas y agua",381.873379,"Consumo Intermedio (PC)",2013]
["P136","Servicios de manufactura",2178.594529,"Consumo Intermedio (PC)",2013]
["P137","Servicios públicos del gobierno general",0,"Consumo Intermedio (PC)",2013]
["P138","Servicios públicos administrativos relacionados con la provisión de servicios educativos, de salud, servicios sociales, culturales y otros, sin contar los servicios de seguridad social",0,"Consumo Intermedio (PC)",2013]
["P139","Otros servicios administrativos",0,"Consumo Intermedio (PC)",2013]
["P140","Servicios públicos administrativos prestados a la comunidad en su conjunto",0,"Consumo Intermedio (PC)",2013]
["P141","Servicios administrativos relacionados con los sistemas de seguridad social de afiliación obligatoria",0,"Consumo Intermedio (PC)",2013]
["P142","Servicios de enseñanza",280.94424500000002,"Consumo Intermedio (PC)",2013]
["P143","Servicios de hospitalización",0,"Consumo Intermedio (PC)",2013]
["P144","Servicios médicos y dentales",311.56440900000001,"Consumo Intermedio (PC)",2013]
["P145","Otros servicios de atención de la salud humana",444.89751799999999,"Consumo Intermedio (PC)",2013]
["P146","Servicios audiovisuales, recreativos, culturales y deportivos",374.347936,"Consumo Intermedio (PC)",2013]
["P147","Servicios de asociaciones que sirven a las empresas",267.96163100000001,"Consumo Intermedio (PC)",2013]
["P148","Servicios de asociaciones que sirven a los hogares",0,"Consumo Intermedio (PC)",2013]
["P149","Otros servicios",43.340018000000001,"Consumo Intermedio (PC)",2013]
["P150","Servicios domésticos",0,"Consumo Intermedio (PC)",2013]
["P151","Compras directas en el exterior por residentes",164.10663299999999,"Consumo Intermedio (PC)",2013]
["P152","Compras directas en el territorio nacional por no residentes",0,"Consumo Intermedio (PC)",2013]
["P001","Maíz",4580.0363850000003,"Consumo Final privado (PC)",2013]
["P002","Frijoles",2117.6374190000001,"Consumo Final privado (PC)",2013]
["P003","Leguminosas (legumbres secas) y semillas oleaginosas",164.29319899999999,"Consumo Final privado (PC)",2013]
["P004","Arroz",0,"Consumo Final privado (PC)",2013]
["P005","Otros cereales",127.436216,"Consumo Final privado (PC)",2013]
["P006","Hortalizas",14860.204252,"Consumo Final privado (PC)",2013]
["P007","Sandías y melones",374.38212099999998,"Consumo Final privado (PC)",2013]
["P008","Ejotes y arvejas",228.80353099999999,"Consumo Final privado (PC)",2013]
["P009","Raíces y tubérculos",4986.0816569999997,"Consumo Final privado (PC)",2013]
["P010","Caña de azúcar y otras plantas azucareras",3.292611,"Consumo Final privado (PC)",2013]
["P011","Tabaco y otras plantas no perennes",306.25078999999999,"Consumo Final privado (PC)",2013]
["P012","Bananos, plátanos y otros",3328.6775560000001,"Consumo Final privado (PC)",2013]
["P013","Frutas tropicales y subtropicales",3735.6494109999999,"Consumo Final privado (PC)",2013]
["P014","Berries, otras frutas y semillas de frutas",4076.613934,"Consumo Final privado (PC)",2013]
["P015","Palma africana",0,"Consumo Final privado (PC)",2013]
["P016","Café en grano",0,"Consumo Final privado (PC)",2013]
["P017","Cardamomo",0,"Consumo Final privado (PC)",2013]
["P018","Caucho natural",0,"Consumo Final privado (PC)",2013]
["P019","Propagación de plantas",51.298934000000003,"Consumo Final privado (PC)",2013]
["P020","Otros frutos oleaginosos, otras plantas bebestibles y especias aromáticas",267.95844199999999,"Consumo Final privado (PC)",2013]
["P021","Ganado bovino",0,"Consumo Final privado (PC)",2013]
["P022","Ganado porcino y otro tipo de animales vivos n.c.p.",162.81188599999999,"Consumo Final privado (PC)",2013]
["P023","Aves de corral",516.718211,"Consumo Final privado (PC)",2013]
["P024","Leche cruda",693.662733,"Consumo Final privado (PC)",2013]
["P025","Huevos",3789.02576,"Consumo Final privado (PC)",2013]
["P026","Otros productos de animales vivos",36.380946999999999,"Consumo Final privado (PC)",2013]
["P027","Troncos de madera y leña",3230.239771,"Consumo Final privado (PC)",2013]
["P028","Productos forestales no madereros",112.413083,"Consumo Final privado (PC)",2013]
["P029","Peces vivos, frescos o refrigerados",1369.089381,"Consumo Final privado (PC)",2013]
["P030","Crustáceos sin congelar y otros productos de la pesca",445.152286,"Consumo Final privado (PC)",2013]
["P031","Petróleo crudo y gas natural",0,"Consumo Final privado (PC)",2013]
["P032","Minerales metálicos",0,"Consumo Final privado (PC)",2013]
["P033","Minerales no metálicos",244.02203399999999,"Consumo Final privado (PC)",2013]
["P034","Carne y despojos comestibles de ganado bovino; cueros y pieles de bovino y de otros animales",8906.6680359999991,"Consumo Final privado (PC)",2013]
["P035","Carne y despojos comestibles de ganado porcino",939.48082599999998,"Consumo Final privado (PC)",2013]
["P036","Carne y despojos comestibles de aves",8789.8556069999995,"Consumo Final privado (PC)",2013]
["P037","Carne y despojos de otros animales y conservas y preparados de carne",2712.5791279999999,"Consumo Final privado (PC)",2013]
["P038","Pescado congelado, preparado o en conserva y sus productos",195.53596999999999,"Consumo Final privado (PC)",2013]
["P039","Crustáceos, moluscos y demás invertebrados acuáticos congelados, preparados o en conserva y sus productos",55.868673999999999,"Consumo Final privado (PC)",2013]
["P040","Vegetales preparados o en conserva, legumbres y papas",856.89015199999994,"Consumo Final privado (PC)",2013]
["P041","Preparaciones y conservas de frutas y nueces",799.299667,"Consumo Final privado (PC)",2013]
["P042","Jugos de frutas",1429.4034320000001,"Consumo Final privado (PC)",2013]
["P043","Aceites de origen vegetal",2435.21164,"Consumo Final privado (PC)",2013]
["P044","Margarina, grasas y otros aceites de origen animal y vegetal",794.01454699999999,"Consumo Final privado (PC)",2013]
["P045","Leche líquida y crema procesada",1662.472552,"Consumo Final privado (PC)",2013]
["P046","Otros productos lácteos n.c.p.",3587.6339379999999,"Consumo Final privado (PC)",2013]
["P047","Harina de trigo",77.487502000000006,"Consumo Final privado (PC)",2013]
["P048","Arroz sin cáscara",746.14014399999996,"Consumo Final privado (PC)",2013]
["P049","Otros productos de molinería, almidones y productos de almidón",1889.897937,"Consumo Final privado (PC)",2013]
["P050","Pan y otros productos de panadería y repostería n.c.p.",7766.1175620000004,"Consumo Final privado (PC)",2013]
["P051","Tortillas de maíz, incluso tostadas, horneadas o fritas",5418.7530710000001,"Consumo Final privado (PC)",2013]
["P052","Azúcar de caña sin refinar y refinada, melaza y los demás azúcares n.c.p.",4726.3915559999996,"Consumo Final privado (PC)",2013]
["P053","Productos alimenticios n.c.p.",10125.812862000001,"Consumo Final privado (PC)",2013]
["P054","Preparados para alimentación animal",477.96691700000002,"Consumo Final privado (PC)",2013]
["P055","Aguardientes, licores, vinos, demás bebidas espirituosas y productos del tabaco",1997.0936380000001,"Consumo Final privado (PC)",2013]
["P056","Malta y cerveza de malta",2706.552072,"Consumo Final privado (PC)",2013]
["P057","Bebidas no alcohólicas",10563.569437,"Consumo Final privado (PC)",2013]
["P058","Aguas minerales y otras aguas embotelladas",1278.0932,"Consumo Final privado (PC)",2013]
["P059","Hilados, tejidos, telas y otros productos textiles excepto prendas de vestir",2748.8714249999998,"Consumo Final privado (PC)",2013]
["P060","Prendas de vestir, adobo y teñido de pieles",10672.764348000001,"Consumo Final privado (PC)",2013]
["P061","Cuero de piel curtida o adobada y cuero artificial o regenerado y artículos de cuero",1048.6364470000001,"Consumo Final privado (PC)",2013]
["P062","Calzado y sus partes, de cualquier material y de cualquier uso",4549.2620239999997,"Consumo Final privado (PC)",2013]
["P063","Madera aserrada y acepillada, productos de madera, corcho, paja y materiales trenzables",52.229622999999997,"Consumo Final privado (PC)",2013]
["P064","Pasta de papel y papel",3221.1308399999998,"Consumo Final privado (PC)",2013]
["P065","Envases de papel y cartón",7.8735759999999999,"Consumo Final privado (PC)",2013]
["P066","Productos de la edición",1991.1922549999999,"Consumo Final privado (PC)",2013]
["P067","Productos de la impresión",344.17902400000003,"Consumo Final privado (PC)",2013]
["P068","Gasolinas, diésel oil y fuel oils",11094.888241000001,"Consumo Final privado (PC)",2013]
["P069","Aceites, grasas lubricantes y otros aceites preparados",69.019508000000002,"Consumo Final privado (PC)",2013]
["P070","Gases de petróleo, otros productos de la refinación de petróleo n.c.p.",2754.4595079999999,"Consumo Final privado (PC)",2013]
["P071","Abonos, fertilizantes y pesticidas",15.046182,"Consumo Final privado (PC)",2013]
["P072","Pinturas, barnices, tintas y productos relacionados",149.07975200000001,"Consumo Final privado (PC)",2013]
["P073","Jabón, preparados de limpieza, perfumes y preparados de toilet",7177.7238539999998,"Consumo Final privado (PC)",2013]
["P074","Otros productos químicos",981.92425000000003,"Consumo Final privado (PC)",2013]
["P075","Productos farmacéuticos",5616.2588589999996,"Consumo Final privado (PC)",2013]
["P076","Productos de caucho y plástico",4847.9629340000001,"Consumo Final privado (PC)",2013]
["P077","Vidrio y productos de vidrio",148.97877299999999,"Consumo Final privado (PC)",2013]
["P078","Productos de cerámica y arcilla",331.93237699999997,"Consumo Final privado (PC)",2013]
["P079","Cemento, cal y yeso",68.436572999999996,"Consumo Final privado (PC)",2013]
["P080","Artículos de hormigón, cemento y yeso",5.0855999999999998E-2,"Consumo Final privado (PC)",2013]
["P081","Piedras talladas para construcción y otros productos minerales no metálicos n.c.p.",46.829255000000003,"Consumo Final privado (PC)",2013]
["P082","Métales básicos de hierro y acero, productos primarios de metales preciosos y otros metales no ferrosos",2.5669420000000001,"Consumo Final privado (PC)",2013]
["P083","Productos metálicos estructurales y sus partes de hierro o de acero",845.55085799999995,"Consumo Final privado (PC)",2013]
["P084","Otros productos elaborados de metal",952.081231,"Consumo Final privado (PC)",2013]
["P085","Maquinaria para usos generales y especiales, sus partes y piezas, excepto electrodomésticos",113.100556,"Consumo Final privado (PC)",2013]
["P086","Electrodomésticos y sus partes",1403.7453390000001,"Consumo Final privado (PC)",2013]
["P087","Maquinaria de oficina, contabilidad e informática, sus partes y piezas",688.19171700000004,"Consumo Final privado (PC)",2013]
["P088","Maquinaria y aparatos eléctricos, sus partes y piezas",329.69521900000001,"Consumo Final privado (PC)",2013]
["P089","Equipo y aparatos de radio, televisión y comunicaciones",7444.0726510000004,"Consumo Final privado (PC)",2013]
["P090","Aparatos médicos, instrumentos ópticos y de precisión, relojes",341.72719699999999,"Consumo Final privado (PC)",2013]
["P091","Equipo de transporte",5464.0983390000001,"Consumo Final privado (PC)",2013]
["P092","Muebles",3661.8433599999998,"Consumo Final privado (PC)",2013]
["P093","Otros artículos n.c.p.",3445.576943,"Consumo Final privado (PC)",2013]
["P094","Residuos y desechos",0,"Consumo Final privado (PC)",2013]
["P095","Generación y distribución de energía eléctrica, gas, vapor y aire acondicionado",4821.5521840000001,"Consumo Final privado (PC)",2013]
["P096","Agua natural y distribución de agua natural",1214.8438430000001,"Consumo Final privado (PC)",2013]
["P097","Evacuación de aguas residuales, recogida, tratamiento y eliminación de desechos",458.79794600000002,"Consumo Final privado (PC)",2013]
["P098","Edificaciones residenciales",0,"Consumo Final privado (PC)",2013]
["P099","Edificaciones no residenciales",0,"Consumo Final privado (PC)",2013]
["P100","Obras de ingeniería civil",0,"Consumo Final privado (PC)",2013]
["P101","Servicios generales y especializados de construcción",111.938647,"Consumo Final privado (PC)",2013]
["P102","Servicios de comercio",0,"Consumo Final privado (PC)",2013]
["P103","Mantenimiento y reparación de vehículos automotores y motocicletas",5973.3520079999998,"Consumo Final privado (PC)",2013]
["P104","Servicio de transporte de pasajeros por vía terrestre",5495.7605450000001,"Consumo Final privado (PC)",2013]
["P105","Servicio de transporte de carga por vía terrestre",20.472123,"Consumo Final privado (PC)",2013]
["P106","Otros tipos de transporte",1602.6643750000001,"Consumo Final privado (PC)",2013]
["P107","Servicios de almacenamiento y depósito",0,"Consumo Final privado (PC)",2013]
["P108","Otros servicios de apoyo al transporte",1837.8987529999999,"Consumo Final privado (PC)",2013]
["P109","Servicios postales y de mensajería",356.78755999999998,"Consumo Final privado (PC)",2013]
["P110","Servicio de alojamiento",976.72902299999998,"Consumo Final privado (PC)",2013]
["P111","Servicio de suministro de comidas y bebidas",25812.828266,"Consumo Final privado (PC)",2013]
["P112","Servicios de información, telecomunicaciones y radiodifusión",15072.731206,"Consumo Final privado (PC)",2013]
["P113","Servicios de banco central",0,"Consumo Final privado (PC)",2013]
["P114","Otros servicios financieros y servicios de banca de inversión",523.32619899999997,"Consumo Final privado (PC)",2013]
["P115","Servicios de Intermediación Financiera Medidos Indirectamente (SIFMI)",9102.6120169999995,"Consumo Final privado (PC)",2013]
["P116","Servicios de seguro, reaseguro y fondos de pensiones",1944.7727990000001,"Consumo Final privado (PC)",2013]
["P117","Servicios auxiliares de la intermediación financiera",1958.408463,"Consumo Final privado (PC)",2013]
["P118","Servicios de alquiler de vivienda",30475.175856999998,"Consumo Final privado (PC)",2013]
["P119","Otros servicios inmobiliarios, excepto alquiler de vivienda",30.712824000000001,"Consumo Final privado (PC)",2013]
["P120","Servicios jurídicos, de contabilidad, auditoría, teneduría de libros y consultoría fiscal",160.98744199999999,"Consumo Final privado (PC)",2013]
["P121","Servicios de tecnología de la información",0,"Consumo Final privado (PC)",2013]
["P122","Servicios de arquitectura e ingeniería, ensayos y análisis técnicos",91.264487000000003,"Consumo Final privado (PC)",2013]
["P123","Otros servicios profesionales, científicos y técnicos",137.26128199999999,"Consumo Final privado (PC)",2013]
["P124","Servicios de publicidad y estudios de mercado",2.848859,"Consumo Final privado (PC)",2013]
["P125","Servicios de arrendamiento o alquiler sin operador",356.66453799999999,"Consumo Final privado (PC)",2013]
["P126","Servicios  de agencias de empleo y de dotación de recursos humanos",0,"Consumo Final privado (PC)",2013]
["P127","Servicios de agencias de viajes, operadores turísticos y actividades conexas",234.14757599999999,"Consumo Final privado (PC)",2013]
["P128","Servicios de seguridad, sistemas de seguridad e investigación privada",276.53748400000001,"Consumo Final privado (PC)",2013]
["P129","Servicios de limpieza",29.183098000000001,"Consumo Final privado (PC)",2013]
["P130","Servicios telefónicos de centros de llamadas",0,"Consumo Final privado (PC)",2013]
["P131","Servicios administrativos, de apoyo de oficina y otros servicios de apoyo a las empresas",280.55201899999997,"Consumo Final privado (PC)",2013]
["P132","Servicios de mantenimiento, reparación e instalación de productos metálicos elaborados, maquinaria y equipo",1.113294,"Consumo Final privado (PC)",2013]
["P133","Servicios de reparación de otros bienes",706.27303900000004,"Consumo Final privado (PC)",2013]
["P134","Servicios de apoyo a la agricultura, caza, silvicultura y pesca",0,"Consumo Final privado (PC)",2013]
["P135","Servicios de apoyo a la explotación de minas y canteras y los relacionados con la distribución de electricidad, gas y agua",0,"Consumo Final privado (PC)",2013]
["P136","Servicios de manufactura",1029.0241820000001,"Consumo Final privado (PC)",2013]
["P137","Servicios públicos del gobierno general",506.43812000000003,"Consumo Final privado (PC)",2013]
["P138","Servicios públicos administrativos relacionados con la provisión de servicios educativos, de salud, servicios sociales, culturales y otros, sin contar los servicios de seguridad social",0.435778,"Consumo Final privado (PC)",2013]
["P139","Otros servicios administrativos",22.571999000000002,"Consumo Final privado (PC)",2013]
["P140","Servicios públicos administrativos prestados a la comunidad en su conjunto",494.05180100000001,"Consumo Final privado (PC)",2013]
["P141","Servicios administrativos relacionados con los sistemas de seguridad social de afiliación obligatoria",0.214003,"Consumo Final privado (PC)",2013]
["P142","Servicios de enseñanza",7968.1107819999997,"Consumo Final privado (PC)",2013]
["P143","Servicios de hospitalización",1710.9323999999999,"Consumo Final privado (PC)",2013]
["P144","Servicios médicos y dentales",3574.000196,"Consumo Final privado (PC)",2013]
["P145","Otros servicios de atención de la salud humana",2102.7410839999998,"Consumo Final privado (PC)",2013]
["P146","Servicios audiovisuales, recreativos, culturales y deportivos",1925.955999,"Consumo Final privado (PC)",2013]
["P147","Servicios de asociaciones que sirven a las empresas",0,"Consumo Final privado (PC)",2013]
["P148","Servicios de asociaciones que sirven a los hogares",1925.973125,"Consumo Final privado (PC)",2013]
["P149","Otros servicios",7714.6922720000002,"Consumo Final privado (PC)",2013]
["P150","Servicios domésticos",7294.099819,"Consumo Final privado (PC)",2013]
["P151","Compras directas en el exterior por residentes",6121.9131239999997,"Consumo Final privado (PC)",2013]
["P152","Compras directas en el territorio nacional por no residentes",-9586.7075839999998,"Consumo Final privado (PC)",2013]
["P001","Maíz",0,"Consumo Final del Gobierno (PC)",2013]
["P002","Frijoles",49.528613999999997,"Consumo Final del Gobierno (PC)",2013]
["P003","Leguminosas (legumbres secas) y semillas oleaginosas",0,"Consumo Final del Gobierno (PC)",2013]
["P004","Arroz",0,"Consumo Final del Gobierno (PC)",2013]
["P005","Otros cereales",0,"Consumo Final del Gobierno (PC)",2013]
["P006","Hortalizas",0.103604,"Consumo Final del Gobierno (PC)",2013]
["P007","Sandías y melones",0,"Consumo Final del Gobierno (PC)",2013]
["P008","Ejotes y arvejas",0,"Consumo Final del Gobierno (PC)",2013]
["P009","Raíces y tubérculos",0,"Consumo Final del Gobierno (PC)",2013]
["P010","Caña de azúcar y otras plantas azucareras",0,"Consumo Final del Gobierno (PC)",2013]
["P011","Tabaco y otras plantas no perennes",4.6038870000000003,"Consumo Final del Gobierno (PC)",2013]
["P012","Bananos, plátanos y otros",0,"Consumo Final del Gobierno (PC)",2013]
["P013","Frutas tropicales y subtropicales",0,"Consumo Final del Gobierno (PC)",2013]
["P014","Berries, otras frutas y semillas de frutas",2.7455E-2,"Consumo Final del Gobierno (PC)",2013]
["P015","Palma africana",0,"Consumo Final del Gobierno (PC)",2013]
["P016","Café en grano",0,"Consumo Final del Gobierno (PC)",2013]
["P017","Cardamomo",0,"Consumo Final del Gobierno (PC)",2013]
["P018","Caucho natural",0,"Consumo Final del Gobierno (PC)",2013]
["P019","Propagación de plantas",0,"Consumo Final del Gobierno (PC)",2013]
["P020","Otros frutos oleaginosos, otras plantas bebestibles y especias aromáticas",0,"Consumo Final del Gobierno (PC)",2013]
["P021","Ganado bovino",0,"Consumo Final del Gobierno (PC)",2013]
["P022","Ganado porcino y otro tipo de animales vivos n.c.p.",2.7346979999999999,"Consumo Final del Gobierno (PC)",2013]
["P023","Aves de corral",0.79858399999999996,"Consumo Final del Gobierno (PC)",2013]
["P024","Leche cruda",0,"Consumo Final del Gobierno (PC)",2013]
["P025","Huevos",0,"Consumo Final del Gobierno (PC)",2013]
["P026","Otros productos de animales vivos",0,"Consumo Final del Gobierno (PC)",2013]
["P027","Troncos de madera y leña",0,"Consumo Final del Gobierno (PC)",2013]
["P028","Productos forestales no madereros",0,"Consumo Final del Gobierno (PC)",2013]
["P029","Peces vivos, frescos o refrigerados",0,"Consumo Final del Gobierno (PC)",2013]
["P030","Crustáceos sin congelar y otros productos de la pesca",0,"Consumo Final del Gobierno (PC)",2013]
["P031","Petróleo crudo y gas natural",0,"Consumo Final del Gobierno (PC)",2013]
["P032","Minerales metálicos",0,"Consumo Final del Gobierno (PC)",2013]
["P033","Minerales no metálicos",1.367486,"Consumo Final del Gobierno (PC)",2013]
["P034","Carne y despojos comestibles de ganado bovino; cueros y pieles de bovino y de otros animales",0.30066599999999999,"Consumo Final del Gobierno (PC)",2013]
["P035","Carne y despojos comestibles de ganado porcino",0,"Consumo Final del Gobierno (PC)",2013]
["P036","Carne y despojos comestibles de aves",4.8188000000000002E-2,"Consumo Final del Gobierno (PC)",2013]
["P037","Carne y despojos de otros animales y conservas y preparados de carne",0,"Consumo Final del Gobierno (PC)",2013]
["P038","Pescado congelado, preparado o en conserva y sus productos",0,"Consumo Final del Gobierno (PC)",2013]
["P039","Crustáceos, moluscos y demás invertebrados acuáticos congelados, preparados o en conserva y sus productos",0,"Consumo Final del Gobierno (PC)",2013]
["P040","Vegetales preparados o en conserva, legumbres y papas",0,"Consumo Final del Gobierno (PC)",2013]
["P041","Preparaciones y conservas de frutas y nueces",0,"Consumo Final del Gobierno (PC)",2013]
["P042","Jugos de frutas",0,"Consumo Final del Gobierno (PC)",2013]
["P043","Aceites de origen vegetal",26.284181,"Consumo Final del Gobierno (PC)",2013]
["P044","Margarina, grasas y otros aceites de origen animal y vegetal",0,"Consumo Final del Gobierno (PC)",2013]
["P045","Leche líquida y crema procesada",0,"Consumo Final del Gobierno (PC)",2013]
["P046","Otros productos lácteos n.c.p.",19.200724000000001,"Consumo Final del Gobierno (PC)",2013]
["P047","Harina de trigo",0,"Consumo Final del Gobierno (PC)",2013]
["P048","Arroz sin cáscara",40.387552999999997,"Consumo Final del Gobierno (PC)",2013]
["P049","Otros productos de molinería, almidones y productos de almidón",109.789839,"Consumo Final del Gobierno (PC)",2013]
["P050","Pan y otros productos de panadería y repostería n.c.p.",3.95086,"Consumo Final del Gobierno (PC)",2013]
["P051","Tortillas de maíz, incluso tostadas, horneadas o fritas",0.174648,"Consumo Final del Gobierno (PC)",2013]
["P052","Azúcar de caña sin refinar y refinada, melaza y los demás azúcares n.c.p.",6.8835119999999996,"Consumo Final del Gobierno (PC)",2013]
["P053","Productos alimenticios n.c.p.",111.467935,"Consumo Final del Gobierno (PC)",2013]
["P054","Preparados para alimentación animal",0,"Consumo Final del Gobierno (PC)",2013]
["P055","Aguardientes, licores, vinos, demás bebidas espirituosas y productos del tabaco",0,"Consumo Final del Gobierno (PC)",2013]
["P056","Malta y cerveza de malta",0,"Consumo Final del Gobierno (PC)",2013]
["P057","Bebidas no alcohólicas",2.717892,"Consumo Final del Gobierno (PC)",2013]
["P058","Aguas minerales y otras aguas embotelladas",1.0133080000000001,"Consumo Final del Gobierno (PC)",2013]
["P059","Hilados, tejidos, telas y otros productos textiles excepto prendas de vestir",0,"Consumo Final del Gobierno (PC)",2013]
["P060","Prendas de vestir, adobo y teñido de pieles",0,"Consumo Final del Gobierno (PC)",2013]
["P061","Cuero de piel curtida o adobada y cuero artificial o regenerado y artículos de cuero",7.2232000000000005E-2,"Consumo Final del Gobierno (PC)",2013]
["P062","Calzado y sus partes, de cualquier material y de cualquier uso",0,"Consumo Final del Gobierno (PC)",2013]
["P063","Madera aserrada y acepillada, productos de madera, corcho, paja y materiales trenzables",0,"Consumo Final del Gobierno (PC)",2013]
["P064","Pasta de papel y papel",13.447870999999999,"Consumo Final del Gobierno (PC)",2013]
["P065","Envases de papel y cartón",0,"Consumo Final del Gobierno (PC)",2013]
["P066","Productos de la edición",0,"Consumo Final del Gobierno (PC)",2013]
["P067","Productos de la impresión",0,"Consumo Final del Gobierno (PC)",2013]
["P068","Gasolinas, diésel oil y fuel oils",0,"Consumo Final del Gobierno (PC)",2013]
["P069","Aceites, grasas lubricantes y otros aceites preparados",0,"Consumo Final del Gobierno (PC)",2013]
["P070","Gases de petróleo, otros productos de la refinación de petróleo n.c.p.",0,"Consumo Final del Gobierno (PC)",2013]
["P071","Abonos, fertilizantes y pesticidas",0,"Consumo Final del Gobierno (PC)",2013]
["P072","Pinturas, barnices, tintas y productos relacionados",0,"Consumo Final del Gobierno (PC)",2013]
["P073","Jabón, preparados de limpieza, perfumes y preparados de toilet",0,"Consumo Final del Gobierno (PC)",2013]
["P074","Otros productos químicos",0,"Consumo Final del Gobierno (PC)",2013]
["P075","Productos farmacéuticos",2427.3771740000002,"Consumo Final del Gobierno (PC)",2013]
["P076","Productos de caucho y plástico",0,"Consumo Final del Gobierno (PC)",2013]
["P077","Vidrio y productos de vidrio",0,"Consumo Final del Gobierno (PC)",2013]
["P078","Productos de cerámica y arcilla",0,"Consumo Final del Gobierno (PC)",2013]
["P079","Cemento, cal y yeso",0,"Consumo Final del Gobierno (PC)",2013]
["P080","Artículos de hormigón, cemento y yeso",0,"Consumo Final del Gobierno (PC)",2013]
["P081","Piedras talladas para construcción y otros productos minerales no metálicos n.c.p.",0,"Consumo Final del Gobierno (PC)",2013]
["P082","Métales básicos de hierro y acero, productos primarios de metales preciosos y otros metales no ferrosos",0,"Consumo Final del Gobierno (PC)",2013]
["P083","Productos metálicos estructurales y sus partes de hierro o de acero",0,"Consumo Final del Gobierno (PC)",2013]
["P084","Otros productos elaborados de metal",1.8710999999999998E-2,"Consumo Final del Gobierno (PC)",2013]
["P085","Maquinaria para usos generales y especiales, sus partes y piezas, excepto electrodomésticos",0,"Consumo Final del Gobierno (PC)",2013]
["P086","Electrodomésticos y sus partes",2.6870000000000002E-3,"Consumo Final del Gobierno (PC)",2013]
["P087","Maquinaria de oficina, contabilidad e informática, sus partes y piezas",0,"Consumo Final del Gobierno (PC)",2013]
["P088","Maquinaria y aparatos eléctricos, sus partes y piezas",0,"Consumo Final del Gobierno (PC)",2013]
["P089","Equipo y aparatos de radio, televisión y comunicaciones",0,"Consumo Final del Gobierno (PC)",2013]
["P090","Aparatos médicos, instrumentos ópticos y de precisión, relojes",7.9156110000000002,"Consumo Final del Gobierno (PC)",2013]
["P091","Equipo de transporte",0,"Consumo Final del Gobierno (PC)",2013]
["P092","Muebles",0,"Consumo Final del Gobierno (PC)",2013]
["P093","Otros artículos n.c.p.",10.250828,"Consumo Final del Gobierno (PC)",2013]
["P094","Residuos y desechos",0,"Consumo Final del Gobierno (PC)",2013]
["P095","Generación y distribución de energía eléctrica, gas, vapor y aire acondicionado",0,"Consumo Final del Gobierno (PC)",2013]
["P096","Agua natural y distribución de agua natural",0,"Consumo Final del Gobierno (PC)",2013]
["P097","Evacuación de aguas residuales, recogida, tratamiento y eliminación de desechos",0,"Consumo Final del Gobierno (PC)",2013]
["P098","Edificaciones residenciales",0,"Consumo Final del Gobierno (PC)",2013]
["P099","Edificaciones no residenciales",0,"Consumo Final del Gobierno (PC)",2013]
["P100","Obras de ingeniería civil",0,"Consumo Final del Gobierno (PC)",2013]
["P101","Servicios generales y especializados de construcción",0,"Consumo Final del Gobierno (PC)",2013]
["P102","Servicios de comercio",0,"Consumo Final del Gobierno (PC)",2013]
["P103","Mantenimiento y reparación de vehículos automotores y motocicletas",0,"Consumo Final del Gobierno (PC)",2013]
["P104","Servicio de transporte de pasajeros por vía terrestre",0,"Consumo Final del Gobierno (PC)",2013]
["P105","Servicio de transporte de carga por vía terrestre",0,"Consumo Final del Gobierno (PC)",2013]
["P106","Otros tipos de transporte",0,"Consumo Final del Gobierno (PC)",2013]
["P107","Servicios de almacenamiento y depósito",0,"Consumo Final del Gobierno (PC)",2013]
["P108","Otros servicios de apoyo al transporte",0,"Consumo Final del Gobierno (PC)",2013]
["P109","Servicios postales y de mensajería",0,"Consumo Final del Gobierno (PC)",2013]
["P110","Servicio de alojamiento",0,"Consumo Final del Gobierno (PC)",2013]
["P111","Servicio de suministro de comidas y bebidas",1138.001845,"Consumo Final del Gobierno (PC)",2013]
["P112","Servicios de información, telecomunicaciones y radiodifusión",0,"Consumo Final del Gobierno (PC)",2013]
["P113","Servicios de banco central",696.02774699999998,"Consumo Final del Gobierno (PC)",2013]
["P114","Otros servicios financieros y servicios de banca de inversión",0,"Consumo Final del Gobierno (PC)",2013]
["P115","Servicios de Intermediación Financiera Medidos Indirectamente (SIFMI)",0,"Consumo Final del Gobierno (PC)",2013]
["P116","Servicios de seguro, reaseguro y fondos de pensiones",0,"Consumo Final del Gobierno (PC)",2013]
["P117","Servicios auxiliares de la intermediación financiera",0,"Consumo Final del Gobierno (PC)",2013]
["P118","Servicios de alquiler de vivienda",0,"Consumo Final del Gobierno (PC)",2013]
["P119","Otros servicios inmobiliarios, excepto alquiler de vivienda",0,"Consumo Final del Gobierno (PC)",2013]
["P120","Servicios jurídicos, de contabilidad, auditoría, teneduría de libros y consultoría fiscal",0,"Consumo Final del Gobierno (PC)",2013]
["P121","Servicios de tecnología de la información",0,"Consumo Final del Gobierno (PC)",2013]
["P122","Servicios de arquitectura e ingeniería, ensayos y análisis técnicos",0,"Consumo Final del Gobierno (PC)",2013]
["P123","Otros servicios profesionales, científicos y técnicos",0,"Consumo Final del Gobierno (PC)",2013]
["P124","Servicios de publicidad y estudios de mercado",0,"Consumo Final del Gobierno (PC)",2013]
["P125","Servicios de arrendamiento o alquiler sin operador",0,"Consumo Final del Gobierno (PC)",2013]
["P126","Servicios  de agencias de empleo y de dotación de recursos humanos",0,"Consumo Final del Gobierno (PC)",2013]
["P127","Servicios de agencias de viajes, operadores turísticos y actividades conexas",0,"Consumo Final del Gobierno (PC)",2013]
["P128","Servicios de seguridad, sistemas de seguridad e investigación privada",0,"Consumo Final del Gobierno (PC)",2013]
["P129","Servicios de limpieza",0,"Consumo Final del Gobierno (PC)",2013]
["P130","Servicios telefónicos de centros de llamadas",0,"Consumo Final del Gobierno (PC)",2013]
["P131","Servicios administrativos, de apoyo de oficina y otros servicios de apoyo a las empresas",0,"Consumo Final del Gobierno (PC)",2013]
["P132","Servicios de mantenimiento, reparación e instalación de productos metálicos elaborados, maquinaria y equipo",0,"Consumo Final del Gobierno (PC)",2013]
["P133","Servicios de reparación de otros bienes",0,"Consumo Final del Gobierno (PC)",2013]
["P134","Servicios de apoyo a la agricultura, caza, silvicultura y pesca",0,"Consumo Final del Gobierno (PC)",2013]
["P135","Servicios de apoyo a la explotación de minas y canteras y los relacionados con la distribución de electricidad, gas y agua",0,"Consumo Final del Gobierno (PC)",2013]
["P136","Servicios de manufactura",0,"Consumo Final del Gobierno (PC)",2013]
["P137","Servicios públicos del gobierno general",9777.3277629999993,"Consumo Final del Gobierno (PC)",2013]
["P138","Servicios públicos administrativos relacionados con la provisión de servicios educativos, de salud, servicios sociales, culturales y otros, sin contar los servicios de seguridad social",1831.7318230000001,"Consumo Final del Gobierno (PC)",2013]
["P139","Otros servicios administrativos",4076.9174739999999,"Consumo Final del Gobierno (PC)",2013]
["P140","Servicios públicos administrativos prestados a la comunidad en su conjunto",8415.5062859999998,"Consumo Final del Gobierno (PC)",2013]
["P141","Servicios administrativos relacionados con los sistemas de seguridad social de afiliación obligatoria",738.01370099999997,"Consumo Final del Gobierno (PC)",2013]
["P142","Servicios de enseñanza",11648.613746000001,"Consumo Final del Gobierno (PC)",2013]
["P143","Servicios de hospitalización",4727.9121109999996,"Consumo Final del Gobierno (PC)",2013]
["P144","Servicios médicos y dentales",734.77828199999999,"Consumo Final del Gobierno (PC)",2013]
["P145","Otros servicios de atención de la salud humana",185.59393499999999,"Consumo Final del Gobierno (PC)",2013]
["P146","Servicios audiovisuales, recreativos, culturales y deportivos",190.230807,"Consumo Final del Gobierno (PC)",2013]
["P147","Servicios de asociaciones que sirven a las empresas",0,"Consumo Final del Gobierno (PC)",2013]
["P148","Servicios de asociaciones que sirven a los hogares",0,"Consumo Final del Gobierno (PC)",2013]
["P149","Otros servicios",0,"Consumo Final del Gobierno (PC)",2013]
["P150","Servicios domésticos",0,"Consumo Final del Gobierno (PC)",2013]
["P151","Compras directas en el exterior por residentes",0,"Consumo Final del Gobierno (PC)",2013]
["P152","Compras directas en el territorio nacional por no residentes",0,"Consumo Final del Gobierno (PC)",2013]
["P001","Maíz",0,"Formación Bruta de Capital Fijo (PC)",2013]
["P002","Frijoles",0,"Formación Bruta de Capital Fijo (PC)",2013]
["P003","Leguminosas (legumbres secas) y semillas oleaginosas",0,"Formación Bruta de Capital Fijo (PC)",2013]
["P004","Arroz",0,"Formación Bruta de Capital Fijo (PC)",2013]
["P005","Otros cereales",0,"Formación Bruta de Capital Fijo (PC)",2013]
["P006","Hortalizas",0,"Formación Bruta de Capital Fijo (PC)",2013]
["P007","Sandías y melones",0,"Formación Bruta de Capital Fijo (PC)",2013]
["P008","Ejotes y arvejas",0,"Formación Bruta de Capital Fijo (PC)",2013]
["P009","Raíces y tubérculos",0,"Formación Bruta de Capital Fijo (PC)",2013]
["P010","Caña de azúcar y otras plantas azucareras",0,"Formación Bruta de Capital Fijo (PC)",2013]
["P011","Tabaco y otras plantas no perennes",0,"Formación Bruta de Capital Fijo (PC)",2013]
["P012","Bananos, plátanos y otros",243.87355400000001,"Formación Bruta de Capital Fijo (PC)",2013]
["P013","Frutas tropicales y subtropicales",124.566649,"Formación Bruta de Capital Fijo (PC)",2013]
["P014","Berries, otras frutas y semillas de frutas",148.44569200000001,"Formación Bruta de Capital Fijo (PC)",2013]
["P015","Palma africana",609.05541500000004,"Formación Bruta de Capital Fijo (PC)",2013]
["P016","Café en grano",51.956268000000001,"Formación Bruta de Capital Fijo (PC)",2013]
["P017","Cardamomo",19.710516999999999,"Formación Bruta de Capital Fijo (PC)",2013]
["P018","Caucho natural",17.185780000000001,"Formación Bruta de Capital Fijo (PC)",2013]
["P019","Propagación de plantas",0,"Formación Bruta de Capital Fijo (PC)",2013]
["P020","Otros frutos oleaginosos, otras plantas bebestibles y especias aromáticas",6.5270520000000003,"Formación Bruta de Capital Fijo (PC)",2013]
["P021","Ganado bovino",54.824677999999999,"Formación Bruta de Capital Fijo (PC)",2013]
["P022","Ganado porcino y otro tipo de animales vivos n.c.p.",26.596931999999999,"Formación Bruta de Capital Fijo (PC)",2013]
["P023","Aves de corral",485.931895,"Formación Bruta de Capital Fijo (PC)",2013]
["P024","Leche cruda",0,"Formación Bruta de Capital Fijo (PC)",2013]
["P025","Huevos",0,"Formación Bruta de Capital Fijo (PC)",2013]
["P026","Otros productos de animales vivos",0,"Formación Bruta de Capital Fijo (PC)",2013]
["P027","Troncos de madera y leña",0,"Formación Bruta de Capital Fijo (PC)",2013]
["P028","Productos forestales no madereros",0,"Formación Bruta de Capital Fijo (PC)",2013]
["P029","Peces vivos, frescos o refrigerados",0,"Formación Bruta de Capital Fijo (PC)",2013]
["P030","Crustáceos sin congelar y otros productos de la pesca",0,"Formación Bruta de Capital Fijo (PC)",2013]
["P031","Petróleo crudo y gas natural",0,"Formación Bruta de Capital Fijo (PC)",2013]
["P032","Minerales metálicos",0,"Formación Bruta de Capital Fijo (PC)",2013]
["P033","Minerales no metálicos",0,"Formación Bruta de Capital Fijo (PC)",2013]
["P034","Carne y despojos comestibles de ganado bovino; cueros y pieles de bovino y de otros animales",0,"Formación Bruta de Capital Fijo (PC)",2013]
["P035","Carne y despojos comestibles de ganado porcino",0,"Formación Bruta de Capital Fijo (PC)",2013]
["P036","Carne y despojos comestibles de aves",0,"Formación Bruta de Capital Fijo (PC)",2013]
["P037","Carne y despojos de otros animales y conservas y preparados de carne",0,"Formación Bruta de Capital Fijo (PC)",2013]
["P038","Pescado congelado, preparado o en conserva y sus productos",0,"Formación Bruta de Capital Fijo (PC)",2013]
["P039","Crustáceos, moluscos y demás invertebrados acuáticos congelados, preparados o en conserva y sus productos",0,"Formación Bruta de Capital Fijo (PC)",2013]
["P040","Vegetales preparados o en conserva, legumbres y papas",0,"Formación Bruta de Capital Fijo (PC)",2013]
["P041","Preparaciones y conservas de frutas y nueces",0,"Formación Bruta de Capital Fijo (PC)",2013]
["P042","Jugos de frutas",0,"Formación Bruta de Capital Fijo (PC)",2013]
["P043","Aceites de origen vegetal",0,"Formación Bruta de Capital Fijo (PC)",2013]
["P044","Margarina, grasas y otros aceites de origen animal y vegetal",0,"Formación Bruta de Capital Fijo (PC)",2013]
["P045","Leche líquida y crema procesada",0,"Formación Bruta de Capital Fijo (PC)",2013]
["P046","Otros productos lácteos n.c.p.",0,"Formación Bruta de Capital Fijo (PC)",2013]
["P047","Harina de trigo",0,"Formación Bruta de Capital Fijo (PC)",2013]
["P048","Arroz sin cáscara",0,"Formación Bruta de Capital Fijo (PC)",2013]
["P049","Otros productos de molinería, almidones y productos de almidón",0,"Formación Bruta de Capital Fijo (PC)",2013]
["P050","Pan y otros productos de panadería y repostería n.c.p.",0,"Formación Bruta de Capital Fijo (PC)",2013]
["P051","Tortillas de maíz, incluso tostadas, horneadas o fritas",0,"Formación Bruta de Capital Fijo (PC)",2013]
["P052","Azúcar de caña sin refinar y refinada, melaza y los demás azúcares n.c.p.",0,"Formación Bruta de Capital Fijo (PC)",2013]
["P053","Productos alimenticios n.c.p.",0,"Formación Bruta de Capital Fijo (PC)",2013]
["P054","Preparados para alimentación animal",0,"Formación Bruta de Capital Fijo (PC)",2013]
["P055","Aguardientes, licores, vinos, demás bebidas espirituosas y productos del tabaco",0,"Formación Bruta de Capital Fijo (PC)",2013]
["P056","Malta y cerveza de malta",0,"Formación Bruta de Capital Fijo (PC)",2013]
["P057","Bebidas no alcohólicas",0,"Formación Bruta de Capital Fijo (PC)",2013]
["P058","Aguas minerales y otras aguas embotelladas",0,"Formación Bruta de Capital Fijo (PC)",2013]
["P059","Hilados, tejidos, telas y otros productos textiles excepto prendas de vestir",0,"Formación Bruta de Capital Fijo (PC)",2013]
["P060","Prendas de vestir, adobo y teñido de pieles",0,"Formación Bruta de Capital Fijo (PC)",2013]
["P061","Cuero de piel curtida o adobada y cuero artificial o regenerado y artículos de cuero",0,"Formación Bruta de Capital Fijo (PC)",2013]
["P062","Calzado y sus partes, de cualquier material y de cualquier uso",0,"Formación Bruta de Capital Fijo (PC)",2013]
["P063","Madera aserrada y acepillada, productos de madera, corcho, paja y materiales trenzables",49.119191000000001,"Formación Bruta de Capital Fijo (PC)",2013]
["P064","Pasta de papel y papel",0,"Formación Bruta de Capital Fijo (PC)",2013]
["P065","Envases de papel y cartón",0,"Formación Bruta de Capital Fijo (PC)",2013]
["P066","Productos de la edición",0,"Formación Bruta de Capital Fijo (PC)",2013]
["P067","Productos de la impresión",0,"Formación Bruta de Capital Fijo (PC)",2013]
["P068","Gasolinas, diésel oil y fuel oils",0,"Formación Bruta de Capital Fijo (PC)",2013]
["P069","Aceites, grasas lubricantes y otros aceites preparados",0,"Formación Bruta de Capital Fijo (PC)",2013]
["P070","Gases de petróleo, otros productos de la refinación de petróleo n.c.p.",0,"Formación Bruta de Capital Fijo (PC)",2013]
["P071","Abonos, fertilizantes y pesticidas",0,"Formación Bruta de Capital Fijo (PC)",2013]
["P072","Pinturas, barnices, tintas y productos relacionados",0,"Formación Bruta de Capital Fijo (PC)",2013]
["P073","Jabón, preparados de limpieza, perfumes y preparados de toilet",0,"Formación Bruta de Capital Fijo (PC)",2013]
["P074","Otros productos químicos",0,"Formación Bruta de Capital Fijo (PC)",2013]
["P075","Productos farmacéuticos",0,"Formación Bruta de Capital Fijo (PC)",2013]
["P076","Productos de caucho y plástico",0,"Formación Bruta de Capital Fijo (PC)",2013]
["P077","Vidrio y productos de vidrio",0,"Formación Bruta de Capital Fijo (PC)",2013]
["P078","Productos de cerámica y arcilla",0,"Formación Bruta de Capital Fijo (PC)",2013]
["P079","Cemento, cal y yeso",0,"Formación Bruta de Capital Fijo (PC)",2013]
["P080","Artículos de hormigón, cemento y yeso",0,"Formación Bruta de Capital Fijo (PC)",2013]
["P081","Piedras talladas para construcción y otros productos minerales no metálicos n.c.p.",0,"Formación Bruta de Capital Fijo (PC)",2013]
["P082","Métales básicos de hierro y acero, productos primarios de metales preciosos y otros metales no ferrosos",0,"Formación Bruta de Capital Fijo (PC)",2013]
["P083","Productos metálicos estructurales y sus partes de hierro o de acero",0,"Formación Bruta de Capital Fijo (PC)",2013]
["P084","Otros productos elaborados de metal",728.87902699999995,"Formación Bruta de Capital Fijo (PC)",2013]
["P085","Maquinaria para usos generales y especiales, sus partes y piezas, excepto electrodomésticos",8436.1898469999996,"Formación Bruta de Capital Fijo (PC)",2013]
["P086","Electrodomésticos y sus partes",207.59217100000001,"Formación Bruta de Capital Fijo (PC)",2013]
["P087","Maquinaria de oficina, contabilidad e informática, sus partes y piezas",1707.142053,"Formación Bruta de Capital Fijo (PC)",2013]
["P088","Maquinaria y aparatos eléctricos, sus partes y piezas",2773.2824909999999,"Formación Bruta de Capital Fijo (PC)",2013]
["P089","Equipo y aparatos de radio, televisión y comunicaciones",2001.348375,"Formación Bruta de Capital Fijo (PC)",2013]
["P090","Aparatos médicos, instrumentos ópticos y de precisión, relojes",1498.389097,"Formación Bruta de Capital Fijo (PC)",2013]
["P091","Equipo de transporte",6245.2886490000001,"Formación Bruta de Capital Fijo (PC)",2013]
["P092","Muebles",2725.2724910000002,"Formación Bruta de Capital Fijo (PC)",2013]
["P093","Otros artículos n.c.p.",238.05480499999999,"Formación Bruta de Capital Fijo (PC)",2013]
["P094","Residuos y desechos",0,"Formación Bruta de Capital Fijo (PC)",2013]
["P095","Generación y distribución de energía eléctrica, gas, vapor y aire acondicionado",0,"Formación Bruta de Capital Fijo (PC)",2013]
["P096","Agua natural y distribución de agua natural",0,"Formación Bruta de Capital Fijo (PC)",2013]
["P097","Evacuación de aguas residuales, recogida, tratamiento y eliminación de desechos",0,"Formación Bruta de Capital Fijo (PC)",2013]
["P098","Edificaciones residenciales",15215.939378999999,"Formación Bruta de Capital Fijo (PC)",2013]
["P099","Edificaciones no residenciales",6495.7327830000004,"Formación Bruta de Capital Fijo (PC)",2013]
["P100","Obras de ingeniería civil",11618.123935,"Formación Bruta de Capital Fijo (PC)",2013]
["P101","Servicios generales y especializados de construcción",0,"Formación Bruta de Capital Fijo (PC)",2013]
["P102","Servicios de comercio",0,"Formación Bruta de Capital Fijo (PC)",2013]
["P103","Mantenimiento y reparación de vehículos automotores y motocicletas",0,"Formación Bruta de Capital Fijo (PC)",2013]
["P104","Servicio de transporte de pasajeros por vía terrestre",0,"Formación Bruta de Capital Fijo (PC)",2013]
["P105","Servicio de transporte de carga por vía terrestre",0,"Formación Bruta de Capital Fijo (PC)",2013]
["P106","Otros tipos de transporte",0,"Formación Bruta de Capital Fijo (PC)",2013]
["P107","Servicios de almacenamiento y depósito",0,"Formación Bruta de Capital Fijo (PC)",2013]
["P108","Otros servicios de apoyo al transporte",0,"Formación Bruta de Capital Fijo (PC)",2013]
["P109","Servicios postales y de mensajería",0,"Formación Bruta de Capital Fijo (PC)",2013]
["P110","Servicio de alojamiento",0,"Formación Bruta de Capital Fijo (PC)",2013]
["P111","Servicio de suministro de comidas y bebidas",0,"Formación Bruta de Capital Fijo (PC)",2013]
["P112","Servicios de información, telecomunicaciones y radiodifusión",0,"Formación Bruta de Capital Fijo (PC)",2013]
["P113","Servicios de banco central",0,"Formación Bruta de Capital Fijo (PC)",2013]
["P114","Otros servicios financieros y servicios de banca de inversión",0,"Formación Bruta de Capital Fijo (PC)",2013]
["P115","Servicios de Intermediación Financiera Medidos Indirectamente (SIFMI)",0,"Formación Bruta de Capital Fijo (PC)",2013]
["P116","Servicios de seguro, reaseguro y fondos de pensiones",0,"Formación Bruta de Capital Fijo (PC)",2013]
["P117","Servicios auxiliares de la intermediación financiera",0,"Formación Bruta de Capital Fijo (PC)",2013]
["P118","Servicios de alquiler de vivienda",0,"Formación Bruta de Capital Fijo (PC)",2013]
["P119","Otros servicios inmobiliarios, excepto alquiler de vivienda",0,"Formación Bruta de Capital Fijo (PC)",2013]
["P120","Servicios jurídicos, de contabilidad, auditoría, teneduría de libros y consultoría fiscal",0,"Formación Bruta de Capital Fijo (PC)",2013]
["P121","Servicios de tecnología de la información",492.14238399999999,"Formación Bruta de Capital Fijo (PC)",2013]
["P122","Servicios de arquitectura e ingeniería, ensayos y análisis técnicos",354.25343400000003,"Formación Bruta de Capital Fijo (PC)",2013]
["P123","Otros servicios profesionales, científicos y técnicos",240.72553099999999,"Formación Bruta de Capital Fijo (PC)",2013]
["P124","Servicios de publicidad y estudios de mercado",0,"Formación Bruta de Capital Fijo (PC)",2013]
["P125","Servicios de arrendamiento o alquiler sin operador",0,"Formación Bruta de Capital Fijo (PC)",2013]
["P126","Servicios  de agencias de empleo y de dotación de recursos humanos",0,"Formación Bruta de Capital Fijo (PC)",2013]
["P127","Servicios de agencias de viajes, operadores turísticos y actividades conexas",0,"Formación Bruta de Capital Fijo (PC)",2013]
["P128","Servicios de seguridad, sistemas de seguridad e investigación privada",0,"Formación Bruta de Capital Fijo (PC)",2013]
["P129","Servicios de limpieza",0,"Formación Bruta de Capital Fijo (PC)",2013]
["P130","Servicios telefónicos de centros de llamadas",0,"Formación Bruta de Capital Fijo (PC)",2013]
["P131","Servicios administrativos, de apoyo de oficina y otros servicios de apoyo a las empresas",0,"Formación Bruta de Capital Fijo (PC)",2013]
["P132","Servicios de mantenimiento, reparación e instalación de productos metálicos elaborados, maquinaria y equipo",0,"Formación Bruta de Capital Fijo (PC)",2013]
["P133","Servicios de reparación de otros bienes",0,"Formación Bruta de Capital Fijo (PC)",2013]
["P134","Servicios de apoyo a la agricultura, caza, silvicultura y pesca",0,"Formación Bruta de Capital Fijo (PC)",2013]
["P135","Servicios de apoyo a la explotación de minas y canteras y los relacionados con la distribución de electricidad, gas y agua",0,"Formación Bruta de Capital Fijo (PC)",2013]
["P136","Servicios de manufactura",0,"Formación Bruta de Capital Fijo (PC)",2013]
["P137","Servicios públicos del gobierno general",0,"Formación Bruta de Capital Fijo (PC)",2013]
["P138","Servicios públicos administrativos relacionados con la provisión de servicios educativos, de salud, servicios sociales, culturales y otros, sin contar los servicios de seguridad social",0,"Formación Bruta de Capital Fijo (PC)",2013]
["P139","Otros servicios administrativos",0,"Formación Bruta de Capital Fijo (PC)",2013]
["P140","Servicios públicos administrativos prestados a la comunidad en su conjunto",0,"Formación Bruta de Capital Fijo (PC)",2013]
["P141","Servicios administrativos relacionados con los sistemas de seguridad social de afiliación obligatoria",0,"Formación Bruta de Capital Fijo (PC)",2013]
["P142","Servicios de enseñanza",0,"Formación Bruta de Capital Fijo (PC)",2013]
["P143","Servicios de hospitalización",0,"Formación Bruta de Capital Fijo (PC)",2013]
["P144","Servicios médicos y dentales",0,"Formación Bruta de Capital Fijo (PC)",2013]
["P145","Otros servicios de atención de la salud humana",0,"Formación Bruta de Capital Fijo (PC)",2013]
["P146","Servicios audiovisuales, recreativos, culturales y deportivos",0,"Formación Bruta de Capital Fijo (PC)",2013]
["P147","Servicios de asociaciones que sirven a las empresas",0,"Formación Bruta de Capital Fijo (PC)",2013]
["P148","Servicios de asociaciones que sirven a los hogares",0,"Formación Bruta de Capital Fijo (PC)",2013]
["P149","Otros servicios",0,"Formación Bruta de Capital Fijo (PC)",2013]
["P150","Servicios domésticos",0,"Formación Bruta de Capital Fijo (PC)",2013]
["P151","Compras directas en el exterior por residentes",18.441827,"Formación Bruta de Capital Fijo (PC)",2013]
["P152","Compras directas en el territorio nacional por no residentes",0,"Formación Bruta de Capital Fijo (PC)",2013]
["P001","Maíz",36.424615000000003,"Exportaciones (fob)",2013]
["P002","Frijoles",35.896611,"Exportaciones (fob)",2013]
["P003","Leguminosas (legumbres secas) y semillas oleaginosas",396.74388399999998,"Exportaciones (fob)",2013]
["P004","Arroz",3.7010000000000001E-2,"Exportaciones (fob)",2013]
["P005","Otros cereales",4.7776199999999998,"Exportaciones (fob)",2013]
["P006","Hortalizas",1126.487803,"Exportaciones (fob)",2013]
["P007","Sandías y melones",1110.558133,"Exportaciones (fob)",2013]
["P008","Ejotes y arvejas",672.37656700000002,"Exportaciones (fob)",2013]
["P009","Raíces y tubérculos",84.006352000000007,"Exportaciones (fob)",2013]
["P010","Caña de azúcar y otras plantas azucareras",2.3166660000000001,"Exportaciones (fob)",2013]
["P011","Tabaco y otras plantas no perennes",285.94704100000001,"Exportaciones (fob)",2013]
["P012","Bananos, plátanos y otros",4988.0592660000002,"Exportaciones (fob)",2013]
["P013","Frutas tropicales y subtropicales",260.04353300000002,"Exportaciones (fob)",2013]
["P014","Berries, otras frutas y semillas de frutas",235.79744400000001,"Exportaciones (fob)",2013]
["P015","Palma africana",0,"Exportaciones (fob)",2013]
["P016","Café en grano",5600.0248860000002,"Exportaciones (fob)",2013]
["P017","Cardamomo",1690.1990189999999,"Exportaciones (fob)",2013]
["P018","Caucho natural",1876.5972959999999,"Exportaciones (fob)",2013]
["P019","Propagación de plantas",253.83208500000001,"Exportaciones (fob)",2013]
["P020","Otros frutos oleaginosos, otras plantas bebestibles y especias aromáticas",24.015501,"Exportaciones (fob)",2013]
["P021","Ganado bovino",23.964399,"Exportaciones (fob)",2013]
["P022","Ganado porcino y otro tipo de animales vivos n.c.p.",1.1347799999999999,"Exportaciones (fob)",2013]
["P023","Aves de corral",12.504845,"Exportaciones (fob)",2013]
["P024","Leche cruda",0,"Exportaciones (fob)",2013]
["P025","Huevos",0,"Exportaciones (fob)",2013]
["P026","Otros productos de animales vivos",63.827888999999999,"Exportaciones (fob)",2013]
["P027","Troncos de madera y leña",11.523621,"Exportaciones (fob)",2013]
["P028","Productos forestales no madereros",155.55443700000001,"Exportaciones (fob)",2013]
["P029","Peces vivos, frescos o refrigerados",40.867966000000003,"Exportaciones (fob)",2013]
["P030","Crustáceos sin congelar y otros productos de la pesca",208.59537800000001,"Exportaciones (fob)",2013]
["P031","Petróleo crudo y gas natural",2327.3415180000002,"Exportaciones (fob)",2013]
["P032","Minerales metálicos",4016.789804,"Exportaciones (fob)",2013]
["P033","Minerales no metálicos",88.643835999999993,"Exportaciones (fob)",2013]
["P034","Carne y despojos comestibles de ganado bovino; cueros y pieles de bovino y de otros animales",59.336522000000002,"Exportaciones (fob)",2013]
["P035","Carne y despojos comestibles de ganado porcino",0.95746900000000001,"Exportaciones (fob)",2013]
["P036","Carne y despojos comestibles de aves",48.479380999999997,"Exportaciones (fob)",2013]
["P037","Carne y despojos de otros animales y conservas y preparados de carne",293.11837100000002,"Exportaciones (fob)",2013]
["P038","Pescado congelado, preparado o en conserva y sus productos",581.34234700000002,"Exportaciones (fob)",2013]
["P039","Crustáceos, moluscos y demás invertebrados acuáticos congelados, preparados o en conserva y sus productos",360.10227300000003,"Exportaciones (fob)",2013]
["P040","Vegetales preparados o en conserva, legumbres y papas",518.52026599999999,"Exportaciones (fob)",2013]
["P041","Preparaciones y conservas de frutas y nueces",613.96479799999997,"Exportaciones (fob)",2013]
["P042","Jugos de frutas",262.77235400000001,"Exportaciones (fob)",2013]
["P043","Aceites de origen vegetal",2509.2955069999998,"Exportaciones (fob)",2013]
["P044","Margarina, grasas y otros aceites de origen animal y vegetal",353.249863,"Exportaciones (fob)",2013]
["P045","Leche líquida y crema procesada",1.722218,"Exportaciones (fob)",2013]
["P046","Otros productos lácteos n.c.p.",118.80412800000001,"Exportaciones (fob)",2013]
["P047","Harina de trigo",26.779588,"Exportaciones (fob)",2013]
["P048","Arroz sin cáscara",3.4466380000000001,"Exportaciones (fob)",2013]
["P049","Otros productos de molinería, almidones y productos de almidón",282.88482800000003,"Exportaciones (fob)",2013]
["P050","Pan y otros productos de panadería y repostería n.c.p.",564.74982599999998,"Exportaciones (fob)",2013]
["P051","Tortillas de maíz, incluso tostadas, horneadas o fritas",0,"Exportaciones (fob)",2013]
["P052","Azúcar de caña sin refinar y refinada, melaza y los demás azúcares n.c.p.",7669.3661069999998,"Exportaciones (fob)",2013]
["P053","Productos alimenticios n.c.p.",2109.8661860000002,"Exportaciones (fob)",2013]
["P054","Preparados para alimentación animal",486.05105300000002,"Exportaciones (fob)",2013]
["P055","Aguardientes, licores, vinos, demás bebidas espirituosas y productos del tabaco",932.84012399999995,"Exportaciones (fob)",2013]
["P056","Malta y cerveza de malta",67.227592000000001,"Exportaciones (fob)",2013]
["P057","Bebidas no alcohólicas",805.80016000000001,"Exportaciones (fob)",2013]
["P058","Aguas minerales y otras aguas embotelladas",25.854832999999999,"Exportaciones (fob)",2013]
["P059","Hilados, tejidos, telas y otros productos textiles excepto prendas de vestir",1335.8201180000001,"Exportaciones (fob)",2013]
["P060","Prendas de vestir, adobo y teñido de pieles",2073.881085,"Exportaciones (fob)",2013]
["P061","Cuero de piel curtida o adobada y cuero artificial o regenerado y artículos de cuero",113.88449900000001,"Exportaciones (fob)",2013]
["P062","Calzado y sus partes, de cualquier material y de cualquier uso",284.04869600000001,"Exportaciones (fob)",2013]
["P063","Madera aserrada y acepillada, productos de madera, corcho, paja y materiales trenzables",500.09455800000001,"Exportaciones (fob)",2013]
["P064","Pasta de papel y papel",526.03469500000006,"Exportaciones (fob)",2013]
["P065","Envases de papel y cartón",922.03085299999998,"Exportaciones (fob)",2013]
["P066","Productos de la edición",76.934164999999993,"Exportaciones (fob)",2013]
["P067","Productos de la impresión",105.90377700000001,"Exportaciones (fob)",2013]
["P068","Gasolinas, diésel oil y fuel oils",997.97738500000003,"Exportaciones (fob)",2013]
["P069","Aceites, grasas lubricantes y otros aceites preparados",5.9842639999999996,"Exportaciones (fob)",2013]
["P070","Gases de petróleo, otros productos de la refinación de petróleo n.c.p.",1374.511616,"Exportaciones (fob)",2013]
["P071","Abonos, fertilizantes y pesticidas",1014.116533,"Exportaciones (fob)",2013]
["P072","Pinturas, barnices, tintas y productos relacionados",359.23313000000002,"Exportaciones (fob)",2013]
["P073","Jabón, preparados de limpieza, perfumes y preparados de toilet",1916.24686,"Exportaciones (fob)",2013]
["P074","Otros productos químicos",2328.073065,"Exportaciones (fob)",2013]
["P075","Productos farmacéuticos",999.62274200000002,"Exportaciones (fob)",2013]
["P076","Productos de caucho y plástico",2134.662448,"Exportaciones (fob)",2013]
["P077","Vidrio y productos de vidrio",374.12319500000001,"Exportaciones (fob)",2013]
["P078","Productos de cerámica y arcilla",373.82268299999998,"Exportaciones (fob)",2013]
["P079","Cemento, cal y yeso",87.707750000000004,"Exportaciones (fob)",2013]
["P080","Artículos de hormigón, cemento y yeso",18.384105999999999,"Exportaciones (fob)",2013]
["P081","Piedras talladas para construcción y otros productos minerales no metálicos n.c.p.",24.971747000000001,"Exportaciones (fob)",2013]
["P082","Métales básicos de hierro y acero, productos primarios de metales preciosos y otros metales no ferrosos",1546.010354,"Exportaciones (fob)",2013]
["P083","Productos metálicos estructurales y sus partes de hierro o de acero",133.16372699999999,"Exportaciones (fob)",2013]
["P084","Otros productos elaborados de metal",902.33774500000004,"Exportaciones (fob)",2013]
["P085","Maquinaria para usos generales y especiales, sus partes y piezas, excepto electrodomésticos",869.68060300000002,"Exportaciones (fob)",2013]
["P086","Electrodomésticos y sus partes",35.148442000000003,"Exportaciones (fob)",2013]
["P087","Maquinaria de oficina, contabilidad e informática, sus partes y piezas",34.289982000000002,"Exportaciones (fob)",2013]
["P088","Maquinaria y aparatos eléctricos, sus partes y piezas",265.69970599999999,"Exportaciones (fob)",2013]
["P089","Equipo y aparatos de radio, televisión y comunicaciones",167.41989699999999,"Exportaciones (fob)",2013]
["P090","Aparatos médicos, instrumentos ópticos y de precisión, relojes",91.584370000000007,"Exportaciones (fob)",2013]
["P091","Equipo de transporte",170.20729600000001,"Exportaciones (fob)",2013]
["P092","Muebles",362.18890199999998,"Exportaciones (fob)",2013]
["P093","Otros artículos n.c.p.",324.53353800000002,"Exportaciones (fob)",2013]
["P094","Residuos y desechos",625.65657999999996,"Exportaciones (fob)",2013]
["P095","Generación y distribución de energía eléctrica, gas, vapor y aire acondicionado",240.268396,"Exportaciones (fob)",2013]
["P096","Agua natural y distribución de agua natural",0,"Exportaciones (fob)",2013]
["P097","Evacuación de aguas residuales, recogida, tratamiento y eliminación de desechos",0,"Exportaciones (fob)",2013]
["P098","Edificaciones residenciales",0,"Exportaciones (fob)",2013]
["P099","Edificaciones no residenciales",0,"Exportaciones (fob)",2013]
["P100","Obras de ingeniería civil",0,"Exportaciones (fob)",2013]
["P101","Servicios generales y especializados de construcción",214.567116,"Exportaciones (fob)",2013]
["P102","Servicios de comercio",0,"Exportaciones (fob)",2013]
["P103","Mantenimiento y reparación de vehículos automotores y motocicletas",5.2266360000000001,"Exportaciones (fob)",2013]
["P104","Servicio de transporte de pasajeros por vía terrestre",5.2394230000000004,"Exportaciones (fob)",2013]
["P105","Servicio de transporte de carga por vía terrestre",719.79782899999998,"Exportaciones (fob)",2013]
["P106","Otros tipos de transporte",11.715173999999999,"Exportaciones (fob)",2013]
["P107","Servicios de almacenamiento y depósito",1.629894,"Exportaciones (fob)",2013]
["P108","Otros servicios de apoyo al transporte",1728.15969,"Exportaciones (fob)",2013]
["P109","Servicios postales y de mensajería",43.102684000000004,"Exportaciones (fob)",2013]
["P110","Servicio de alojamiento",0,"Exportaciones (fob)",2013]
["P111","Servicio de suministro de comidas y bebidas",33.324823000000002,"Exportaciones (fob)",2013]
["P112","Servicios de información, telecomunicaciones y radiodifusión",3535.478337,"Exportaciones (fob)",2013]
["P113","Servicios de banco central",0,"Exportaciones (fob)",2013]
["P114","Otros servicios financieros y servicios de banca de inversión",63.778551,"Exportaciones (fob)",2013]
["P115","Servicios de Intermediación Financiera Medidos Indirectamente (SIFMI)",131.67166800000001,"Exportaciones (fob)",2013]
["P116","Servicios de seguro, reaseguro y fondos de pensiones",236.77983800000001,"Exportaciones (fob)",2013]
["P117","Servicios auxiliares de la intermediación financiera",2.1205219999999998,"Exportaciones (fob)",2013]
["P118","Servicios de alquiler de vivienda",0,"Exportaciones (fob)",2013]
["P119","Otros servicios inmobiliarios, excepto alquiler de vivienda",0,"Exportaciones (fob)",2013]
["P120","Servicios jurídicos, de contabilidad, auditoría, teneduría de libros y consultoría fiscal",8.8639489999999999,"Exportaciones (fob)",2013]
["P121","Servicios de tecnología de la información",317.31404700000002,"Exportaciones (fob)",2013]
["P122","Servicios de arquitectura e ingeniería, ensayos y análisis técnicos",9.3152640000000009,"Exportaciones (fob)",2013]
["P123","Otros servicios profesionales, científicos y técnicos",227.09911600000001,"Exportaciones (fob)",2013]
["P124","Servicios de publicidad y estudios de mercado",37.836170000000003,"Exportaciones (fob)",2013]
["P125","Servicios de arrendamiento o alquiler sin operador",121.028423,"Exportaciones (fob)",2013]
["P126","Servicios  de agencias de empleo y de dotación de recursos humanos",0,"Exportaciones (fob)",2013]
["P127","Servicios de agencias de viajes, operadores turísticos y actividades conexas",443.79853300000002,"Exportaciones (fob)",2013]
["P128","Servicios de seguridad, sistemas de seguridad e investigación privada",8.0476980000000005,"Exportaciones (fob)",2013]
["P129","Servicios de limpieza",0,"Exportaciones (fob)",2013]
["P130","Servicios telefónicos de centros de llamadas",1847.9544450000001,"Exportaciones (fob)",2013]
["P131","Servicios administrativos, de apoyo de oficina y otros servicios de apoyo a las empresas",117.760099,"Exportaciones (fob)",2013]
["P132","Servicios de mantenimiento, reparación e instalación de productos metálicos elaborados, maquinaria y equipo",105.466978,"Exportaciones (fob)",2013]
["P133","Servicios de reparación de otros bienes",0,"Exportaciones (fob)",2013]
["P134","Servicios de apoyo a la agricultura, caza, silvicultura y pesca",0,"Exportaciones (fob)",2013]
["P135","Servicios de apoyo a la explotación de minas y canteras y los relacionados con la distribución de electricidad, gas y agua",0,"Exportaciones (fob)",2013]
["P136","Servicios de manufactura",3609.5874349999999,"Exportaciones (fob)",2013]
["P137","Servicios públicos del gobierno general",0,"Exportaciones (fob)",2013]
["P138","Servicios públicos administrativos relacionados con la provisión de servicios educativos, de salud, servicios sociales, culturales y otros, sin contar los servicios de seguridad social",0,"Exportaciones (fob)",2013]
["P139","Otros servicios administrativos",0,"Exportaciones (fob)",2013]
["P140","Servicios públicos administrativos prestados a la comunidad en su conjunto",25.349269,"Exportaciones (fob)",2013]
["P141","Servicios administrativos relacionados con los sistemas de seguridad social de afiliación obligatoria",0,"Exportaciones (fob)",2013]
["P142","Servicios de enseñanza",2.8947409999999998,"Exportaciones (fob)",2013]
["P143","Servicios de hospitalización",118.7062,"Exportaciones (fob)",2013]
["P144","Servicios médicos y dentales",175.05569399999999,"Exportaciones (fob)",2013]
["P145","Otros servicios de atención de la salud humana",53.569609,"Exportaciones (fob)",2013]
["P146","Servicios audiovisuales, recreativos, culturales y deportivos",0,"Exportaciones (fob)",2013]
["P147","Servicios de asociaciones que sirven a las empresas",0,"Exportaciones (fob)",2013]
["P148","Servicios de asociaciones que sirven a los hogares",0,"Exportaciones (fob)",2013]
["P149","Otros servicios",0,"Exportaciones (fob)",2013]
["P150","Servicios domésticos",0,"Exportaciones (fob)",2013]
["P151","Compras directas en el exterior por residentes",0,"Exportaciones (fob)",2013]
["P152","Compras directas en el territorio nacional por no residentes",9586.7075839999998,"Exportaciones (fob)",2013]
["P001","Maíz",38.522311999999999,"Variación de existencias (PC)",2013]
["P002","Frijoles",2.3093819999999998,"Variación de existencias (PC)",2013]
["P003","Leguminosas (legumbres secas) y semillas oleaginosas",-20.116133000000001,"Variación de existencias (PC)",2013]
["P004","Arroz",4.6070169999999999,"Variación de existencias (PC)",2013]
["P005","Otros cereales",-47.814194000000001,"Variación de existencias (PC)",2013]
["P006","Hortalizas",0,"Variación de existencias (PC)",2013]
["P007","Sandías y melones",17.736939,"Variación de existencias (PC)",2013]
["P008","Ejotes y arvejas",0,"Variación de existencias (PC)",2013]
["P009","Raíces y tubérculos",0,"Variación de existencias (PC)",2013]
["P010","Caña de azúcar y otras plantas azucareras",47.66095,"Variación de existencias (PC)",2013]
["P011","Tabaco y otras plantas no perennes",48.990738999999998,"Variación de existencias (PC)",2013]
["P012","Bananos, plátanos y otros",0,"Variación de existencias (PC)",2013]
["P013","Frutas tropicales y subtropicales",0,"Variación de existencias (PC)",2013]
["P014","Berries, otras frutas y semillas de frutas",0,"Variación de existencias (PC)",2013]
["P015","Palma africana",0,"Variación de existencias (PC)",2013]
["P016","Café en grano",-93.729144000000005,"Variación de existencias (PC)",2013]
["P017","Cardamomo",-108.194102,"Variación de existencias (PC)",2013]
["P018","Caucho natural",0,"Variación de existencias (PC)",2013]
["P019","Propagación de plantas",0,"Variación de existencias (PC)",2013]
["P020","Otros frutos oleaginosos, otras plantas bebestibles y especias aromáticas",0,"Variación de existencias (PC)",2013]
["P021","Ganado bovino",43.231946999999998,"Variación de existencias (PC)",2013]
["P022","Ganado porcino y otro tipo de animales vivos n.c.p.",0.56450299999999998,"Variación de existencias (PC)",2013]
["P023","Aves de corral",24.367279,"Variación de existencias (PC)",2013]
["P024","Leche cruda",0,"Variación de existencias (PC)",2013]
["P025","Huevos",0,"Variación de existencias (PC)",2013]
["P026","Otros productos de animales vivos",0,"Variación de existencias (PC)",2013]
["P027","Troncos de madera y leña",0,"Variación de existencias (PC)",2013]
["P028","Productos forestales no madereros",0,"Variación de existencias (PC)",2013]
["P029","Peces vivos, frescos o refrigerados",0,"Variación de existencias (PC)",2013]
["P030","Crustáceos sin congelar y otros productos de la pesca",92.126182,"Variación de existencias (PC)",2013]
["P031","Petróleo crudo y gas natural",23.071829000000001,"Variación de existencias (PC)",2013]
["P032","Minerales metálicos",10.669696999999999,"Variación de existencias (PC)",2013]
["P033","Minerales no metálicos",15.919783000000001,"Variación de existencias (PC)",2013]
["P034","Carne y despojos comestibles de ganado bovino; cueros y pieles de bovino y de otros animales",-4.7655380000000003,"Variación de existencias (PC)",2013]
["P035","Carne y despojos comestibles de ganado porcino",-5.5112639999999997,"Variación de existencias (PC)",2013]
["P036","Carne y despojos comestibles de aves",-29.385829999999999,"Variación de existencias (PC)",2013]
["P037","Carne y despojos de otros animales y conservas y preparados de carne",-14.39537,"Variación de existencias (PC)",2013]
["P038","Pescado congelado, preparado o en conserva y sus productos",4.4586990000000002,"Variación de existencias (PC)",2013]
["P039","Crustáceos, moluscos y demás invertebrados acuáticos congelados, preparados o en conserva y sus productos",-7.6377059999999997,"Variación de existencias (PC)",2013]
["P040","Vegetales preparados o en conserva, legumbres y papas",10.639802,"Variación de existencias (PC)",2013]
["P041","Preparaciones y conservas de frutas y nueces",7.1280700000000001,"Variación de existencias (PC)",2013]
["P042","Jugos de frutas",6.116987,"Variación de existencias (PC)",2013]
["P043","Aceites de origen vegetal",44.681260000000002,"Variación de existencias (PC)",2013]
["P044","Margarina, grasas y otros aceites de origen animal y vegetal",-1.056419,"Variación de existencias (PC)",2013]
["P045","Leche líquida y crema procesada",4.9160700000000004,"Variación de existencias (PC)",2013]
["P046","Otros productos lácteos n.c.p.",5.6652760000000004,"Variación de existencias (PC)",2013]
["P047","Harina de trigo",9.7068670000000008,"Variación de existencias (PC)",2013]
["P048","Arroz sin cáscara",8.0981229999999993,"Variación de existencias (PC)",2013]
["P049","Otros productos de molinería, almidones y productos de almidón",24.515027,"Variación de existencias (PC)",2013]
["P050","Pan y otros productos de panadería y repostería n.c.p.",0.58949099999999999,"Variación de existencias (PC)",2013]
["P051","Tortillas de maíz, incluso tostadas, horneadas o fritas",0.222383,"Variación de existencias (PC)",2013]
["P052","Azúcar de caña sin refinar y refinada, melaza y los demás azúcares n.c.p.",194.40995699999999,"Variación de existencias (PC)",2013]
["P053","Productos alimenticios n.c.p.",6.4244830000000004,"Variación de existencias (PC)",2013]
["P054","Preparados para alimentación animal",-54.762928000000002,"Variación de existencias (PC)",2013]
["P055","Aguardientes, licores, vinos, demás bebidas espirituosas y productos del tabaco",53.805402000000001,"Variación de existencias (PC)",2013]
["P056","Malta y cerveza de malta",45.609130999999998,"Variación de existencias (PC)",2013]
["P057","Bebidas no alcohólicas",119.7299,"Variación de existencias (PC)",2013]
["P058","Aguas minerales y otras aguas embotelladas",-1.5341549999999999,"Variación de existencias (PC)",2013]
["P059","Hilados, tejidos, telas y otros productos textiles excepto prendas de vestir",185.78274099999999,"Variación de existencias (PC)",2013]
["P060","Prendas de vestir, adobo y teñido de pieles",83.193389999999994,"Variación de existencias (PC)",2013]
["P061","Cuero de piel curtida o adobada y cuero artificial o regenerado y artículos de cuero",18.717103000000002,"Variación de existencias (PC)",2013]
["P062","Calzado y sus partes, de cualquier material y de cualquier uso",8.5595529999999993,"Variación de existencias (PC)",2013]
["P063","Madera aserrada y acepillada, productos de madera, corcho, paja y materiales trenzables",51.371003999999999,"Variación de existencias (PC)",2013]
["P064","Pasta de papel y papel",44.984838000000003,"Variación de existencias (PC)",2013]
["P065","Envases de papel y cartón",31.042867999999999,"Variación de existencias (PC)",2013]
["P066","Productos de la edición",51.080786000000003,"Variación de existencias (PC)",2013]
["P067","Productos de la impresión",16.612721000000001,"Variación de existencias (PC)",2013]
["P068","Gasolinas, diésel oil y fuel oils",287.14468900000003,"Variación de existencias (PC)",2013]
["P069","Aceites, grasas lubricantes y otros aceites preparados",29.549250000000001,"Variación de existencias (PC)",2013]
["P070","Gases de petróleo, otros productos de la refinación de petróleo n.c.p.",116.78220399999999,"Variación de existencias (PC)",2013]
["P071","Abonos, fertilizantes y pesticidas",52.725906000000002,"Variación de existencias (PC)",2013]
["P072","Pinturas, barnices, tintas y productos relacionados",6.1882320000000002,"Variación de existencias (PC)",2013]
["P073","Jabón, preparados de limpieza, perfumes y preparados de toilet",-10.877476,"Variación de existencias (PC)",2013]
["P074","Otros productos químicos",202.90087500000001,"Variación de existencias (PC)",2013]
["P075","Productos farmacéuticos",43.461911000000001,"Variación de existencias (PC)",2013]
["P076","Productos de caucho y plástico",-34.934767999999998,"Variación de existencias (PC)",2013]
["P077","Vidrio y productos de vidrio",6.1199640000000004,"Variación de existencias (PC)",2013]
["P078","Productos de cerámica y arcilla",26.138314000000001,"Variación de existencias (PC)",2013]
["P079","Cemento, cal y yeso",57.061534999999999,"Variación de existencias (PC)",2013]
["P080","Artículos de hormigón, cemento y yeso",25.576287000000001,"Variación de existencias (PC)",2013]
["P081","Piedras talladas para construcción y otros productos minerales no metálicos n.c.p.",18.284002999999998,"Variación de existencias (PC)",2013]
["P082","Métales básicos de hierro y acero, productos primarios de metales preciosos y otros metales no ferrosos",255.79484199999999,"Variación de existencias (PC)",2013]
["P083","Productos metálicos estructurales y sus partes de hierro o de acero",20.659673000000002,"Variación de existencias (PC)",2013]
["P084","Otros productos elaborados de metal",114.380008,"Variación de existencias (PC)",2013]
["P085","Maquinaria para usos generales y especiales, sus partes y piezas, excepto electrodomésticos",65.184003000000004,"Variación de existencias (PC)",2013]
["P086","Electrodomésticos y sus partes",6.7396609999999999,"Variación de existencias (PC)",2013]
["P087","Maquinaria de oficina, contabilidad e informática, sus partes y piezas",2.9350689999999999,"Variación de existencias (PC)",2013]
["P088","Maquinaria y aparatos eléctricos, sus partes y piezas",128.12347399999999,"Variación de existencias (PC)",2013]
["P089","Equipo y aparatos de radio, televisión y comunicaciones",142.34465700000001,"Variación de existencias (PC)",2013]
["P090","Aparatos médicos, instrumentos ópticos y de precisión, relojes",46.250824000000001,"Variación de existencias (PC)",2013]
["P091","Equipo de transporte",15.121689,"Variación de existencias (PC)",2013]
["P092","Muebles",19.621948,"Variación de existencias (PC)",2013]
["P093","Otros artículos n.c.p.",9.6827140000000007,"Variación de existencias (PC)",2013]
["P094","Residuos y desechos",7.0708849999999996,"Variación de existencias (PC)",2013]
["P095","Generación y distribución de energía eléctrica, gas, vapor y aire acondicionado",0,"Variación de existencias (PC)",2013]
["P096","Agua natural y distribución de agua natural",0,"Variación de existencias (PC)",2013]
["P097","Evacuación de aguas residuales, recogida, tratamiento y eliminación de desechos",0,"Variación de existencias (PC)",2013]
["P098","Edificaciones residenciales",435.86247200000003,"Variación de existencias (PC)",2013]
["P099","Edificaciones no residenciales",16.616617999999999,"Variación de existencias (PC)",2013]
["P100","Obras de ingeniería civil",0,"Variación de existencias (PC)",2013]
["P101","Servicios generales y especializados de construcción",0,"Variación de existencias (PC)",2013]
["P102","Servicios de comercio",0,"Variación de existencias (PC)",2013]
["P103","Mantenimiento y reparación de vehículos automotores y motocicletas",0,"Variación de existencias (PC)",2013]
["P104","Servicio de transporte de pasajeros por vía terrestre",0,"Variación de existencias (PC)",2013]
["P105","Servicio de transporte de carga por vía terrestre",0,"Variación de existencias (PC)",2013]
["P106","Otros tipos de transporte",0,"Variación de existencias (PC)",2013]
["P107","Servicios de almacenamiento y depósito",0,"Variación de existencias (PC)",2013]
["P108","Otros servicios de apoyo al transporte",0,"Variación de existencias (PC)",2013]
["P109","Servicios postales y de mensajería",0,"Variación de existencias (PC)",2013]
["P110","Servicio de alojamiento",0,"Variación de existencias (PC)",2013]
["P111","Servicio de suministro de comidas y bebidas",0,"Variación de existencias (PC)",2013]
["P112","Servicios de información, telecomunicaciones y radiodifusión",0,"Variación de existencias (PC)",2013]
["P113","Servicios de banco central",0,"Variación de existencias (PC)",2013]
["P114","Otros servicios financieros y servicios de banca de inversión",0,"Variación de existencias (PC)",2013]
["P115","Servicios de Intermediación Financiera Medidos Indirectamente (SIFMI)",0,"Variación de existencias (PC)",2013]
["P116","Servicios de seguro, reaseguro y fondos de pensiones",0,"Variación de existencias (PC)",2013]
["P117","Servicios auxiliares de la intermediación financiera",0,"Variación de existencias (PC)",2013]
["P118","Servicios de alquiler de vivienda",0,"Variación de existencias (PC)",2013]
["P119","Otros servicios inmobiliarios, excepto alquiler de vivienda",0,"Variación de existencias (PC)",2013]
["P120","Servicios jurídicos, de contabilidad, auditoría, teneduría de libros y consultoría fiscal",0,"Variación de existencias (PC)",2013]
["P121","Servicios de tecnología de la información",0,"Variación de existencias (PC)",2013]
["P122","Servicios de arquitectura e ingeniería, ensayos y análisis técnicos",0,"Variación de existencias (PC)",2013]
["P123","Otros servicios profesionales, científicos y técnicos",0,"Variación de existencias (PC)",2013]
["P124","Servicios de publicidad y estudios de mercado",0,"Variación de existencias (PC)",2013]
["P125","Servicios de arrendamiento o alquiler sin operador",0,"Variación de existencias (PC)",2013]
["P126","Servicios  de agencias de empleo y de dotación de recursos humanos",0,"Variación de existencias (PC)",2013]
["P127","Servicios de agencias de viajes, operadores turísticos y actividades conexas",0,"Variación de existencias (PC)",2013]
["P128","Servicios de seguridad, sistemas de seguridad e investigación privada",0,"Variación de existencias (PC)",2013]
["P129","Servicios de limpieza",0,"Variación de existencias (PC)",2013]
["P130","Servicios telefónicos de centros de llamadas",0,"Variación de existencias (PC)",2013]
["P131","Servicios administrativos, de apoyo de oficina y otros servicios de apoyo a las empresas",0,"Variación de existencias (PC)",2013]
["P132","Servicios de mantenimiento, reparación e instalación de productos metálicos elaborados, maquinaria y equipo",0,"Variación de existencias (PC)",2013]
["P133","Servicios de reparación de otros bienes",0,"Variación de existencias (PC)",2013]
["P134","Servicios de apoyo a la agricultura, caza, silvicultura y pesca",0,"Variación de existencias (PC)",2013]
["P135","Servicios de apoyo a la explotación de minas y canteras y los relacionados con la distribución de electricidad, gas y agua",0,"Variación de existencias (PC)",2013]
["P136","Servicios de manufactura",0,"Variación de existencias (PC)",2013]
["P137","Servicios públicos del gobierno general",0,"Variación de existencias (PC)",2013]
["P138","Servicios públicos administrativos relacionados con la provisión de servicios educativos, de salud, servicios sociales, culturales y otros, sin contar los servicios de seguridad social",0,"Variación de existencias (PC)",2013]
["P139","Otros servicios administrativos",0,"Variación de existencias (PC)",2013]
["P140","Servicios públicos administrativos prestados a la comunidad en su conjunto",0,"Variación de existencias (PC)",2013]
["P141","Servicios administrativos relacionados con los sistemas de seguridad social de afiliación obligatoria",0,"Variación de existencias (PC)",2013]
["P142","Servicios de enseñanza",0,"Variación de existencias (PC)",2013]
["P143","Servicios de hospitalización",0,"Variación de existencias (PC)",2013]
["P144","Servicios médicos y dentales",0,"Variación de existencias (PC)",2013]
["P145","Otros servicios de atención de la salud humana",0,"Variación de existencias (PC)",2013]
["P146","Servicios audiovisuales, recreativos, culturales y deportivos",0,"Variación de existencias (PC)",2013]
["P147","Servicios de asociaciones que sirven a las empresas",0,"Variación de existencias (PC)",2013]
["P148","Servicios de asociaciones que sirven a los hogares",0,"Variación de existencias (PC)",2013]
["P149","Otros servicios",0,"Variación de existencias (PC)",2013]
["P150","Servicios domésticos",0,"Variación de existencias (PC)",2013]
["P151","Compras directas en el exterior por residentes",0,"Variación de existencias (PC)",2013]
["P152","Compras directas en el territorio nacional por no residentes",0,"Variación de existencias (PC)",2013]
["P001","Maíz",0,"Ajuste CIF/FOB",2013]
["P002","Frijoles",0,"Ajuste CIF/FOB",2013]
["P003","Leguminosas (legumbres secas) y semillas oleaginosas",0,"Ajuste CIF/FOB",2013]
["P004","Arroz",0,"Ajuste CIF/FOB",2013]
["P005","Otros cereales",0,"Ajuste CIF/FOB",2013]
["P006","Hortalizas",0,"Ajuste CIF/FOB",2013]
["P007","Sandías y melones",0,"Ajuste CIF/FOB",2013]
["P008","Ejotes y arvejas",0,"Ajuste CIF/FOB",2013]
["P009","Raíces y tubérculos",0,"Ajuste CIF/FOB",2013]
["P010","Caña de azúcar y otras plantas azucareras",0,"Ajuste CIF/FOB",2013]
["P011","Tabaco y otras plantas no perennes",0,"Ajuste CIF/FOB",2013]
["P012","Bananos, plátanos y otros",0,"Ajuste CIF/FOB",2013]
["P013","Frutas tropicales y subtropicales",0,"Ajuste CIF/FOB",2013]
["P014","Berries, otras frutas y semillas de frutas",0,"Ajuste CIF/FOB",2013]
["P015","Palma africana",0,"Ajuste CIF/FOB",2013]
["P016","Café en grano",0,"Ajuste CIF/FOB",2013]
["P017","Cardamomo",0,"Ajuste CIF/FOB",2013]
["P018","Caucho natural",0,"Ajuste CIF/FOB",2013]
["P019","Propagación de plantas",0,"Ajuste CIF/FOB",2013]
["P020","Otros frutos oleaginosos, otras plantas bebestibles y especias aromáticas",0,"Ajuste CIF/FOB",2013]
["P021","Ganado bovino",0,"Ajuste CIF/FOB",2013]
["P022","Ganado porcino y otro tipo de animales vivos n.c.p.",0,"Ajuste CIF/FOB",2013]
["P023","Aves de corral",0,"Ajuste CIF/FOB",2013]
["P030","Crustáceos sin congelar y otros productos de la pesca",0,"Ajuste CIF/FOB",2013]
["P037","Carne y despojos de otros animales y conservas y preparados de carne",0,"Ajuste CIF/FOB",2013]
["P043","Aceites de origen vegetal",0,"Ajuste CIF/FOB",2013]
["P057","Bebidas no alcohólicas",0,"Ajuste CIF/FOB",2013]
["P069","Aceites, grasas lubricantes y otros aceites preparados",0,"Ajuste CIF/FOB",2013]
["P072","Pinturas, barnices, tintas y productos relacionados",0,"Ajuste CIF/FOB",2013]
["P080","Artículos de hormigón, cemento y yeso",0,"Ajuste CIF/FOB",2013]
["P097","Evacuación de aguas residuales, recogida, tratamiento y eliminación de desechos",0,"Ajuste CIF/FOB",2013]
["P100","Obras de ingeniería civil",0,"Ajuste CIF/FOB",2013]
["P112","Servicios de información, telecomunicaciones y radiodifusión",0,"Ajuste CIF/FOB",2013]
["P126","Servicios  de agencias de empleo y de dotación de recursos humanos",0,"Ajuste CIF/FOB",2013]
["P132","Servicios de mantenimiento, reparación e instalación de productos metálicos elaborados, maquinaria y equipo",0,"Ajuste CIF/FOB",2013]
["P141","Servicios administrativos relacionados con los sistemas de seguridad social de afiliación obligatoria",0,"Ajuste CIF/FOB",2013]
["P148","Servicios de asociaciones que sirven a los hogares",0,"Ajuste CIF/FOB",2013]
["P003","Leguminosas (legumbres secas) y semillas oleaginosas",492.88205399999998,"Producción (PB)",2014]
["P018","Caucho natural",2262.73506,"Producción (PB)",2014]
["P023","Aves de corral",7157.7910190000002,"Producción (PB)",2014]
["P033","Minerales no metálicos",1980.7803530000001,"Producción (PB)",2014]
["P048","Arroz sin cáscara",562.96814700000004,"Producción (PB)",2014]
["P055","Aguardientes, licores, vinos, demás bebidas espirituosas y productos del tabaco",1275.893955,"Producción (PB)",2014]
["P062","Calzado y sus partes, de cualquier material y de cualquier uso",1367.815265,"Producción (PB)",2014]
["P075","Productos farmacéuticos",2743.756781,"Producción (PB)",2014]
["P078","Productos de cerámica y arcilla",1356.8993049999999,"Producción (PB)",2014]
["P091","Equipo de transporte",667.28973199999996,"Producción (PB)",2014]
["P098","Edificaciones residenciales",15894.025232,"Producción (PB)",2014]
["P106","Otros tipos de transporte",553.739418,"Producción (PB)",2014]
["P123","Otros servicios profesionales, científicos y técnicos",7008.5536050000001,"Producción (PB)",2014]
["P130","Servicios telefónicos de centros de llamadas",2446.1501910000002,"Producción (PB)",2014]
["P135","Servicios de apoyo a la explotación de minas y canteras y los relacionados con la distribución de electricidad, gas y agua",403.97278799999998,"Producción (PB)",2014]
["P150","Servicios domésticos",7686.9426540000004,"Producción (PB)",2014]
["P008","Ejotes y arvejas",0,"Impuestos sobre los productos, excepto IVA e impuestos sobre las importaciones",2014]
["P014","Berries, otras frutas y semillas de frutas",0,"Impuestos sobre los productos, excepto IVA e impuestos sobre las importaciones",2014]
["P021","Ganado bovino",0,"Impuestos sobre los productos, excepto IVA e impuestos sobre las importaciones",2014]
["P037","Carne y despojos de otros animales y conservas y preparados de carne",0,"Impuestos sobre los productos, excepto IVA e impuestos sobre las importaciones",2014]
["P046","Otros productos lácteos n.c.p.",1.3740129999999999,"Impuestos sobre los productos, excepto IVA e impuestos sobre las importaciones",2014]
["P052","Azúcar de caña sin refinar y refinada, melaza y los demás azúcares n.c.p.",0,"Impuestos sobre los productos, excepto IVA e impuestos sobre las importaciones",2014]
["P066","Productos de la edición",0,"Impuestos sobre los productos, excepto IVA e impuestos sobre las importaciones",2014]
["P073","Jabón, preparados de limpieza, perfumes y preparados de toilet",0,"Impuestos sobre los productos, excepto IVA e impuestos sobre las importaciones",2014]
["P081","Piedras talladas para construcción y otros productos minerales no metálicos n.c.p.",0,"Impuestos sobre los productos, excepto IVA e impuestos sobre las importaciones",2014]
["P089","Equipo y aparatos de radio, televisión y comunicaciones",0,"Impuestos sobre los productos, excepto IVA e impuestos sobre las importaciones",2014]
["P096","Agua natural y distribución de agua natural",0,"Impuestos sobre los productos, excepto IVA e impuestos sobre las importaciones",2014]
["P109","Servicios postales y de mensajería",0,"Impuestos sobre los productos, excepto IVA e impuestos sobre las importaciones",2014]
["P116","Servicios de seguro, reaseguro y fondos de pensiones",14.966597999999999,"Impuestos sobre los productos, excepto IVA e impuestos sobre las importaciones",2014]
["P125","Servicios de arrendamiento o alquiler sin operador",0,"Impuestos sobre los productos, excepto IVA e impuestos sobre las importaciones",2014]
["P141","Servicios administrativos relacionados con los sistemas de seguridad social de afiliación obligatoria",0,"Impuestos sobre los productos, excepto IVA e impuestos sobre las importaciones",2014]
["P148","Servicios de asociaciones que sirven a los hogares",0,"Impuestos sobre los productos, excepto IVA e impuestos sobre las importaciones",2014]
["P002","Frijoles",0,"Subvenciones a los productos",2014]
["P012","Bananos, plátanos y otros",0,"Subvenciones a los productos",2014]
["P027","Troncos de madera y leña",0,"Subvenciones a los productos",2014]
["P032","Minerales metálicos",0,"Subvenciones a los productos",2014]
["P039","Crustáceos, moluscos y demás invertebrados acuáticos congelados, preparados o en conserva y sus productos",0,"Subvenciones a los productos",2014]
["P046","Otros productos lácteos n.c.p.",0,"Subvenciones a los productos",2014]
["P064","Pasta de papel y papel",0,"Subvenciones a los productos",2014]
["P071","Abonos, fertilizantes y pesticidas",-285.85162100000002,"Subvenciones a los productos",2014]
["P075","Productos farmacéuticos",0,"Subvenciones a los productos",2014]
["P091","Equipo de transporte",0,"Subvenciones a los productos",2014]
["P100","Obras de ingeniería civil",0,"Subvenciones a los productos",2014]
["P107","Servicios de almacenamiento y depósito",0,"Subvenciones a los productos",2014]
["P115","Servicios de Intermediación Financiera Medidos Indirectamente (SIFMI)",0,"Subvenciones a los productos",2014]
["P127","Servicios de agencias de viajes, operadores turísticos y actividades conexas",0,"Subvenciones a los productos",2014]
["P139","Otros servicios administrativos",0,"Subvenciones a los productos",2014]
["P144","Servicios médicos y dentales",0,"Subvenciones a los productos",2014]
["P150","Servicios domésticos",0,"Subvenciones a los productos",2014]
["P014","Berries, otras frutas y semillas de frutas",425.48197800000003,"Importaciones (CIF)",2014]
["P021","Ganado bovino",38.738765000000001,"Importaciones (CIF)",2014]
["P030","Crustáceos sin congelar y otros productos de la pesca",23.599211,"Importaciones (CIF)",2014]
["P036","Carne y despojos comestibles de aves",583.261076,"Importaciones (CIF)",2014]
["P050","Pan y otros productos de panadería y repostería n.c.p.",515.95450200000005,"Importaciones (CIF)",2014]
["P062","Calzado y sus partes, de cualquier material y de cualquier uso",1234.8006559999999,"Importaciones (CIF)",2014]
["P065","Envases de papel y cartón",258.80337100000003,"Importaciones (CIF)",2014]
["P073","Jabón, preparados de limpieza, perfumes y preparados de toilet",2392.0502069999998,"Importaciones (CIF)",2014]
["P090","Aparatos médicos, instrumentos ópticos y de precisión, relojes",1807.377988,"Importaciones (CIF)",2014]
["P093","Otros artículos n.c.p.",1322.3759030000001,"Importaciones (CIF)",2014]
["P105","Servicio de transporte de carga por vía terrestre",1532.7196289999999,"Importaciones (CIF)",2014]
["P119","Otros servicios inmobiliarios, excepto alquiler de vivienda",0,"Importaciones (CIF)",2014]
["P125","Servicios de arrendamiento o alquiler sin operador",1044.141159,"Importaciones (CIF)",2014]
["P134","Servicios de apoyo a la agricultura, caza, silvicultura y pesca",0,"Importaciones (CIF)",2014]
["P145","Otros servicios de atención de la salud humana",1.9512999999999999E-2,"Importaciones (CIF)",2014]
["P148","Servicios de asociaciones que sirven a los hogares",0,"Importaciones (CIF)",2014]
["P011","Tabaco y otras plantas no perennes",5.9777999999999998E-2,"Impuestos y derechos sobre las importaciones excepto IVA",2014]
["P016","Café en grano",3.7460000000000002E-3,"Impuestos y derechos sobre las importaciones excepto IVA",2014]
["P030","Crustáceos sin congelar y otros productos de la pesca",0.44611200000000001,"Impuestos y derechos sobre las importaciones excepto IVA",2014]
["P036","Carne y despojos comestibles de aves",5.5281310000000001,"Impuestos y derechos sobre las importaciones excepto IVA",2014]
["P048","Arroz sin cáscara",4.5587859999999996,"Impuestos y derechos sobre las importaciones excepto IVA",2014]
["P055","Aguardientes, licores, vinos, demás bebidas espirituosas y productos del tabaco",48.692973000000002,"Impuestos y derechos sobre las importaciones excepto IVA",2014]
["P068","Gasolinas, diésel oil y fuel oils",4.7577000000000001E-2,"Impuestos y derechos sobre las importaciones excepto IVA",2014]
["P071","Abonos, fertilizantes y pesticidas",48.197066999999997,"Impuestos y derechos sobre las importaciones excepto IVA",2014]
["P084","Otros productos elaborados de metal",60.496510999999998,"Impuestos y derechos sobre las importaciones excepto IVA",2014]
["P091","Equipo de transporte",90.632771000000005,"Impuestos y derechos sobre las importaciones excepto IVA",2014]
["P103","Mantenimiento y reparación de vehículos automotores y motocicletas",0,"Impuestos y derechos sobre las importaciones excepto IVA",2014]
["P111","Servicio de suministro de comidas y bebidas",0,"Impuestos y derechos sobre las importaciones excepto IVA",2014]
["P123","Otros servicios profesionales, científicos y técnicos",0,"Impuestos y derechos sobre las importaciones excepto IVA",2014]
["P128","Servicios de seguridad, sistemas de seguridad e investigación privada",0,"Impuestos y derechos sobre las importaciones excepto IVA",2014]
["P143","Servicios de hospitalización",0,"Impuestos y derechos sobre las importaciones excepto IVA",2014]
["P147","Servicios de asociaciones que sirven a las empresas",0,"Impuestos y derechos sobre las importaciones excepto IVA",2014]
["P011","Tabaco y otras plantas no perennes",10.991478000000001,"Impuesto tipo valor agregado (IVA)",2014]
["P014","Berries, otras frutas y semillas de frutas",63.227978,"Impuesto tipo valor agregado (IVA)",2014]
["P030","Crustáceos sin congelar y otros productos de la pesca",7.5761269999999996,"Impuesto tipo valor agregado (IVA)",2014]
["P034","Carne y despojos comestibles de ganado bovino; cueros y pieles de bovino y de otros animales",172.468683,"Impuesto tipo valor agregado (IVA)",2014]
["P049","Otros productos de molinería, almidones y productos de almidón",160.94300799999999,"Impuesto tipo valor agregado (IVA)",2014]
["P054","Preparados para alimentación animal",52.653523,"Impuesto tipo valor agregado (IVA)",2014]
["P066","Productos de la edición",175.01234400000001,"Impuesto tipo valor agregado (IVA)",2014]
["P078","Productos de cerámica y arcilla",22.569084,"Impuesto tipo valor agregado (IVA)",2014]
["P086","Electrodomésticos y sus partes",119.678044,"Impuesto tipo valor agregado (IVA)",2014]
["P093","Otros artículos n.c.p.",182.15947700000001,"Impuesto tipo valor agregado (IVA)",2014]
["P106","Otros tipos de transporte",194.24055000000001,"Impuesto tipo valor agregado (IVA)",2014]
["P109","Servicios postales y de mensajería",48.928294999999999,"Impuesto tipo valor agregado (IVA)",2014]
["P122","Servicios de arquitectura e ingeniería, ensayos y análisis técnicos",46.830933000000002,"Impuesto tipo valor agregado (IVA)",2014]
["P129","Servicios de limpieza",26.753423999999999,"Impuesto tipo valor agregado (IVA)",2014]
["P141","Servicios administrativos relacionados con los sistemas de seguridad social de afiliación obligatoria",0,"Impuesto tipo valor agregado (IVA)",2014]
["P147","Servicios de asociaciones que sirven a las empresas",0.160106,"Impuesto tipo valor agregado (IVA)",2014]
["P009","Raíces y tubérculos",4329.2923989999999,"Márgenes de comercio, transporte y distribución de energía",2014]
["P014","Berries, otras frutas y semillas de frutas",3022.7459239999998,"Márgenes de comercio, transporte y distribución de energía",2014]
["P029","Peces vivos, frescos o refrigerados",591.85496000000001,"Márgenes de comercio, transporte y distribución de energía",2014]
["P032","Minerales metálicos",2.4153000000000001E-2,"Márgenes de comercio, transporte y distribución de energía",2014]
["P043","Aceites de origen vegetal",1053.7594979999999,"Márgenes de comercio, transporte y distribución de energía",2014]
["P052","Azúcar de caña sin refinar y refinada, melaza y los demás azúcares n.c.p.",2224.761579,"Márgenes de comercio, transporte y distribución de energía",2014]
["P058","Aguas minerales y otras aguas embotelladas",343.44060899999999,"Márgenes de comercio, transporte y distribución de energía",2014]
["P072","Pinturas, barnices, tintas y productos relacionados",427.208101,"Márgenes de comercio, transporte y distribución de energía",2014]
["P084","Otros productos elaborados de metal",698.56937600000003,"Márgenes de comercio, transporte y distribución de energía",2014]
["P087","Maquinaria de oficina, contabilidad e informática, sus partes y piezas",785.376935,"Márgenes de comercio, transporte y distribución de energía",2014]
["P104","Servicio de transporte de pasajeros por vía terrestre",0,"Márgenes de comercio, transporte y distribución de energía",2014]
["P112","Servicios de información, telecomunicaciones y radiodifusión",0,"Márgenes de comercio, transporte y distribución de energía",2014]
["P120","Servicios jurídicos, de contabilidad, auditoría, teneduría de libros y consultoría fiscal",0,"Márgenes de comercio, transporte y distribución de energía",2014]
["P127","Servicios de agencias de viajes, operadores turísticos y actividades conexas",0,"Márgenes de comercio, transporte y distribución de energía",2014]
["P141","Servicios administrativos relacionados con los sistemas de seguridad social de afiliación obligatoria",0,"Márgenes de comercio, transporte y distribución de energía",2014]
["P147","Servicios de asociaciones que sirven a las empresas",0,"Márgenes de comercio, transporte y distribución de energía",2014]
["P007","Sandías y melones",18.673579,"Consumo Intermedio (PC)",2014]
["P018","Caucho natural",894.74227199999996,"Consumo Intermedio (PC)",2014]
["P027","Troncos de madera y leña",1833.6795300000001,"Consumo Intermedio (PC)",2014]
["P033","Minerales no metálicos",3367.1510149999999,"Consumo Intermedio (PC)",2014]
["P038","Pescado congelado, preparado o en conserva y sus productos",427.58278899999999,"Consumo Intermedio (PC)",2014]
["P050","Pan y otros productos de panadería y repostería n.c.p.",811.16132400000004,"Consumo Intermedio (PC)",2014]
["P062","Calzado y sus partes, de cualquier material y de cualquier uso",145.07352499999999,"Consumo Intermedio (PC)",2014]
["P070","Gases de petróleo, otros productos de la refinación de petróleo n.c.p.",1907.8531270000001,"Consumo Intermedio (PC)",2014]
["P077","Vidrio y productos de vidrio",855.07978000000003,"Consumo Intermedio (PC)",2014]
["P086","Electrodomésticos y sus partes",64.535659999999993,"Consumo Intermedio (PC)",2014]
["P102","Servicios de comercio",0,"Consumo Intermedio (PC)",2014]
["P106","Otros tipos de transporte",721.00634700000001,"Consumo Intermedio (PC)",2014]
["P113","Servicios de banco central",0,"Consumo Intermedio (PC)",2014]
["P131","Servicios administrativos, de apoyo de oficina y otros servicios de apoyo a las empresas",2074.7332179999999,"Consumo Intermedio (PC)",2014]
["P138","Servicios públicos administrativos relacionados con la provisión de servicios educativos, de salud, servicios sociales, culturales y otros, sin contar los servicios de seguridad social",0,"Consumo Intermedio (PC)",2014]
["P145","Otros servicios de atención de la salud humana",435.07272,"Consumo Intermedio (PC)",2014]
["P150","Servicios domésticos",0,"Consumo Intermedio (PC)",2014]
["P013","Frutas tropicales y subtropicales",3985.6252829999999,"Consumo Final privado (PC)",2014]
["P023","Aves de corral",532.49561200000005,"Consumo Final privado (PC)",2014]
["P029","Peces vivos, frescos o refrigerados",1480.2862700000001,"Consumo Final privado (PC)",2014]
["P036","Carne y despojos comestibles de aves",9784.4596309999997,"Consumo Final privado (PC)",2014]
["P052","Azúcar de caña sin refinar y refinada, melaza y los demás azúcares n.c.p.",5030.0892979999999,"Consumo Final privado (PC)",2014]
["P061","Cuero de piel curtida o adobada y cuero artificial o regenerado y artículos de cuero",1123.6862470000001,"Consumo Final privado (PC)",2014]
["P068","Gasolinas, diésel oil y fuel oils",12421.253719,"Consumo Final privado (PC)",2014]
["P081","Piedras talladas para construcción y otros productos minerales no metálicos n.c.p.",50.593978999999997,"Consumo Final privado (PC)",2014]
["P088","Maquinaria y aparatos eléctricos, sus partes y piezas",330.97148600000003,"Consumo Final privado (PC)",2014]
["P096","Agua natural y distribución de agua natural",1302.2188410000001,"Consumo Final privado (PC)",2014]
["P104","Servicio de transporte de pasajeros por vía terrestre",5979.731049,"Consumo Final privado (PC)",2014]
["P111","Servicio de suministro de comidas y bebidas",27751.600534000001,"Consumo Final privado (PC)",2014]
["P125","Servicios de arrendamiento o alquiler sin operador",368.58804500000002,"Consumo Final privado (PC)",2014]
["P136","Servicios de manufactura",1076.8682859999999,"Consumo Final privado (PC)",2014]
["P140","Servicios públicos administrativos prestados a la comunidad en su conjunto",554.79090799999994,"Consumo Final privado (PC)",2014]
["P004","Arroz",0,"Consumo Final del Gobierno (PC)",2014]
["P011","Tabaco y otras plantas no perennes",5.3323559999999999,"Consumo Final del Gobierno (PC)",2014]
["P017","Cardamomo",0,"Consumo Final del Gobierno (PC)",2014]
["P027","Troncos de madera y leña",0,"Consumo Final del Gobierno (PC)",2014]
["P042","Jugos de frutas",0,"Consumo Final del Gobierno (PC)",2014]
["P047","Harina de trigo",0,"Consumo Final del Gobierno (PC)",2014]
["P054","Preparados para alimentación animal",0,"Consumo Final del Gobierno (PC)",2014]
["P071","Abonos, fertilizantes y pesticidas",0,"Consumo Final del Gobierno (PC)",2014]
["P079","Cemento, cal y yeso",0,"Consumo Final del Gobierno (PC)",2014]
["P086","Electrodomésticos y sus partes",4.5469999999999998E-3,"Consumo Final del Gobierno (PC)",2014]
["P090","Aparatos médicos, instrumentos ópticos y de precisión, relojes",8.1330620000000007,"Consumo Final del Gobierno (PC)",2014]
["P102","Servicios de comercio",0,"Consumo Final del Gobierno (PC)",2014]
["P115","Servicios de Intermediación Financiera Medidos Indirectamente (SIFMI)",0,"Consumo Final del Gobierno (PC)",2014]
["P122","Servicios de arquitectura e ingeniería, ensayos y análisis técnicos",0,"Consumo Final del Gobierno (PC)",2014]
["P129","Servicios de limpieza",0,"Consumo Final del Gobierno (PC)",2014]
["P144","Servicios médicos y dentales",825.04658500000005,"Consumo Final del Gobierno (PC)",2014]
["P002","Frijoles",0,"Formación Bruta de Capital Fijo (PC)",2014]
["P007","Sandías y melones",0,"Formación Bruta de Capital Fijo (PC)",2014]
["P022","Ganado porcino y otro tipo de animales vivos n.c.p.",43.396659,"Formación Bruta de Capital Fijo (PC)",2014]
["P025","Huevos",0,"Formación Bruta de Capital Fijo (PC)",2014]
["P036","Carne y despojos comestibles de aves",0,"Formación Bruta de Capital Fijo (PC)",2014]
["P045","Leche líquida y crema procesada",0,"Formación Bruta de Capital Fijo (PC)",2014]
["P051","Tortillas de maíz, incluso tostadas, horneadas o fritas",0,"Formación Bruta de Capital Fijo (PC)",2014]
["P065","Envases de papel y cartón",0,"Formación Bruta de Capital Fijo (PC)",2014]
["P077","Vidrio y productos de vidrio",0,"Formación Bruta de Capital Fijo (PC)",2014]
["P080","Artículos de hormigón, cemento y yeso",0,"Formación Bruta de Capital Fijo (PC)",2014]
["P097","Evacuación de aguas residuales, recogida, tratamiento y eliminación de desechos",0,"Formación Bruta de Capital Fijo (PC)",2014]
["P105","Servicio de transporte de carga por vía terrestre",0,"Formación Bruta de Capital Fijo (PC)",2014]
["P108","Otros servicios de apoyo al transporte",0,"Formación Bruta de Capital Fijo (PC)",2014]
["P120","Servicios jurídicos, de contabilidad, auditoría, teneduría de libros y consultoría fiscal",0,"Formación Bruta de Capital Fijo (PC)",2014]
["P134","Servicios de apoyo a la agricultura, caza, silvicultura y pesca",0,"Formación Bruta de Capital Fijo (PC)",2014]
["P140","Servicios públicos administrativos prestados a la comunidad en su conjunto",0,"Formación Bruta de Capital Fijo (PC)",2014]
["P152","Compras directas en el territorio nacional por no residentes",0,"Formación Bruta de Capital Fijo (PC)",2014]
["P011","Tabaco y otras plantas no perennes",214.47255000000001,"Exportaciones (fob)",2014]
["P020","Otros frutos oleaginosos, otras plantas bebestibles y especias aromáticas",27.578488,"Exportaciones (fob)",2014]
["P026","Otros productos de animales vivos",50.620609000000002,"Exportaciones (fob)",2014]
["P031","Petróleo crudo y gas natural",1922.77134,"Exportaciones (fob)",2014]
["P043","Aceites de origen vegetal",2500.4098490000001,"Exportaciones (fob)",2014]
["P055","Aguardientes, licores, vinos, demás bebidas espirituosas y productos del tabaco",777.62322300000005,"Exportaciones (fob)",2014]
["P063","Madera aserrada y acepillada, productos de madera, corcho, paja y materiales trenzables",506.34080699999998,"Exportaciones (fob)",2014]
["P070","Gases de petróleo, otros productos de la refinación de petróleo n.c.p.",1472.1635000000001,"Exportaciones (fob)",2014]
["P083","Productos metálicos estructurales y sus partes de hierro o de acero",139.348176,"Exportaciones (fob)",2014]
["P095","Generación y distribución de energía eléctrica, gas, vapor y aire acondicionado",999.61568,"Exportaciones (fob)",2014]
["P099","Edificaciones no residenciales",0,"Exportaciones (fob)",2014]
["P106","Otros tipos de transporte",13.770443999999999,"Exportaciones (fob)",2014]
["P118","Servicios de alquiler de vivienda",0,"Exportaciones (fob)",2014]
["P126","Servicios  de agencias de empleo y de dotación de recursos humanos",0,"Exportaciones (fob)",2014]
["P138","Servicios públicos administrativos relacionados con la provisión de servicios educativos, de salud, servicios sociales, culturales y otros, sin contar los servicios de seguridad social",0,"Exportaciones (fob)",2014]
["P143","Servicios de hospitalización",139.08165299999999,"Exportaciones (fob)",2014]
["P006","Hortalizas",0,"Variación de existencias (PC)",2014]
["P010","Caña de azúcar y otras plantas azucareras",-27.481781000000002,"Variación de existencias (PC)",2014]
["P026","Otros productos de animales vivos",0,"Variación de existencias (PC)",2014]
["P029","Peces vivos, frescos o refrigerados",0,"Variación de existencias (PC)",2014]
["P039","Crustáceos, moluscos y demás invertebrados acuáticos congelados, preparados o en conserva y sus productos",4.4582410000000001,"Variación de existencias (PC)",2014]
["P049","Otros productos de molinería, almidones y productos de almidón",-18.355045,"Variación de existencias (PC)",2014]
["P061","Cuero de piel curtida o adobada y cuero artificial o regenerado y artículos de cuero",2.1249479999999998,"Variación de existencias (PC)",2014]
["P074","Otros productos químicos",-33.174528000000002,"Variación de existencias (PC)",2014]
["P081","Piedras talladas para construcción y otros productos minerales no metálicos n.c.p.",-1.20977,"Variación de existencias (PC)",2014]
["P093","Otros artículos n.c.p.",-9.4843259999999994,"Variación de existencias (PC)",2014]
["P101","Servicios generales y especializados de construcción",0,"Variación de existencias (PC)",2014]
["P104","Servicio de transporte de pasajeros por vía terrestre",0,"Variación de existencias (PC)",2014]
["P118","Servicios de alquiler de vivienda",0,"Variación de existencias (PC)",2014]
["P124","Servicios de publicidad y estudios de mercado",0,"Variación de existencias (PC)",2014]
["P137","Servicios públicos del gobierno general",0,"Variación de existencias (PC)",2014]
["P144","Servicios médicos y dentales",0,"Variación de existencias (PC)",2014]
["P004","Arroz",0,"Ajuste CIF/FOB",2014]
["P014","Berries, otras frutas y semillas de frutas",0,"Ajuste CIF/FOB",2014]
["P024","Leche cruda",0,"Ajuste CIF/FOB",2014]
["P029","Peces vivos, frescos o refrigerados",0,"Ajuste CIF/FOB",2014]
["P044","Margarina, grasas y otros aceites de origen animal y vegetal",0,"Ajuste CIF/FOB",2014]
["P047","Harina de trigo",0,"Ajuste CIF/FOB",2014]
["P058","Aguas minerales y otras aguas embotelladas",0,"Ajuste CIF/FOB",2014]
["P067","Productos de la impresión",0,"Ajuste CIF/FOB",2014]
["P079","Cemento, cal y yeso",0,"Ajuste CIF/FOB",2014]
["P087","Maquinaria de oficina, contabilidad e informática, sus partes y piezas",0,"Ajuste CIF/FOB",2014]
["P099","Edificaciones no residenciales",0,"Ajuste CIF/FOB",2014]
["P102","Servicios de comercio",0,"Ajuste CIF/FOB",2014]
["P119","Otros servicios inmobiliarios, excepto alquiler de vivienda",0,"Ajuste CIF/FOB",2014]
["P122","Servicios de arquitectura e ingeniería, ensayos y análisis técnicos",0,"Ajuste CIF/FOB",2014]
["P131","Servicios administrativos, de apoyo de oficina y otros servicios de apoyo a las empresas",0,"Ajuste CIF/FOB",2014]
["P142","Servicios de enseñanza",0,"Ajuste CIF/FOB",2014]
["P004","Arroz",93.185306999999995,"Producción (PB)",2015]
["P010","Caña de azúcar y otras plantas azucareras",5795.3864400000002,"Producción (PB)",2015]
["P022","Ganado porcino y otro tipo de animales vivos n.c.p.",1603.05342,"Producción (PB)",2015]
["P033","Minerales no metálicos",2080.8823200000002,"Producción (PB)",2015]
["P042","Jugos de frutas",1291.644787,"Producción (PB)",2015]
["P048","Arroz sin cáscara",568.802009,"Producción (PB)",2015]
["P058","Aguas minerales y otras aguas embotelladas",1301.8029509999999,"Producción (PB)",2015]
["P065","Envases de papel y cartón",3001.940529,"Producción (PB)",2015]
["P077","Vidrio y productos de vidrio",885.92834600000003,"Producción (PB)",2015]
["P085","Maquinaria para usos generales y especiales, sus partes y piezas, excepto electrodomésticos",2386.9169860000002,"Producción (PB)",2015]
["P092","Muebles",5273.4015509999999,"Producción (PB)",2015]
["P101","Servicios generales y especializados de construcción",10746.971227,"Producción (PB)",2015]
["P117","Servicios auxiliares de la intermediación financiera",5026.2664729999997,"Producción (PB)",2015]
["P121","Servicios de tecnología de la información",2523.7079749999998,"Producción (PB)",2015]
["P137","Servicios públicos del gobierno general",11464.701749,"Producción (PB)",2015]
["P140","Servicios públicos administrativos prestados a la comunidad en su conjunto",9565.1760159999994,"Producción (PB)",2015]
["P150","Servicios domésticos",8029.8745479999998,"Producción (PB)",2015]
["P008","Ejotes y arvejas",0,"Impuestos sobre los productos, excepto IVA e impuestos sobre las importaciones",2015]
["P023","Aves de corral",0,"Impuestos sobre los productos, excepto IVA e impuestos sobre las importaciones",2015]
["P024","Leche cruda",0,"Impuestos sobre los productos, excepto IVA e impuestos sobre las importaciones",2015]
["P040","Vegetales preparados o en conserva, legumbres y papas",0,"Impuestos sobre los productos, excepto IVA e impuestos sobre las importaciones",2015]
["P042","Jugos de frutas",34.418909999999997,"Impuestos sobre los productos, excepto IVA e impuestos sobre las importaciones",2015]
["P060","Prendas de vestir, adobo y teñido de pieles",0,"Impuestos sobre los productos, excepto IVA e impuestos sobre las importaciones",2015]
["P067","Productos de la impresión",0,"Impuestos sobre los productos, excepto IVA e impuestos sobre las importaciones",2015]
["P076","Productos de caucho y plástico",0,"Impuestos sobre los productos, excepto IVA e impuestos sobre las importaciones",2015]
["P083","Productos metálicos estructurales y sus partes de hierro o de acero",0,"Impuestos sobre los productos, excepto IVA e impuestos sobre las importaciones",2015]
["P096","Agua natural y distribución de agua natural",0,"Impuestos sobre los productos, excepto IVA e impuestos sobre las importaciones",2015]
["P099","Edificaciones no residenciales",0,"Impuestos sobre los productos, excepto IVA e impuestos sobre las importaciones",2015]
["P111","Servicio de suministro de comidas y bebidas",0,"Impuestos sobre los productos, excepto IVA e impuestos sobre las importaciones",2015]
["P119","Otros servicios inmobiliarios, excepto alquiler de vivienda",8.1700000000000002E-3,"Impuestos sobre los productos, excepto IVA e impuestos sobre las importaciones",2015]
["P135","Servicios de apoyo a la explotación de minas y canteras y los relacionados con la distribución de electricidad, gas y agua",0,"Impuestos sobre los productos, excepto IVA e impuestos sobre las importaciones",2015]
["P140","Servicios públicos administrativos prestados a la comunidad en su conjunto",0,"Impuestos sobre los productos, excepto IVA e impuestos sobre las importaciones",2015]
["P151","Compras directas en el exterior por residentes",0,"Impuestos sobre los productos, excepto IVA e impuestos sobre las importaciones",2015]
["P006","Hortalizas",0,"Subvenciones a los productos",2015]
["P017","Cardamomo",0,"Subvenciones a los productos",2015]
["P026","Otros productos de animales vivos",0,"Subvenciones a los productos",2015]
["P032","Minerales metálicos",0,"Subvenciones a los productos",2015]
["P042","Jugos de frutas",0,"Subvenciones a los productos",2015]
["P058","Aguas minerales y otras aguas embotelladas",0,"Subvenciones a los productos",2015]
["P061","Cuero de piel curtida o adobada y cuero artificial o regenerado y artículos de cuero",0,"Subvenciones a los productos",2015]
["P074","Otros productos químicos",0,"Subvenciones a los productos",2015]
["P086","Electrodomésticos y sus partes",0,"Subvenciones a los productos",2015]
["P094","Residuos y desechos",0,"Subvenciones a los productos",2015]
["P101","Servicios generales y especializados de construcción",0,"Subvenciones a los productos",2015]
["P115","Servicios de Intermediación Financiera Medidos Indirectamente (SIFMI)",0,"Subvenciones a los productos",2015]
["P117","Servicios auxiliares de la intermediación financiera",0,"Subvenciones a los productos",2015]
["P130","Servicios telefónicos de centros de llamadas",0,"Subvenciones a los productos",2015]
["P137","Servicios públicos del gobierno general",0,"Subvenciones a los productos",2015]
["P144","Servicios médicos y dentales",0,"Subvenciones a los productos",2015]
["P007","Sandías y melones",1.460933,"Importaciones (CIF)",2015]
["P017","Cardamomo",0.20887,"Importaciones (CIF)",2015]
["P022","Ganado porcino y otro tipo de animales vivos n.c.p.",11.133234,"Importaciones (CIF)",2015]
["P037","Carne y despojos de otros animales y conservas y preparados de carne",421.26551000000001,"Importaciones (CIF)",2015]
["P040","Vegetales preparados o en conserva, legumbres y papas",533.50532999999996,"Importaciones (CIF)",2015]
["P051","Tortillas de maíz, incluso tostadas, horneadas o fritas",0,"Importaciones (CIF)",2015]
["P060","Prendas de vestir, adobo y teñido de pieles",2476.1333479999998,"Importaciones (CIF)",2015]
["P067","Productos de la impresión",105.969911,"Importaciones (CIF)",2015]
["P080","Artículos de hormigón, cemento y yeso",111.545241,"Importaciones (CIF)",2015]
["P092","Muebles",660.51601700000003,"Importaciones (CIF)",2015]
["P095","Generación y distribución de energía eléctrica, gas, vapor y aire acondicionado",415.51714399999997,"Importaciones (CIF)",2015]
["P112","Servicios de información, telecomunicaciones y radiodifusión",1970.4958879999999,"Importaciones (CIF)",2015]
["P115","Servicios de Intermediación Financiera Medidos Indirectamente (SIFMI)",910.63466400000004,"Importaciones (CIF)",2015]
["P124","Servicios de publicidad y estudios de mercado",194.61512099999999,"Importaciones (CIF)",2015]
["P135","Servicios de apoyo a la explotación de minas y canteras y los relacionados con la distribución de electricidad, gas y agua",0,"Importaciones (CIF)",2015]
["P149","Otros servicios",0,"Importaciones (CIF)",2015]
["P003","Leguminosas (legumbres secas) y semillas oleaginosas",0.25250800000000001,"Impuestos y derechos sobre las importaciones excepto IVA",2015]
["P015","Palma africana",0,"Impuestos y derechos sobre las importaciones excepto IVA",2015]
["P026","Otros productos de animales vivos",2.0079999999999998E-3,"Impuestos y derechos sobre las importaciones excepto IVA",2015]
["P035","Carne y despojos comestibles de ganado porcino",3.5137170000000002,"Impuestos y derechos sobre las importaciones excepto IVA",2015]
["P041","Preparaciones y conservas de frutas y nueces",7.0642630000000004,"Impuestos y derechos sobre las importaciones excepto IVA",2015]
["P055","Aguardientes, licores, vinos, demás bebidas espirituosas y productos del tabaco",46.395722999999997,"Impuestos y derechos sobre las importaciones excepto IVA",2015]
["P058","Aguas minerales y otras aguas embotelladas",0.41089199999999998,"Impuestos y derechos sobre las importaciones excepto IVA",2015]
["P070","Gases de petróleo, otros productos de la refinación de petróleo n.c.p.",6.6267000000000006E-2,"Impuestos y derechos sobre las importaciones excepto IVA",2015]
["P078","Productos de cerámica y arcilla",31.844259999999998,"Impuestos y derechos sobre las importaciones excepto IVA",2015]
["P089","Equipo y aparatos de radio, televisión y comunicaciones",84.850572,"Impuestos y derechos sobre las importaciones excepto IVA",2015]
["P098","Edificaciones residenciales",0,"Impuestos y derechos sobre las importaciones excepto IVA",2015]
["P110","Servicio de alojamiento",0,"Impuestos y derechos sobre las importaciones excepto IVA",2015]
["P114","Otros servicios financieros y servicios de banca de inversión",0,"Impuestos y derechos sobre las importaciones excepto IVA",2015]
["P130","Servicios telefónicos de centros de llamadas",0,"Impuestos y derechos sobre las importaciones excepto IVA",2015]
["P133","Servicios de reparación de otros bienes",0,"Impuestos y derechos sobre las importaciones excepto IVA",2015]
["P143","Servicios de hospitalización",0,"Impuestos y derechos sobre las importaciones excepto IVA",2015]
["P001","Maíz",63.156509,"Impuesto tipo valor agregado (IVA)",2015]
["P010","Caña de azúcar y otras plantas azucareras",0,"Impuesto tipo valor agregado (IVA)",2015]
["P021","Ganado bovino",2.4748700000000001,"Impuesto tipo valor agregado (IVA)",2015]
["P033","Minerales no metálicos",23.574726999999999,"Impuesto tipo valor agregado (IVA)",2015]
["P035","Carne y despojos comestibles de ganado porcino",10.5343,"Impuesto tipo valor agregado (IVA)",2015]
["P053","Productos alimenticios n.c.p.",746.90651800000001,"Impuesto tipo valor agregado (IVA)",2015]
["P054","Preparados para alimentación animal",54.166882000000001,"Impuesto tipo valor agregado (IVA)",2015]
["P064","Pasta de papel y papel",294.174553,"Impuesto tipo valor agregado (IVA)",2015]
["P076","Productos de caucho y plástico",440.27921500000002,"Impuesto tipo valor agregado (IVA)",2015]
["P089","Equipo y aparatos de radio, televisión y comunicaciones",903.07329200000004,"Impuesto tipo valor agregado (IVA)",2015]
["P096","Agua natural y distribución de agua natural",92.978689000000003,"Impuesto tipo valor agregado (IVA)",2015]
["P108","Otros servicios de apoyo al transporte",91.623902999999999,"Impuesto tipo valor agregado (IVA)",2015]
["P116","Servicios de seguro, reaseguro y fondos de pensiones",470.34535899999997,"Impuesto tipo valor agregado (IVA)",2015]
["P128","Servicios de seguridad, sistemas de seguridad e investigación privada",93.837322,"Impuesto tipo valor agregado (IVA)",2015]
["P137","Servicios públicos del gobierno general",0,"Impuesto tipo valor agregado (IVA)",2015]
["P139","Otros servicios administrativos",0,"Impuesto tipo valor agregado (IVA)",2015]
["P151","Compras directas en el exterior por residentes",0,"Impuesto tipo valor agregado (IVA)",2015]
["P010","Caña de azúcar y otras plantas azucareras",453.48435699999999,"Márgenes de comercio, transporte y distribución de energía",2015]
["P019","Propagación de plantas",65.594245000000001,"Márgenes de comercio, transporte y distribución de energía",2015]
["P029","Peces vivos, frescos o refrigerados",619.85603300000002,"Márgenes de comercio, transporte y distribución de energía",2015]
["P039","Crustáceos, moluscos y demás invertebrados acuáticos congelados, preparados o en conserva y sus productos",95.616681,"Márgenes de comercio, transporte y distribución de energía",2015]
["P051","Tortillas de maíz, incluso tostadas, horneadas o fritas",52.835388999999999,"Márgenes de comercio, transporte y distribución de energía",2015]
["P054","Preparados para alimentación animal",421.540976,"Márgenes de comercio, transporte y distribución de energía",2015]
["P062","Calzado y sus partes, de cualquier material y de cualquier uso",2396.6410070000002,"Márgenes de comercio, transporte y distribución de energía",2015]
["P073","Jabón, preparados de limpieza, perfumes y preparados de toilet",3284.4619560000001,"Márgenes de comercio, transporte y distribución de energía",2015]
["P082","Métales básicos de hierro y acero, productos primarios de metales preciosos y otros metales no ferrosos",968.92704000000003,"Márgenes de comercio, transporte y distribución de energía",2015]
["P094","Residuos y desechos",438.67562099999998,"Márgenes de comercio, transporte y distribución de energía",2015]
["P102","Servicios de comercio",-114465.39195799999,"Márgenes de comercio, transporte y distribución de energía",2015]
["P114","Otros servicios financieros y servicios de banca de inversión",0,"Márgenes de comercio, transporte y distribución de energía",2015]
["P127","Servicios de agencias de viajes, operadores turísticos y actividades conexas",0,"Márgenes de comercio, transporte y distribución de energía",2015]
["P134","Servicios de apoyo a la agricultura, caza, silvicultura y pesca",0,"Márgenes de comercio, transporte y distribución de energía",2015]
["P137","Servicios públicos del gobierno general",0,"Márgenes de comercio, transporte y distribución de energía",2015]
["P146","Servicios audiovisuales, recreativos, culturales y deportivos",0,"Márgenes de comercio, transporte y distribución de energía",2015]
["P005","Otros cereales",1235.935853,"Consumo Intermedio (PC)",2015]
["P019","Propagación de plantas",378.07271500000002,"Consumo Intermedio (PC)",2015]
["P030","Crustáceos sin congelar y otros productos de la pesca",422.82101399999999,"Consumo Intermedio (PC)",2015]
["P037","Carne y despojos de otros animales y conservas y preparados de carne",1282.2993240000001,"Consumo Intermedio (PC)",2015]
["P048","Arroz sin cáscara",171.421359,"Consumo Intermedio (PC)",2015]
["P057","Bebidas no alcohólicas",640.97330099999999,"Consumo Intermedio (PC)",2015]
["P060","Prendas de vestir, adobo y teñido de pieles",915.40574100000003,"Consumo Intermedio (PC)",2015]
["P077","Vidrio y productos de vidrio",922.34461599999997,"Consumo Intermedio (PC)",2015]
["P080","Artículos de hormigón, cemento y yeso",3084.6504770000001,"Consumo Intermedio (PC)",2015]
["P092","Muebles",160.41813999999999,"Consumo Intermedio (PC)",2015]
["P100","Obras de ingeniería civil",0,"Consumo Intermedio (PC)",2015]
["P112","Servicios de información, telecomunicaciones y radiodifusión",9218.0566710000003,"Consumo Intermedio (PC)",2015]
["P121","Servicios de tecnología de la información",1968.7100929999999,"Consumo Intermedio (PC)",2015]
["P132","Servicios de mantenimiento, reparación e instalación de productos metálicos elaborados, maquinaria y equipo",4241.078246,"Consumo Intermedio (PC)",2015]
["P136","Servicios de manufactura",2306.4453279999998,"Consumo Intermedio (PC)",2015]
["P148","Servicios de asociaciones que sirven a los hogares",0,"Consumo Intermedio (PC)",2015]
["P003","Leguminosas (legumbres secas) y semillas oleaginosas",134.701055,"Consumo Final privado (PC)",2015]
["P013","Frutas tropicales y subtropicales",4204.1201460000002,"Consumo Final privado (PC)",2015]
["P023","Aves de corral",549.56558800000005,"Consumo Final privado (PC)",2015]
["P038","Pescado congelado, preparado o en conserva y sus productos",220.875912,"Consumo Final privado (PC)",2015]
["P048","Arroz sin cáscara",834.704566,"Consumo Final privado (PC)",2015]
["P055","Aguardientes, licores, vinos, demás bebidas espirituosas y productos del tabaco",2136.9130610000002,"Consumo Final privado (PC)",2015]
["P067","Productos de la impresión",340.24381,"Consumo Final privado (PC)",2015]
["P075","Productos farmacéuticos",6242.1991310000003,"Consumo Final privado (PC)",2015]
["P078","Productos de cerámica y arcilla",342.77728000000002,"Consumo Final privado (PC)",2015]
["P086","Electrodomésticos y sus partes",1538.1813729999999,"Consumo Final privado (PC)",2015]
["P098","Edificaciones residenciales",0,"Consumo Final privado (PC)",2015]
["P111","Servicio de suministro de comidas y bebidas",30107.011705000001,"Consumo Final privado (PC)",2015]
["P123","Otros servicios profesionales, científicos y técnicos",150.91251700000001,"Consumo Final privado (PC)",2015]
["P130","Servicios telefónicos de centros de llamadas",0,"Consumo Final privado (PC)",2015]
["P140","Servicios públicos administrativos prestados a la comunidad en su conjunto",566.21481400000005,"Consumo Final privado (PC)",2015]
["P150","Servicios domésticos",8029.8745479999998,"Consumo Final privado (PC)",2015]
["P003","Leguminosas (legumbres secas) y semillas oleaginosas",0,"Consumo Final del Gobierno (PC)",2015]
["P014","Berries, otras frutas y semillas de frutas",1.7011999999999999E-2,"Consumo Final del Gobierno (PC)",2015]
["P021","Ganado bovino",0,"Consumo Final del Gobierno (PC)",2015]
["P032","Minerales metálicos",0,"Consumo Final del Gobierno (PC)",2015]
["P046","Otros productos lácteos n.c.p.",25.709344999999999,"Consumo Final del Gobierno (PC)",2015]
["P047","Harina de trigo",0,"Consumo Final del Gobierno (PC)",2015]
["P057","Bebidas no alcohólicas",1.8147610000000001,"Consumo Final del Gobierno (PC)",2015]
["P073","Jabón, preparados de limpieza, perfumes y preparados de toilet",0,"Consumo Final del Gobierno (PC)",2015]
["P076","Productos de caucho y plástico",0,"Consumo Final del Gobierno (PC)",2015]
["P089","Equipo y aparatos de radio, televisión y comunicaciones",0,"Consumo Final del Gobierno (PC)",2015]
["P101","Servicios generales y especializados de construcción",0,"Consumo Final del Gobierno (PC)",2015]
["P109","Servicios postales y de mensajería",0,"Consumo Final del Gobierno (PC)",2015]
["P116","Servicios de seguro, reaseguro y fondos de pensiones",0,"Consumo Final del Gobierno (PC)",2015]
["P130","Servicios telefónicos de centros de llamadas",0,"Consumo Final del Gobierno (PC)",2015]
["P132","Servicios de mantenimiento, reparación e instalación de productos metálicos elaborados, maquinaria y equipo",0,"Consumo Final del Gobierno (PC)",2015]
["P148","Servicios de asociaciones que sirven a los hogares",0,"Consumo Final del Gobierno (PC)",2015]
["P007","Sandías y melones",0,"Formación Bruta de Capital Fijo (PC)",2015]
["P012","Bananos, plátanos y otros",259.31680599999999,"Formación Bruta de Capital Fijo (PC)",2015]
["P022","Ganado porcino y otro tipo de animales vivos n.c.p.",47.261512000000003,"Formación Bruta de Capital Fijo (PC)",2015]
["P032","Minerales metálicos",0,"Formación Bruta de Capital Fijo (PC)",2015]
["P039","Crustáceos, moluscos y demás invertebrados acuáticos congelados, preparados o en conserva y sus productos",0,"Formación Bruta de Capital Fijo (PC)",2015]
["P051","Tortillas de maíz, incluso tostadas, horneadas o fritas",0,"Formación Bruta de Capital Fijo (PC)",2015]
["P055","Aguardientes, licores, vinos, demás bebidas espirituosas y productos del tabaco",0,"Formación Bruta de Capital Fijo (PC)",2015]
["P066","Productos de la edición",0,"Formación Bruta de Capital Fijo (PC)",2015]
["P075","Productos farmacéuticos",0,"Formación Bruta de Capital Fijo (PC)",2015]
["P087","Maquinaria de oficina, contabilidad e informática, sus partes y piezas",1555.202366,"Formación Bruta de Capital Fijo (PC)",2015]
["P095","Generación y distribución de energía eléctrica, gas, vapor y aire acondicionado",0,"Formación Bruta de Capital Fijo (PC)",2015]
["P107","Servicios de almacenamiento y depósito",0,"Formación Bruta de Capital Fijo (PC)",2015]
["P120","Servicios jurídicos, de contabilidad, auditoría, teneduría de libros y consultoría fiscal",0,"Formación Bruta de Capital Fijo (PC)",2015]
["P127","Servicios de agencias de viajes, operadores turísticos y actividades conexas",0,"Formación Bruta de Capital Fijo (PC)",2015]
["P130","Servicios telefónicos de centros de llamadas",0,"Formación Bruta de Capital Fijo (PC)",2015]
["P139","Otros servicios administrativos",0,"Formación Bruta de Capital Fijo (PC)",2015]
["P150","Servicios domésticos",0,"Formación Bruta de Capital Fijo (PC)",2015]
["P012","Bananos, plátanos y otros",5844.7025199999998,"Exportaciones (fob)",2015]
["P018","Caucho natural",1057.4826370000001,"Exportaciones (fob)",2015]
["P030","Crustáceos sin congelar y otros productos de la pesca",52.965659000000002,"Exportaciones (fob)",2015]
["P041","Preparaciones y conservas de frutas y nueces",758.13892799999996,"Exportaciones (fob)",2015]
["P050","Pan y otros productos de panadería y repostería n.c.p.",658.86105799999996,"Exportaciones (fob)",2015]
["P053","Productos alimenticios n.c.p.",2230.462712,"Exportaciones (fob)",2015]
["P070","Gases de petróleo, otros productos de la refinación de petróleo n.c.p.",686.71844199999998,"Exportaciones (fob)",2015]
["P073","Jabón, preparados de limpieza, perfumes y preparados de toilet",1843.597121,"Exportaciones (fob)",2015]
["P085","Maquinaria para usos generales y especiales, sus partes y piezas, excepto electrodomésticos",905.55726800000002,"Exportaciones (fob)",2015]
["P093","Otros artículos n.c.p.",354.144634,"Exportaciones (fob)",2015]
["P105","Servicio de transporte de carga por vía terrestre",822.07071299999996,"Exportaciones (fob)",2015]
["P114","Otros servicios financieros y servicios de banca de inversión",49.663564999999998,"Exportaciones (fob)",2015]
["P125","Servicios de arrendamiento o alquiler sin operador",126.2238,"Exportaciones (fob)",2015]
["P129","Servicios de limpieza",0,"Exportaciones (fob)",2015]
["P145","Otros servicios de atención de la salud humana",67.701402999999999,"Exportaciones (fob)",2015]
["P148","Servicios de asociaciones que sirven a los hogares",0,"Exportaciones (fob)",2015]
["P006","Hortalizas",0,"Variación de existencias (PC)",2015]
["P016","Café en grano",171.99422899999999,"Variación de existencias (PC)",2015]
["P025","Huevos",0,"Variación de existencias (PC)",2015]
["P036","Carne y despojos comestibles de aves",18.806560999999999,"Variación de existencias (PC)",2015]
["P048","Arroz sin cáscara",3.2064219999999999,"Variación de existencias (PC)",2015]
["P060","Prendas de vestir, adobo y teñido de pieles",120.941292,"Variación de existencias (PC)",2015]
["P068","Gasolinas, diésel oil y fuel oils",44.939449000000003,"Variación de existencias (PC)",2015]
["P071","Abonos, fertilizantes y pesticidas",11.027155,"Variación de existencias (PC)",2015]
["P079","Cemento, cal y yeso",-13.928473,"Variación de existencias (PC)",2015]
["P091","Equipo de transporte",68.243954000000002,"Variación de existencias (PC)",2015]
["P098","Edificaciones residenciales",504.94713400000001,"Variación de existencias (PC)",2015]
["P111","Servicio de suministro de comidas y bebidas",0,"Variación de existencias (PC)",2015]
["P123","Otros servicios profesionales, científicos y técnicos",0,"Variación de existencias (PC)",2015]
["P133","Servicios de reparación de otros bienes",0,"Variación de existencias (PC)",2015]
["P143","Servicios de hospitalización",0,"Variación de existencias (PC)",2015]
["P152","Compras directas en el territorio nacional por no residentes",0,"Variación de existencias (PC)",2015]
["P011","Tabaco y otras plantas no perennes",0,"Ajuste CIF/FOB",2015]
["P014","Berries, otras frutas y semillas de frutas",0,"Ajuste CIF/FOB",2015]
["P025","Huevos",0,"Ajuste CIF/FOB",2015]
["P034","Carne y despojos comestibles de ganado bovino; cueros y pieles de bovino y de otros animales",0,"Ajuste CIF/FOB",2015]
["P044","Margarina, grasas y otros aceites de origen animal y vegetal",0,"Ajuste CIF/FOB",2015]
["P054","Preparados para alimentación animal",0,"Ajuste CIF/FOB",2015]
["P066","Productos de la edición",0,"Ajuste CIF/FOB",2015]
["P073","Jabón, preparados de limpieza, perfumes y preparados de toilet",0,"Ajuste CIF/FOB",2015]
["P086","Electrodomésticos y sus partes",0,"Ajuste CIF/FOB",2015]
["P088","Maquinaria y aparatos eléctricos, sus partes y piezas",0,"Ajuste CIF/FOB",2015]
["P097","Evacuación de aguas residuales, recogida, tratamiento y eliminación de desechos",0,"Ajuste CIF/FOB",2015]
["P109","Servicios postales y de mensajería",0,"Ajuste CIF/FOB",2015]
["P117","Servicios auxiliares de la intermediación financiera",0,"Ajuste CIF/FOB",2015]
["P129","Servicios de limpieza",0,"Ajuste CIF/FOB",2015]
["P141","Servicios administrativos relacionados con los sistemas de seguridad social de afiliación obligatoria",0,"Ajuste CIF/FOB",2015]
["P146","Servicios audiovisuales, recreativos, culturales y deportivos",0,"Ajuste CIF/FOB",2015]
["P009","Raíces y tubérculos",2332.198378,"Producción (PB)",2016]
["P019","Propagación de plantas",588.32689700000003,"Producción (PB)",2016]
["P020","Otros frutos oleaginosos, otras plantas bebestibles y especias aromáticas",314.58427,"Producción (PB)",2016]
["P032","Minerales metálicos",4929.5236130000003,"Producción (PB)",2016]
["P038","Pescado congelado, preparado o en conserva y sus productos",447.72492299999999,"Producción (PB)",2016]
["P052","Azúcar de caña sin refinar y refinada, melaza y los demás azúcares n.c.p.",12038.843182000001,"Producción (PB)",2016]
["P063","Madera aserrada y acepillada, productos de madera, corcho, paja y materiales trenzables",3743.092666,"Producción (PB)",2016]
["P072","Pinturas, barnices, tintas y productos relacionados",1160.832723,"Producción (PB)",2016]
["P084","Otros productos elaborados de metal",2469.5630529999999,"Producción (PB)",2016]
["P092","Muebles",5481.2722039999999,"Producción (PB)",2016]
["P095","Generación y distribución de energía eléctrica, gas, vapor y aire acondicionado",13058.905803,"Producción (PB)",2016]
["P107","Servicios de almacenamiento y depósito",302.23812099999998,"Producción (PB)",2016]
["P120","Servicios jurídicos, de contabilidad, auditoría, teneduría de libros y consultoría fiscal",4525.5830669999996,"Producción (PB)",2016]
["P127","Servicios de agencias de viajes, operadores turísticos y actividades conexas",820.94432099999995,"Producción (PB)",2016]
["P136","Servicios de manufactura",7572.3254370000004,"Producción (PB)",2016]
["P147","Servicios de asociaciones que sirven a las empresas",319.00393000000003,"Producción (PB)",2016]
["P151","Compras directas en el exterior por residentes",0,"Producción (PB)",2016]
["P011","Tabaco y otras plantas no perennes",0,"Impuestos sobre los productos, excepto IVA e impuestos sobre las importaciones",2016]
["P018","Caucho natural",0,"Impuestos sobre los productos, excepto IVA e impuestos sobre las importaciones",2016]
["P028","Productos forestales no madereros",0,"Impuestos sobre los productos, excepto IVA e impuestos sobre las importaciones",2016]
["P038","Pescado congelado, preparado o en conserva y sus productos",0,"Impuestos sobre los productos, excepto IVA e impuestos sobre las importaciones",2016]
["P050","Pan y otros productos de panadería y repostería n.c.p.",0,"Impuestos sobre los productos, excepto IVA e impuestos sobre las importaciones",2016]
["P057","Bebidas no alcohólicas",299.09457700000002,"Impuestos sobre los productos, excepto IVA e impuestos sobre las importaciones",2016]
["P070","Gases de petróleo, otros productos de la refinación de petróleo n.c.p.",44.870075,"Impuestos sobre los productos, excepto IVA e impuestos sobre las importaciones",2016]
["P082","Métales básicos de hierro y acero, productos primarios de metales preciosos y otros metales no ferrosos",0,"Impuestos sobre los productos, excepto IVA e impuestos sobre las importaciones",2016]
["P086","Electrodomésticos y sus partes",0,"Impuestos sobre los productos, excepto IVA e impuestos sobre las importaciones",2016]
["P093","Otros artículos n.c.p.",0,"Impuestos sobre los productos, excepto IVA e impuestos sobre las importaciones",2016]
["P111","Servicio de suministro de comidas y bebidas",0,"Impuestos sobre los productos, excepto IVA e impuestos sobre las importaciones",2016]
["P113","Servicios de banco central",0,"Impuestos sobre los productos, excepto IVA e impuestos sobre las importaciones",2016]
["P126","Servicios  de agencias de empleo y de dotación de recursos humanos",0,"Impuestos sobre los productos, excepto IVA e impuestos sobre las importaciones",2016]
["P138","Servicios públicos administrativos relacionados con la provisión de servicios educativos, de salud, servicios sociales, culturales y otros, sin contar los servicios de seguridad social",0,"Impuestos sobre los productos, excepto IVA e impuestos sobre las importaciones",2016]
["P145","Otros servicios de atención de la salud humana",0,"Impuestos sobre los productos, excepto IVA e impuestos sobre las importaciones",2016]
["P003","Leguminosas (legumbres secas) y semillas oleaginosas",0,"Subvenciones a los productos",2016]
["P009","Raíces y tubérculos",0,"Subvenciones a los productos",2016]
["P018","Caucho natural",0,"Subvenciones a los productos",2016]
["P029","Peces vivos, frescos o refrigerados",0,"Subvenciones a los productos",2016]
["P036","Carne y despojos comestibles de aves",0,"Subvenciones a los productos",2016]
["P047","Harina de trigo",0,"Subvenciones a los productos",2016]
["P061","Cuero de piel curtida o adobada y cuero artificial o regenerado y artículos de cuero",0,"Subvenciones a los productos",2016]
["P068","Gasolinas, diésel oil y fuel oils",0,"Subvenciones a los productos",2016]
["P076","Productos de caucho y plástico",0,"Subvenciones a los productos",2016]
["P088","Maquinaria y aparatos eléctricos, sus partes y piezas",0,"Subvenciones a los productos",2016]
["P091","Equipo de transporte",0,"Subvenciones a los productos",2016]
["P104","Servicio de transporte de pasajeros por vía terrestre",-175,"Subvenciones a los productos",2016]
["P111","Servicio de suministro de comidas y bebidas",0,"Subvenciones a los productos",2016]
["P120","Servicios jurídicos, de contabilidad, auditoría, teneduría de libros y consultoría fiscal",0,"Subvenciones a los productos",2016]
["P136","Servicios de manufactura",0,"Subvenciones a los productos",2016]
["P145","Otros servicios de atención de la salud humana",0,"Subvenciones a los productos",2016]
["P004","Arroz",229.23973000000001,"Importaciones (CIF)",2016]
["P011","Tabaco y otras plantas no perennes",371.740951,"Importaciones (CIF)",2016]
["P022","Ganado porcino y otro tipo de animales vivos n.c.p.",11.476602,"Importaciones (CIF)",2016]
["P027","Troncos de madera y leña",0.67501100000000003,"Importaciones (CIF)",2016]
["P037","Carne y despojos de otros animales y conservas y preparados de carne",404.66889700000002,"Importaciones (CIF)",2016]
["P047","Harina de trigo",204.223511,"Importaciones (CIF)",2016]
["P054","Preparados para alimentación animal",508.18538899999999,"Importaciones (CIF)",2016]
["P066","Productos de la edición",528.06447100000003,"Importaciones (CIF)",2016]
["P079","Cemento, cal y yeso",208.722318,"Importaciones (CIF)",2016]
["P081","Piedras talladas para construcción y otros productos minerales no metálicos n.c.p.",199.58218600000001,"Importaciones (CIF)",2016]
["P090","Aparatos médicos, instrumentos ópticos y de precisión, relojes",1626.3741090000001,"Importaciones (CIF)",2016]
["P102","Servicios de comercio",0,"Importaciones (CIF)",2016]
["P110","Servicio de alojamiento",0,"Importaciones (CIF)",2016]
["P122","Servicios de arquitectura e ingeniería, ensayos y análisis técnicos",27.877822999999999,"Importaciones (CIF)",2016]
["P129","Servicios de limpieza",0,"Importaciones (CIF)",2016]
["P139","Otros servicios administrativos",0,"Importaciones (CIF)",2016]
["P002","Frijoles",5.3375899999999996,"Impuestos y derechos sobre las importaciones excepto IVA",2016]
["P012","Bananos, plátanos y otros",0.197135,"Impuestos y derechos sobre las importaciones excepto IVA",2016]
["P013","Frutas tropicales y subtropicales",5.5190460000000003,"Impuestos y derechos sobre las importaciones excepto IVA",2016]
["P025","Huevos",0,"Impuestos y derechos sobre las importaciones excepto IVA",2016]
["P031","Petróleo crudo y gas natural",0,"Impuestos y derechos sobre las importaciones excepto IVA",2016]
["P045","Leche líquida y crema procesada",5.3451399999999998,"Impuestos y derechos sobre las importaciones excepto IVA",2016]
["P056","Malta y cerveza de malta",35.462890000000002,"Impuestos y derechos sobre las importaciones excepto IVA",2016]
["P065","Envases de papel y cartón",2.5020289999999998,"Impuestos y derechos sobre las importaciones excepto IVA",2016]
["P077","Vidrio y productos de vidrio",17.564774,"Impuestos y derechos sobre las importaciones excepto IVA",2016]
["P085","Maquinaria para usos generales y especiales, sus partes y piezas, excepto electrodomésticos",53.278570000000002,"Impuestos y derechos sobre las importaciones excepto IVA",2016]
["P088","Maquinaria y aparatos eléctricos, sus partes y piezas",76.231329000000002,"Impuestos y derechos sobre las importaciones excepto IVA",2016]
["P100","Obras de ingeniería civil",0,"Impuestos y derechos sobre las importaciones excepto IVA",2016]
["P108","Otros servicios de apoyo al transporte",0,"Impuestos y derechos sobre las importaciones excepto IVA",2016]
["P120","Servicios jurídicos, de contabilidad, auditoría, teneduría de libros y consultoría fiscal",0,"Impuestos y derechos sobre las importaciones excepto IVA",2016]
["P129","Servicios de limpieza",0,"Impuestos y derechos sobre las importaciones excepto IVA",2016]
["P140","Servicios públicos administrativos prestados a la comunidad en su conjunto",0,"Impuestos y derechos sobre las importaciones excepto IVA",2016]
["P152","Compras directas en el territorio nacional por no residentes",0,"Impuestos y derechos sobre las importaciones excepto IVA",2016]
["P006","Hortalizas",204.82624899999999,"Impuesto tipo valor agregado (IVA)",2016]
["P011","Tabaco y otras plantas no perennes",11.346022,"Impuesto tipo valor agregado (IVA)",2016]
["P021","Ganado bovino",2.1549659999999999,"Impuesto tipo valor agregado (IVA)",2016]
["P031","Petróleo crudo y gas natural",0,"Impuesto tipo valor agregado (IVA)",2016]
["P043","Aceites de origen vegetal",219.51625100000001,"Impuesto tipo valor agregado (IVA)",2016]
["P050","Pan y otros productos de panadería y repostería n.c.p.",210.09945999999999,"Impuesto tipo valor agregado (IVA)",2016]
["P063","Madera aserrada y acepillada, productos de madera, corcho, paja y materiales trenzables",22.061125000000001,"Impuesto tipo valor agregado (IVA)",2016]
["P069","Aceites, grasas lubricantes y otros aceites preparados",16.011990000000001,"Impuesto tipo valor agregado (IVA)",2016]
["P083","Productos metálicos estructurales y sus partes de hierro o de acero",23.859304000000002,"Impuesto tipo valor agregado (IVA)",2016]
["P086","Electrodomésticos y sus partes",142.674646,"Impuesto tipo valor agregado (IVA)",2016]
["P104","Servicio de transporte de pasajeros por vía terrestre",318.58200499999998,"Impuesto tipo valor agregado (IVA)",2016]
["P106","Otros tipos de transporte",227.798226,"Impuesto tipo valor agregado (IVA)",2016]
["P123","Otros servicios profesionales, científicos y técnicos",110.51128300000001,"Impuesto tipo valor agregado (IVA)",2016]
["P126","Servicios  de agencias de empleo y de dotación de recursos humanos",133.05350799999999,"Impuesto tipo valor agregado (IVA)",2016]
["P138","Servicios públicos administrativos relacionados con la provisión de servicios educativos, de salud, servicios sociales, culturales y otros, sin contar los servicios de seguridad social",0,"Impuesto tipo valor agregado (IVA)",2016]
["P148","Servicios de asociaciones que sirven a los hogares",0,"Impuesto tipo valor agregado (IVA)",2016]
["P006","Hortalizas",14333.270979999999,"Márgenes de comercio, transporte y distribución de energía",2016]
["P015","Palma africana",15.229023,"Márgenes de comercio, transporte y distribución de energía",2016]
["P026","Otros productos de animales vivos",25.354997000000001,"Márgenes de comercio, transporte y distribución de energía",2016]
["P029","Peces vivos, frescos o refrigerados",667.38740299999995,"Márgenes de comercio, transporte y distribución de energía",2016]
["P044","Margarina, grasas y otros aceites de origen animal y vegetal",472.74967900000001,"Márgenes de comercio, transporte y distribución de energía",2016]
["P049","Otros productos de molinería, almidones y productos de almidón",933.737842,"Márgenes de comercio, transporte y distribución de energía",2016]
["P061","Cuero de piel curtida o adobada y cuero artificial o regenerado y artículos de cuero",455.80180100000001,"Márgenes de comercio, transporte y distribución de energía",2016]
["P069","Aceites, grasas lubricantes y otros aceites preparados",274.79089099999999,"Márgenes de comercio, transporte y distribución de energía",2016]
["P081","Piedras talladas para construcción y otros productos minerales no metálicos n.c.p.",76.208856999999995,"Márgenes de comercio, transporte y distribución de energía",2016]
["P088","Maquinaria y aparatos eléctricos, sus partes y piezas",644.26401199999998,"Márgenes de comercio, transporte y distribución de energía",2016]
["P101","Servicios generales y especializados de construcción",0,"Márgenes de comercio, transporte y distribución de energía",2016]
["P104","Servicio de transporte de pasajeros por vía terrestre",0,"Márgenes de comercio, transporte y distribución de energía",2016]
["P113","Servicios de banco central",0,"Márgenes de comercio, transporte y distribución de energía",2016]
["P124","Servicios de publicidad y estudios de mercado",0,"Márgenes de comercio, transporte y distribución de energía",2016]
["P132","Servicios de mantenimiento, reparación e instalación de productos metálicos elaborados, maquinaria y equipo",9.9999999999999995E-7,"Márgenes de comercio, transporte y distribución de energía",2016]
["P144","Servicios médicos y dentales",0,"Márgenes de comercio, transporte y distribución de energía",2016]
["P004","Arroz",353.98165399999999,"Consumo Intermedio (PC)",2016]
["P009","Raíces y tubérculos",795.44266900000002,"Consumo Intermedio (PC)",2016]
["P024","Leche cruda",1410.435391,"Consumo Intermedio (PC)",2016]
["P034","Carne y despojos comestibles de ganado bovino; cueros y pieles de bovino y de otros animales",2326.3303729999998,"Consumo Intermedio (PC)",2016]
["P044","Margarina, grasas y otros aceites de origen animal y vegetal",1981.0417339999999,"Consumo Intermedio (PC)",2016]
["P047","Harina de trigo",2397.807863,"Consumo Intermedio (PC)",2016]
["P063","Madera aserrada y acepillada, productos de madera, corcho, paja y materiales trenzables",4099.1430140000002,"Consumo Intermedio (PC)",2016]
["P067","Productos de la impresión",1811.222874,"Consumo Intermedio (PC)",2016]
["P078","Productos de cerámica y arcilla",1819.428686,"Consumo Intermedio (PC)",2016]
["P083","Productos metálicos estructurales y sus partes de hierro o de acero",1357.0361350000001,"Consumo Intermedio (PC)",2016]
["P099","Edificaciones no residenciales",0,"Consumo Intermedio (PC)",2016]
["P107","Servicios de almacenamiento y depósito",299.99016,"Consumo Intermedio (PC)",2016]
["P119","Otros servicios inmobiliarios, excepto alquiler de vivienda",13392.610622,"Consumo Intermedio (PC)",2016]
["P122","Servicios de arquitectura e ingeniería, ensayos y análisis técnicos",2321.477562,"Consumo Intermedio (PC)",2016]
["P136","Servicios de manufactura",2393.5295120000001,"Consumo Intermedio (PC)",2016]
["P142","Servicios de enseñanza",356.41099500000001,"Consumo Intermedio (PC)",2016]
["P151","Compras directas en el exterior por residentes",132.139442,"Consumo Intermedio (PC)",2016]
["P010","Caña de azúcar y otras plantas azucareras",3.2679809999999998,"Consumo Final privado (PC)",2016]
["P022","Ganado porcino y otro tipo de animales vivos n.c.p.",187.32752400000001,"Consumo Final privado (PC)",2016]
["P028","Productos forestales no madereros",89.865690999999998,"Consumo Final privado (PC)",2016]
["P042","Jugos de frutas",1673.652108,"Consumo Final privado (PC)",2016]
["P043","Aceites de origen vegetal",2755.1953239999998,"Consumo Final privado (PC)",2016]
["P058","Aguas minerales y otras aguas embotelladas",1565.9051899999999,"Consumo Final privado (PC)",2016]
["P065","Envases de papel y cartón",8.9217320000000004,"Consumo Final privado (PC)",2016]
["P072","Pinturas, barnices, tintas y productos relacionados",171.985952,"Consumo Final privado (PC)",2016]
["P085","Maquinaria para usos generales y especiales, sus partes y piezas, excepto electrodomésticos",122.719221,"Consumo Final privado (PC)",2016]
["P097","Evacuación de aguas residuales, recogida, tratamiento y eliminación de desechos",535.08469100000002,"Consumo Final privado (PC)",2016]
["P101","Servicios generales y especializados de construcción",129.998829,"Consumo Final privado (PC)",2016]
["P117","Servicios auxiliares de la intermediación financiera",2235.8996980000002,"Consumo Final privado (PC)",2016]
["P126","Servicios  de agencias de empleo y de dotación de recursos humanos",0,"Consumo Final privado (PC)",2016]
["P133","Servicios de reparación de otros bienes",798.32434699999999,"Consumo Final privado (PC)",2016]
["P140","Servicios públicos administrativos prestados a la comunidad en su conjunto",579.33466599999997,"Consumo Final privado (PC)",2016]
["P003","Leguminosas (legumbres secas) y semillas oleaginosas",0,"Consumo Final del Gobierno (PC)",2016]
["P008","Ejotes y arvejas",0,"Consumo Final del Gobierno (PC)",2016]
["P018","Caucho natural",0,"Consumo Final del Gobierno (PC)",2016]
["P024","Leche cruda",0,"Consumo Final del Gobierno (PC)",2016]
["P040","Vegetales preparados o en conserva, legumbres y papas",0,"Consumo Final del Gobierno (PC)",2016]
["P047","Harina de trigo",0,"Consumo Final del Gobierno (PC)",2016]
["P051","Tortillas de maíz, incluso tostadas, horneadas o fritas",0.19192000000000001,"Consumo Final del Gobierno (PC)",2016]
["P062","Calzado y sus partes, de cualquier material y de cualquier uso",0,"Consumo Final del Gobierno (PC)",2016]
["P076","Productos de caucho y plástico",0,"Consumo Final del Gobierno (PC)",2016]
["P083","Productos metálicos estructurales y sus partes de hierro o de acero",0,"Consumo Final del Gobierno (PC)",2016]
["P091","Equipo de transporte",0,"Consumo Final del Gobierno (PC)",2016]
["P099","Edificaciones no residenciales",0,"Consumo Final del Gobierno (PC)",2016]
["P116","Servicios de seguro, reaseguro y fondos de pensiones",0,"Consumo Final del Gobierno (PC)",2016]
["P119","Otros servicios inmobiliarios, excepto alquiler de vivienda",0,"Consumo Final del Gobierno (PC)",2016]
["P126","Servicios  de agencias de empleo y de dotación de recursos humanos",0,"Consumo Final del Gobierno (PC)",2016]
["P135","Servicios de apoyo a la explotación de minas y canteras y los relacionados con la distribución de electricidad, gas y agua",0,"Consumo Final del Gobierno (PC)",2016]
["P151","Compras directas en el exterior por residentes",0,"Consumo Final del Gobierno (PC)",2016]
["P008","Ejotes y arvejas",0,"Formación Bruta de Capital Fijo (PC)",2016]
["P019","Propagación de plantas",0,"Formación Bruta de Capital Fijo (PC)",2016]
["P026","Otros productos de animales vivos",0,"Formación Bruta de Capital Fijo (PC)",2016]
["P037","Carne y despojos de otros animales y conservas y preparados de carne",0,"Formación Bruta de Capital Fijo (PC)",2016]
["P042","Jugos de frutas",0,"Formación Bruta de Capital Fijo (PC)",2016]
["P049","Otros productos de molinería, almidones y productos de almidón",0,"Formación Bruta de Capital Fijo (PC)",2016]
["P066","Productos de la edición",0,"Formación Bruta de Capital Fijo (PC)",2016]
["P074","Otros productos químicos",0,"Formación Bruta de Capital Fijo (PC)",2016]
["P081","Piedras talladas para construcción y otros productos minerales no metálicos n.c.p.",0,"Formación Bruta de Capital Fijo (PC)",2016]
["P094","Residuos y desechos",0,"Formación Bruta de Capital Fijo (PC)",2016]
["P101","Servicios generales y especializados de construcción",0,"Formación Bruta de Capital Fijo (PC)",2016]
["P110","Servicio de alojamiento",0,"Formación Bruta de Capital Fijo (PC)",2016]
["P117","Servicios auxiliares de la intermediación financiera",0,"Formación Bruta de Capital Fijo (PC)",2016]
["P125","Servicios de arrendamiento o alquiler sin operador",0,"Formación Bruta de Capital Fijo (PC)",2016]
["P137","Servicios públicos del gobierno general",0,"Formación Bruta de Capital Fijo (PC)",2016]
["P149","Otros servicios",0,"Formación Bruta de Capital Fijo (PC)",2016]
["P002","Frijoles",7.6386440000000002,"Exportaciones (fob)",2016]
["P017","Cardamomo",1719.991532,"Exportaciones (fob)",2016]
["P027","Troncos de madera y leña",14.83281,"Exportaciones (fob)",2016]
["P037","Carne y despojos de otros animales y conservas y preparados de carne",437.81469900000002,"Exportaciones (fob)",2016]
["P040","Vegetales preparados o en conserva, legumbres y papas",624.55874500000004,"Exportaciones (fob)",2016]
["P056","Malta y cerveza de malta",103.980388,"Exportaciones (fob)",2016]
["P060","Prendas de vestir, adobo y teñido de pieles",2496.5000909999999,"Exportaciones (fob)",2016]
["P067","Productos de la impresión",119.021321,"Exportaciones (fob)",2016]
["P075","Productos farmacéuticos",1128.387332,"Exportaciones (fob)",2016]
["P092","Muebles",432.26702999999998,"Exportaciones (fob)",2016]
["P100","Obras de ingeniería civil",0,"Exportaciones (fob)",2016]
["P112","Servicios de información, telecomunicaciones y radiodifusión",3403.5557690000001,"Exportaciones (fob)",2016]
["P115","Servicios de Intermediación Financiera Medidos Indirectamente (SIFMI)",220.22455600000001,"Exportaciones (fob)",2016]
["P129","Servicios de limpieza",0,"Exportaciones (fob)",2016]
["P135","Servicios de apoyo a la explotación de minas y canteras y los relacionados con la distribución de electricidad, gas y agua",0,"Exportaciones (fob)",2016]
["P144","Servicios médicos y dentales",255.885367,"Exportaciones (fob)",2016]
["P003","Leguminosas (legumbres secas) y semillas oleaginosas",46.135970999999998,"Variación de existencias (PC)",2016]
["P015","Palma africana",0,"Variación de existencias (PC)",2016]
["P021","Ganado bovino",-79.884178000000006,"Variación de existencias (PC)",2016]
["P035","Carne y despojos comestibles de ganado porcino",8.7000449999999994,"Variación de existencias (PC)",2016]
["P036","Carne y despojos comestibles de aves",18.694898999999999,"Variación de existencias (PC)",2016]
["P046","Otros productos lácteos n.c.p.",16.446225999999999,"Variación de existencias (PC)",2016]
["P058","Aguas minerales y otras aguas embotelladas",2.0348619999999999,"Variación de existencias (PC)",2016]
["P065","Envases de papel y cartón",-26.947099000000001,"Variación de existencias (PC)",2016]
["P078","Productos de cerámica y arcilla",14.558256,"Variación de existencias (PC)",2016]
["P084","Otros productos elaborados de metal",18.361495000000001,"Variación de existencias (PC)",2016]
["P098","Edificaciones residenciales",855.94951100000003,"Variación de existencias (PC)",2016]
["P110","Servicio de alojamiento",0,"Variación de existencias (PC)",2016]
["P119","Otros servicios inmobiliarios, excepto alquiler de vivienda",0,"Variación de existencias (PC)",2016]
["P121","Servicios de tecnología de la información",0,"Variación de existencias (PC)",2016]
["P133","Servicios de reparación de otros bienes",0,"Variación de existencias (PC)",2016]
["P148","Servicios de asociaciones que sirven a los hogares",0,"Variación de existencias (PC)",2016]
["P001","Maíz",0,"Ajuste CIF/FOB",2016]
["P015","Palma africana",0,"Ajuste CIF/FOB",2016]
["P021","Ganado bovino",0,"Ajuste CIF/FOB",2016]
["P033","Minerales no metálicos",0,"Ajuste CIF/FOB",2016]
["P040","Vegetales preparados o en conserva, legumbres y papas",0,"Ajuste CIF/FOB",2016]
["P044","Margarina, grasas y otros aceites de origen animal y vegetal",0,"Ajuste CIF/FOB",2016]
["P059","Hilados, tejidos, telas y otros productos textiles excepto prendas de vestir",0,"Ajuste CIF/FOB",2016]
["P064","Pasta de papel y papel",0,"Ajuste CIF/FOB",2016]
["P076","Productos de caucho y plástico",0,"Ajuste CIF/FOB",2016]
["P084","Otros productos elaborados de metal",0,"Ajuste CIF/FOB",2016]
["P096","Agua natural y distribución de agua natural",0,"Ajuste CIF/FOB",2016]
["P103","Mantenimiento y reparación de vehículos automotores y motocicletas",0,"Ajuste CIF/FOB",2016]
["P116","Servicios de seguro, reaseguro y fondos de pensiones",-633.972757,"Ajuste CIF/FOB",2016]
["P119","Otros servicios inmobiliarios, excepto alquiler de vivienda",0,"Ajuste CIF/FOB",2016]
["P132","Servicios de mantenimiento, reparación e instalación de productos metálicos elaborados, maquinaria y equipo",0,"Ajuste CIF/FOB",2016]
["P139","Otros servicios administrativos",0,"Ajuste CIF/FOB",2016]
["P147","Servicios de asociaciones que sirven a las empresas",0,"Ajuste CIF/FOB",2016]
["P007","Sandías y melones",1346.6668549999999,"Producción (PB)",2017]
["P019","Propagación de plantas",658.07377299999996,"Producción (PB)",2017]
["P024","Leche cruda",2068.1491890000002,"Producción (PB)",2017]
["P039","Crustáceos, moluscos y demás invertebrados acuáticos congelados, preparados o en conserva y sus productos",586.43717400000003,"Producción (PB)",2017]
["P042","Jugos de frutas",1396.3095559999999,"Producción (PB)",2017]
["P053","Productos alimenticios n.c.p.",8445.3870210000005,"Producción (PB)",2017]
["P062","Calzado y sus partes, de cualquier material y de cualquier uso",1358.4192439999999,"Producción (PB)",2017]
["P078","Productos de cerámica y arcilla",1520.51441,"Producción (PB)",2017]
["P082","Métales básicos de hierro y acero, productos primarios de metales preciosos y otros metales no ferrosos",7095.0344230000001,"Producción (PB)",2017]
["P094","Residuos y desechos",1565.85697,"Producción (PB)",2017]
["P107","Servicios de almacenamiento y depósito",322.58803699999999,"Producción (PB)",2017]
["P114","Otros servicios financieros y servicios de banca de inversión",3038.3210429999999,"Producción (PB)",2017]
["P122","Servicios de arquitectura e ingeniería, ensayos y análisis técnicos",2480.1257740000001,"Producción (PB)",2017]
["P134","Servicios de apoyo a la agricultura, caza, silvicultura y pesca",3089.9463660000001,"Producción (PB)",2017]
["P137","Servicios públicos del gobierno general",11612.712055,"Producción (PB)",2017]
["P151","Compras directas en el exterior por residentes",0,"Producción (PB)",2017]
["P005","Otros cereales",0,"Impuestos sobre los productos, excepto IVA e impuestos sobre las importaciones",2017]
["P014","Berries, otras frutas y semillas de frutas",0,"Impuestos sobre los productos, excepto IVA e impuestos sobre las importaciones",2017]
["P030","Crustáceos sin congelar y otros productos de la pesca",0,"Impuestos sobre los productos, excepto IVA e impuestos sobre las importaciones",2017]
["P037","Carne y despojos de otros animales y conservas y preparados de carne",0,"Impuestos sobre los productos, excepto IVA e impuestos sobre las importaciones",2017]
["P043","Aceites de origen vegetal",0,"Impuestos sobre los productos, excepto IVA e impuestos sobre las importaciones",2017]
["P057","Bebidas no alcohólicas",299.41593399999999,"Impuestos sobre los productos, excepto IVA e impuestos sobre las importaciones",2017]
["P060","Prendas de vestir, adobo y teñido de pieles",0,"Impuestos sobre los productos, excepto IVA e impuestos sobre las importaciones",2017]
["P072","Pinturas, barnices, tintas y productos relacionados",0,"Impuestos sobre los productos, excepto IVA e impuestos sobre las importaciones",2017]
["P080","Artículos de hormigón, cemento y yeso",0,"Impuestos sobre los productos, excepto IVA e impuestos sobre las importaciones",2017]
["P087","Maquinaria de oficina, contabilidad e informática, sus partes y piezas",0,"Impuestos sobre los productos, excepto IVA e impuestos sobre las importaciones",2017]
["P100","Obras de ingeniería civil",0,"Impuestos sobre los productos, excepto IVA e impuestos sobre las importaciones",2017]
["P112","Servicios de información, telecomunicaciones y radiodifusión",0,"Impuestos sobre los productos, excepto IVA e impuestos sobre las importaciones",2017]
["P116","Servicios de seguro, reaseguro y fondos de pensiones",15.956097,"Impuestos sobre los productos, excepto IVA e impuestos sobre las importaciones",2017]
["P132","Servicios de mantenimiento, reparación e instalación de productos metálicos elaborados, maquinaria y equipo",0,"Impuestos sobre los productos, excepto IVA e impuestos sobre las importaciones",2017]
["P141","Servicios administrativos relacionados con los sistemas de seguridad social de afiliación obligatoria",0,"Impuestos sobre los productos, excepto IVA e impuestos sobre las importaciones",2017]
["P148","Servicios de asociaciones que sirven a los hogares",0,"Impuestos sobre los productos, excepto IVA e impuestos sobre las importaciones",2017]
["P003","Leguminosas (legumbres secas) y semillas oleaginosas",0,"Subvenciones a los productos",2017]
["P018","Caucho natural",0,"Subvenciones a los productos",2017]
["P023","Aves de corral",0,"Subvenciones a los productos",2017]
["P033","Minerales no metálicos",0,"Subvenciones a los productos",2017]
["P039","Crustáceos, moluscos y demás invertebrados acuáticos congelados, preparados o en conserva y sus productos",0,"Subvenciones a los productos",2017]
["P055","Aguardientes, licores, vinos, demás bebidas espirituosas y productos del tabaco",0,"Subvenciones a los productos",2017]
["P062","Calzado y sus partes, de cualquier material y de cualquier uso",0,"Subvenciones a los productos",2017]
["P071","Abonos, fertilizantes y pesticidas",-215,"Subvenciones a los productos",2017]
["P077","Vidrio y productos de vidrio",0,"Subvenciones a los productos",2017]
["P091","Equipo de transporte",0,"Subvenciones a los productos",2017]
["P098","Edificaciones residenciales",0,"Subvenciones a los productos",2017]
["P106","Otros tipos de transporte",0,"Subvenciones a los productos",2017]
["P114","Otros servicios financieros y servicios de banca de inversión",0,"Subvenciones a los productos",2017]
["P130","Servicios telefónicos de centros de llamadas",0,"Subvenciones a los productos",2017]
["P135","Servicios de apoyo a la explotación de minas y canteras y los relacionados con la distribución de electricidad, gas y agua",0,"Subvenciones a los productos",2017]
["P150","Servicios domésticos",0,"Subvenciones a los productos",2017]
["P008","Ejotes y arvejas",1.4532499999999999,"Importaciones (CIF)",2017]
["P014","Berries, otras frutas y semillas de frutas",435.66247499999997,"Importaciones (CIF)",2017]
["P021","Ganado bovino",4.3581810000000001,"Importaciones (CIF)",2017]
["P027","Troncos de madera y leña",0.94832899999999998,"Importaciones (CIF)",2017]
["P037","Carne y despojos de otros animales y conservas y preparados de carne",408.42945200000003,"Importaciones (CIF)",2017]
["P052","Azúcar de caña sin refinar y refinada, melaza y los demás azúcares n.c.p.",5.1711689999999999,"Importaciones (CIF)",2017]
["P057","Bebidas no alcohólicas",636.75252999999998,"Importaciones (CIF)",2017]
["P073","Jabón, preparados de limpieza, perfumes y preparados de toilet",2479.6647370000001,"Importaciones (CIF)",2017]
["P081","Piedras talladas para construcción y otros productos minerales no metálicos n.c.p.",185.65395000000001,"Importaciones (CIF)",2017]
["P089","Equipo y aparatos de radio, televisión y comunicaciones",7234.4455969999999,"Importaciones (CIF)",2017]
["P096","Agua natural y distribución de agua natural",0,"Importaciones (CIF)",2017]
["P109","Servicios postales y de mensajería",92.807377000000002,"Importaciones (CIF)",2017]
["P116","Servicios de seguro, reaseguro y fondos de pensiones",1995.825593,"Importaciones (CIF)",2017]
["P125","Servicios de arrendamiento o alquiler sin operador",1435.536552,"Importaciones (CIF)",2017]
["P132","Servicios de mantenimiento, reparación e instalación de productos metálicos elaborados, maquinaria y equipo",42.686042999999998,"Importaciones (CIF)",2017]
["P148","Servicios de asociaciones que sirven a los hogares",0,"Importaciones (CIF)",2017]
["P002","Frijoles",6.668679,"Impuestos y derechos sobre las importaciones excepto IVA",2017]
["P012","Bananos, plátanos y otros",0.18270600000000001,"Impuestos y derechos sobre las importaciones excepto IVA",2017]
["P017","Cardamomo",0,"Impuestos y derechos sobre las importaciones excepto IVA",2017]
["P032","Minerales metálicos",3.0490000000000001E-3,"Impuestos y derechos sobre las importaciones excepto IVA",2017]
["P039","Crustáceos, moluscos y demás invertebrados acuáticos congelados, preparados o en conserva y sus productos",1.240715,"Impuestos y derechos sobre las importaciones excepto IVA",2017]
["P046","Otros productos lácteos n.c.p.",83.674322000000004,"Impuestos y derechos sobre las importaciones excepto IVA",2017]
["P055","Aguardientes, licores, vinos, demás bebidas espirituosas y productos del tabaco",50.089368,"Impuestos y derechos sobre las importaciones excepto IVA",2017]
["P071","Abonos, fertilizantes y pesticidas",44.672629999999998,"Impuestos y derechos sobre las importaciones excepto IVA",2017]
["P075","Productos farmacéuticos",114.84670800000001,"Impuestos y derechos sobre las importaciones excepto IVA",2017]
["P087","Maquinaria de oficina, contabilidad e informática, sus partes y piezas",0,"Impuestos y derechos sobre las importaciones excepto IVA",2017]
["P100","Obras de ingeniería civil",0,"Impuestos y derechos sobre las importaciones excepto IVA",2017]
["P107","Servicios de almacenamiento y depósito",0,"Impuestos y derechos sobre las importaciones excepto IVA",2017]
["P115","Servicios de Intermediación Financiera Medidos Indirectamente (SIFMI)",0,"Impuestos y derechos sobre las importaciones excepto IVA",2017]
["P127","Servicios de agencias de viajes, operadores turísticos y actividades conexas",0,"Impuestos y derechos sobre las importaciones excepto IVA",2017]
["P130","Servicios telefónicos de centros de llamadas",0,"Impuestos y derechos sobre las importaciones excepto IVA",2017]
["P144","Servicios médicos y dentales",0,"Impuestos y derechos sobre las importaciones excepto IVA",2017]
["P150","Servicios domésticos",0,"Impuestos y derechos sobre las importaciones excepto IVA",2017]
["P007","Sandías y melones",10.250102999999999,"Impuesto tipo valor agregado (IVA)",2017]
["P018","Caucho natural",0,"Impuesto tipo valor agregado (IVA)",2017]
["P030","Crustáceos sin congelar y otros productos de la pesca",8.7569160000000004,"Impuesto tipo valor agregado (IVA)",2017]
["P036","Carne y despojos comestibles de aves",582.05202499999996,"Impuesto tipo valor agregado (IVA)",2017]
["P050","Pan y otros productos de panadería y repostería n.c.p.",224.64757800000001,"Impuesto tipo valor agregado (IVA)",2017]
["P053","Productos alimenticios n.c.p.",837.52120000000002,"Impuesto tipo valor agregado (IVA)",2017]
["P065","Envases de papel y cartón",3.8020390000000002,"Impuesto tipo valor agregado (IVA)",2017]
["P073","Jabón, preparados de limpieza, perfumes y preparados de toilet",727.09751800000004,"Impuesto tipo valor agregado (IVA)",2017]
["P080","Artículos de hormigón, cemento y yeso",79.230230000000006,"Impuesto tipo valor agregado (IVA)",2017]
["P093","Otros artículos n.c.p.",215.931397,"Impuesto tipo valor agregado (IVA)",2017]
["P105","Servicio de transporte de carga por vía terrestre",33.536794,"Impuesto tipo valor agregado (IVA)",2017]
["P109","Servicios postales y de mensajería",47.636434999999999,"Impuesto tipo valor agregado (IVA)",2017]
["P125","Servicios de arrendamiento o alquiler sin operador",111.781828,"Impuesto tipo valor agregado (IVA)",2017]
["P128","Servicios de seguridad, sistemas de seguridad e investigación privada",97.579684,"Impuesto tipo valor agregado (IVA)",2017]
["P145","Otros servicios de atención de la salud humana",181.149135,"Impuesto tipo valor agregado (IVA)",2017]
["P148","Servicios de asociaciones que sirven a los hogares",0,"Impuesto tipo valor agregado (IVA)",2017]
["P011","Tabaco y otras plantas no perennes",271.379413,"Márgenes de comercio, transporte y distribución de energía",2017]
["P016","Café en grano",142.33358000000001,"Márgenes de comercio, transporte y distribución de energía",2017]
["P030","Crustáceos sin congelar y otros productos de la pesca",334.04769399999998,"Márgenes de comercio, transporte y distribución de energía",2017]
["P036","Carne y despojos comestibles de aves",3114.0318940000002,"Márgenes de comercio, transporte y distribución de energía",2017]
["P048","Arroz sin cáscara",363.56128899999999,"Márgenes de comercio, transporte y distribución de energía",2017]
["P055","Aguardientes, licores, vinos, demás bebidas espirituosas y productos del tabaco",1235.07962,"Márgenes de comercio, transporte y distribución de energía",2017]
["P068","Gasolinas, diésel oil y fuel oils",3844.5546479999998,"Márgenes de comercio, transporte y distribución de energía",2017]
["P074","Otros productos químicos",1098.372942,"Márgenes de comercio, transporte y distribución de energía",2017]
["P079","Cemento, cal y yeso",428.73407600000002,"Márgenes de comercio, transporte y distribución de energía",2017]
["P091","Equipo de transporte",6430.8219520000002,"Márgenes de comercio, transporte y distribución de energía",2017]
["P103","Mantenimiento y reparación de vehículos automotores y motocicletas",0,"Márgenes de comercio, transporte y distribución de energía",2017]
["P111","Servicio de suministro de comidas y bebidas",0,"Márgenes de comercio, transporte y distribución de energía",2017]
["P123","Otros servicios profesionales, científicos y técnicos",0,"Márgenes de comercio, transporte y distribución de energía",2017]
["P128","Servicios de seguridad, sistemas de seguridad e investigación privada",0,"Márgenes de comercio, transporte y distribución de energía",2017]
["P143","Servicios de hospitalización",0,"Márgenes de comercio, transporte y distribución de energía",2017]
["P147","Servicios de asociaciones que sirven a las empresas",0,"Márgenes de comercio, transporte y distribución de energía",2017]
["P002","Frijoles",393.307008,"Consumo Intermedio (PC)",2017]
["P014","Berries, otras frutas y semillas de frutas",583.48468600000001,"Consumo Intermedio (PC)",2017]
["P020","Otros frutos oleaginosos, otras plantas bebestibles y especias aromáticas",181.86345900000001,"Consumo Intermedio (PC)",2017]
["P034","Carne y despojos comestibles de ganado bovino; cueros y pieles de bovino y de otros animales",2349.6704580000001,"Consumo Intermedio (PC)",2017]
["P039","Crustáceos, moluscos y demás invertebrados acuáticos congelados, preparados o en conserva y sus productos",456.52030600000001,"Consumo Intermedio (PC)",2017]
["P054","Preparados para alimentación animal",6375.5244409999996,"Consumo Intermedio (PC)",2017]
["P066","Productos de la edición",634.28008799999998,"Consumo Intermedio (PC)",2017]
["P068","Gasolinas, diésel oil y fuel oils",10377.555568,"Consumo Intermedio (PC)",2017]
["P077","Vidrio y productos de vidrio",990.99943699999994,"Consumo Intermedio (PC)",2017]
["P093","Otros artículos n.c.p.",1574.125219,"Consumo Intermedio (PC)",2017]
["P097","Evacuación de aguas residuales, recogida, tratamiento y eliminación de desechos",378.07213400000001,"Consumo Intermedio (PC)",2017]
["P109","Servicios postales y de mensajería",947.08985700000005,"Consumo Intermedio (PC)",2017]
["P122","Servicios de arquitectura e ingeniería, ensayos y análisis técnicos",2363.8545020000001,"Consumo Intermedio (PC)",2017]
["P129","Servicios de limpieza",1228.392272,"Consumo Intermedio (PC)",2017]
["P141","Servicios administrativos relacionados con los sistemas de seguridad social de afiliación obligatoria",0,"Consumo Intermedio (PC)",2017]
["P151","Compras directas en el exterior por residentes",157.099468,"Consumo Intermedio (PC)",2017]
["P152","Compras directas en el territorio nacional por no residentes",0,"Consumo Intermedio (PC)",2017]
["P014","Berries, otras frutas y semillas de frutas",5666.7737360000001,"Consumo Final privado (PC)",2017]
["P020","Otros frutos oleaginosos, otras plantas bebestibles y especias aromáticas",400.91167000000002,"Consumo Final privado (PC)",2017]
["P032","Minerales metálicos",0,"Consumo Final privado (PC)",2017]
["P043","Aceites de origen vegetal",2775.8603029999999,"Consumo Final privado (PC)",2017]
["P052","Azúcar de caña sin refinar y refinada, melaza y los demás azúcares n.c.p.",5502.3479589999997,"Consumo Final privado (PC)",2017]
["P058","Aguas minerales y otras aguas embotelladas",1622.6189119999999,"Consumo Final privado (PC)",2017]
["P072","Pinturas, barnices, tintas y productos relacionados",177.87348700000001,"Consumo Final privado (PC)",2017]
["P075","Productos farmacéuticos",6897.2502949999998,"Consumo Final privado (PC)",2017]
["P087","Maquinaria de oficina, contabilidad e informática, sus partes y piezas",531.74217299999998,"Consumo Final privado (PC)",2017]
["P095","Generación y distribución de energía eléctrica, gas, vapor y aire acondicionado",5119.9505760000002,"Consumo Final privado (PC)",2017]
["P112","Servicios de información, telecomunicaciones y radiodifusión",17572.675839,"Consumo Final privado (PC)",2017]
["P120","Servicios jurídicos, de contabilidad, auditoría, teneduría de libros y consultoría fiscal",190.73426499999999,"Consumo Final privado (PC)",2017]
["P127","Servicios de agencias de viajes, operadores turísticos y actividades conexas",293.034538,"Consumo Final privado (PC)",2017]
["P131","Servicios administrativos, de apoyo de oficina y otros servicios de apoyo a las empresas",306.91947800000003,"Consumo Final privado (PC)",2017]
["P147","Servicios de asociaciones que sirven a las empresas",0,"Consumo Final privado (PC)",2017]
["P004","Arroz",0,"Consumo Final del Gobierno (PC)",2017]
["P011","Tabaco y otras plantas no perennes",6.946866,"Consumo Final del Gobierno (PC)",2017]
["P018","Caucho natural",0,"Consumo Final del Gobierno (PC)",2017]
["P033","Minerales no metálicos",0.269621,"Consumo Final del Gobierno (PC)",2017]
["P043","Aceites de origen vegetal",9.9242369999999998,"Consumo Final del Gobierno (PC)",2017]
["P050","Pan y otros productos de panadería y repostería n.c.p.",4.9289620000000003,"Consumo Final del Gobierno (PC)",2017]
["P062","Calzado y sus partes, de cualquier material y de cualquier uso",0,"Consumo Final del Gobierno (PC)",2017]
["P070","Gases de petróleo, otros productos de la refinación de petróleo n.c.p.",0,"Consumo Final del Gobierno (PC)",2017]
["P077","Vidrio y productos de vidrio",0,"Consumo Final del Gobierno (PC)",2017]
["P086","Electrodomésticos y sus partes",1.2930000000000001E-3,"Consumo Final del Gobierno (PC)",2017]
["P093","Otros artículos n.c.p.",15.875017,"Consumo Final del Gobierno (PC)",2017]
["P106","Otros tipos de transporte",0,"Consumo Final del Gobierno (PC)",2017]
["P113","Servicios de banco central",681.31423500000005,"Consumo Final del Gobierno (PC)",2017]
["P121","Servicios de tecnología de la información",0,"Consumo Final del Gobierno (PC)",2017]
["P138","Servicios públicos administrativos relacionados con la provisión de servicios educativos, de salud, servicios sociales, culturales y otros, sin contar los servicios de seguridad social",1969.4582290000001,"Consumo Final del Gobierno (PC)",2017]
["P145","Otros servicios de atención de la salud humana",148.263667,"Consumo Final del Gobierno (PC)",2017]
["P150","Servicios domésticos",0,"Consumo Final del Gobierno (PC)",2017]
["P009","Raíces y tubérculos",0,"Formación Bruta de Capital Fijo (PC)",2017]
["P023","Aves de corral",563.30496000000005,"Formación Bruta de Capital Fijo (PC)",2017]
["P029","Peces vivos, frescos o refrigerados",0,"Formación Bruta de Capital Fijo (PC)",2017]
["P036","Carne y despojos comestibles de aves",0,"Formación Bruta de Capital Fijo (PC)",2017]
["P052","Azúcar de caña sin refinar y refinada, melaza y los demás azúcares n.c.p.",0,"Formación Bruta de Capital Fijo (PC)",2017]
["P061","Cuero de piel curtida o adobada y cuero artificial o regenerado y artículos de cuero",0,"Formación Bruta de Capital Fijo (PC)",2017]
["P067","Productos de la impresión",0,"Formación Bruta de Capital Fijo (PC)",2017]
["P072","Pinturas, barnices, tintas y productos relacionados",0,"Formación Bruta de Capital Fijo (PC)",2017]
["P088","Maquinaria y aparatos eléctricos, sus partes y piezas",904.31926899999996,"Formación Bruta de Capital Fijo (PC)",2017]
["P096","Agua natural y distribución de agua natural",0,"Formación Bruta de Capital Fijo (PC)",2017]
["P104","Servicio de transporte de pasajeros por vía terrestre",0,"Formación Bruta de Capital Fijo (PC)",2017]
["P111","Servicio de suministro de comidas y bebidas",0,"Formación Bruta de Capital Fijo (PC)",2017]
["P125","Servicios de arrendamiento o alquiler sin operador",0,"Formación Bruta de Capital Fijo (PC)",2017]
["P136","Servicios de manufactura",0,"Formación Bruta de Capital Fijo (PC)",2017]
["P140","Servicios públicos administrativos prestados a la comunidad en su conjunto",0,"Formación Bruta de Capital Fijo (PC)",2017]
["P147","Servicios de asociaciones que sirven a las empresas",0,"Formación Bruta de Capital Fijo (PC)",2017]
["P011","Tabaco y otras plantas no perennes",282.842083,"Exportaciones (fob)",2017]
["P017","Cardamomo",2691.8568759999998,"Exportaciones (fob)",2017]
["P027","Troncos de madera y leña",30.852208000000001,"Exportaciones (fob)",2017]
["P032","Minerales metálicos",2366.4962439999999,"Exportaciones (fob)",2017]
["P047","Harina de trigo",10.625726,"Exportaciones (fob)",2017]
["P059","Hilados, tejidos, telas y otros productos textiles excepto prendas de vestir",1538.0689379999999,"Exportaciones (fob)",2017]
["P061","Cuero de piel curtida o adobada y cuero artificial o regenerado y artículos de cuero",70.065550000000002,"Exportaciones (fob)",2017]
["P070","Gases de petróleo, otros productos de la refinación de petróleo n.c.p.",726.66212700000005,"Exportaciones (fob)",2017]
["P086","Electrodomésticos y sus partes",33.643090000000001,"Exportaciones (fob)",2017]
["P090","Aparatos médicos, instrumentos ópticos y de precisión, relojes",103.14448299999999,"Exportaciones (fob)",2017]
["P102","Servicios de comercio",0,"Exportaciones (fob)",2017]
["P115","Servicios de Intermediación Financiera Medidos Indirectamente (SIFMI)",231.446068,"Exportaciones (fob)",2017]
["P122","Servicios de arquitectura e ingeniería, ensayos y análisis técnicos",4.9530940000000001,"Exportaciones (fob)",2017]
["P129","Servicios de limpieza",0,"Exportaciones (fob)",2017]
["P144","Servicios médicos y dentales",271.39357100000001,"Exportaciones (fob)",2017]
["P145","Otros servicios de atención de la salud humana",79.821639000000005,"Exportaciones (fob)",2017]
["P007","Sandías y melones",7.699109,"Variación de existencias (PC)",2017]
["P013","Frutas tropicales y subtropicales",0,"Variación de existencias (PC)",2017]
["P025","Huevos",0,"Variación de existencias (PC)",2017]
["P036","Carne y despojos comestibles de aves",-8.8107140000000008,"Variación de existencias (PC)",2017]
["P045","Leche líquida y crema procesada",-2.1501619999999999,"Variación de existencias (PC)",2017]
["P051","Tortillas de maíz, incluso tostadas, horneadas o fritas",-2.4600789999999999,"Variación de existencias (PC)",2017]
["P065","Envases de papel y cartón",13.328958,"Variación de existencias (PC)",2017]
["P068","Gasolinas, diésel oil y fuel oils",-44.475172000000001,"Variación de existencias (PC)",2017]
["P080","Artículos de hormigón, cemento y yeso",-9.1746850000000002,"Variación de existencias (PC)",2017]
["P088","Maquinaria y aparatos eléctricos, sus partes y piezas",139.67181099999999,"Variación de existencias (PC)",2017]
["P105","Servicio de transporte de carga por vía terrestre",0,"Variación de existencias (PC)",2017]
["P108","Otros servicios de apoyo al transporte",0,"Variación de existencias (PC)",2017]
["P120","Servicios jurídicos, de contabilidad, auditoría, teneduría de libros y consultoría fiscal",0,"Variación de existencias (PC)",2017]
["P124","Servicios de publicidad y estudios de mercado",0,"Variación de existencias (PC)",2017]
["P140","Servicios públicos administrativos prestados a la comunidad en su conjunto",0,"Variación de existencias (PC)",2017]
["P143","Servicios de hospitalización",0,"Variación de existencias (PC)",2017]
["P008","Ejotes y arvejas",0,"Ajuste CIF/FOB",2017]
["P011","Tabaco y otras plantas no perennes",0,"Ajuste CIF/FOB",2017]
["P026","Otros productos de animales vivos",0,"Ajuste CIF/FOB",2017]
["P031","Petróleo crudo y gas natural",0,"Ajuste CIF/FOB",2017]
["P043","Aceites de origen vegetal",0,"Ajuste CIF/FOB",2017]
["P055","Aguardientes, licores, vinos, demás bebidas espirituosas y productos del tabaco",0,"Ajuste CIF/FOB",2017]
["P063","Madera aserrada y acepillada, productos de madera, corcho, paja y materiales trenzables",0,"Ajuste CIF/FOB",2017]
["P074","Otros productos químicos",0,"Ajuste CIF/FOB",2017]
["P083","Productos metálicos estructurales y sus partes de hierro o de acero",0,"Ajuste CIF/FOB",2017]
["P086","Electrodomésticos y sus partes",0,"Ajuste CIF/FOB",2017]
["P099","Edificaciones no residenciales",0,"Ajuste CIF/FOB",2017]
["P106","Otros tipos de transporte",-6210.6631090000001,"Ajuste CIF/FOB",2017]
["P118","Servicios de alquiler de vivienda",0,"Ajuste CIF/FOB",2017]
["P126","Servicios  de agencias de empleo y de dotación de recursos humanos",0,"Ajuste CIF/FOB",2017]
["P138","Servicios públicos administrativos relacionados con la provisión de servicios educativos, de salud, servicios sociales, culturales y otros, sin contar los servicios de seguridad social",0,"Ajuste CIF/FOB",2017]
["P143","Servicios de hospitalización",0,"Ajuste CIF/FOB",2017]
["P006","Hortalizas",6119.5865409999997,"Producción (PB)",2018]
["P010","Caña de azúcar y otras plantas azucareras",5346.0213670000003,"Producción (PB)",2018]
["P026","Otros productos de animales vivos",106.90908400000001,"Producción (PB)",2018]
["P029","Peces vivos, frescos o refrigerados",1182.511702,"Producción (PB)",2018]
["P039","Crustáceos, moluscos y demás invertebrados acuáticos congelados, preparados o en conserva y sus productos",416.92630300000002,"Producción (PB)",2018]
["P049","Otros productos de molinería, almidones y productos de almidón",1612.738685,"Producción (PB)",2018]
["P061","Cuero de piel curtida o adobada y cuero artificial o regenerado y artículos de cuero",1117.727061,"Producción (PB)",2018]
["P064","Pasta de papel y papel",2243.0537250000002,"Producción (PB)",2018]
["P081","Piedras talladas para construcción y otros productos minerales no metálicos n.c.p.",481.72397799999999,"Producción (PB)",2018]
["P083","Productos metálicos estructurales y sus partes de hierro o de acero",1735.9624409999999,"Producción (PB)",2018]
["P101","Servicios generales y especializados de construcción",12140.173849000001,"Producción (PB)",2018]
["P104","Servicio de transporte de pasajeros por vía terrestre",8224.3158960000001,"Producción (PB)",2018]
["P112","Servicios de información, telecomunicaciones y radiodifusión",27425.392821000001,"Producción (PB)",2018]
["P124","Servicios de publicidad y estudios de mercado",5675.0690500000001,"Producción (PB)",2018]
["P137","Servicios públicos del gobierno general",13634.939031,"Producción (PB)",2018]
["P144","Servicios médicos y dentales",7425.8363630000003,"Producción (PB)",2018]
["P004","Arroz",0,"Impuestos sobre los productos, excepto IVA e impuestos sobre las importaciones",2018]
["P014","Berries, otras frutas y semillas de frutas",0,"Impuestos sobre los productos, excepto IVA e impuestos sobre las importaciones",2018]
["P024","Leche cruda",0,"Impuestos sobre los productos, excepto IVA e impuestos sobre las importaciones",2018]
["P029","Peces vivos, frescos o refrigerados",0,"Impuestos sobre los productos, excepto IVA e impuestos sobre las importaciones",2018]
["P035","Carne y despojos comestibles de ganado porcino",0,"Impuestos sobre los productos, excepto IVA e impuestos sobre las importaciones",2018]
["P047","Harina de trigo",0,"Impuestos sobre los productos, excepto IVA e impuestos sobre las importaciones",2018]
["P058","Aguas minerales y otras aguas embotelladas",11.229592,"Impuestos sobre los productos, excepto IVA e impuestos sobre las importaciones",2018]
["P067","Productos de la impresión",0,"Impuestos sobre los productos, excepto IVA e impuestos sobre las importaciones",2018]
["P073","Jabón, preparados de limpieza, perfumes y preparados de toilet",0,"Impuestos sobre los productos, excepto IVA e impuestos sobre las importaciones",2018]
["P083","Productos metálicos estructurales y sus partes de hierro o de acero",0,"Impuestos sobre los productos, excepto IVA e impuestos sobre las importaciones",2018]
["P099","Edificaciones no residenciales",0,"Impuestos sobre los productos, excepto IVA e impuestos sobre las importaciones",2018]
["P102","Servicios de comercio",0,"Impuestos sobre los productos, excepto IVA e impuestos sobre las importaciones",2018]
["P110","Servicio de alojamiento",121.446703,"Impuestos sobre los productos, excepto IVA e impuestos sobre las importaciones",2018]
["P122","Servicios de arquitectura e ingeniería, ensayos y análisis técnicos",0,"Impuestos sobre los productos, excepto IVA e impuestos sobre las importaciones",2018]
["P131","Servicios administrativos, de apoyo de oficina y otros servicios de apoyo a las empresas",0,"Impuestos sobre los productos, excepto IVA e impuestos sobre las importaciones",2018]
["P142","Servicios de enseñanza",0,"Impuestos sobre los productos, excepto IVA e impuestos sobre las importaciones",2018]
["P004","Arroz",0,"Subvenciones a los productos",2018]
["P010","Caña de azúcar y otras plantas azucareras",0,"Subvenciones a los productos",2018]
["P022","Ganado porcino y otro tipo de animales vivos n.c.p.",0,"Subvenciones a los productos",2018]
["P023","Aves de corral",0,"Subvenciones a los productos",2018]
["P033","Minerales no metálicos",0,"Subvenciones a los productos",2018]
["P048","Arroz sin cáscara",0,"Subvenciones a los productos",2018]
["P058","Aguas minerales y otras aguas embotelladas",0,"Subvenciones a los productos",2018]
["P065","Envases de papel y cartón",0,"Subvenciones a los productos",2018]
["P077","Vidrio y productos de vidrio",0,"Subvenciones a los productos",2018]
["P085","Maquinaria para usos generales y especiales, sus partes y piezas, excepto electrodomésticos",0,"Subvenciones a los productos",2018]
["P092","Muebles",0,"Subvenciones a los productos",2018]
["P101","Servicios generales y especializados de construcción",0,"Subvenciones a los productos",2018]
["P108","Otros servicios de apoyo al transporte",0,"Subvenciones a los productos",2018]
["P121","Servicios de tecnología de la información",0,"Subvenciones a los productos",2018]
["P133","Servicios de reparación de otros bienes",0,"Subvenciones a los productos",2018]
["P136","Servicios de manufactura",0,"Subvenciones a los productos",2018]
["P001","Maíz",2096.1708669999998,"Importaciones (CIF)",2018]
["P008","Ejotes y arvejas",0.25884800000000002,"Importaciones (CIF)",2018]
["P013","Frutas tropicales y subtropicales",45.526452999999997,"Importaciones (CIF)",2018]
["P024","Leche cruda",0,"Importaciones (CIF)",2018]
["P031","Petróleo crudo y gas natural",0,"Importaciones (CIF)",2018]
["P042","Jugos de frutas",101.164028,"Importaciones (CIF)",2018]
["P051","Tortillas de maíz, incluso tostadas, horneadas o fritas",0,"Importaciones (CIF)",2018]
["P067","Productos de la impresión",147.79487499999999,"Importaciones (CIF)",2018]
["P076","Productos de caucho y plástico",5391.8998419999998,"Importaciones (CIF)",2018]
["P083","Productos metálicos estructurales y sus partes de hierro o de acero",389.854985,"Importaciones (CIF)",2018]
["P096","Agua natural y distribución de agua natural",0,"Importaciones (CIF)",2018]
["P099","Edificaciones no residenciales",0,"Importaciones (CIF)",2018]
["P111","Servicio de suministro de comidas y bebidas",15.822436,"Importaciones (CIF)",2018]
["P119","Otros servicios inmobiliarios, excepto alquiler de vivienda",0,"Importaciones (CIF)",2018]
["P126","Servicios  de agencias de empleo y de dotación de recursos humanos",0,"Importaciones (CIF)",2018]
["P140","Servicios públicos administrativos prestados a la comunidad en su conjunto",286.44454999999999,"Importaciones (CIF)",2018]
["P151","Compras directas en el exterior por residentes",6355.6779859999997,"Importaciones (CIF)",2018]
["P003","Leguminosas (legumbres secas) y semillas oleaginosas",0.272119,"Impuestos y derechos sobre las importaciones excepto IVA",2018]
["P019","Propagación de plantas",0.245841,"Impuestos y derechos sobre las importaciones excepto IVA",2018]
["P026","Otros productos de animales vivos",2.2415999999999998E-2,"Impuestos y derechos sobre las importaciones excepto IVA",2018]
["P032","Minerales metálicos",2.7880000000000001E-3,"Impuestos y derechos sobre las importaciones excepto IVA",2018]
["P042","Jugos de frutas",0.54838100000000001,"Impuestos y derechos sobre las importaciones excepto IVA",2018]
["P049","Otros productos de molinería, almidones y productos de almidón",9.0845640000000003,"Impuestos y derechos sobre las importaciones excepto IVA",2018]
["P061","Cuero de piel curtida o adobada y cuero artificial o regenerado y artículos de cuero",47.632458999999997,"Impuestos y derechos sobre las importaciones excepto IVA",2018]
["P074","Otros productos químicos",44.874375999999998,"Impuestos y derechos sobre las importaciones excepto IVA",2018]
["P076","Productos de caucho y plástico",175.886178,"Impuestos y derechos sobre las importaciones excepto IVA",2018]
["P094","Residuos y desechos",17.520188000000001,"Impuestos y derechos sobre las importaciones excepto IVA",2018]
["P101","Servicios generales y especializados de construcción",0,"Impuestos y derechos sobre las importaciones excepto IVA",2018]
["P105","Servicio de transporte de carga por vía terrestre",0,"Impuestos y derechos sobre las importaciones excepto IVA",2018]
["P117","Servicios auxiliares de la intermediación financiera",0,"Impuestos y derechos sobre las importaciones excepto IVA",2018]
["P130","Servicios telefónicos de centros de llamadas",0,"Impuestos y derechos sobre las importaciones excepto IVA",2018]
["P137","Servicios públicos del gobierno general",0,"Impuestos y derechos sobre las importaciones excepto IVA",2018]
["P149","Otros servicios",0,"Impuestos y derechos sobre las importaciones excepto IVA",2018]
["P007","Sandías y melones",10.914296999999999,"Impuesto tipo valor agregado (IVA)",2018]
["P017","Cardamomo",0,"Impuesto tipo valor agregado (IVA)",2018]
["P022","Ganado porcino y otro tipo de animales vivos n.c.p.",1.7433339999999999,"Impuesto tipo valor agregado (IVA)",2018]
["P028","Productos forestales no madereros",1.260929,"Impuesto tipo valor agregado (IVA)",2018]
["P040","Vegetales preparados o en conserva, legumbres y papas",80.812340000000006,"Impuesto tipo valor agregado (IVA)",2018]
["P051","Tortillas de maíz, incluso tostadas, horneadas o fritas",14.183947,"Impuesto tipo valor agregado (IVA)",2018]
["P060","Prendas de vestir, adobo y teñido de pieles",587.428493,"Impuesto tipo valor agregado (IVA)",2018]
["P066","Productos de la edición",164.471709,"Impuesto tipo valor agregado (IVA)",2018]
["P080","Artículos de hormigón, cemento y yeso",86.229727999999994,"Impuesto tipo valor agregado (IVA)",2018]
["P092","Muebles",150.26301799999999,"Impuesto tipo valor agregado (IVA)",2018]
["P095","Generación y distribución de energía eléctrica, gas, vapor y aire acondicionado",826.92469200000005,"Impuesto tipo valor agregado (IVA)",2018]
["P103","Mantenimiento y reparación de vehículos automotores y motocicletas",470.89462900000001,"Impuesto tipo valor agregado (IVA)",2018]
["P115","Servicios de Intermediación Financiera Medidos Indirectamente (SIFMI)",0,"Impuesto tipo valor agregado (IVA)",2018]
["P124","Servicios de publicidad y estudios de mercado",79.318698999999995,"Impuesto tipo valor agregado (IVA)",2018]
["P135","Servicios de apoyo a la explotación de minas y canteras y los relacionados con la distribución de electricidad, gas y agua",0,"Impuesto tipo valor agregado (IVA)",2018]
["P149","Otros servicios",115.634348,"Impuesto tipo valor agregado (IVA)",2018]
["P003","Leguminosas (legumbres secas) y semillas oleaginosas",138.409167,"Márgenes de comercio, transporte y distribución de energía",2018]
["P015","Palma africana",17.844187000000002,"Márgenes de comercio, transporte y distribución de energía",2018]
["P016","Café en grano",131.93389400000001,"Márgenes de comercio, transporte y distribución de energía",2018]
["P026","Otros productos de animales vivos",29.23404,"Márgenes de comercio, transporte y distribución de energía",2018]
["P035","Carne y despojos comestibles de ganado porcino",454.486265,"Márgenes de comercio, transporte y distribución de energía",2018]
["P046","Otros productos lácteos n.c.p.",2012.076149,"Márgenes de comercio, transporte y distribución de energía",2018]
["P058","Aguas minerales y otras aguas embotelladas",429.39068200000003,"Márgenes de comercio, transporte y distribución de energía",2018]
["P070","Gases de petróleo, otros productos de la refinación de petróleo n.c.p.",3343.7526459999999,"Márgenes de comercio, transporte y distribución de energía",2018]
["P078","Productos de cerámica y arcilla",453.40995800000002,"Márgenes de comercio, transporte y distribución de energía",2018]
["P089","Equipo y aparatos de radio, televisión y comunicaciones",3871.5786640000001,"Márgenes de comercio, transporte y distribución de energía",2018]
["P098","Edificaciones residenciales",0,"Márgenes de comercio, transporte y distribución de energía",2018]
["P101","Servicios generales y especializados de construcción",0,"Márgenes de comercio, transporte y distribución de energía",2018]
["P114","Otros servicios financieros y servicios de banca de inversión",0,"Márgenes de comercio, transporte y distribución de energía",2018]
["P121","Servicios de tecnología de la información",0,"Márgenes de comercio, transporte y distribución de energía",2018]
["P133","Servicios de reparación de otros bienes",0,"Márgenes de comercio, transporte y distribución de energía",2018]
["P143","Servicios de hospitalización",0,"Márgenes de comercio, transporte y distribución de energía",2018]
["P001","Maíz",3704.2621789999998,"Consumo Intermedio (PC)",2018]
["P010","Caña de azúcar y otras plantas azucareras",5773.2509989999999,"Consumo Intermedio (PC)",2018]
["P021","Ganado bovino",4607.1954679999999,"Consumo Intermedio (PC)",2018]
["P024","Leche cruda",1485.09986,"Consumo Intermedio (PC)",2018]
["P035","Carne y despojos comestibles de ganado porcino",1073.418823,"Consumo Intermedio (PC)",2018]
["P044","Margarina, grasas y otros aceites de origen animal y vegetal",2358.9725990000002,"Consumo Intermedio (PC)",2018]
["P054","Preparados para alimentación animal",7000.0573089999998,"Consumo Intermedio (PC)",2018]
["P064","Pasta de papel y papel",5881.6144949999998,"Consumo Intermedio (PC)",2018]
["P076","Productos de caucho y plástico",11533.217729,"Consumo Intermedio (PC)",2018]
["P089","Equipo y aparatos de radio, televisión y comunicaciones",1030.11202,"Consumo Intermedio (PC)",2018]
["P096","Agua natural y distribución de agua natural",3336.311279,"Consumo Intermedio (PC)",2018]
["P108","Otros servicios de apoyo al transporte",3341.8118359999999,"Consumo Intermedio (PC)",2018]
["P116","Servicios de seguro, reaseguro y fondos de pensiones",3879.7653329999998,"Consumo Intermedio (PC)",2018]
["P119","Otros servicios inmobiliarios, excepto alquiler de vivienda",14989.643373000001,"Consumo Intermedio (PC)",2018]
["P127","Servicios de agencias de viajes, operadores turísticos y actividades conexas",55.067909,"Consumo Intermedio (PC)",2018]
["P139","Otros servicios administrativos",0,"Consumo Intermedio (PC)",2018]
["P152","Compras directas en el territorio nacional por no residentes",0,"Consumo Intermedio (PC)",2018]
["P007","Sandías y melones",503.87044500000002,"Consumo Final privado (PC)",2018]
["P019","Propagación de plantas",64.750317999999993,"Consumo Final privado (PC)",2018]
["P029","Peces vivos, frescos o refrigerados",1805.7525780000001,"Consumo Final privado (PC)",2018]
["P039","Crustáceos, moluscos y demás invertebrados acuáticos congelados, preparados o en conserva y sus productos",95.209671999999998,"Consumo Final privado (PC)",2018]
["P042","Jugos de frutas",1840.3932669999999,"Consumo Final privado (PC)",2018]
["P058","Aguas minerales y otras aguas embotelladas",1721.653558,"Consumo Final privado (PC)",2018]
["P062","Calzado y sus partes, de cualquier material y de cualquier uso",5541.2927589999999,"Consumo Final privado (PC)",2018]
["P073","Jabón, preparados de limpieza, perfumes y preparados de toilet",9096.8457820000003,"Consumo Final privado (PC)",2018]
["P082","Métales básicos de hierro y acero, productos primarios de metales preciosos y otros metales no ferrosos",3.3683399999999999,"Consumo Final privado (PC)",2018]
["P094","Residuos y desechos",0,"Consumo Final privado (PC)",2018]
["P102","Servicios de comercio",0,"Consumo Final privado (PC)",2018]
["P114","Otros servicios financieros y servicios de banca de inversión",702.76327800000001,"Consumo Final privado (PC)",2018]
["P117","Servicios auxiliares de la intermediación financiera",2511.470824,"Consumo Final privado (PC)",2018]
["P134","Servicios de apoyo a la agricultura, caza, silvicultura y pesca",0,"Consumo Final privado (PC)",2018]
["P137","Servicios públicos del gobierno general",743.93412799999999,"Consumo Final privado (PC)",2018]
["P146","Servicios audiovisuales, recreativos, culturales y deportivos",2350.0764279999999,"Consumo Final privado (PC)",2018]
["P005","Otros cereales",0,"Consumo Final del Gobierno (PC)",2018]
["P019","Propagación de plantas",0,"Consumo Final del Gobierno (PC)",2018]
["P021","Ganado bovino",0,"Consumo Final del Gobierno (PC)",2018]
["P037","Carne y despojos de otros animales y conservas y preparados de carne",0,"Consumo Final del Gobierno (PC)",2018]
["P048","Arroz sin cáscara",12.66987,"Consumo Final del Gobierno (PC)",2018]
["P057","Bebidas no alcohólicas",0.52903299999999998,"Consumo Final del Gobierno (PC)",2018]
["P063","Madera aserrada y acepillada, productos de madera, corcho, paja y materiales trenzables",0,"Consumo Final del Gobierno (PC)",2018]
["P073","Jabón, preparados de limpieza, perfumes y preparados de toilet",0,"Consumo Final del Gobierno (PC)",2018]
["P080","Artículos de hormigón, cemento y yeso",0,"Consumo Final del Gobierno (PC)",2018]
["P092","Muebles",0,"Consumo Final del Gobierno (PC)",2018]
["P096","Agua natural y distribución de agua natural",0,"Consumo Final del Gobierno (PC)",2018]
["P112","Servicios de información, telecomunicaciones y radiodifusión",0,"Consumo Final del Gobierno (PC)",2018]
["P121","Servicios de tecnología de la información",0,"Consumo Final del Gobierno (PC)",2018]
["P132","Servicios de mantenimiento, reparación e instalación de productos metálicos elaborados, maquinaria y equipo",0,"Consumo Final del Gobierno (PC)",2018]
["P136","Servicios de manufactura",0,"Consumo Final del Gobierno (PC)",2018]
["P148","Servicios de asociaciones que sirven a los hogares",0,"Consumo Final del Gobierno (PC)",2018]
["P003","Leguminosas (legumbres secas) y semillas oleaginosas",0,"Formación Bruta de Capital Fijo (PC)",2018]
["P013","Frutas tropicales y subtropicales",145.73611,"Formación Bruta de Capital Fijo (PC)",2018]
["P023","Aves de corral",523.74135200000001,"Formación Bruta de Capital Fijo (PC)",2018]
["P028","Productos forestales no madereros",0,"Formación Bruta de Capital Fijo (PC)",2018]
["P039","Crustáceos, moluscos y demás invertebrados acuáticos congelados, preparados o en conserva y sus productos",0,"Formación Bruta de Capital Fijo (PC)",2018]
["P055","Aguardientes, licores, vinos, demás bebidas espirituosas y productos del tabaco",0,"Formación Bruta de Capital Fijo (PC)",2018]
["P057","Bebidas no alcohólicas",0,"Formación Bruta de Capital Fijo (PC)",2018]
["P071","Abonos, fertilizantes y pesticidas",0,"Formación Bruta de Capital Fijo (PC)",2018]
["P082","Métales básicos de hierro y acero, productos primarios de metales preciosos y otros metales no ferrosos",0,"Formación Bruta de Capital Fijo (PC)",2018]
["P091","Equipo de transporte",8293.0672200000008,"Formación Bruta de Capital Fijo (PC)",2018]
["P098","Edificaciones residenciales",24172.359001000001,"Formación Bruta de Capital Fijo (PC)",2018]
["P111","Servicio de suministro de comidas y bebidas",0,"Formación Bruta de Capital Fijo (PC)",2018]
["P114","Otros servicios financieros y servicios de banca de inversión",0,"Formación Bruta de Capital Fijo (PC)",2018]
["P130","Servicios telefónicos de centros de llamadas",0,"Formación Bruta de Capital Fijo (PC)",2018]
["P140","Servicios públicos administrativos prestados a la comunidad en su conjunto",0,"Formación Bruta de Capital Fijo (PC)",2018]
["P141","Servicios administrativos relacionados con los sistemas de seguridad social de afiliación obligatoria",0,"Formación Bruta de Capital Fijo (PC)",2018]
["P003","Leguminosas (legumbres secas) y semillas oleaginosas",256.73056800000001,"Exportaciones (fob)",2018]
["P014","Berries, otras frutas y semillas de frutas",404.34864399999998,"Exportaciones (fob)",2018]
["P021","Ganado bovino",51.706971000000003,"Exportaciones (fob)",2018]
["P032","Minerales metálicos",298.07574699999998,"Exportaciones (fob)",2018]
["P037","Carne y despojos de otros animales y conservas y preparados de carne",482.70286599999997,"Exportaciones (fob)",2018]
["P047","Harina de trigo",14.615197999999999,"Exportaciones (fob)",2018]
["P057","Bebidas no alcohólicas",981.03867100000002,"Exportaciones (fob)",2018]
["P064","Pasta de papel y papel",871.57183399999997,"Exportaciones (fob)",2018]
["P076","Productos de caucho y plástico",2552.7321400000001,"Exportaciones (fob)",2018]
["P089","Equipo y aparatos de radio, televisión y comunicaciones",191.583755,"Exportaciones (fob)",2018]
["P101","Servicios generales y especializados de construcción",142.609275,"Exportaciones (fob)",2018]
["P109","Servicios postales y de mensajería",44.808067000000001,"Exportaciones (fob)",2018]
["P112","Servicios de información, telecomunicaciones y radiodifusión",3671.7336009999999,"Exportaciones (fob)",2018]
["P120","Servicios jurídicos, de contabilidad, auditoría, teneduría de libros y consultoría fiscal",13.278873000000001,"Exportaciones (fob)",2018]
["P132","Servicios de mantenimiento, reparación e instalación de productos metálicos elaborados, maquinaria y equipo",125.589344,"Exportaciones (fob)",2018]
["P145","Otros servicios de atención de la salud humana",84.530092999999994,"Exportaciones (fob)",2018]
["P152","Compras directas en el territorio nacional por no residentes",9357.041706,"Exportaciones (fob)",2018]
["P012","Bananos, plátanos y otros",0,"Variación de existencias (PC)",2018]
["P022","Ganado porcino y otro tipo de animales vivos n.c.p.",2.705581,"Variación de existencias (PC)",2018]
["P032","Minerales metálicos",-9.9544060000000005,"Variación de existencias (PC)",2018]
["P039","Crustáceos, moluscos y demás invertebrados acuáticos congelados, preparados o en conserva y sus productos",-0.21514,"Variación de existencias (PC)",2018]
["P051","Tortillas de maíz, incluso tostadas, horneadas o fritas",0.32058199999999998,"Variación de existencias (PC)",2018]
["P055","Aguardientes, licores, vinos, demás bebidas espirituosas y productos del tabaco",-17.968119999999999,"Variación de existencias (PC)",2018]
["P066","Productos de la edición",-16.78,"Variación de existencias (PC)",2018]
["P075","Productos farmacéuticos",55.057110999999999,"Variación de existencias (PC)",2018]
["P087","Maquinaria de oficina, contabilidad e informática, sus partes y piezas",-13.936277,"Variación de existencias (PC)",2018]
["P095","Generación y distribución de energía eléctrica, gas, vapor y aire acondicionado",0,"Variación de existencias (PC)",2018]
["P107","Servicios de almacenamiento y depósito",0,"Variación de existencias (PC)",2018]
["P110","Servicio de alojamiento",0,"Variación de existencias (PC)",2018]
["P127","Servicios de agencias de viajes, operadores turísticos y actividades conexas",0,"Variación de existencias (PC)",2018]
["P130","Servicios telefónicos de centros de llamadas",0,"Variación de existencias (PC)",2018]
["P139","Otros servicios administrativos",0,"Variación de existencias (PC)",2018]
["P150","Servicios domésticos",0,"Variación de existencias (PC)",2018]
["P012","Bananos, plátanos y otros",0,"Ajuste CIF/FOB",2018]
["P018","Caucho natural",0,"Ajuste CIF/FOB",2018]
["P030","Crustáceos sin congelar y otros productos de la pesca",0,"Ajuste CIF/FOB",2018]
["P041","Preparaciones y conservas de frutas y nueces",0,"Ajuste CIF/FOB",2018]
["P050","Pan y otros productos de panadería y repostería n.c.p.",0,"Ajuste CIF/FOB",2018]
["P053","Productos alimenticios n.c.p.",0,"Ajuste CIF/FOB",2018]
["P060","Prendas de vestir, adobo y teñido de pieles",0,"Ajuste CIF/FOB",2018]
["P073","Jabón, preparados de limpieza, perfumes y preparados de toilet",0,"Ajuste CIF/FOB",2018]
["P085","Maquinaria para usos generales y especiales, sus partes y piezas, excepto electrodomésticos",0,"Ajuste CIF/FOB",2018]
["P093","Otros artículos n.c.p.",0,"Ajuste CIF/FOB",2018]
["P105","Servicio de transporte de carga por vía terrestre",-1794.12841,"Ajuste CIF/FOB",2018]
["P114","Otros servicios financieros y servicios de banca de inversión",0,"Ajuste CIF/FOB",2018]
["P125","Servicios de arrendamiento o alquiler sin operador",0,"Ajuste CIF/FOB",2018]
["P133","Servicios de reparación de otros bienes",0,"Ajuste CIF/FOB",2018]
["P136","Servicios de manufactura",0,"Ajuste CIF/FOB",2018]
["P148","Servicios de asociaciones que sirven a los hogares",0,"Ajuste CIF/FOB",2018]
["P006","Hortalizas",7473.326016,"Producción (PB)",2019]
["P016","Café en grano",8892.8974629999993,"Producción (PB)",2019]
["P025","Huevos",3249.5217969999999,"Producción (PB)",2019]
["P036","Carne y despojos comestibles de aves",9980.2679189999999,"Producción (PB)",2019]
["P048","Arroz sin cáscara",694.61568,"Producción (PB)",2019]
["P050","Pan y otros productos de panadería y repostería n.c.p.",9992.2260200000001,"Producción (PB)",2019]
["P059","Hilados, tejidos, telas y otros productos textiles excepto prendas de vestir",6145.442403,"Producción (PB)",2019]
["P069","Aceites, grasas lubricantes y otros aceites preparados",0,"Producción (PB)",2019]
["P079","Cemento, cal y yeso",5333.5438759999997,"Producción (PB)",2019]
["P091","Equipo de transporte",666.49183000000005,"Producción (PB)",2019]
["P098","Edificaciones residenciales",27131.527151999999,"Producción (PB)",2019]
["P111","Servicio de suministro de comidas y bebidas",41053.132158,"Producción (PB)",2019]
["P123","Otros servicios profesionales, científicos y técnicos",8858.4505250000002,"Producción (PB)",2019]
["P133","Servicios de reparación de otros bienes",1615.380122,"Producción (PB)",2019]
["P134","Servicios de apoyo a la agricultura, caza, silvicultura y pesca",3336.7801490000002,"Producción (PB)",2019]
["P152","Compras directas en el territorio nacional por no residentes",0,"Producción (PB)",2019]
["P002","Frijoles",0,"Impuestos sobre los productos, excepto IVA e impuestos sobre las importaciones",2019]
["P014","Berries, otras frutas y semillas de frutas",0,"Impuestos sobre los productos, excepto IVA e impuestos sobre las importaciones",2019]
["P019","Propagación de plantas",0,"Impuestos sobre los productos, excepto IVA e impuestos sobre las importaciones",2019]
["P034","Carne y despojos comestibles de ganado bovino; cueros y pieles de bovino y de otros animales",0,"Impuestos sobre los productos, excepto IVA e impuestos sobre las importaciones",2019]
["P044","Margarina, grasas y otros aceites de origen animal y vegetal",0,"Impuestos sobre los productos, excepto IVA e impuestos sobre las importaciones",2019]
["P054","Preparados para alimentación animal",0,"Impuestos sobre los productos, excepto IVA e impuestos sobre las importaciones",2019]
["P057","Bebidas no alcohólicas",339.99725899999999,"Impuestos sobre los productos, excepto IVA e impuestos sobre las importaciones",2019]
["P073","Jabón, preparados de limpieza, perfumes y preparados de toilet",0,"Impuestos sobre los productos, excepto IVA e impuestos sobre las importaciones",2019]
["P077","Vidrio y productos de vidrio",0,"Impuestos sobre los productos, excepto IVA e impuestos sobre las importaciones",2019]
["P088","Maquinaria y aparatos eléctricos, sus partes y piezas",0,"Impuestos sobre los productos, excepto IVA e impuestos sobre las importaciones",2019]
["P097","Evacuación de aguas residuales, recogida, tratamiento y eliminación de desechos",0,"Impuestos sobre los productos, excepto IVA e impuestos sobre las importaciones",2019]
["P109","Servicios postales y de mensajería",0,"Impuestos sobre los productos, excepto IVA e impuestos sobre las importaciones",2019]
["P117","Servicios auxiliares de la intermediación financiera",0,"Impuestos sobre los productos, excepto IVA e impuestos sobre las importaciones",2019]
["P129","Servicios de limpieza",0,"Impuestos sobre los productos, excepto IVA e impuestos sobre las importaciones",2019]
["P132","Servicios de mantenimiento, reparación e instalación de productos metálicos elaborados, maquinaria y equipo",0,"Impuestos sobre los productos, excepto IVA e impuestos sobre las importaciones",2019]
["P145","Otros servicios de atención de la salud humana",0,"Impuestos sobre los productos, excepto IVA e impuestos sobre las importaciones",2019]
["P152","Compras directas en el territorio nacional por no residentes",0,"Impuestos sobre los productos, excepto IVA e impuestos sobre las importaciones",2019]
["P009","Raíces y tubérculos",0,"Subvenciones a los productos",2019]
["P020","Otros frutos oleaginosos, otras plantas bebestibles y especias aromáticas",0,"Subvenciones a los productos",2019]
["P032","Minerales metálicos",0,"Subvenciones a los productos",2019]
["P038","Pescado congelado, preparado o en conserva y sus productos",0,"Subvenciones a los productos",2019]
["P052","Azúcar de caña sin refinar y refinada, melaza y los demás azúcares n.c.p.",0,"Subvenciones a los productos",2019]
["P063","Madera aserrada y acepillada, productos de madera, corcho, paja y materiales trenzables",0,"Subvenciones a los productos",2019]
["P072","Pinturas, barnices, tintas y productos relacionados",0,"Subvenciones a los productos",2019]
["P075","Productos farmacéuticos",0,"Subvenciones a los productos",2019]
["P092","Muebles",0,"Subvenciones a los productos",2019]
["P095","Generación y distribución de energía eléctrica, gas, vapor y aire acondicionado",-813.52796799999999,"Subvenciones a los productos",2019]
["P107","Servicios de almacenamiento y depósito",0,"Subvenciones a los productos",2019]
["P120","Servicios jurídicos, de contabilidad, auditoría, teneduría de libros y consultoría fiscal",0,"Subvenciones a los productos",2019]
["P127","Servicios de agencias de viajes, operadores turísticos y actividades conexas",0,"Subvenciones a los productos",2019]
["P136","Servicios de manufactura",0,"Subvenciones a los productos",2019]
["P147","Servicios de asociaciones que sirven a las empresas",0,"Subvenciones a los productos",2019]
["P151","Compras directas en el exterior por residentes",0,"Subvenciones a los productos",2019]
["P011","Tabaco y otras plantas no perennes",546.31102099999998,"Importaciones (CIF)",2019]
["P018","Caucho natural",3.3716719999999998,"Importaciones (CIF)",2019]
["P028","Productos forestales no madereros",26.078538999999999,"Importaciones (CIF)",2019]
["P043","Aceites de origen vegetal",749.81803500000001,"Importaciones (CIF)",2019]
["P050","Pan y otros productos de panadería y repostería n.c.p.",624.93920200000002,"Importaciones (CIF)",2019]
["P057","Bebidas no alcohólicas",874.69010700000001,"Importaciones (CIF)",2019]
["P070","Gases de petróleo, otros productos de la refinación de petróleo n.c.p.",2842.2296160000001,"Importaciones (CIF)",2019]
["P072","Pinturas, barnices, tintas y productos relacionados",960.23988899999995,"Importaciones (CIF)",2019]
["P086","Electrodomésticos y sus partes",1392.6427309999999,"Importaciones (CIF)",2019]
["P093","Otros artículos n.c.p.",1922.610212,"Importaciones (CIF)",2019]
["P101","Servicios generales y especializados de construcción",95.563625999999999,"Importaciones (CIF)",2019]
["P113","Servicios de banco central",0,"Importaciones (CIF)",2019]
["P126","Servicios  de agencias de empleo y de dotación de recursos humanos",0,"Importaciones (CIF)",2019]
["P129","Servicios de limpieza",0,"Importaciones (CIF)",2019]
["P145","Otros servicios de atención de la salud humana",0.10484599999999999,"Importaciones (CIF)",2019]
["P003","Leguminosas (legumbres secas) y semillas oleaginosas",0.33119900000000002,"Impuestos y derechos sobre las importaciones excepto IVA",2019]
["P009","Raíces y tubérculos",2.9499070000000001,"Impuestos y derechos sobre las importaciones excepto IVA",2019]
["P018","Caucho natural",3.2731000000000003E-2,"Impuestos y derechos sobre las importaciones excepto IVA",2019]
["P029","Peces vivos, frescos o refrigerados",0.29973499999999997,"Impuestos y derechos sobre las importaciones excepto IVA",2019]
["P036","Carne y despojos comestibles de aves",9.6732650000000007,"Impuestos y derechos sobre las importaciones excepto IVA",2019]
["P047","Harina de trigo",0,"Impuestos y derechos sobre las importaciones excepto IVA",2019]
["P052","Azúcar de caña sin refinar y refinada, melaza y los demás azúcares n.c.p.",0.674987,"Impuestos y derechos sobre las importaciones excepto IVA",2019]
["P062","Calzado y sus partes, de cualquier material y de cualquier uso",147.35365999999999,"Impuestos y derechos sobre las importaciones excepto IVA",2019]
["P072","Pinturas, barnices, tintas y productos relacionados",12.706446,"Impuestos y derechos sobre las importaciones excepto IVA",2019]
["P084","Otros productos elaborados de metal",61.643678999999999,"Impuestos y derechos sobre las importaciones excepto IVA",2019]
["P091","Equipo de transporte",135.50278,"Impuestos y derechos sobre las importaciones excepto IVA",2019]
["P104","Servicio de transporte de pasajeros por vía terrestre",0,"Impuestos y derechos sobre las importaciones excepto IVA",2019]
["P111","Servicio de suministro de comidas y bebidas",0,"Impuestos y derechos sobre las importaciones excepto IVA",2019]
["P120","Servicios jurídicos, de contabilidad, auditoría, teneduría de libros y consultoría fiscal",0,"Impuestos y derechos sobre las importaciones excepto IVA",2019]
["P127","Servicios de agencias de viajes, operadores turísticos y actividades conexas",0,"Impuestos y derechos sobre las importaciones excepto IVA",2019]
["P145","Otros servicios de atención de la salud humana",0,"Impuestos y derechos sobre las importaciones excepto IVA",2019]
["P147","Servicios de asociaciones que sirven a las empresas",0,"Impuestos y derechos sobre las importaciones excepto IVA",2019]
["P011","Tabaco y otras plantas no perennes",14.118157,"Impuesto tipo valor agregado (IVA)",2019]
["P012","Bananos, plátanos y otros",40.993836000000002,"Impuesto tipo valor agregado (IVA)",2019]
["P027","Troncos de madera y leña",2.5825170000000002,"Impuesto tipo valor agregado (IVA)",2019]
["P037","Carne y despojos de otros animales y conservas y preparados de carne",222.26077900000001,"Impuesto tipo valor agregado (IVA)",2019]
["P047","Harina de trigo",17.787284,"Impuesto tipo valor agregado (IVA)",2019]
["P050","Pan y otros productos de panadería y repostería n.c.p.",233.51344499999999,"Impuesto tipo valor agregado (IVA)",2019]
["P066","Productos de la edición",156.78891100000001,"Impuesto tipo valor agregado (IVA)",2019]
["P070","Gases de petróleo, otros productos de la refinación de petróleo n.c.p.",392.87356599999998,"Impuesto tipo valor agregado (IVA)",2019]
["P081","Piedras talladas para construcción y otros productos minerales no metálicos n.c.p.",7.0753450000000004,"Impuesto tipo valor agregado (IVA)",2019]
["P090","Aparatos médicos, instrumentos ópticos y de precisión, relojes",81.229467999999997,"Impuesto tipo valor agregado (IVA)",2019]
["P102","Servicios de comercio",0,"Impuesto tipo valor agregado (IVA)",2019]
["P110","Servicio de alojamiento",156.720843,"Impuesto tipo valor agregado (IVA)",2019]
["P122","Servicios de arquitectura e ingeniería, ensayos y análisis técnicos",55.860529,"Impuesto tipo valor agregado (IVA)",2019]
["P125","Servicios de arrendamiento o alquiler sin operador",134.22326100000001,"Impuesto tipo valor agregado (IVA)",2019]
["P142","Servicios de enseñanza",52.930281999999998,"Impuesto tipo valor agregado (IVA)",2019]
["P145","Otros servicios de atención de la salud humana",189.02230399999999,"Impuesto tipo valor agregado (IVA)",2019]
["P002","Frijoles",1293.414172,"Márgenes de comercio, transporte y distribución de energía",2019]
["P013","Frutas tropicales y subtropicales",3826.4529259999999,"Márgenes de comercio, transporte y distribución de energía",2019]
["P025","Huevos",1592.7548859999999,"Márgenes de comercio, transporte y distribución de energía",2019]
["P031","Petróleo crudo y gas natural",70.908463999999995,"Márgenes de comercio, transporte y distribución de energía",2019]
["P045","Leche líquida y crema procesada",700.29650000000004,"Márgenes de comercio, transporte y distribución de energía",2019]
["P056","Malta y cerveza de malta",1578.469382,"Márgenes de comercio, transporte y distribución de energía",2019]
["P065","Envases de papel y cartón",140.417216,"Márgenes de comercio, transporte y distribución de energía",2019]
["P068","Gasolinas, diésel oil y fuel oils",5269.8316830000003,"Márgenes de comercio, transporte y distribución de energía",2019]
["P085","Maquinaria para usos generales y especiales, sus partes y piezas, excepto electrodomésticos",2311.416941,"Márgenes de comercio, transporte y distribución de energía",2019]
["P088","Maquinaria y aparatos eléctricos, sus partes y piezas",709.63732100000004,"Márgenes de comercio, transporte y distribución de energía",2019]
["P104","Servicio de transporte de pasajeros por vía terrestre",0,"Márgenes de comercio, transporte y distribución de energía",2019]
["P108","Otros servicios de apoyo al transporte",0,"Márgenes de comercio, transporte y distribución de energía",2019]
["P120","Servicios jurídicos, de contabilidad, auditoría, teneduría de libros y consultoría fiscal",0,"Márgenes de comercio, transporte y distribución de energía",2019]
["P129","Servicios de limpieza",0,"Márgenes de comercio, transporte y distribución de energía",2019]
["P140","Servicios públicos administrativos prestados a la comunidad en su conjunto",0,"Márgenes de comercio, transporte y distribución de energía",2019]
["P148","Servicios de asociaciones que sirven a los hogares",0,"Márgenes de comercio, transporte y distribución de energía",2019]
["P008","Ejotes y arvejas",42.537509999999997,"Consumo Intermedio (PC)",2019]
["P011","Tabaco y otras plantas no perennes",1345.269446,"Consumo Intermedio (PC)",2019]
["P021","Ganado bovino",4614.8754730000001,"Consumo Intermedio (PC)",2019]
["P031","Petróleo crudo y gas natural",469.720866,"Consumo Intermedio (PC)",2019]
["P043","Aceites de origen vegetal",2278.6590799999999,"Consumo Intermedio (PC)",2019]
["P050","Pan y otros productos de panadería y repostería n.c.p.",1162.747691,"Consumo Intermedio (PC)",2019]
["P063","Madera aserrada y acepillada, productos de madera, corcho, paja y materiales trenzables",4738.0839269999997,"Consumo Intermedio (PC)",2019]
["P069","Aceites, grasas lubricantes y otros aceites preparados",1255.1454060000001,"Consumo Intermedio (PC)",2019]
["P083","Productos metálicos estructurales y sus partes de hierro o de acero",1344.3331439999999,"Consumo Intermedio (PC)",2019]
["P086","Electrodomésticos y sus partes",118.853111,"Consumo Intermedio (PC)",2019]
["P094","Residuos y desechos",2166.6534390000002,"Consumo Intermedio (PC)",2019]
["P106","Otros tipos de transporte",789.78286400000002,"Consumo Intermedio (PC)",2019]
["P113","Servicios de banco central",0,"Consumo Intermedio (PC)",2019]
["P126","Servicios  de agencias de empleo y de dotación de recursos humanos",6582.3956879999996,"Consumo Intermedio (PC)",2019]
["P138","Servicios públicos administrativos relacionados con la provisión de servicios educativos, de salud, servicios sociales, culturales y otros, sin contar los servicios de seguridad social",0,"Consumo Intermedio (PC)",2019]
["P148","Servicios de asociaciones que sirven a los hogares",0,"Consumo Intermedio (PC)",2019]
["P006","Hortalizas",21712.650583999999,"Consumo Final privado (PC)",2019]
["P015","Palma africana",0,"Consumo Final privado (PC)",2019]
["P017","Cardamomo",0,"Consumo Final privado (PC)",2019]
["P029","Peces vivos, frescos o refrigerados",1953.9002069999999,"Consumo Final privado (PC)",2019]
["P044","Margarina, grasas y otros aceites de origen animal y vegetal",1106.2081539999999,"Consumo Final privado (PC)",2019]
["P049","Otros productos de molinería, almidones y productos de almidón",2448.6492130000001,"Consumo Final privado (PC)",2019]
["P059","Hilados, tejidos, telas y otros productos textiles excepto prendas de vestir",3278.0470030000001,"Consumo Final privado (PC)",2019]
["P069","Aceites, grasas lubricantes y otros aceites preparados",88.257991000000004,"Consumo Final privado (PC)",2019]
["P081","Piedras talladas para construcción y otros productos minerales no metálicos n.c.p.",49.930978000000003,"Consumo Final privado (PC)",2019]
["P088","Maquinaria y aparatos eléctricos, sus partes y piezas",427.05382300000002,"Consumo Final privado (PC)",2019]
["P092","Muebles",5042.6094810000004,"Consumo Final privado (PC)",2019]
["P104","Servicio de transporte de pasajeros por vía terrestre",8300.5435290000005,"Consumo Final privado (PC)",2019]
["P117","Servicios auxiliares de la intermediación financiera",2640.062864,"Consumo Final privado (PC)",2019]
["P124","Servicios de publicidad y estudios de mercado",4.2089119999999998,"Consumo Final privado (PC)",2019]
["P132","Servicios de mantenimiento, reparación e instalación de productos metálicos elaborados, maquinaria y equipo",2.5247839999999999,"Consumo Final privado (PC)",2019]
["P144","Servicios médicos y dentales",6307.3692549999996,"Consumo Final privado (PC)",2019]
["P004","Arroz",0,"Consumo Final del Gobierno (PC)",2019]
["P009","Raíces y tubérculos",0,"Consumo Final del Gobierno (PC)",2019]
["P015","Palma africana",0,"Consumo Final del Gobierno (PC)",2019]
["P024","Leche cruda",0,"Consumo Final del Gobierno (PC)",2019]
["P035","Carne y despojos comestibles de ganado porcino",0,"Consumo Final del Gobierno (PC)",2019]
["P047","Harina de trigo",0,"Consumo Final del Gobierno (PC)",2019]
["P053","Productos alimenticios n.c.p.",88.030910000000006,"Consumo Final del Gobierno (PC)",2019]
["P067","Productos de la impresión",0,"Consumo Final del Gobierno (PC)",2019]
["P078","Productos de cerámica y arcilla",0,"Consumo Final del Gobierno (PC)",2019]
["P083","Productos metálicos estructurales y sus partes de hierro o de acero",0,"Consumo Final del Gobierno (PC)",2019]
["P090","Aparatos médicos, instrumentos ópticos y de precisión, relojes",10.904396999999999,"Consumo Final del Gobierno (PC)",2019]
["P107","Servicios de almacenamiento y depósito",0,"Consumo Final del Gobierno (PC)",2019]
["P110","Servicio de alojamiento",0,"Consumo Final del Gobierno (PC)",2019]
["P122","Servicios de arquitectura e ingeniería, ensayos y análisis técnicos",0,"Consumo Final del Gobierno (PC)",2019]
["P136","Servicios de manufactura",0,"Consumo Final del Gobierno (PC)",2019]
["P142","Servicios de enseñanza",17924.716640999999,"Consumo Final del Gobierno (PC)",2019]
["P151","Compras directas en el exterior por residentes",0,"Consumo Final del Gobierno (PC)",2019]
["P006","Hortalizas",0,"Formación Bruta de Capital Fijo (PC)",2019]
["P013","Frutas tropicales y subtropicales",153.74412000000001,"Formación Bruta de Capital Fijo (PC)",2019]
["P028","Productos forestales no madereros",0,"Formación Bruta de Capital Fijo (PC)",2019]
["P033","Minerales no metálicos",0,"Formación Bruta de Capital Fijo (PC)",2019]
["P043","Aceites de origen vegetal",0,"Formación Bruta de Capital Fijo (PC)",2019]
["P058","Aguas minerales y otras aguas embotelladas",0,"Formación Bruta de Capital Fijo (PC)",2019]
["P065","Envases de papel y cartón",0,"Formación Bruta de Capital Fijo (PC)",2019]
["P072","Pinturas, barnices, tintas y productos relacionados",0,"Formación Bruta de Capital Fijo (PC)",2019]
["P085","Maquinaria para usos generales y especiales, sus partes y piezas, excepto electrodomésticos",7836.3207400000001,"Formación Bruta de Capital Fijo (PC)",2019]
["P097","Evacuación de aguas residuales, recogida, tratamiento y eliminación de desechos",0,"Formación Bruta de Capital Fijo (PC)",2019]
["P101","Servicios generales y especializados de construcción",0,"Formación Bruta de Capital Fijo (PC)",2019]
["P108","Otros servicios de apoyo al transporte",0,"Formación Bruta de Capital Fijo (PC)",2019]
["P116","Servicios de seguro, reaseguro y fondos de pensiones",0,"Formación Bruta de Capital Fijo (PC)",2019]
["P133","Servicios de reparación de otros bienes",0,"Formación Bruta de Capital Fijo (PC)",2019]
["P141","Servicios administrativos relacionados con los sistemas de seguridad social de afiliación obligatoria",0,"Formación Bruta de Capital Fijo (PC)",2019]
["P001","Maíz",9.3334299999999999,"Exportaciones (fob)",2019]
["P008","Ejotes y arvejas",1036.402165,"Exportaciones (fob)",2019]
["P018","Caucho natural",1114.8633629999999,"Exportaciones (fob)",2019]
["P024","Leche cruda",0,"Exportaciones (fob)",2019]
["P031","Petróleo crudo y gas natural",778.87998200000004,"Exportaciones (fob)",2019]
["P047","Harina de trigo",21.809463000000001,"Exportaciones (fob)",2019]
["P051","Tortillas de maíz, incluso tostadas, horneadas o fritas",0,"Exportaciones (fob)",2019]
["P062","Calzado y sus partes, de cualquier material y de cualquier uso",239.48602399999999,"Exportaciones (fob)",2019]
["P076","Productos de caucho y plástico",2669.4421710000001,"Exportaciones (fob)",2019]
["P083","Productos metálicos estructurales y sus partes de hierro o de acero",163.657963,"Exportaciones (fob)",2019]
["P091","Equipo de transporte",256.20765499999999,"Exportaciones (fob)",2019]
["P099","Edificaciones no residenciales",0,"Exportaciones (fob)",2019]
["P106","Otros tipos de transporte",25.677890000000001,"Exportaciones (fob)",2019]
["P119","Otros servicios inmobiliarios, excepto alquiler de vivienda",0,"Exportaciones (fob)",2019]
["P126","Servicios  de agencias de empleo y de dotación de recursos humanos",0,"Exportaciones (fob)",2019]
["P135","Servicios de apoyo a la explotación de minas y canteras y los relacionados con la distribución de electricidad, gas y agua",0,"Exportaciones (fob)",2019]
["P151","Compras directas en el exterior por residentes",0,"Exportaciones (fob)",2019]
["P008","Ejotes y arvejas",0,"Variación de existencias (PC)",2019]
["P010","Caña de azúcar y otras plantas azucareras",-261.15270600000002,"Variación de existencias (PC)",2019]
["P022","Ganado porcino y otro tipo de animales vivos n.c.p.",0.530223,"Variación de existencias (PC)",2019]
["P037","Carne y despojos de otros animales y conservas y preparados de carne",4.2506599999999999,"Variación de existencias (PC)",2019]
["P042","Jugos de frutas",-14.121228,"Variación de existencias (PC)",2019]
["P052","Azúcar de caña sin refinar y refinada, melaza y los demás azúcares n.c.p.",142.95887200000001,"Variación de existencias (PC)",2019]
["P062","Calzado y sus partes, de cualquier material y de cualquier uso",27.614329000000001,"Variación de existencias (PC)",2019]
["P074","Otros productos químicos",-212.42694499999999,"Variación de existencias (PC)",2019]
["P081","Piedras talladas para construcción y otros productos minerales no metálicos n.c.p.",20.297091999999999,"Variación de existencias (PC)",2019]
["P085","Maquinaria para usos generales y especiales, sus partes y piezas, excepto electrodomésticos",175.79880700000001,"Variación de existencias (PC)",2019]
["P101","Servicios generales y especializados de construcción",0,"Variación de existencias (PC)",2019]
["P110","Servicio de alojamiento",0,"Variación de existencias (PC)",2019]
["P117","Servicios auxiliares de la intermediación financiera",0,"Variación de existencias (PC)",2019]
["P125","Servicios de arrendamiento o alquiler sin operador",0,"Variación de existencias (PC)",2019]
["P137","Servicios públicos del gobierno general",0,"Variación de existencias (PC)",2019]
["P149","Otros servicios",0,"Variación de existencias (PC)",2019]
["P002","Frijoles",0,"Ajuste CIF/FOB",2019]
["P008","Ejotes y arvejas",0,"Ajuste CIF/FOB",2019]
["P017","Cardamomo",0,"Ajuste CIF/FOB",2019]
["P028","Productos forestales no madereros",0,"Ajuste CIF/FOB",2019]
["P040","Vegetales preparados o en conserva, legumbres y papas",0,"Ajuste CIF/FOB",2019]
["P046","Otros productos lácteos n.c.p.",0,"Ajuste CIF/FOB",2019]
["P060","Prendas de vestir, adobo y teñido de pieles",0,"Ajuste CIF/FOB",2019]
["P071","Abonos, fertilizantes y pesticidas",0,"Ajuste CIF/FOB",2019]
["P080","Artículos de hormigón, cemento y yeso",0,"Ajuste CIF/FOB",2019]
["P083","Productos metálicos estructurales y sus partes de hierro o de acero",0,"Ajuste CIF/FOB",2019]
["P100","Obras de ingeniería civil",0,"Ajuste CIF/FOB",2019]
["P103","Mantenimiento y reparación de vehículos automotores y motocicletas",0,"Ajuste CIF/FOB",2019]
["P115","Servicios de Intermediación Financiera Medidos Indirectamente (SIFMI)",0,"Ajuste CIF/FOB",2019]
["P129","Servicios de limpieza",0,"Ajuste CIF/FOB",2019]
["P135","Servicios de apoyo a la explotación de minas y canteras y los relacionados con la distribución de electricidad, gas y agua",0,"Ajuste CIF/FOB",2019]
["P144","Servicios médicos y dentales",0,"Ajuste CIF/FOB",2019]
["P003","Leguminosas (legumbres secas) y semillas oleaginosas",377.77530000000002,"Producción (PB)",2020]
["P006","Hortalizas",7174.0734350000002,"Producción (PB)",2020]
["P021","Ganado bovino",4535.6000679999997,"Producción (PB)",2020]
["P026","Otros productos de animales vivos",105.758544,"Producción (PB)",2020]
["P040","Vegetales preparados o en conserva, legumbres y papas",1366.7904249999999,"Producción (PB)",2020]
["P046","Otros productos lácteos n.c.p.",2754.6570529999999,"Producción (PB)",2020]
["P058","Aguas minerales y otras aguas embotelladas",1690.925931,"Producción (PB)",2020]
["P065","Envases de papel y cartón",3544.717733,"Producción (PB)",2020]
["P078","Productos de cerámica y arcilla",1657.170791,"Producción (PB)",2020]
["P084","Otros productos elaborados de metal",3402.2113490000002,"Producción (PB)",2020]
["P098","Edificaciones residenciales",28143.156755,"Producción (PB)",2020]
["P101","Servicios generales y especializados de construcción",12691.815687,"Producción (PB)",2020]
["P109","Servicios postales y de mensajería",1506.6421150000001,"Producción (PB)",2020]
["P121","Servicios de tecnología de la información",2875.9497110000002,"Producción (PB)",2020]
["P128","Servicios de seguridad, sistemas de seguridad e investigación privada",4093.5383820000002,"Producción (PB)",2020]
["P141","Servicios administrativos relacionados con los sistemas de seguridad social de afiliación obligatoria",1069.5666200000001,"Producción (PB)",2020]
["P001","Maíz",0,"Impuestos sobre los productos, excepto IVA e impuestos sobre las importaciones",2020]
["P005","Otros cereales",0,"Impuestos sobre los productos, excepto IVA e impuestos sobre las importaciones",2020]
["P021","Ganado bovino",0,"Impuestos sobre los productos, excepto IVA e impuestos sobre las importaciones",2020]
["P024","Leche cruda",0,"Impuestos sobre los productos, excepto IVA e impuestos sobre las importaciones",2020]
["P040","Vegetales preparados o en conserva, legumbres y papas",0,"Impuestos sobre los productos, excepto IVA e impuestos sobre las importaciones",2020]
["P044","Margarina, grasas y otros aceites de origen animal y vegetal",0,"Impuestos sobre los productos, excepto IVA e impuestos sobre las importaciones",2020]
["P059","Hilados, tejidos, telas y otros productos textiles excepto prendas de vestir",0,"Impuestos sobre los productos, excepto IVA e impuestos sobre las importaciones",2020]
["P064","Pasta de papel y papel",0,"Impuestos sobre los productos, excepto IVA e impuestos sobre las importaciones",2020]
["P076","Productos de caucho y plástico",0,"Impuestos sobre los productos, excepto IVA e impuestos sobre las importaciones",2020]
["P088","Maquinaria y aparatos eléctricos, sus partes y piezas",0,"Impuestos sobre los productos, excepto IVA e impuestos sobre las importaciones",2020]
["P096","Agua natural y distribución de agua natural",0,"Impuestos sobre los productos, excepto IVA e impuestos sobre las importaciones",2020]
["P103","Mantenimiento y reparación de vehículos automotores y motocicletas",0,"Impuestos sobre los productos, excepto IVA e impuestos sobre las importaciones",2020]
["P116","Servicios de seguro, reaseguro y fondos de pensiones",17.759779000000002,"Impuestos sobre los productos, excepto IVA e impuestos sobre las importaciones",2020]
["P119","Otros servicios inmobiliarios, excepto alquiler de vivienda",1.6573999999999998E-2,"Impuestos sobre los productos, excepto IVA e impuestos sobre las importaciones",2020]
["P132","Servicios de mantenimiento, reparación e instalación de productos metálicos elaborados, maquinaria y equipo",0,"Impuestos sobre los productos, excepto IVA e impuestos sobre las importaciones",2020]
["P139","Otros servicios administrativos",0,"Impuestos sobre los productos, excepto IVA e impuestos sobre las importaciones",2020]
["P147","Servicios de asociaciones que sirven a las empresas",0,"Impuestos sobre los productos, excepto IVA e impuestos sobre las importaciones",2020]
["P007","Sandías y melones",0,"Subvenciones a los productos",2020]
["P019","Propagación de plantas",0,"Subvenciones a los productos",2020]
["P024","Leche cruda",0,"Subvenciones a los productos",2020]
["P039","Crustáceos, moluscos y demás invertebrados acuáticos congelados, preparados o en conserva y sus productos",0,"Subvenciones a los productos",2020]
["P042","Jugos de frutas",0,"Subvenciones a los productos",2020]
["P053","Productos alimenticios n.c.p.",0,"Subvenciones a los productos",2020]
["P062","Calzado y sus partes, de cualquier material y de cualquier uso",0,"Subvenciones a los productos",2020]
["P068","Gasolinas, diésel oil y fuel oils",0,"Subvenciones a los productos",2020]
["P082","Métales básicos de hierro y acero, productos primarios de metales preciosos y otros metales no ferrosos",0,"Subvenciones a los productos",2020]
["P094","Residuos y desechos",0,"Subvenciones a los productos",2020]
["P097","Evacuación de aguas residuales, recogida, tratamiento y eliminación de desechos",0,"Subvenciones a los productos",2020]
["P114","Otros servicios financieros y servicios de banca de inversión",0,"Subvenciones a los productos",2020]
["P122","Servicios de arquitectura e ingeniería, ensayos y análisis técnicos",0,"Subvenciones a los productos",2020]
["P125","Servicios de arrendamiento o alquiler sin operador",0,"Subvenciones a los productos",2020]
["P137","Servicios públicos del gobierno general",0,"Subvenciones a los productos",2020]
["P151","Compras directas en el exterior por residentes",0,"Subvenciones a los productos",2020]
["P005","Otros cereales",1329.6723710000001,"Importaciones (CIF)",2020]
["P014","Berries, otras frutas y semillas de frutas",576.00430800000004,"Importaciones (CIF)",2020]
["P021","Ganado bovino",1.554432,"Importaciones (CIF)",2020]
["P037","Carne y despojos de otros animales y conservas y preparados de carne",497.32087799999999,"Importaciones (CIF)",2020]
["P043","Aceites de origen vegetal",980.04794400000003,"Importaciones (CIF)",2020]
["P048","Arroz sin cáscara",169.49684099999999,"Importaciones (CIF)",2020]
["P058","Aguas minerales y otras aguas embotelladas",17.071148999999998,"Importaciones (CIF)",2020]
["P073","Jabón, preparados de limpieza, perfumes y preparados de toilet",2954.1122169999999,"Importaciones (CIF)",2020]
["P080","Artículos de hormigón, cemento y yeso",140.124527,"Importaciones (CIF)",2020]
["P087","Maquinaria de oficina, contabilidad e informática, sus partes y piezas",2185.4147830000002,"Importaciones (CIF)",2020]
["P096","Agua natural y distribución de agua natural",0,"Importaciones (CIF)",2020]
["P112","Servicios de información, telecomunicaciones y radiodifusión",2150.9677620000002,"Importaciones (CIF)",2020]
["P116","Servicios de seguro, reaseguro y fondos de pensiones",2104.5758270000001,"Importaciones (CIF)",2020]
["P123","Otros servicios profesionales, científicos y técnicos",498.15094800000003,"Importaciones (CIF)",2020]
["P141","Servicios administrativos relacionados con los sistemas de seguridad social de afiliación obligatoria",0,"Importaciones (CIF)",2020]
["P148","Servicios de asociaciones que sirven a los hogares",0,"Importaciones (CIF)",2020]
["P003","Leguminosas (legumbres secas) y semillas oleaginosas",0.28953299999999998,"Impuestos y derechos sobre las importaciones excepto IVA",2020]
["P008","Ejotes y arvejas",0,"Impuestos y derechos sobre las importaciones excepto IVA",2020]
["P023","Aves de corral",0,"Impuestos y derechos sobre las importaciones excepto IVA",2020]
["P033","Minerales no metálicos",1.5269980000000001,"Impuestos y derechos sobre las importaciones excepto IVA",2020]
["P039","Crustáceos, moluscos y demás invertebrados acuáticos congelados, preparados o en conserva y sus productos",1.1085739999999999,"Impuestos y derechos sobre las importaciones excepto IVA",2020]
["P046","Otros productos lácteos n.c.p.",100.598738,"Impuestos y derechos sobre las importaciones excepto IVA",2020]
["P062","Calzado y sus partes, de cualquier material y de cualquier uso",103.39215,"Impuestos y derechos sobre las importaciones excepto IVA",2020]
["P071","Abonos, fertilizantes y pesticidas",52.709677999999997,"Impuestos y derechos sobre las importaciones excepto IVA",2020]
["P077","Vidrio y productos de vidrio",15.532277000000001,"Impuestos y derechos sobre las importaciones excepto IVA",2020]
["P091","Equipo de transporte",111.45243499999999,"Impuestos y derechos sobre las importaciones excepto IVA",2020]
["P098","Edificaciones residenciales",0,"Impuestos y derechos sobre las importaciones excepto IVA",2020]
["P106","Otros tipos de transporte",0,"Impuestos y derechos sobre las importaciones excepto IVA",2020]
["P114","Otros servicios financieros y servicios de banca de inversión",0,"Impuestos y derechos sobre las importaciones excepto IVA",2020]
["P121","Servicios de tecnología de la información",0,"Impuestos y derechos sobre las importaciones excepto IVA",2020]
["P134","Servicios de apoyo a la agricultura, caza, silvicultura y pesca",0,"Impuestos y derechos sobre las importaciones excepto IVA",2020]
["P146","Servicios audiovisuales, recreativos, culturales y deportivos",0,"Impuestos y derechos sobre las importaciones excepto IVA",2020]
["P150","Servicios domésticos",0,"Impuestos y derechos sobre las importaciones excepto IVA",2020]
["P014","Berries, otras frutas y semillas de frutas",101.403623,"Impuesto tipo valor agregado (IVA)",2020]
["P021","Ganado bovino",2.2372619999999999,"Impuesto tipo valor agregado (IVA)",2020]
["P027","Troncos de madera y leña",2.6322580000000002,"Impuesto tipo valor agregado (IVA)",2020]
["P037","Carne y despojos de otros animales y conservas y preparados de carne",240.17857000000001,"Impuesto tipo valor agregado (IVA)",2020]
["P052","Azúcar de caña sin refinar y refinada, melaza y los demás azúcares n.c.p.",560.58267599999999,"Impuesto tipo valor agregado (IVA)",2020]
["P057","Bebidas no alcohólicas",1216.1636060000001,"Impuesto tipo valor agregado (IVA)",2020]
["P064","Pasta de papel y papel",362.92278099999999,"Impuesto tipo valor agregado (IVA)",2020]
["P081","Piedras talladas para construcción y otros productos minerales no metálicos n.c.p.",5.7401590000000002,"Impuesto tipo valor agregado (IVA)",2020]
["P089","Equipo y aparatos de radio, televisión y comunicaciones",990.94543099999999,"Impuesto tipo valor agregado (IVA)",2020]
["P096","Agua natural y distribución de agua natural",108.350589,"Impuesto tipo valor agregado (IVA)",2020]
["P109","Servicios postales y de mensajería",53.990631999999998,"Impuesto tipo valor agregado (IVA)",2020]
["P112","Servicios de información, telecomunicaciones y radiodifusión",2366.6884580000001,"Impuesto tipo valor agregado (IVA)",2020]
["P125","Servicios de arrendamiento o alquiler sin operador",121.053386,"Impuesto tipo valor agregado (IVA)",2020]
["P132","Servicios de mantenimiento, reparación e instalación de productos metálicos elaborados, maquinaria y equipo",60.991599999999998,"Impuesto tipo valor agregado (IVA)",2020]
["P140","Servicios públicos administrativos prestados a la comunidad en su conjunto",0,"Impuesto tipo valor agregado (IVA)",2020]
["P152","Compras directas en el territorio nacional por no residentes",0,"Impuesto tipo valor agregado (IVA)",2020]
["P012","Bananos, plátanos y otros",3590.6396060000002,"Márgenes de comercio, transporte y distribución de energía",2020]
["P017","Cardamomo",159.73029500000001,"Márgenes de comercio, transporte y distribución de energía",2020]
["P032","Minerales metálicos",1.4801999999999999E-2,"Márgenes de comercio, transporte y distribución de energía",2020]
["P039","Crustáceos, moluscos y demás invertebrados acuáticos congelados, preparados o en conserva y sus productos",112.167599,"Márgenes de comercio, transporte y distribución de energía",2020]
["P046","Otros productos lácteos n.c.p.",2358.7329589999999,"Márgenes de comercio, transporte y distribución de energía",2020]
["P055","Aguardientes, licores, vinos, demás bebidas espirituosas y productos del tabaco",1257.5724170000001,"Márgenes de comercio, transporte y distribución de energía",2020]
["P061","Cuero de piel curtida o adobada y cuero artificial o regenerado y artículos de cuero",454.95860800000003,"Márgenes de comercio, transporte y distribución de energía",2020]
["P075","Productos farmacéuticos",4407.1144800000002,"Márgenes de comercio, transporte y distribución de energía",2020]
["P087","Maquinaria de oficina, contabilidad e informática, sus partes y piezas",896.09811400000001,"Márgenes de comercio, transporte y distribución de energía",2020]
["P090","Aparatos médicos, instrumentos ópticos y de precisión, relojes",1049.1150339999999,"Márgenes de comercio, transporte y distribución de energía",2020]
["P107","Servicios de almacenamiento y depósito",0,"Márgenes de comercio, transporte y distribución de energía",2020]
["P115","Servicios de Intermediación Financiera Medidos Indirectamente (SIFMI)",0,"Márgenes de comercio, transporte y distribución de energía",2020]
["P118","Servicios de alquiler de vivienda",0,"Márgenes de comercio, transporte y distribución de energía",2020]
["P130","Servicios telefónicos de centros de llamadas",0,"Márgenes de comercio, transporte y distribución de energía",2020]
["P144","Servicios médicos y dentales",0,"Márgenes de comercio, transporte y distribución de energía",2020]
["P150","Servicios domésticos",0,"Márgenes de comercio, transporte y distribución de energía",2020]
["P011","Tabaco y otras plantas no perennes",1164.979613,"Consumo Intermedio (PC)",2020]
["P018","Caucho natural",708.39851199999998,"Consumo Intermedio (PC)",2020]
["P030","Crustáceos sin congelar y otros productos de la pesca",409.577111,"Consumo Intermedio (PC)",2020]
["P036","Carne y despojos comestibles de aves",1933.094652,"Consumo Intermedio (PC)",2020]
["P041","Preparaciones y conservas de frutas y nueces",449.31576000000001,"Consumo Intermedio (PC)",2020]
["P055","Aguardientes, licores, vinos, demás bebidas espirituosas y productos del tabaco",516.96097399999996,"Consumo Intermedio (PC)",2020]
["P061","Cuero de piel curtida o adobada y cuero artificial o regenerado y artículos de cuero",764.08234900000002,"Consumo Intermedio (PC)",2020]
["P073","Jabón, preparados de limpieza, perfumes y preparados de toilet",1373.5653150000001,"Consumo Intermedio (PC)",2020]
["P080","Artículos de hormigón, cemento y yeso",3708.5937239999998,"Consumo Intermedio (PC)",2020]
["P093","Otros artículos n.c.p.",1699.190349,"Consumo Intermedio (PC)",2020]
["P105","Servicio de transporte de carga por vía terrestre",6402.6272349999999,"Consumo Intermedio (PC)",2020]
["P109","Servicios postales y de mensajería",1116.105,"Consumo Intermedio (PC)",2020]
["P116","Servicios de seguro, reaseguro y fondos de pensiones",3809.0071830000002,"Consumo Intermedio (PC)",2020]
["P128","Servicios de seguridad, sistemas de seguridad e investigación privada",3859.474925,"Consumo Intermedio (PC)",2020]
["P136","Servicios de manufactura",2089.339058,"Consumo Intermedio (PC)",2020]
["P148","Servicios de asociaciones que sirven a los hogares",0,"Consumo Intermedio (PC)",2020]
["P001","Maíz",6762.6794760000002,"Consumo Final privado (PC)",2020]
["P016","Café en grano",0,"Consumo Final privado (PC)",2020]
["P020","Otros frutos oleaginosos, otras plantas bebestibles y especias aromáticas",527.56937400000004,"Consumo Final privado (PC)",2020]
["P036","Carne y despojos comestibles de aves",13302.232507999999,"Consumo Final privado (PC)",2020]
["P039","Crustáceos, moluscos y demás invertebrados acuáticos congelados, preparados o en conserva y sus productos",99.236305999999999,"Consumo Final privado (PC)",2020]
["P055","Aguardientes, licores, vinos, demás bebidas espirituosas y productos del tabaco",2271.508002,"Consumo Final privado (PC)",2020]
["P059","Hilados, tejidos, telas y otros productos textiles excepto prendas de vestir",4599.0369270000001,"Consumo Final privado (PC)",2020]
["P074","Otros productos químicos",1666.1097179999999,"Consumo Final privado (PC)",2020]
["P079","Cemento, cal y yeso",89.744017999999997,"Consumo Final privado (PC)",2020]
["P091","Equipo de transporte",8579.5278259999995,"Consumo Final privado (PC)",2020]
["P103","Mantenimiento y reparación de vehículos automotores y motocicletas",9309.3883220000007,"Consumo Final privado (PC)",2020]
["P111","Servicio de suministro de comidas y bebidas",30781.879392999999,"Consumo Final privado (PC)",2020]
["P114","Otros servicios financieros y servicios de banca de inversión",698.33163000000002,"Consumo Final privado (PC)",2020]
["P128","Servicios de seguridad, sistemas de seguridad e investigación privada",316.72065600000002,"Consumo Final privado (PC)",2020]
["P134","Servicios de apoyo a la agricultura, caza, silvicultura y pesca",0,"Consumo Final privado (PC)",2020]
["P147","Servicios de asociaciones que sirven a las empresas",0,"Consumo Final privado (PC)",2020]
["P002","Frijoles",444.12742400000002,"Consumo Final del Gobierno (PC)",2020]
["P014","Berries, otras frutas y semillas de frutas",31.830535999999999,"Consumo Final del Gobierno (PC)",2020]
["P024","Leche cruda",0,"Consumo Final del Gobierno (PC)",2020]
["P034","Carne y despojos comestibles de ganado bovino; cueros y pieles de bovino y de otros animales",9.8694000000000004E-2,"Consumo Final del Gobierno (PC)",2020]
["P039","Crustáceos, moluscos y demás invertebrados acuáticos congelados, preparados o en conserva y sus productos",0,"Consumo Final del Gobierno (PC)",2020]
["P054","Preparados para alimentación animal",0,"Consumo Final del Gobierno (PC)",2020]
["P057","Bebidas no alcohólicas",0.74691799999999997,"Consumo Final del Gobierno (PC)",2020]
["P068","Gasolinas, diésel oil y fuel oils",0,"Consumo Final del Gobierno (PC)",2020]
["P077","Vidrio y productos de vidrio",0,"Consumo Final del Gobierno (PC)",2020]
["P093","Otros artículos n.c.p.",7.3814890000000002,"Consumo Final del Gobierno (PC)",2020]
["P097","Evacuación de aguas residuales, recogida, tratamiento y eliminación de desechos",0,"Consumo Final del Gobierno (PC)",2020]
["P109","Servicios postales y de mensajería",0,"Consumo Final del Gobierno (PC)",2020]
["P112","Servicios de información, telecomunicaciones y radiodifusión",0,"Consumo Final del Gobierno (PC)",2020]
["P129","Servicios de limpieza",0,"Consumo Final del Gobierno (PC)",2020]
["P137","Servicios públicos del gobierno general",12825.534018,"Consumo Final del Gobierno (PC)",2020]
["P145","Otros servicios de atención de la salud humana",136.649474,"Consumo Final del Gobierno (PC)",2020]
["P152","Compras directas en el territorio nacional por no residentes",0,"Consumo Final del Gobierno (PC)",2020]
["P014","Berries, otras frutas y semillas de frutas",192.36544599999999,"Formación Bruta de Capital Fijo (PC)",2020]
["P020","Otros frutos oleaginosos, otras plantas bebestibles y especias aromáticas",9.2233710000000002,"Formación Bruta de Capital Fijo (PC)",2020]
["P032","Minerales metálicos",0,"Formación Bruta de Capital Fijo (PC)",2020]
["P043","Aceites de origen vegetal",0,"Formación Bruta de Capital Fijo (PC)",2020]
["P052","Azúcar de caña sin refinar y refinada, melaza y los demás azúcares n.c.p.",0,"Formación Bruta de Capital Fijo (PC)",2020]
["P058","Aguas minerales y otras aguas embotelladas",0,"Formación Bruta de Capital Fijo (PC)",2020]
["P068","Gasolinas, diésel oil y fuel oils",0,"Formación Bruta de Capital Fijo (PC)",2020]
["P075","Productos farmacéuticos",0,"Formación Bruta de Capital Fijo (PC)",2020]
["P087","Maquinaria de oficina, contabilidad e informática, sus partes y piezas",2086.1574249999999,"Formación Bruta de Capital Fijo (PC)",2020]
["P095","Generación y distribución de energía eléctrica, gas, vapor y aire acondicionado",0,"Formación Bruta de Capital Fijo (PC)",2020]
["P102","Servicios de comercio",0,"Formación Bruta de Capital Fijo (PC)",2020]
["P111","Servicio de suministro de comidas y bebidas",0,"Formación Bruta de Capital Fijo (PC)",2020]
["P127","Servicios de agencias de viajes, operadores turísticos y actividades conexas",0,"Formación Bruta de Capital Fijo (PC)",2020]
["P131","Servicios administrativos, de apoyo de oficina y otros servicios de apoyo a las empresas",0,"Formación Bruta de Capital Fijo (PC)",2020]
["P147","Servicios de asociaciones que sirven a las empresas",0,"Formación Bruta de Capital Fijo (PC)",2020]
["P004","Arroz",0,"Exportaciones (fob)",2020]
["P011","Tabaco y otras plantas no perennes",339.89020199999999,"Exportaciones (fob)",2020]
["P018","Caucho natural",1120.5000620000001,"Exportaciones (fob)",2020]
["P033","Minerales no metálicos",123.904797,"Exportaciones (fob)",2020]
["P034","Carne y despojos comestibles de ganado bovino; cueros y pieles de bovino y de otros animales",51.219365000000003,"Exportaciones (fob)",2020]
["P048","Arroz sin cáscara",4.9961880000000001,"Exportaciones (fob)",2020]
["P054","Preparados para alimentación animal",735.63982599999997,"Exportaciones (fob)",2020]
["P070","Gases de petróleo, otros productos de la refinación de petróleo n.c.p.",772.47817499999996,"Exportaciones (fob)",2020]
["P077","Vidrio y productos de vidrio",580.55589099999997,"Exportaciones (fob)",2020]
["P086","Electrodomésticos y sus partes",44.285513999999999,"Exportaciones (fob)",2020]
["P093","Otros artículos n.c.p.",295.469311,"Exportaciones (fob)",2020]
["P106","Otros tipos de transporte",11.116557,"Exportaciones (fob)",2020]
["P113","Servicios de banco central",0,"Exportaciones (fob)",2020]
["P121","Servicios de tecnología de la información",394.55823500000002,"Exportaciones (fob)",2020]
["P129","Servicios de limpieza",0,"Exportaciones (fob)",2020]
["P145","Otros servicios de atención de la salud humana",77.509317999999993,"Exportaciones (fob)",2020]
["P150","Servicios domésticos",0,"Exportaciones (fob)",2020]
["P009","Raíces y tubérculos",0,"Variación de existencias (PC)",2020]
["P013","Frutas tropicales y subtropicales",0,"Variación de existencias (PC)",2020]
["P029","Peces vivos, frescos o refrigerados",0,"Variación de existencias (PC)",2020]
["P036","Carne y despojos comestibles de aves",-12.697620000000001,"Variación de existencias (PC)",2020]
["P042","Jugos de frutas",15.235868999999999,"Variación de existencias (PC)",2020]
["P052","Azúcar de caña sin refinar y refinada, melaza y los demás azúcares n.c.p.",-406.13754599999999,"Variación de existencias (PC)",2020]
["P067","Productos de la impresión",-173.064683,"Variación de existencias (PC)",2020]
["P072","Pinturas, barnices, tintas y productos relacionados",8.6995000000000005,"Variación de existencias (PC)",2020]
["P084","Otros productos elaborados de metal",-49.484946999999998,"Variación de existencias (PC)",2020]
["P096","Agua natural y distribución de agua natural",0,"Variación de existencias (PC)",2020]
["P104","Servicio de transporte de pasajeros por vía terrestre",0,"Variación de existencias (PC)",2020]
["P111","Servicio de suministro de comidas y bebidas",0,"Variación de existencias (PC)",2020]
["P125","Servicios de arrendamiento o alquiler sin operador",0,"Variación de existencias (PC)",2020]
["P127","Servicios de agencias de viajes, operadores turísticos y actividades conexas",0,"Variación de existencias (PC)",2020]
["P140","Servicios públicos administrativos prestados a la comunidad en su conjunto",0,"Variación de existencias (PC)",2020]
["P147","Servicios de asociaciones que sirven a las empresas",0,"Variación de existencias (PC)",2020]
["P002","Frijoles",0,"Ajuste CIF/FOB",2020]
["P017","Cardamomo",0,"Ajuste CIF/FOB",2020]
["P027","Troncos de madera y leña",0,"Ajuste CIF/FOB",2020]
["P032","Minerales metálicos",0,"Ajuste CIF/FOB",2020]
["P047","Harina de trigo",0,"Ajuste CIF/FOB",2020]
["P050","Pan y otros productos de panadería y repostería n.c.p.",0,"Ajuste CIF/FOB",2020]
["P061","Cuero de piel curtida o adobada y cuero artificial o regenerado y artículos de cuero",0,"Ajuste CIF/FOB",2020]
["P070","Gases de petróleo, otros productos de la refinación de petróleo n.c.p.",0,"Ajuste CIF/FOB",2020]
["P086","Electrodomésticos y sus partes",0,"Ajuste CIF/FOB",2020]
["P090","Aparatos médicos, instrumentos ópticos y de precisión, relojes",0,"Ajuste CIF/FOB",2020]
["P102","Servicios de comercio",0,"Ajuste CIF/FOB",2020]
["P105","Servicio de transporte de carga por vía terrestre",-1748.5596619999999,"Ajuste CIF/FOB",2020]
["P122","Servicios de arquitectura e ingeniería, ensayos y análisis técnicos",0,"Ajuste CIF/FOB",2020]
["P124","Servicios de publicidad y estudios de mercado",0,"Ajuste CIF/FOB",2020]
["P142","Servicios de enseñanza",0,"Ajuste CIF/FOB",2020]
["P145","Otros servicios de atención de la salud humana",0,"Ajuste CIF/FOB",2020]
["P007","Sandías y melones",1687.7297020000001,"Producción (PB)","2021 p/"]
["P013","Frutas tropicales y subtropicales",2794.0211020000002,"Producción (PB)","2021 p/"]
["P025","Huevos",3658.0992080000001,"Producción (PB)","2021 p/"]
["P036","Carne y despojos comestibles de aves",11311.721147,"Producción (PB)","2021 p/"]
["P045","Leche líquida y crema procesada",1368.128868,"Producción (PB)","2021 p/"]
["P051","Tortillas de maíz, incluso tostadas, horneadas o fritas",8661.9791210000003,"Producción (PB)","2021 p/"]
["P065","Envases de papel y cartón",4134.6547380000002,"Producción (PB)","2021 p/"]
["P068","Gasolinas, diésel oil y fuel oils",158.09909200000001,"Producción (PB)","2021 p/"]
["P080","Artículos de hormigón, cemento y yeso",3622.8276129999999,"Producción (PB)","2021 p/"]
["P088","Maquinaria y aparatos eléctricos, sus partes y piezas",81.426889000000003,"Producción (PB)","2021 p/"]
["P099","Edificaciones no residenciales",12134.199318999999,"Producción (PB)","2021 p/"]
["P108","Otros servicios de apoyo al transporte",9338.0503840000001,"Producción (PB)","2021 p/"]
["P120","Servicios jurídicos, de contabilidad, auditoría, teneduría de libros y consultoría fiscal",5913.1322140000002,"Producción (PB)","2021 p/"]
["P124","Servicios de publicidad y estudios de mercado",6824.2892590000001,"Producción (PB)","2021 p/"]
["P140","Servicios públicos administrativos prestados a la comunidad en su conjunto",14122.669733000001,"Producción (PB)","2021 p/"]
["P143","Servicios de hospitalización",14335.558709000001,"Producción (PB)","2021 p/"]
["P151","Compras directas en el exterior por residentes",0,"Producción (PB)","2021 p/"]
["P011","Tabaco y otras plantas no perennes",0,"Impuestos sobre los productos, excepto IVA e impuestos sobre las importaciones","2021 p/"]
["P026","Otros productos de animales vivos",0,"Impuestos sobre los productos, excepto IVA e impuestos sobre las importaciones","2021 p/"]
["P031","Petróleo crudo y gas natural",0,"Impuestos sobre los productos, excepto IVA e impuestos sobre las importaciones","2021 p/"]
["P045","Leche líquida y crema procesada",0,"Impuestos sobre los productos, excepto IVA e impuestos sobre las importaciones","2021 p/"]
["P051","Tortillas de maíz, incluso tostadas, horneadas o fritas",0,"Impuestos sobre los productos, excepto IVA e impuestos sobre las importaciones","2021 p/"]
["P063","Madera aserrada y acepillada, productos de madera, corcho, paja y materiales trenzables",0,"Impuestos sobre los productos, excepto IVA e impuestos sobre las importaciones","2021 p/"]
["P064","Pasta de papel y papel",0,"Impuestos sobre los productos, excepto IVA e impuestos sobre las importaciones","2021 p/"]
["P074","Otros productos químicos",0,"Impuestos sobre los productos, excepto IVA e impuestos sobre las importaciones","2021 p/"]
["P086","Electrodomésticos y sus partes",0,"Impuestos sobre los productos, excepto IVA e impuestos sobre las importaciones","2021 p/"]
["P099","Edificaciones no residenciales",0,"Impuestos sobre los productos, excepto IVA e impuestos sobre las importaciones","2021 p/"]
["P106","Otros tipos de transporte",0,"Impuestos sobre los productos, excepto IVA e impuestos sobre las importaciones","2021 p/"]
["P118","Servicios de alquiler de vivienda",0,"Impuestos sobre los productos, excepto IVA e impuestos sobre las importaciones","2021 p/"]
["P126","Servicios  de agencias de empleo y de dotación de recursos humanos",0,"Impuestos sobre los productos, excepto IVA e impuestos sobre las importaciones","2021 p/"]
["P138","Servicios públicos administrativos relacionados con la provisión de servicios educativos, de salud, servicios sociales, culturales y otros, sin contar los servicios de seguridad social",0,"Impuestos sobre los productos, excepto IVA e impuestos sobre las importaciones","2021 p/"]
["P147","Servicios de asociaciones que sirven a las empresas",0,"Impuestos sobre los productos, excepto IVA e impuestos sobre las importaciones","2021 p/"]
["P149","Otros servicios",0,"Impuestos sobre los productos, excepto IVA e impuestos sobre las importaciones","2021 p/"]
["P010","Caña de azúcar y otras plantas azucareras",0,"Subvenciones a los productos","2021 p/"]
["P017","Cardamomo",0,"Subvenciones a los productos","2021 p/"]
["P029","Peces vivos, frescos o refrigerados",0,"Subvenciones a los productos","2021 p/"]
["P039","Crustáceos, moluscos y demás invertebrados acuáticos congelados, preparados o en conserva y sus productos",0,"Subvenciones a los productos","2021 p/"]
["P049","Otros productos de molinería, almidones y productos de almidón",0,"Subvenciones a los productos","2021 p/"]
["P054","Preparados para alimentación animal",0,"Subvenciones a los productos","2021 p/"]
["P069","Aceites, grasas lubricantes y otros aceites preparados",0,"Subvenciones a los productos","2021 p/"]
["P072","Pinturas, barnices, tintas y productos relacionados",0,"Subvenciones a los productos","2021 p/"]
["P083","Productos metálicos estructurales y sus partes de hierro o de acero",0,"Subvenciones a los productos","2021 p/"]
["P092","Muebles",0,"Subvenciones a los productos","2021 p/"]
["P104","Servicio de transporte de pasajeros por vía terrestre",-204,"Subvenciones a los productos","2021 p/"]
["P112","Servicios de información, telecomunicaciones y radiodifusión",0,"Subvenciones a los productos","2021 p/"]
["P124","Servicios de publicidad y estudios de mercado",0,"Subvenciones a los productos","2021 p/"]
["P137","Servicios públicos del gobierno general",0,"Subvenciones a los productos","2021 p/"]
["P144","Servicios médicos y dentales",0,"Subvenciones a los productos","2021 p/"]
["P147","Servicios de asociaciones que sirven a las empresas",0,"Subvenciones a los productos","2021 p/"]
["P004","Arroz",307.89346,"Importaciones (CIF)","2021 p/"]
["P015","Palma africana",3.3125710000000002,"Importaciones (CIF)","2021 p/"]
["P029","Peces vivos, frescos o refrigerados",13.225212000000001,"Importaciones (CIF)","2021 p/"]
["P035","Carne y despojos comestibles de ganado porcino",577.00409100000002,"Importaciones (CIF)","2021 p/"]
["P047","Harina de trigo",205.39929100000001,"Importaciones (CIF)","2021 p/"]
["P058","Aguas minerales y otras aguas embotelladas",24.059179,"Importaciones (CIF)","2021 p/"]
["P067","Productos de la impresión",112.407522,"Importaciones (CIF)","2021 p/"]
["P073","Jabón, preparados de limpieza, perfumes y preparados de toilet",3243.348054,"Importaciones (CIF)","2021 p/"]
["P083","Productos metálicos estructurales y sus partes de hierro o de acero",563.82404599999995,"Importaciones (CIF)","2021 p/"]
["P090","Aparatos médicos, instrumentos ópticos y de precisión, relojes",2387.6944979999998,"Importaciones (CIF)","2021 p/"]
["P102","Servicios de comercio",0,"Importaciones (CIF)","2021 p/"]
["P110","Servicio de alojamiento",0,"Importaciones (CIF)","2021 p/"]
["P117","Servicios auxiliares de la intermediación financiera",0,"Importaciones (CIF)","2021 p/"]
["P135","Servicios de apoyo a la explotación de minas y canteras y los relacionados con la distribución de electricidad, gas y agua",0,"Importaciones (CIF)","2021 p/"]
["P142","Servicios de enseñanza",7.7523900000000001,"Importaciones (CIF)","2021 p/"]
["P146","Servicios audiovisuales, recreativos, culturales y deportivos",80.278186000000005,"Importaciones (CIF)","2021 p/"]
["P006","Hortalizas",6.0617900000000002,"Impuestos y derechos sobre las importaciones excepto IVA","2021 p/"]
["P013","Frutas tropicales y subtropicales",2.4852300000000001,"Impuestos y derechos sobre las importaciones excepto IVA","2021 p/"]
["P023","Aves de corral",0,"Impuestos y derechos sobre las importaciones excepto IVA","2021 p/"]
["P033","Minerales no metálicos",2.4414159999999998,"Impuestos y derechos sobre las importaciones excepto IVA","2021 p/"]
["P048","Arroz sin cáscara",6.7679600000000004,"Impuestos y derechos sobre las importaciones excepto IVA","2021 p/"]
["P058","Aguas minerales y otras aguas embotelladas",1.009698,"Impuestos y derechos sobre las importaciones excepto IVA","2021 p/"]
["P065","Envases de papel y cartón",4.9352919999999996,"Impuestos y derechos sobre las importaciones excepto IVA","2021 p/"]
["P077","Vidrio y productos de vidrio",25.682976,"Impuestos y derechos sobre las importaciones excepto IVA","2021 p/"]
["P085","Maquinaria para usos generales y especiales, sus partes y piezas, excepto electrodomésticos",67.855169000000004,"Impuestos y derechos sobre las importaciones excepto IVA","2021 p/"]
["P092","Muebles",101.47945,"Impuestos y derechos sobre las importaciones excepto IVA","2021 p/"]
["P101","Servicios generales y especializados de construcción",0,"Impuestos y derechos sobre las importaciones excepto IVA","2021 p/"]
["P108","Otros servicios de apoyo al transporte",0,"Impuestos y derechos sobre las importaciones excepto IVA","2021 p/"]
["P121","Servicios de tecnología de la información",0,"Impuestos y derechos sobre las importaciones excepto IVA","2021 p/"]
["P133","Servicios de reparación de otros bienes",0,"Impuestos y derechos sobre las importaciones excepto IVA","2021 p/"]
["P136","Servicios de manufactura",0,"Impuestos y derechos sobre las importaciones excepto IVA","2021 p/"]
["P144","Servicios médicos y dentales",0,"Impuestos y derechos sobre las importaciones excepto IVA","2021 p/"]
["P008","Ejotes y arvejas",10.560537999999999,"Impuesto tipo valor agregado (IVA)","2021 p/"]
["P013","Frutas tropicales y subtropicales",92.623537999999996,"Impuesto tipo valor agregado (IVA)","2021 p/"]
["P024","Leche cruda",0.92902200000000001,"Impuesto tipo valor agregado (IVA)","2021 p/"]
["P031","Petróleo crudo y gas natural",0,"Impuesto tipo valor agregado (IVA)","2021 p/"]
["P042","Jugos de frutas",193.12081800000001,"Impuesto tipo valor agregado (IVA)","2021 p/"]
["P056","Malta y cerveza de malta",513.17635099999995,"Impuesto tipo valor agregado (IVA)","2021 p/"]
["P057","Bebidas no alcohólicas",1648.290688,"Impuesto tipo valor agregado (IVA)","2021 p/"]
["P067","Productos de la impresión",59.627257999999998,"Impuesto tipo valor agregado (IVA)","2021 p/"]
["P083","Productos metálicos estructurales y sus partes de hierro o de acero",31.170931,"Impuesto tipo valor agregado (IVA)","2021 p/"]
["P086","Electrodomésticos y sus partes",345.77206999999999,"Impuesto tipo valor agregado (IVA)","2021 p/"]
["P099","Edificaciones no residenciales",197.11205699999999,"Impuesto tipo valor agregado (IVA)","2021 p/"]
["P111","Servicio de suministro de comidas y bebidas",2310.2126579999999,"Impuesto tipo valor agregado (IVA)","2021 p/"]
["P119","Otros servicios inmobiliarios, excepto alquiler de vivienda",439.70161200000001,"Impuesto tipo valor agregado (IVA)","2021 p/"]
["P126","Servicios  de agencias de empleo y de dotación de recursos humanos",98.885582999999997,"Impuesto tipo valor agregado (IVA)","2021 p/"]
["P140","Servicios públicos administrativos prestados a la comunidad en su conjunto",0,"Impuesto tipo valor agregado (IVA)","2021 p/"]
["P142","Servicios de enseñanza",50.727133000000002,"Impuesto tipo valor agregado (IVA)","2021 p/"]
["P003","Leguminosas (legumbres secas) y semillas oleaginosas",225.49675999999999,"Márgenes de comercio, transporte y distribución de energía","2021 p/"]
["P010","Caña de azúcar y otras plantas azucareras",447.26209899999998,"Márgenes de comercio, transporte y distribución de energía","2021 p/"]
["P022","Ganado porcino y otro tipo de animales vivos n.c.p.",98.178034999999994,"Márgenes de comercio, transporte y distribución de energía","2021 p/"]
["P032","Minerales metálicos",5.849E-3,"Márgenes de comercio, transporte y distribución de energía","2021 p/"]
["P042","Jugos de frutas",776.37773800000002,"Márgenes de comercio, transporte y distribución de energía","2021 p/"]
["P047","Harina de trigo",380.10016899999999,"Márgenes de comercio, transporte y distribución de energía","2021 p/"]
["P062","Calzado y sus partes, de cualquier material y de cualquier uso",2426.4198700000002,"Márgenes de comercio, transporte y distribución de energía","2021 p/"]
["P065","Envases de papel y cartón",194.09021300000001,"Márgenes de comercio, transporte y distribución de energía","2021 p/"]
["P076","Productos de caucho y plástico",5335.6439469999996,"Márgenes de comercio, transporte y distribución de energía","2021 p/"]
["P085","Maquinaria para usos generales y especiales, sus partes y piezas, excepto electrodomésticos",2890.0378519999999,"Márgenes de comercio, transporte y distribución de energía","2021 p/"]
["P101","Servicios generales y especializados de construcción",0,"Márgenes de comercio, transporte y distribución de energía","2021 p/"]
["P105","Servicio de transporte de carga por vía terrestre",-8255.4487640000007,"Márgenes de comercio, transporte y distribución de energía","2021 p/"]
["P117","Servicios auxiliares de la intermediación financiera",0,"Márgenes de comercio, transporte y distribución de energía","2021 p/"]
["P130","Servicios telefónicos de centros de llamadas",0,"Márgenes de comercio, transporte y distribución de energía","2021 p/"]
["P137","Servicios públicos del gobierno general",0,"Márgenes de comercio, transporte y distribución de energía","2021 p/"]
["P140","Servicios públicos administrativos prestados a la comunidad en su conjunto",0,"Márgenes de comercio, transporte y distribución de energía","2021 p/"]
["P149","Otros servicios",0,"Márgenes de comercio, transporte y distribución de energía","2021 p/"]
["P008","Ejotes y arvejas",42.978760999999999,"Consumo Intermedio (PC)","2021 p/"]
["P022","Ganado porcino y otro tipo de animales vivos n.c.p.",1665.610181,"Consumo Intermedio (PC)","2021 p/"]
["P028","Productos forestales no madereros",6.5401600000000002,"Consumo Intermedio (PC)","2021 p/"]
["P040","Vegetales preparados o en conserva, legumbres y papas",694.77488400000004,"Consumo Intermedio (PC)","2021 p/"]
["P051","Tortillas de maíz, incluso tostadas, horneadas o fritas",487.04461300000003,"Consumo Intermedio (PC)","2021 p/"]
["P060","Prendas de vestir, adobo y teñido de pieles",1293.623945,"Consumo Intermedio (PC)","2021 p/"]
["P070","Gases de petróleo, otros productos de la refinación de petróleo n.c.p.",1662.7753640000001,"Consumo Intermedio (PC)","2021 p/"]
["P080","Artículos de hormigón, cemento y yeso",4627.516259,"Consumo Intermedio (PC)","2021 p/"]
["P083","Productos metálicos estructurales y sus partes de hierro o de acero",1411.4812030000001,"Consumo Intermedio (PC)","2021 p/"]
["P095","Generación y distribución de energía eléctrica, gas, vapor y aire acondicionado",11231.640997,"Consumo Intermedio (PC)","2021 p/"]
["P103","Mantenimiento y reparación de vehículos automotores y motocicletas",3538.4969489999999,"Consumo Intermedio (PC)","2021 p/"]
["P114","Otros servicios financieros y servicios de banca de inversión",2832.2957070000002,"Consumo Intermedio (PC)","2021 p/"]
["P123","Otros servicios profesionales, científicos y técnicos",9444.8722660000003,"Consumo Intermedio (PC)","2021 p/"]
["P135","Servicios de apoyo a la explotación de minas y canteras y los relacionados con la distribución de electricidad, gas y agua",22.779119999999999,"Consumo Intermedio (PC)","2021 p/"]
["P139","Otros servicios administrativos",0,"Consumo Intermedio (PC)","2021 p/"]
["P003","Leguminosas (legumbres secas) y semillas oleaginosas",243.19015999999999,"Consumo Final privado (PC)","2021 p/"]
["P006","Hortalizas",24785.876616000001,"Consumo Final privado (PC)","2021 p/"]
["P016","Café en grano",0,"Consumo Final privado (PC)","2021 p/"]
["P026","Otros productos de animales vivos",56.254679000000003,"Consumo Final privado (PC)","2021 p/"]
["P035","Carne y despojos comestibles de ganado porcino",1513.419952,"Consumo Final privado (PC)","2021 p/"]
["P046","Otros productos lácteos n.c.p.",6523.4179279999998,"Consumo Final privado (PC)","2021 p/"]
["P058","Aguas minerales y otras aguas embotelladas",2329.9389259999998,"Consumo Final privado (PC)","2021 p/"]
["P070","Gases de petróleo, otros productos de la refinación de petróleo n.c.p.",5490.2757170000004,"Consumo Final privado (PC)","2021 p/"]
["P078","Productos de cerámica y arcilla",544.69638699999996,"Consumo Final privado (PC)","2021 p/"]
["P089","Equipo y aparatos de radio, televisión y comunicaciones",12258.746053000001,"Consumo Final privado (PC)","2021 p/"]
["P098","Edificaciones residenciales",0,"Consumo Final privado (PC)","2021 p/"]
["P101","Servicios generales y especializados de construcción",176.017595,"Consumo Final privado (PC)","2021 p/"]
["P114","Otros servicios financieros y servicios de banca de inversión",805.81100600000002,"Consumo Final privado (PC)","2021 p/"]
["P121","Servicios de tecnología de la información",0,"Consumo Final privado (PC)","2021 p/"]
["P133","Servicios de reparación de otros bienes",1022.351279,"Consumo Final privado (PC)","2021 p/"]
["P141","Servicios administrativos relacionados con los sistemas de seguridad social de afiliación obligatoria",1.7595400000000001,"Consumo Final privado (PC)","2021 p/"]
["P001","Maíz",207.84014500000001,"Consumo Final del Gobierno (PC)","2021 p/"]
["P010","Caña de azúcar y otras plantas azucareras",0,"Consumo Final del Gobierno (PC)","2021 p/"]
["P021","Ganado bovino",0,"Consumo Final del Gobierno (PC)","2021 p/"]
["P024","Leche cruda",0,"Consumo Final del Gobierno (PC)","2021 p/"]
["P035","Carne y despojos comestibles de ganado porcino",0,"Consumo Final del Gobierno (PC)","2021 p/"]
["P044","Margarina, grasas y otros aceites de origen animal y vegetal",0,"Consumo Final del Gobierno (PC)","2021 p/"]
["P054","Preparados para alimentación animal",0,"Consumo Final del Gobierno (PC)","2021 p/"]
["P064","Pasta de papel y papel",34.170020000000001,"Consumo Final del Gobierno (PC)","2021 p/"]
["P076","Productos de caucho y plástico",0,"Consumo Final del Gobierno (PC)","2021 p/"]
["P083","Productos metálicos estructurales y sus partes de hierro o de acero",0,"Consumo Final del Gobierno (PC)","2021 p/"]
["P096","Agua natural y distribución de agua natural",0,"Consumo Final del Gobierno (PC)","2021 p/"]
["P098","Edificaciones residenciales",0,"Consumo Final del Gobierno (PC)","2021 p/"]
["P107","Servicios de almacenamiento y depósito",0,"Consumo Final del Gobierno (PC)","2021 p/"]
["P119","Otros servicios inmobiliarios, excepto alquiler de vivienda",0,"Consumo Final del Gobierno (PC)","2021 p/"]
["P127","Servicios de agencias de viajes, operadores turísticos y actividades conexas",0,"Consumo Final del Gobierno (PC)","2021 p/"]
["P139","Otros servicios administrativos",5747.4265349999996,"Consumo Final del Gobierno (PC)","2021 p/"]
["P152","Compras directas en el territorio nacional por no residentes",0,"Consumo Final del Gobierno (PC)","2021 p/"]
["P007","Sandías y melones",0,"Formación Bruta de Capital Fijo (PC)","2021 p/"]
["P019","Propagación de plantas",0,"Formación Bruta de Capital Fijo (PC)","2021 p/"]
["P029","Peces vivos, frescos o refrigerados",0,"Formación Bruta de Capital Fijo (PC)","2021 p/"]
["P030","Crustáceos sin congelar y otros productos de la pesca",0,"Formación Bruta de Capital Fijo (PC)","2021 p/"]
["P044","Margarina, grasas y otros aceites de origen animal y vegetal",0,"Formación Bruta de Capital Fijo (PC)","2021 p/"]
["P055","Aguardientes, licores, vinos, demás bebidas espirituosas y productos del tabaco",0,"Formación Bruta de Capital Fijo (PC)","2021 p/"]
["P062","Calzado y sus partes, de cualquier material y de cualquier uso",0,"Formación Bruta de Capital Fijo (PC)","2021 p/"]
["P073","Jabón, preparados de limpieza, perfumes y preparados de toilet",0,"Formación Bruta de Capital Fijo (PC)","2021 p/"]
["P082","Métales básicos de hierro y acero, productos primarios de metales preciosos y otros metales no ferrosos",0,"Formación Bruta de Capital Fijo (PC)","2021 p/"]
["P094","Residuos y desechos",0,"Formación Bruta de Capital Fijo (PC)","2021 p/"]
["P102","Servicios de comercio",0,"Formación Bruta de Capital Fijo (PC)","2021 p/"]
["P105","Servicio de transporte de carga por vía terrestre",0,"Formación Bruta de Capital Fijo (PC)","2021 p/"]
["P117","Servicios auxiliares de la intermediación financiera",0,"Formación Bruta de Capital Fijo (PC)","2021 p/"]
["P130","Servicios telefónicos de centros de llamadas",0,"Formación Bruta de Capital Fijo (PC)","2021 p/"]
["P137","Servicios públicos del gobierno general",0,"Formación Bruta de Capital Fijo (PC)","2021 p/"]
["P146","Servicios audiovisuales, recreativos, culturales y deportivos",0,"Formación Bruta de Capital Fijo (PC)","2021 p/"]
["P005","Otros cereales",0.63325600000000004,"Exportaciones (fob)","2021 p/"]
["P009","Raíces y tubérculos",252.82345699999999,"Exportaciones (fob)","2021 p/"]
["P021","Ganado bovino",78.032002000000006,"Exportaciones (fob)","2021 p/"]
["P028","Productos forestales no madereros",247.841556,"Exportaciones (fob)","2021 p/"]
["P038","Pescado congelado, preparado o en conserva y sus productos",697.05087600000002,"Exportaciones (fob)","2021 p/"]
["P048","Arroz sin cáscara",4.302486,"Exportaciones (fob)","2021 p/"]
["P063","Madera aserrada y acepillada, productos de madera, corcho, paja y materiales trenzables",990.54868199999999,"Exportaciones (fob)","2021 p/"]
["P073","Jabón, preparados de limpieza, perfumes y preparados de toilet",2641.6735090000002,"Exportaciones (fob)","2021 p/"]
["P080","Artículos de hormigón, cemento y yeso",23.791937999999998,"Exportaciones (fob)","2021 p/"]
["P092","Muebles",568.66177900000002,"Exportaciones (fob)","2021 p/"]
["P096","Agua natural y distribución de agua natural",0,"Exportaciones (fob)","2021 p/"]
["P103","Mantenimiento y reparación de vehículos automotores y motocicletas",10.613809,"Exportaciones (fob)","2021 p/"]
["P121","Servicios de tecnología de la información",430.98191500000001,"Exportaciones (fob)","2021 p/"]
["P123","Otros servicios profesionales, científicos y técnicos",642.86334399999998,"Exportaciones (fob)","2021 p/"]
["P136","Servicios de manufactura",3877.253733,"Exportaciones (fob)","2021 p/"]
["P148","Servicios de asociaciones que sirven a los hogares",0,"Exportaciones (fob)","2021 p/"]
["P003","Leguminosas (legumbres secas) y semillas oleaginosas",133.07280399999999,"Variación de existencias (PC)","2021 p/"]
["P013","Frutas tropicales y subtropicales",0,"Variación de existencias (PC)","2021 p/"]
["P023","Aves de corral",-35.096490000000003,"Variación de existencias (PC)","2021 p/"]
["P028","Productos forestales no madereros",0,"Variación de existencias (PC)","2021 p/"]
["P039","Crustáceos, moluscos y demás invertebrados acuáticos congelados, preparados o en conserva y sus productos",-4.4489340000000004,"Variación de existencias (PC)","2021 p/"]
["P046","Otros productos lácteos n.c.p.",14.882099,"Variación de existencias (PC)","2021 p/"]
["P057","Bebidas no alcohólicas",-100.252565,"Variación de existencias (PC)","2021 p/"]
["P071","Abonos, fertilizantes y pesticidas",-50.505158999999999,"Variación de existencias (PC)","2021 p/"]
["P082","Métales básicos de hierro y acero, productos primarios de metales preciosos y otros metales no ferrosos",203.10376099999999,"Variación de existencias (PC)","2021 p/"]
["P091","Equipo de transporte",610.54966400000001,"Variación de existencias (PC)","2021 p/"]
["P098","Edificaciones residenciales",72.712586000000002,"Variación de existencias (PC)","2021 p/"]
["P101","Servicios generales y especializados de construcción",0,"Variación de existencias (PC)","2021 p/"]
["P114","Otros servicios financieros y servicios de banca de inversión",0,"Variación de existencias (PC)","2021 p/"]
["P126","Servicios  de agencias de empleo y de dotación de recursos humanos",0,"Variación de existencias (PC)","2021 p/"]
["P134","Servicios de apoyo a la agricultura, caza, silvicultura y pesca",0,"Variación de existencias (PC)","2021 p/"]
["P146","Servicios audiovisuales, recreativos, culturales y deportivos",0,"Variación de existencias (PC)","2021 p/"]
["P003","Leguminosas (legumbres secas) y semillas oleaginosas",0,"Ajuste CIF/FOB","2021 p/"]
["P014","Berries, otras frutas y semillas de frutas",0,"Ajuste CIF/FOB","2021 p/"]
["P021","Ganado bovino",0,"Ajuste CIF/FOB","2021 p/"]
["P032","Minerales metálicos",0,"Ajuste CIF/FOB","2021 p/"]
["P037","Carne y despojos de otros animales y conservas y preparados de carne",0,"Ajuste CIF/FOB","2021 p/"]
["P047","Harina de trigo",0,"Ajuste CIF/FOB","2021 p/"]
["P057","Bebidas no alcohólicas",0,"Ajuste CIF/FOB","2021 p/"]
["P064","Pasta de papel y papel",0,"Ajuste CIF/FOB","2021 p/"]
["P076","Productos de caucho y plástico",0,"Ajuste CIF/FOB","2021 p/"]
["P089","Equipo y aparatos de radio, televisión y comunicaciones",0,"Ajuste CIF/FOB","2021 p/"]
["P091","Equipo de transporte",0,"Ajuste CIF/FOB","2021 p/"]
["P100","Obras de ingeniería civil",0,"Ajuste CIF/FOB","2021 p/"]
["P112","Servicios de información, telecomunicaciones y radiodifusión",0,"Ajuste CIF/FOB","2021 p/"]
["P120","Servicios jurídicos, de contabilidad, auditoría, teneduría de libros y consultoría fiscal",0,"Ajuste CIF/FOB","2021 p/"]
["P132","Servicios de mantenimiento, reparación e instalación de productos metálicos elaborados, maquinaria y equipo",0,"Ajuste CIF/FOB","2021 p/"]
["P145","Otros servicios de atención de la salud humana",0,"Ajuste CIF/FOB","2021 p/"]
["P152","Compras directas en el territorio nacional por no residentes",0,"Ajuste CIF/FOB","2021 p/"]
["P012","Bananos, plátanos y otros",10035.46171,"Producción (PB)","2022 p/"]
["P022","Ganado porcino y otro tipo de animales vivos n.c.p.",2145.3962289999999,"Producción (PB)","2022 p/"]
["P023","Aves de corral",10357.649281,"Producción (PB)","2022 p/"]
["P041","Preparaciones y conservas de frutas y nueces",1679.0477410000001,"Producción (PB)","2022 p/"]
["P043","Aceites de origen vegetal",12993.268824999999,"Producción (PB)","2022 p/"]
["P055","Aguardientes, licores, vinos, demás bebidas espirituosas y productos del tabaco",1646.4333690000001,"Producción (PB)","2022 p/"]
["P066","Productos de la edición",1772.295423,"Producción (PB)","2022 p/"]
["P075","Productos farmacéuticos",4950.6633750000001,"Producción (PB)","2022 p/"]
["P087","Maquinaria de oficina, contabilidad e informática, sus partes y piezas",0,"Producción (PB)","2022 p/"]
["P095","Generación y distribución de energía eléctrica, gas, vapor y aire acondicionado",17869.302898999998,"Producción (PB)","2022 p/"]
["P098","Edificaciones residenciales",40428.657184000003,"Producción (PB)","2022 p/"]
["P110","Servicio de alojamiento",3226.0631939999998,"Producción (PB)","2022 p/"]
["P118","Servicios de alquiler de vivienda",47289.856713000001,"Producción (PB)","2022 p/"]
["P130","Servicios telefónicos de centros de llamadas",8132.1390540000002,"Producción (PB)","2022 p/"]
["P139","Otros servicios administrativos",8699.6800980000007,"Producción (PB)","2022 p/"]
["P150","Servicios domésticos",10357.041058000001,"Producción (PB)","2022 p/"]
["P006","Hortalizas",0,"Impuestos sobre los productos, excepto IVA e impuestos sobre las importaciones","2022 p/"]
["P018","Caucho natural",0,"Impuestos sobre los productos, excepto IVA e impuestos sobre las importaciones","2022 p/"]
["P021","Ganado bovino",0,"Impuestos sobre los productos, excepto IVA e impuestos sobre las importaciones","2022 p/"]
["P031","Petróleo crudo y gas natural",0,"Impuestos sobre los productos, excepto IVA e impuestos sobre las importaciones","2022 p/"]
["P041","Preparaciones y conservas de frutas y nueces",0,"Impuestos sobre los productos, excepto IVA e impuestos sobre las importaciones","2022 p/"]
["P050","Pan y otros productos de panadería y repostería n.c.p.",0,"Impuestos sobre los productos, excepto IVA e impuestos sobre las importaciones","2022 p/"]
["P061","Cuero de piel curtida o adobada y cuero artificial o regenerado y artículos de cuero",0,"Impuestos sobre los productos, excepto IVA e impuestos sobre las importaciones","2022 p/"]
["P073","Jabón, preparados de limpieza, perfumes y preparados de toilet",0,"Impuestos sobre los productos, excepto IVA e impuestos sobre las importaciones","2022 p/"]
["P085","Maquinaria para usos generales y especiales, sus partes y piezas, excepto electrodomésticos",0,"Impuestos sobre los productos, excepto IVA e impuestos sobre las importaciones","2022 p/"]
["P093","Otros artículos n.c.p.",0,"Impuestos sobre los productos, excepto IVA e impuestos sobre las importaciones","2022 p/"]
["P096","Agua natural y distribución de agua natural",0,"Impuestos sobre los productos, excepto IVA e impuestos sobre las importaciones","2022 p/"]
["P114","Otros servicios financieros y servicios de banca de inversión",0,"Impuestos sobre los productos, excepto IVA e impuestos sobre las importaciones","2022 p/"]
["P116","Servicios de seguro, reaseguro y fondos de pensiones",21.377578,"Impuestos sobre los productos, excepto IVA e impuestos sobre las importaciones","2022 p/"]
["P133","Servicios de reparación de otros bienes",0,"Impuestos sobre los productos, excepto IVA e impuestos sobre las importaciones","2022 p/"]
["P136","Servicios de manufactura",0,"Impuestos sobre los productos, excepto IVA e impuestos sobre las importaciones","2022 p/"]
["P148","Servicios de asociaciones que sirven a los hogares",0,"Impuestos sobre los productos, excepto IVA e impuestos sobre las importaciones","2022 p/"]
["P006","Hortalizas",0,"Subvenciones a los productos","2022 p/"]
["P016","Café en grano",0,"Subvenciones a los productos","2022 p/"]
["P025","Huevos",0,"Subvenciones a los productos","2022 p/"]
["P036","Carne y despojos comestibles de aves",0,"Subvenciones a los productos","2022 p/"]
["P039","Crustáceos, moluscos y demás invertebrados acuáticos congelados, preparados o en conserva y sus productos",0,"Subvenciones a los productos","2022 p/"]
["P054","Preparados para alimentación animal",0,"Subvenciones a los productos","2022 p/"]
["P059","Hilados, tejidos, telas y otros productos textiles excepto prendas de vestir",0,"Subvenciones a los productos","2022 p/"]
["P069","Aceites, grasas lubricantes y otros aceites preparados",0,"Subvenciones a los productos","2022 p/"]
["P079","Cemento, cal y yeso",0,"Subvenciones a los productos","2022 p/"]
["P091","Equipo de transporte",0,"Subvenciones a los productos","2022 p/"]
["P098","Edificaciones residenciales",0,"Subvenciones a los productos","2022 p/"]
["P111","Servicio de suministro de comidas y bebidas",0,"Subvenciones a los productos","2022 p/"]
["P113","Servicios de banco central",0,"Subvenciones a los productos","2022 p/"]
["P131","Servicios administrativos, de apoyo de oficina y otros servicios de apoyo a las empresas",0,"Subvenciones a los productos","2022 p/"]
["P134","Servicios de apoyo a la agricultura, caza, silvicultura y pesca",0,"Subvenciones a los productos","2022 p/"]
["P142","Servicios de enseñanza",0,"Subvenciones a los productos","2022 p/"]
["P002","Frijoles",305.392855,"Importaciones (CIF)","2022 p/"]
["P014","Berries, otras frutas y semillas de frutas",782.26277300000004,"Importaciones (CIF)","2022 p/"]
["P019","Propagación de plantas",67.894390000000001,"Importaciones (CIF)","2022 p/"]
["P034","Carne y despojos comestibles de ganado bovino; cueros y pieles de bovino y de otros animales",895.56437900000003,"Importaciones (CIF)","2022 p/"]
["P044","Margarina, grasas y otros aceites de origen animal y vegetal",2872.0368290000001,"Importaciones (CIF)","2022 p/"]
["P054","Preparados para alimentación animal",1159.0337979999999,"Importaciones (CIF)","2022 p/"]
["P057","Bebidas no alcohólicas",1484.960094,"Importaciones (CIF)","2022 p/"]
["P073","Jabón, preparados de limpieza, perfumes y preparados de toilet",3548.0260189999999,"Importaciones (CIF)","2022 p/"]
["P077","Vidrio y productos de vidrio",1070.46994,"Importaciones (CIF)","2022 p/"]
["P088","Maquinaria y aparatos eléctricos, sus partes y piezas",6085.7791999999999,"Importaciones (CIF)","2022 p/"]
["P097","Evacuación de aguas residuales, recogida, tratamiento y eliminación de desechos",0,"Importaciones (CIF)","2022 p/"]
["P109","Servicios postales y de mensajería",138.68396899999999,"Importaciones (CIF)","2022 p/"]
["P117","Servicios auxiliares de la intermediación financiera",0,"Importaciones (CIF)","2022 p/"]
["P129","Servicios de limpieza",0,"Importaciones (CIF)","2022 p/"]
["P132","Servicios de mantenimiento, reparación e instalación de productos metálicos elaborados, maquinaria y equipo",48.713299999999997,"Importaciones (CIF)","2022 p/"]
["P145","Otros servicios de atención de la salud humana",0.37234400000000001,"Importaciones (CIF)","2022 p/"]
["P152","Compras directas en el territorio nacional por no residentes",0,"Importaciones (CIF)","2022 p/"]
["P009","Raíces y tubérculos",1.8549439999999999,"Impuestos y derechos sobre las importaciones excepto IVA","2022 p/"]
["P020","Otros frutos oleaginosos, otras plantas bebestibles y especias aromáticas",3.2211470000000002,"Impuestos y derechos sobre las importaciones excepto IVA","2022 p/"]
["P032","Minerales metálicos",1.126E-3,"Impuestos y derechos sobre las importaciones excepto IVA","2022 p/"]
["P038","Pescado congelado, preparado o en conserva y sus productos",12.831037999999999,"Impuestos y derechos sobre las importaciones excepto IVA","2022 p/"]
["P052","Azúcar de caña sin refinar y refinada, melaza y los demás azúcares n.c.p.",0.59930799999999995,"Impuestos y derechos sobre las importaciones excepto IVA","2022 p/"]
["P053","Productos alimenticios n.c.p.",131.66441800000001,"Impuestos y derechos sobre las importaciones excepto IVA","2022 p/"]
["P068","Gasolinas, diésel oil y fuel oils",8.8116E-2,"Impuestos y derechos sobre las importaciones excepto IVA","2022 p/"]
["P075","Productos farmacéuticos",184.18885700000001,"Impuestos y derechos sobre las importaciones excepto IVA","2022 p/"]
["P082","Métales básicos de hierro y acero, productos primarios de metales preciosos y otros metales no ferrosos",80.952725999999998,"Impuestos y derechos sobre las importaciones excepto IVA","2022 p/"]
["P095","Generación y distribución de energía eléctrica, gas, vapor y aire acondicionado",0,"Impuestos y derechos sobre las importaciones excepto IVA","2022 p/"]
["P107","Servicios de almacenamiento y depósito",0,"Impuestos y derechos sobre las importaciones excepto IVA","2022 p/"]
["P111","Servicio de suministro de comidas y bebidas",0,"Impuestos y derechos sobre las importaciones excepto IVA","2022 p/"]
["P127","Servicios de agencias de viajes, operadores turísticos y actividades conexas",0,"Impuestos y derechos sobre las importaciones excepto IVA","2022 p/"]
["P136","Servicios de manufactura",0,"Impuestos y derechos sobre las importaciones excepto IVA","2022 p/"]
["P138","Servicios públicos administrativos relacionados con la provisión de servicios educativos, de salud, servicios sociales, culturales y otros, sin contar los servicios de seguridad social",0,"Impuestos y derechos sobre las importaciones excepto IVA","2022 p/"]
["P151","Compras directas en el exterior por residentes",0,"Impuestos y derechos sobre las importaciones excepto IVA","2022 p/"]
["P011","Tabaco y otras plantas no perennes",18.075666999999999,"Impuesto tipo valor agregado (IVA)","2022 p/"]
["P018","Caucho natural",0,"Impuesto tipo valor agregado (IVA)","2022 p/"]
["P028","Productos forestales no madereros",1.2053469999999999,"Impuesto tipo valor agregado (IVA)","2022 p/"]
["P034","Carne y despojos comestibles de ganado bovino; cueros y pieles de bovino y de otros animales",311.72719499999999,"Impuesto tipo valor agregado (IVA)","2022 p/"]
["P043","Aceites de origen vegetal",494.09456299999999,"Impuesto tipo valor agregado (IVA)","2022 p/"]
["P054","Preparados para alimentación animal",119.56624100000001,"Impuesto tipo valor agregado (IVA)","2022 p/"]
["P061","Cuero de piel curtida o adobada y cuero artificial o regenerado y artículos de cuero",110.507756,"Impuesto tipo valor agregado (IVA)","2022 p/"]
["P072","Pinturas, barnices, tintas y productos relacionados",62.294010999999998,"Impuesto tipo valor agregado (IVA)","2022 p/"]
["P086","Electrodomésticos y sus partes",336.90763900000002,"Impuesto tipo valor agregado (IVA)","2022 p/"]
["P093","Otros artículos n.c.p.",340.279539,"Impuesto tipo valor agregado (IVA)","2022 p/"]
["P101","Servicios generales y especializados de construcción",781.43715899999995,"Impuesto tipo valor agregado (IVA)","2022 p/"]
["P109","Servicios postales y de mensajería",81.163732999999993,"Impuesto tipo valor agregado (IVA)","2022 p/"]
["P126","Servicios  de agencias de empleo y de dotación de recursos humanos",120.929631,"Impuesto tipo valor agregado (IVA)","2022 p/"]
["P129","Servicios de limpieza",31.632148999999998,"Impuesto tipo valor agregado (IVA)","2022 p/"]
["P136","Servicios de manufactura",0,"Impuesto tipo valor agregado (IVA)","2022 p/"]
["P145","Otros servicios de atención de la salud humana",330.33595400000002,"Impuesto tipo valor agregado (IVA)","2022 p/"]
["P009","Raíces y tubérculos",9167.4444500000009,"Márgenes de comercio, transporte y distribución de energía","2022 p/"]
["P018","Caucho natural",37.494321999999997,"Márgenes de comercio, transporte y distribución de energía","2022 p/"]
["P029","Peces vivos, frescos o refrigerados",873.08945100000005,"Márgenes de comercio, transporte y distribución de energía","2022 p/"]
["P036","Carne y despojos comestibles de aves",3969.867831,"Márgenes de comercio, transporte y distribución de energía","2022 p/"]
["P047","Harina de trigo",506.96244300000001,"Márgenes de comercio, transporte y distribución de energía","2022 p/"]
["P052","Azúcar de caña sin refinar y refinada, melaza y los demás azúcares n.c.p.",3342.3316110000001,"Márgenes de comercio, transporte y distribución de energía","2022 p/"]
["P062","Calzado y sus partes, de cualquier material y de cualquier uso",2420.8341340000002,"Márgenes de comercio, transporte y distribución de energía","2022 p/"]
["P072","Pinturas, barnices, tintas y productos relacionados",678.31069400000001,"Márgenes de comercio, transporte y distribución de energía","2022 p/"]
["P084","Otros productos elaborados de metal",1255.1398569999999,"Márgenes de comercio, transporte y distribución de energía","2022 p/"]
["P091","Equipo de transporte",9967.0456689999992,"Márgenes de comercio, transporte y distribución de energía","2022 p/"]
["P104","Servicio de transporte de pasajeros por vía terrestre",0,"Márgenes de comercio, transporte y distribución de energía","2022 p/"]
["P106","Otros tipos de transporte",-47.697111999999997,"Márgenes de comercio, transporte y distribución de energía","2022 p/"]
["P124","Servicios de publicidad y estudios de mercado",0,"Márgenes de comercio, transporte y distribución de energía","2022 p/"]
["P127","Servicios de agencias de viajes, operadores turísticos y actividades conexas",0,"Márgenes de comercio, transporte y distribución de energía","2022 p/"]
["P135","Servicios de apoyo a la explotación de minas y canteras y los relacionados con la distribución de electricidad, gas y agua",0,"Márgenes de comercio, transporte y distribución de energía","2022 p/"]
["P147","Servicios de asociaciones que sirven a las empresas",0,"Márgenes de comercio, transporte y distribución de energía","2022 p/"]
["P002","Frijoles",572.63082799999995,"Consumo Intermedio (PC)","2022 p/"]
["P012","Bananos, plátanos y otros",178.115781,"Consumo Intermedio (PC)","2022 p/"]
["P027","Troncos de madera y leña",2835.939989,"Consumo Intermedio (PC)","2022 p/"]
["P037","Carne y despojos de otros animales y conservas y preparados de carne",1965.2754420000001,"Consumo Intermedio (PC)","2022 p/"]
["P047","Harina de trigo",3979.2335579999999,"Consumo Intermedio (PC)","2022 p/"]
["P050","Pan y otros productos de panadería y repostería n.c.p.",1271.8630760000001,"Consumo Intermedio (PC)","2022 p/"]
["P066","Productos de la edición",848.92218100000002,"Consumo Intermedio (PC)","2022 p/"]
["P070","Gases de petróleo, otros productos de la refinación de petróleo n.c.p.",2346.6022160000002,"Consumo Intermedio (PC)","2022 p/"]
["P081","Piedras talladas para construcción y otros productos minerales no metálicos n.c.p.",1304.2464399999999,"Consumo Intermedio (PC)","2022 p/"]
["P090","Aparatos médicos, instrumentos ópticos y de precisión, relojes",950.79101200000002,"Consumo Intermedio (PC)","2022 p/"]
["P102","Servicios de comercio",0,"Consumo Intermedio (PC)","2022 p/"]
["P110","Servicio de alojamiento",1359.9498960000001,"Consumo Intermedio (PC)","2022 p/"]
["P122","Servicios de arquitectura e ingeniería, ensayos y análisis técnicos",3312.6178140000002,"Consumo Intermedio (PC)","2022 p/"]
["P129","Servicios de limpieza",1742.22515,"Consumo Intermedio (PC)","2022 p/"]
["P133","Servicios de reparación de otros bienes",953.24898199999996,"Consumo Intermedio (PC)","2022 p/"]
["P145","Otros servicios de atención de la salud humana",1011.230444,"Consumo Intermedio (PC)","2022 p/"]
["P002","Frijoles",3868.1586440000001,"Consumo Final privado (PC)","2022 p/"]
["P013","Frutas tropicales y subtropicales",6740.3760419999999,"Consumo Final privado (PC)","2022 p/"]
["P025","Huevos",6001.4677089999996,"Consumo Final privado (PC)","2022 p/"]
["P031","Petróleo crudo y gas natural",0,"Consumo Final privado (PC)","2022 p/"]
["P045","Leche líquida y crema procesada",2556.3944799999999,"Consumo Final privado (PC)","2022 p/"]
["P046","Otros productos lácteos n.c.p.",7461.4648809999999,"Consumo Final privado (PC)","2022 p/"]
["P056","Malta y cerveza de malta",6331.7525960000003,"Consumo Final privado (PC)","2022 p/"]
["P068","Gasolinas, diésel oil y fuel oils",24578.959153,"Consumo Final privado (PC)","2022 p/"]
["P075","Productos farmacéuticos",13740.580391,"Consumo Final privado (PC)","2022 p/"]
["P088","Maquinaria y aparatos eléctricos, sus partes y piezas",707.62361099999998,"Consumo Final privado (PC)","2022 p/"]
["P094","Residuos y desechos",0,"Consumo Final privado (PC)","2022 p/"]
["P108","Otros servicios de apoyo al transporte",4326.4745359999997,"Consumo Final privado (PC)","2022 p/"]
["P120","Servicios jurídicos, de contabilidad, auditoría, teneduría de libros y consultoría fiscal",233.98689100000001,"Consumo Final privado (PC)","2022 p/"]
["P129","Servicios de limpieza",53.975938999999997,"Consumo Final privado (PC)","2022 p/"]
["P131","Servicios administrativos, de apoyo de oficina y otros servicios de apoyo a las empresas",407.70753400000001,"Consumo Final privado (PC)","2022 p/"]
["P148","Servicios de asociaciones que sirven a los hogares",3078.6337349999999,"Consumo Final privado (PC)","2022 p/"]
["P151","Compras directas en el exterior por residentes",7568.269679,"Consumo Final privado (PC)","2022 p/"]
["P011","Tabaco y otras plantas no perennes",9.0932130000000004,"Consumo Final del Gobierno (PC)","2022 p/"]
["P021","Ganado bovino",0,"Consumo Final del Gobierno (PC)","2022 p/"]
["P031","Petróleo crudo y gas natural",0,"Consumo Final del Gobierno (PC)","2022 p/"]
["P040","Vegetales preparados o en conserva, legumbres y papas",0,"Consumo Final del Gobierno (PC)","2022 p/"]
["P051","Tortillas de maíz, incluso tostadas, horneadas o fritas",0.29559299999999999,"Consumo Final del Gobierno (PC)","2022 p/"]
["P054","Preparados para alimentación animal",0,"Consumo Final del Gobierno (PC)","2022 p/"]
["P069","Aceites, grasas lubricantes y otros aceites preparados",0,"Consumo Final del Gobierno (PC)","2022 p/"]
["P074","Otros productos químicos",0,"Consumo Final del Gobierno (PC)","2022 p/"]
["P086","Electrodomésticos y sus partes",1.72E-2,"Consumo Final del Gobierno (PC)","2022 p/"]
["P094","Residuos y desechos",0,"Consumo Final del Gobierno (PC)","2022 p/"]
["P106","Otros tipos de transporte",0,"Consumo Final del Gobierno (PC)","2022 p/"]
["P113","Servicios de banco central",872.41554900000006,"Consumo Final del Gobierno (PC)","2022 p/"]
["P126","Servicios  de agencias de empleo y de dotación de recursos humanos",0,"Consumo Final del Gobierno (PC)","2022 p/"]
["P129","Servicios de limpieza",0,"Consumo Final del Gobierno (PC)","2022 p/"]
["P142","Servicios de enseñanza",20568.295525000001,"Consumo Final del Gobierno (PC)","2022 p/"]
["P149","Otros servicios",0,"Consumo Final del Gobierno (PC)","2022 p/"]
["P005","Otros cereales",0,"Formación Bruta de Capital Fijo (PC)","2022 p/"]
["P017","Cardamomo",36.317205000000001,"Formación Bruta de Capital Fijo (PC)","2022 p/"]
["P029","Peces vivos, frescos o refrigerados",0,"Formación Bruta de Capital Fijo (PC)","2022 p/"]
["P034","Carne y despojos comestibles de ganado bovino; cueros y pieles de bovino y de otros animales",0,"Formación Bruta de Capital Fijo (PC)","2022 p/"]
["P049","Otros productos de molinería, almidones y productos de almidón",0,"Formación Bruta de Capital Fijo (PC)","2022 p/"]
["P059","Hilados, tejidos, telas y otros productos textiles excepto prendas de vestir",0,"Formación Bruta de Capital Fijo (PC)","2022 p/"]
["P069","Aceites, grasas lubricantes y otros aceites preparados",0,"Formación Bruta de Capital Fijo (PC)","2022 p/"]
["P072","Pinturas, barnices, tintas y productos relacionados",0,"Formación Bruta de Capital Fijo (PC)","2022 p/"]
["P088","Maquinaria y aparatos eléctricos, sus partes y piezas",1658.921161,"Formación Bruta de Capital Fijo (PC)","2022 p/"]
["P092","Muebles",4756.1850430000004,"Formación Bruta de Capital Fijo (PC)","2022 p/"]
["P103","Mantenimiento y reparación de vehículos automotores y motocicletas",0,"Formación Bruta de Capital Fijo (PC)","2022 p/"]
["P109","Servicios postales y de mensajería",0,"Formación Bruta de Capital Fijo (PC)","2022 p/"]
["P110","Servicio de alojamiento",0,"Formación Bruta de Capital Fijo (PC)","2022 p/"]
["P111","Servicio de suministro de comidas y bebidas",0,"Formación Bruta de Capital Fijo (PC)","2022 p/"]
["P112","Servicios de información, telecomunicaciones y radiodifusión",0,"Formación Bruta de Capital Fijo (PC)","2022 p/"]
["P113","Servicios de banco central",0,"Formación Bruta de Capital Fijo (PC)","2022 p/"]
["P114","Otros servicios financieros y servicios de banca de inversión",0,"Formación Bruta de Capital Fijo (PC)","2022 p/"]
["P115","Servicios de Intermediación Financiera Medidos Indirectamente (SIFMI)",0,"Formación Bruta de Capital Fijo (PC)","2022 p/"]
["P116","Servicios de seguro, reaseguro y fondos de pensiones",0,"Formación Bruta de Capital Fijo (PC)","2022 p/"]
["P117","Servicios auxiliares de la intermediación financiera",0,"Formación Bruta de Capital Fijo (PC)","2022 p/"]
["P118","Servicios de alquiler de vivienda",0,"Formación Bruta de Capital Fijo (PC)","2022 p/"]
["P119","Otros servicios inmobiliarios, excepto alquiler de vivienda",0,"Formación Bruta de Capital Fijo (PC)","2022 p/"]
["P120","Servicios jurídicos, de contabilidad, auditoría, teneduría de libros y consultoría fiscal",0,"Formación Bruta de Capital Fijo (PC)","2022 p/"]
["P121","Servicios de tecnología de la información",716.12191399999995,"Formación Bruta de Capital Fijo (PC)","2022 p/"]
["P122","Servicios de arquitectura e ingeniería, ensayos y análisis técnicos",219.12027599999999,"Formación Bruta de Capital Fijo (PC)","2022 p/"]
["P123","Otros servicios profesionales, científicos y técnicos",556.40606400000001,"Formación Bruta de Capital Fijo (PC)","2022 p/"]
["P124","Servicios de publicidad y estudios de mercado",0,"Formación Bruta de Capital Fijo (PC)","2022 p/"]
["P125","Servicios de arrendamiento o alquiler sin operador",0,"Formación Bruta de Capital Fijo (PC)","2022 p/"]
["P126","Servicios  de agencias de empleo y de dotación de recursos humanos",0,"Formación Bruta de Capital Fijo (PC)","2022 p/"]
["P127","Servicios de agencias de viajes, operadores turísticos y actividades conexas",0,"Formación Bruta de Capital Fijo (PC)","2022 p/"]
["P128","Servicios de seguridad, sistemas de seguridad e investigación privada",0,"Formación Bruta de Capital Fijo (PC)","2022 p/"]
["P129","Servicios de limpieza",0,"Formación Bruta de Capital Fijo (PC)","2022 p/"]
["P130","Servicios telefónicos de centros de llamadas",0,"Formación Bruta de Capital Fijo (PC)","2022 p/"]
["P131","Servicios administrativos, de apoyo de oficina y otros servicios de apoyo a las empresas",0,"Formación Bruta de Capital Fijo (PC)","2022 p/"]
["P132","Servicios de mantenimiento, reparación e instalación de productos metálicos elaborados, maquinaria y equipo",0,"Formación Bruta de Capital Fijo (PC)","2022 p/"]
["P133","Servicios de reparación de otros bienes",0,"Formación Bruta de Capital Fijo (PC)","2022 p/"]
["P134","Servicios de apoyo a la agricultura, caza, silvicultura y pesca",0,"Formación Bruta de Capital Fijo (PC)","2022 p/"]
["P135","Servicios de apoyo a la explotación de minas y canteras y los relacionados con la distribución de electricidad, gas y agua",0,"Formación Bruta de Capital Fijo (PC)","2022 p/"]
["P136","Servicios de manufactura",0,"Formación Bruta de Capital Fijo (PC)","2022 p/"]
["P137","Servicios públicos del gobierno general",0,"Formación Bruta de Capital Fijo (PC)","2022 p/"]
["P138","Servicios públicos administrativos relacionados con la provisión de servicios educativos, de salud, servicios sociales, culturales y otros, sin contar los servicios de seguridad social",0,"Formación Bruta de Capital Fijo (PC)","2022 p/"]
["P139","Otros servicios administrativos",0,"Formación Bruta de Capital Fijo (PC)","2022 p/"]
["P140","Servicios públicos administrativos prestados a la comunidad en su conjunto",0,"Formación Bruta de Capital Fijo (PC)","2022 p/"]
["P141","Servicios administrativos relacionados con los sistemas de seguridad social de afiliación obligatoria",0,"Formación Bruta de Capital Fijo (PC)","2022 p/"]
["P142","Servicios de enseñanza",0,"Formación Bruta de Capital Fijo (PC)","2022 p/"]
["P143","Servicios de hospitalización",0,"Formación Bruta de Capital Fijo (PC)","2022 p/"]
["P144","Servicios médicos y dentales",0,"Formación Bruta de Capital Fijo (PC)","2022 p/"]
["P145","Otros servicios de atención de la salud humana",0,"Formación Bruta de Capital Fijo (PC)","2022 p/"]
["P146","Servicios audiovisuales, recreativos, culturales y deportivos",0,"Formación Bruta de Capital Fijo (PC)","2022 p/"]
["P147","Servicios de asociaciones que sirven a las empresas",0,"Formación Bruta de Capital Fijo (PC)","2022 p/"]
["P148","Servicios de asociaciones que sirven a los hogares",0,"Formación Bruta de Capital Fijo (PC)","2022 p/"]
["P149","Otros servicios",0,"Formación Bruta de Capital Fijo (PC)","2022 p/"]
["P150","Servicios domésticos",0,"Formación Bruta de Capital Fijo (PC)","2022 p/"]
["P151","Compras directas en el exterior por residentes",22.43375,"Formación Bruta de Capital Fijo (PC)","2022 p/"]
["P152","Compras directas en el territorio nacional por no residentes",0,"Formación Bruta de Capital Fijo (PC)","2022 p/"]
["P001","Maíz",91.833158999999995,"Exportaciones (fob)","2022 p/"]
["P002","Frijoles",10.601314,"Exportaciones (fob)","2022 p/"]
["P003","Leguminosas (legumbres secas) y semillas oleaginosas",403.51556699999998,"Exportaciones (fob)","2022 p/"]
["P004","Arroz",0,"Exportaciones (fob)","2022 p/"]
["P005","Otros cereales",1.4577560000000001,"Exportaciones (fob)","2022 p/"]
["P006","Hortalizas",1796.4918640000001,"Exportaciones (fob)","2022 p/"]
["P007","Sandías y melones",1655.1435610000001,"Exportaciones (fob)","2022 p/"]
["P008","Ejotes y arvejas",1213.7520930000001,"Exportaciones (fob)","2022 p/"]
["P009","Raíces y tubérculos",184.09404799999999,"Exportaciones (fob)","2022 p/"]
["P010","Caña de azúcar y otras plantas azucareras",1.0966899999999999,"Exportaciones (fob)","2022 p/"]
["P011","Tabaco y otras plantas no perennes",458.43151999999998,"Exportaciones (fob)","2022 p/"]
["P012","Bananos, plátanos y otros",8234.8124160000007,"Exportaciones (fob)","2022 p/"]
["P013","Frutas tropicales y subtropicales",532.48016600000005,"Exportaciones (fob)","2022 p/"]
["P014","Berries, otras frutas y semillas de frutas",294.51938100000001,"Exportaciones (fob)","2022 p/"]
["P015","Palma africana",1.5863100000000001,"Exportaciones (fob)","2022 p/"]
["P016","Café en grano",8584.6010370000004,"Exportaciones (fob)","2022 p/"]
["P017","Cardamomo",3105.5171289999998,"Exportaciones (fob)","2022 p/"]
["P018","Caucho natural",1629.3057429999999,"Exportaciones (fob)","2022 p/"]
["P019","Propagación de plantas",458.642428,"Exportaciones (fob)","2022 p/"]
["P020","Otros frutos oleaginosos, otras plantas bebestibles y especias aromáticas",69.098894999999999,"Exportaciones (fob)","2022 p/"]
["P021","Ganado bovino",78.676817999999997,"Exportaciones (fob)","2022 p/"]
["P022","Ganado porcino y otro tipo de animales vivos n.c.p.",0.442998,"Exportaciones (fob)","2022 p/"]
["P023","Aves de corral",21.480349,"Exportaciones (fob)","2022 p/"]
["P024","Leche cruda",0,"Exportaciones (fob)","2022 p/"]
["P025","Huevos",15.860025,"Exportaciones (fob)","2022 p/"]
["P026","Otros productos de animales vivos",40.634264000000002,"Exportaciones (fob)","2022 p/"]
["P027","Troncos de madera y leña",60.356451,"Exportaciones (fob)","2022 p/"]
["P028","Productos forestales no madereros",258.68355000000003,"Exportaciones (fob)","2022 p/"]
["P029","Peces vivos, frescos o refrigerados",73.499174999999994,"Exportaciones (fob)","2022 p/"]
["P030","Crustáceos sin congelar y otros productos de la pesca",31.593340000000001,"Exportaciones (fob)","2022 p/"]
["P031","Petróleo crudo y gas natural",574.43417699999998,"Exportaciones (fob)","2022 p/"]
["P032","Minerales metálicos",459.34839399999998,"Exportaciones (fob)","2022 p/"]
["P033","Minerales no metálicos",213.98985300000001,"Exportaciones (fob)","2022 p/"]
["P034","Carne y despojos comestibles de ganado bovino; cueros y pieles de bovino y de otros animales",68.745440000000002,"Exportaciones (fob)","2022 p/"]
["P035","Carne y despojos comestibles de ganado porcino",0.33836300000000002,"Exportaciones (fob)","2022 p/"]
["P036","Carne y despojos comestibles de aves",9.7169550000000005,"Exportaciones (fob)","2022 p/"]
["P037","Carne y despojos de otros animales y conservas y preparados de carne",599.42694700000004,"Exportaciones (fob)","2022 p/"]
["P038","Pescado congelado, preparado o en conserva y sus productos",796.50868000000003,"Exportaciones (fob)","2022 p/"]
["P039","Crustáceos, moluscos y demás invertebrados acuáticos congelados, preparados o en conserva y sus productos",685.12252799999999,"Exportaciones (fob)","2022 p/"]
["P040","Vegetales preparados o en conserva, legumbres y papas",1000.226584,"Exportaciones (fob)","2022 p/"]
["P041","Preparaciones y conservas de frutas y nueces",1230.8354179999999,"Exportaciones (fob)","2022 p/"]
["P042","Jugos de frutas",525.29635299999995,"Exportaciones (fob)","2022 p/"]
["P043","Aceites de origen vegetal",8262.5155969999996,"Exportaciones (fob)","2022 p/"]
["P044","Margarina, grasas y otros aceites de origen animal y vegetal",942.525035,"Exportaciones (fob)","2022 p/"]
["P045","Leche líquida y crema procesada",8.1761189999999999,"Exportaciones (fob)","2022 p/"]
["P046","Otros productos lácteos n.c.p.",370.65133200000002,"Exportaciones (fob)","2022 p/"]
["P047","Harina de trigo",45.639806999999998,"Exportaciones (fob)","2022 p/"]
["P048","Arroz sin cáscara",3.9388200000000002,"Exportaciones (fob)","2022 p/"]
["P049","Otros productos de molinería, almidones y productos de almidón",665.53607,"Exportaciones (fob)","2022 p/"]
["P050","Pan y otros productos de panadería y repostería n.c.p.",1407.436717,"Exportaciones (fob)","2022 p/"]
["P051","Tortillas de maíz, incluso tostadas, horneadas o fritas",0,"Exportaciones (fob)","2022 p/"]
["P052","Azúcar de caña sin refinar y refinada, melaza y los demás azúcares n.c.p.",6520.5388519999997,"Exportaciones (fob)","2022 p/"]
["P053","Productos alimenticios n.c.p.",3557.6002560000002,"Exportaciones (fob)","2022 p/"]
["P054","Preparados para alimentación animal",1183.5929329999999,"Exportaciones (fob)","2022 p/"]
["P055","Aguardientes, licores, vinos, demás bebidas espirituosas y productos del tabaco",845.83953599999995,"Exportaciones (fob)","2022 p/"]
["P056","Malta y cerveza de malta",136.662465,"Exportaciones (fob)","2022 p/"]
["P057","Bebidas no alcohólicas",1367.3070279999999,"Exportaciones (fob)","2022 p/"]
["P058","Aguas minerales y otras aguas embotelladas",54.023932000000002,"Exportaciones (fob)","2022 p/"]
["P059","Hilados, tejidos, telas y otros productos textiles excepto prendas de vestir",3136.4579330000001,"Exportaciones (fob)","2022 p/"]
["P060","Prendas de vestir, adobo y teñido de pieles",6384.3334029999996,"Exportaciones (fob)","2022 p/"]
["P061","Cuero de piel curtida o adobada y cuero artificial o regenerado y artículos de cuero",115.39191700000001,"Exportaciones (fob)","2022 p/"]
["P062","Calzado y sus partes, de cualquier material y de cualquier uso",458.62091900000001,"Exportaciones (fob)","2022 p/"]
["P063","Madera aserrada y acepillada, productos de madera, corcho, paja y materiales trenzables",1024.25497,"Exportaciones (fob)","2022 p/"]
["P064","Pasta de papel y papel",1521.581911,"Exportaciones (fob)","2022 p/"]
["P065","Envases de papel y cartón",1559.4436559999999,"Exportaciones (fob)","2022 p/"]
["P066","Productos de la edición",181.83000899999999,"Exportaciones (fob)","2022 p/"]
["P067","Productos de la impresión",101.691452,"Exportaciones (fob)","2022 p/"]
["P068","Gasolinas, diésel oil y fuel oils",1230.1909230000001,"Exportaciones (fob)","2022 p/"]
["P069","Aceites, grasas lubricantes y otros aceites preparados",25.185624000000001,"Exportaciones (fob)","2022 p/"]
["P070","Gases de petróleo, otros productos de la refinación de petróleo n.c.p.",2330.411439,"Exportaciones (fob)","2022 p/"]
["P071","Abonos, fertilizantes y pesticidas",2109.0328530000002,"Exportaciones (fob)","2022 p/"]
["P072","Pinturas, barnices, tintas y productos relacionados",603.82713799999999,"Exportaciones (fob)","2022 p/"]
["P073","Jabón, preparados de limpieza, perfumes y preparados de toilet",3216.0488260000002,"Exportaciones (fob)","2022 p/"]
["P074","Otros productos químicos",3501.2193710000001,"Exportaciones (fob)","2022 p/"]
["P075","Productos farmacéuticos",1812.618174,"Exportaciones (fob)","2022 p/"]
["P076","Productos de caucho y plástico",4642.7479229999999,"Exportaciones (fob)","2022 p/"]
["P077","Vidrio y productos de vidrio",681.03510200000005,"Exportaciones (fob)","2022 p/"]
["P078","Productos de cerámica y arcilla",716.93450900000005,"Exportaciones (fob)","2022 p/"]
["P079","Cemento, cal y yeso",252.80557400000001,"Exportaciones (fob)","2022 p/"]
["P080","Artículos de hormigón, cemento y yeso",33.852383000000003,"Exportaciones (fob)","2022 p/"]
["P081","Piedras talladas para construcción y otros productos minerales no metálicos n.c.p.",37.804726000000002,"Exportaciones (fob)","2022 p/"]
["P082","Métales básicos de hierro y acero, productos primarios de metales preciosos y otros metales no ferrosos",6544.0885600000001,"Exportaciones (fob)","2022 p/"]
["P083","Productos metálicos estructurales y sus partes de hierro o de acero",393.65666499999998,"Exportaciones (fob)","2022 p/"]
["P084","Otros productos elaborados de metal",1503.473747,"Exportaciones (fob)","2022 p/"]
["P085","Maquinaria para usos generales y especiales, sus partes y piezas, excepto electrodomésticos",1421.132486,"Exportaciones (fob)","2022 p/"]
["P086","Electrodomésticos y sus partes",122.006916,"Exportaciones (fob)","2022 p/"]
["P087","Maquinaria de oficina, contabilidad e informática, sus partes y piezas",73.546014,"Exportaciones (fob)","2022 p/"]
["P088","Maquinaria y aparatos eléctricos, sus partes y piezas",262.79415799999998,"Exportaciones (fob)","2022 p/"]
["P089","Equipo y aparatos de radio, televisión y comunicaciones",194.19055,"Exportaciones (fob)","2022 p/"]
["P090","Aparatos médicos, instrumentos ópticos y de precisión, relojes",231.75941700000001,"Exportaciones (fob)","2022 p/"]
["P091","Equipo de transporte",326.24854900000003,"Exportaciones (fob)","2022 p/"]
["P092","Muebles",594.37426800000003,"Exportaciones (fob)","2022 p/"]
["P093","Otros artículos n.c.p.",407.67581799999999,"Exportaciones (fob)","2022 p/"]
["P094","Residuos y desechos",853.84094300000004,"Exportaciones (fob)","2022 p/"]
["P095","Generación y distribución de energía eléctrica, gas, vapor y aire acondicionado",851.43920500000002,"Exportaciones (fob)","2022 p/"]
["P096","Agua natural y distribución de agua natural",0,"Exportaciones (fob)","2022 p/"]
["P097","Evacuación de aguas residuales, recogida, tratamiento y eliminación de desechos",1.4265779999999999,"Exportaciones (fob)","2022 p/"]
["P098","Edificaciones residenciales",0,"Exportaciones (fob)","2022 p/"]
["P099","Edificaciones no residenciales",0,"Exportaciones (fob)","2022 p/"]
["P100","Obras de ingeniería civil",0,"Exportaciones (fob)","2022 p/"]
["P101","Servicios generales y especializados de construcción",151.86731,"Exportaciones (fob)","2022 p/"]
["P102","Servicios de comercio",0,"Exportaciones (fob)","2022 p/"]
["P103","Mantenimiento y reparación de vehículos automotores y motocicletas",11.697582000000001,"Exportaciones (fob)","2022 p/"]
["P104","Servicio de transporte de pasajeros por vía terrestre",5.0107200000000001,"Exportaciones (fob)","2022 p/"]
["P105","Servicio de transporte de carga por vía terrestre",947.09943799999996,"Exportaciones (fob)","2022 p/"]
["P106","Otros tipos de transporte",24.545577000000002,"Exportaciones (fob)","2022 p/"]
["P107","Servicios de almacenamiento y depósito",12.570228,"Exportaciones (fob)","2022 p/"]
["P108","Otros servicios de apoyo al transporte",2539.1059780000001,"Exportaciones (fob)","2022 p/"]
["P109","Servicios postales y de mensajería",55.429810000000003,"Exportaciones (fob)","2022 p/"]
["P110","Servicio de alojamiento",0,"Exportaciones (fob)","2022 p/"]
["P111","Servicio de suministro de comidas y bebidas",59.840459000000003,"Exportaciones (fob)","2022 p/"]
["P112","Servicios de información, telecomunicaciones y radiodifusión",1843.0763260000001,"Exportaciones (fob)","2022 p/"]
["P113","Servicios de banco central",0,"Exportaciones (fob)","2022 p/"]
["P114","Otros servicios financieros y servicios de banca de inversión",15.012915,"Exportaciones (fob)","2022 p/"]
["P115","Servicios de Intermediación Financiera Medidos Indirectamente (SIFMI)",410.92283099999997,"Exportaciones (fob)","2022 p/"]
["P116","Servicios de seguro, reaseguro y fondos de pensiones",388.27562899999998,"Exportaciones (fob)","2022 p/"]
["P117","Servicios auxiliares de la intermediación financiera",0,"Exportaciones (fob)","2022 p/"]
["P118","Servicios de alquiler de vivienda",0,"Exportaciones (fob)","2022 p/"]
["P119","Otros servicios inmobiliarios, excepto alquiler de vivienda",0,"Exportaciones (fob)","2022 p/"]
["P120","Servicios jurídicos, de contabilidad, auditoría, teneduría de libros y consultoría fiscal",15.294582999999999,"Exportaciones (fob)","2022 p/"]
["P121","Servicios de tecnología de la información",503.25324599999999,"Exportaciones (fob)","2022 p/"]
["P122","Servicios de arquitectura e ingeniería, ensayos y análisis técnicos",6.3346429999999998,"Exportaciones (fob)","2022 p/"]
["P123","Otros servicios profesionales, científicos y técnicos",906.69320000000005,"Exportaciones (fob)","2022 p/"]
["P124","Servicios de publicidad y estudios de mercado",64.279597999999993,"Exportaciones (fob)","2022 p/"]
["P125","Servicios de arrendamiento o alquiler sin operador",155.51295500000001,"Exportaciones (fob)","2022 p/"]
["P126","Servicios  de agencias de empleo y de dotación de recursos humanos",0,"Exportaciones (fob)","2022 p/"]
["P127","Servicios de agencias de viajes, operadores turísticos y actividades conexas",559.314571,"Exportaciones (fob)","2022 p/"]
["P128","Servicios de seguridad, sistemas de seguridad e investigación privada",11.757422999999999,"Exportaciones (fob)","2022 p/"]
["P129","Servicios de limpieza",0,"Exportaciones (fob)","2022 p/"]
["P130","Servicios telefónicos de centros de llamadas",8242.7824189999992,"Exportaciones (fob)","2022 p/"]
["P131","Servicios administrativos, de apoyo de oficina y otros servicios de apoyo a las empresas",122.13021500000001,"Exportaciones (fob)","2022 p/"]
["P132","Servicios de mantenimiento, reparación e instalación de productos metálicos elaborados, maquinaria y equipo",148.399552,"Exportaciones (fob)","2022 p/"]
["P133","Servicios de reparación de otros bienes",0,"Exportaciones (fob)","2022 p/"]
["P134","Servicios de apoyo a la agricultura, caza, silvicultura y pesca",0,"Exportaciones (fob)","2022 p/"]
["P135","Servicios de apoyo a la explotación de minas y canteras y los relacionados con la distribución de electricidad, gas y agua",0,"Exportaciones (fob)","2022 p/"]
["P136","Servicios de manufactura",4567.4473669999998,"Exportaciones (fob)","2022 p/"]
["P137","Servicios públicos del gobierno general",0,"Exportaciones (fob)","2022 p/"]
["P138","Servicios públicos administrativos relacionados con la provisión de servicios educativos, de salud, servicios sociales, culturales y otros, sin contar los servicios de seguridad social",0,"Exportaciones (fob)","2022 p/"]
["P139","Otros servicios administrativos",0,"Exportaciones (fob)","2022 p/"]
["P140","Servicios públicos administrativos prestados a la comunidad en su conjunto",48.654888,"Exportaciones (fob)","2022 p/"]
["P141","Servicios administrativos relacionados con los sistemas de seguridad social de afiliación obligatoria",0,"Exportaciones (fob)","2022 p/"]
["P142","Servicios de enseñanza",2.9894470000000002,"Exportaciones (fob)","2022 p/"]
["P143","Servicios de hospitalización",225.78577300000001,"Exportaciones (fob)","2022 p/"]
["P144","Servicios médicos y dentales",338.67865999999998,"Exportaciones (fob)","2022 p/"]
["P145","Otros servicios de atención de la salud humana",99.851934,"Exportaciones (fob)","2022 p/"]
["P146","Servicios audiovisuales, recreativos, culturales y deportivos",0,"Exportaciones (fob)","2022 p/"]
["P147","Servicios de asociaciones que sirven a las empresas",0,"Exportaciones (fob)","2022 p/"]
["P148","Servicios de asociaciones que sirven a los hogares",0,"Exportaciones (fob)","2022 p/"]
["P149","Otros servicios",0,"Exportaciones (fob)","2022 p/"]
["P150","Servicios domésticos",0,"Exportaciones (fob)","2022 p/"]
["P151","Compras directas en el exterior por residentes",0,"Exportaciones (fob)","2022 p/"]
["P152","Compras directas en el territorio nacional por no residentes",7609.4738180000004,"Exportaciones (fob)","2022 p/"]
["P001","Maíz",105.890739,"Variación de existencias (PC)","2022 p/"]
["P002","Frijoles",11.792094000000001,"Variación de existencias (PC)","2022 p/"]
["P003","Leguminosas (legumbres secas) y semillas oleaginosas",-121.33275500000001,"Variación de existencias (PC)","2022 p/"]
["P004","Arroz",78.046749000000005,"Variación de existencias (PC)","2022 p/"]
["P005","Otros cereales",115.34275599999999,"Variación de existencias (PC)","2022 p/"]
["P006","Hortalizas",0,"Variación de existencias (PC)","2022 p/"]
["P007","Sandías y melones",7.9910750000000004,"Variación de existencias (PC)","2022 p/"]
["P008","Ejotes y arvejas",0,"Variación de existencias (PC)","2022 p/"]
["P009","Raíces y tubérculos",0,"Variación de existencias (PC)","2022 p/"]
["P010","Caña de azúcar y otras plantas azucareras",-26.724036000000002,"Variación de existencias (PC)","2022 p/"]
["P011","Tabaco y otras plantas no perennes",15.543175,"Variación de existencias (PC)","2022 p/"]
["P012","Bananos, plátanos y otros",0,"Variación de existencias (PC)","2022 p/"]
["P013","Frutas tropicales y subtropicales",0,"Variación de existencias (PC)","2022 p/"]
["P014","Berries, otras frutas y semillas de frutas",0,"Variación de existencias (PC)","2022 p/"]
["P015","Palma africana",0,"Variación de existencias (PC)","2022 p/"]
["P016","Café en grano",732.68582200000003,"Variación de existencias (PC)","2022 p/"]
["P017","Cardamomo",-581.22120600000005,"Variación de existencias (PC)","2022 p/"]
["P018","Caucho natural",0,"Variación de existencias (PC)","2022 p/"]
["P019","Propagación de plantas",0,"Variación de existencias (PC)","2022 p/"]
["P020","Otros frutos oleaginosos, otras plantas bebestibles y especias aromáticas",0,"Variación de existencias (PC)","2022 p/"]
["P021","Ganado bovino",-33.290170000000003,"Variación de existencias (PC)","2022 p/"]
["P022","Ganado porcino y otro tipo de animales vivos n.c.p.",3.2256689999999999,"Variación de existencias (PC)","2022 p/"]
["P023","Aves de corral",-28.716771000000001,"Variación de existencias (PC)","2022 p/"]
["P024","Leche cruda",0,"Variación de existencias (PC)","2022 p/"]
["P025","Huevos",0,"Variación de existencias (PC)","2022 p/"]
["P026","Otros productos de animales vivos",0,"Variación de existencias (PC)","2022 p/"]
["P027","Troncos de madera y leña",0,"Variación de existencias (PC)","2022 p/"]
["P028","Productos forestales no madereros",0,"Variación de existencias (PC)","2022 p/"]
["P029","Peces vivos, frescos o refrigerados",0,"Variación de existencias (PC)","2022 p/"]
["P030","Crustáceos sin congelar y otros productos de la pesca",0,"Variación de existencias (PC)","2022 p/"]
["P031","Petróleo crudo y gas natural",50.360596999999999,"Variación de existencias (PC)","2022 p/"]
["P032","Minerales metálicos",-3.3208120000000001,"Variación de existencias (PC)","2022 p/"]
["P033","Minerales no metálicos",78.117000000000004,"Variación de existencias (PC)","2022 p/"]
["P034","Carne y despojos comestibles de ganado bovino; cueros y pieles de bovino y de otros animales",-3.8798720000000002,"Variación de existencias (PC)","2022 p/"]
["P035","Carne y despojos comestibles de ganado porcino",-5.4592409999999996,"Variación de existencias (PC)","2022 p/"]
["P036","Carne y despojos comestibles de aves",2.984254,"Variación de existencias (PC)","2022 p/"]
["P037","Carne y despojos de otros animales y conservas y preparados de carne",2.867321,"Variación de existencias (PC)","2022 p/"]
["P038","Pescado congelado, preparado o en conserva y sus productos",8.1860529999999994,"Variación de existencias (PC)","2022 p/"]
["P039","Crustáceos, moluscos y demás invertebrados acuáticos congelados, preparados o en conserva y sus productos",2.506605,"Variación de existencias (PC)","2022 p/"]
["P040","Vegetales preparados o en conserva, legumbres y papas",-3.74586,"Variación de existencias (PC)","2022 p/"]
["P041","Preparaciones y conservas de frutas y nueces",-4.2476779999999996,"Variación de existencias (PC)","2022 p/"]
["P042","Jugos de frutas",-36.308838999999999,"Variación de existencias (PC)","2022 p/"]
["P043","Aceites de origen vegetal",-95.928381999999999,"Variación de existencias (PC)","2022 p/"]
["P044","Margarina, grasas y otros aceites de origen animal y vegetal",-17.856788000000002,"Variación de existencias (PC)","2022 p/"]
["P045","Leche líquida y crema procesada",-10.259373,"Variación de existencias (PC)","2022 p/"]
["P046","Otros productos lácteos n.c.p.",28.199048999999999,"Variación de existencias (PC)","2022 p/"]
["P047","Harina de trigo",31.231746999999999,"Variación de existencias (PC)","2022 p/"]
["P048","Arroz sin cáscara",2.2350940000000001,"Variación de existencias (PC)","2022 p/"]
["P049","Otros productos de molinería, almidones y productos de almidón",18.828752000000001,"Variación de existencias (PC)","2022 p/"]
["P050","Pan y otros productos de panadería y repostería n.c.p.",-6.4777259999999997,"Variación de existencias (PC)","2022 p/"]
["P051","Tortillas de maíz, incluso tostadas, horneadas o fritas",-0.88047900000000001,"Variación de existencias (PC)","2022 p/"]
["P052","Azúcar de caña sin refinar y refinada, melaza y los demás azúcares n.c.p.",-835.30771500000003,"Variación de existencias (PC)","2022 p/"]
["P053","Productos alimenticios n.c.p.",215.56978899999999,"Variación de existencias (PC)","2022 p/"]
["P054","Preparados para alimentación animal",-32.623567000000001,"Variación de existencias (PC)","2022 p/"]
["P055","Aguardientes, licores, vinos, demás bebidas espirituosas y productos del tabaco",63.575648000000001,"Variación de existencias (PC)","2022 p/"]
["P056","Malta y cerveza de malta",-1.3598779999999999,"Variación de existencias (PC)","2022 p/"]
["P057","Bebidas no alcohólicas",84.648083999999997,"Variación de existencias (PC)","2022 p/"]
["P058","Aguas minerales y otras aguas embotelladas",33.827587000000001,"Variación de existencias (PC)","2022 p/"]
["P059","Hilados, tejidos, telas y otros productos textiles excepto prendas de vestir",-142.735893,"Variación de existencias (PC)","2022 p/"]
["P060","Prendas de vestir, adobo y teñido de pieles",589.69920400000001,"Variación de existencias (PC)","2022 p/"]
["P061","Cuero de piel curtida o adobada y cuero artificial o regenerado y artículos de cuero",40.986710000000002,"Variación de existencias (PC)","2022 p/"]
["P062","Calzado y sus partes, de cualquier material y de cualquier uso",97.287197000000006,"Variación de existencias (PC)","2022 p/"]
["P063","Madera aserrada y acepillada, productos de madera, corcho, paja y materiales trenzables",-140.80731800000001,"Variación de existencias (PC)","2022 p/"]
["P064","Pasta de papel y papel",1204.2239870000001,"Variación de existencias (PC)","2022 p/"]
["P065","Envases de papel y cartón",374.56061199999999,"Variación de existencias (PC)","2022 p/"]
["P066","Productos de la edición",-20.304728999999998,"Variación de existencias (PC)","2022 p/"]
["P067","Productos de la impresión",88.251721000000003,"Variación de existencias (PC)","2022 p/"]
["P068","Gasolinas, diésel oil y fuel oils",-1865.5075859999999,"Variación de existencias (PC)","2022 p/"]
["P069","Aceites, grasas lubricantes y otros aceites preparados",212.644598,"Variación de existencias (PC)","2022 p/"]
["P070","Gases de petróleo, otros productos de la refinación de petróleo n.c.p.",303.21081500000003,"Variación de existencias (PC)","2022 p/"]
["P071","Abonos, fertilizantes y pesticidas",-294.31756000000001,"Variación de existencias (PC)","2022 p/"]
["P072","Pinturas, barnices, tintas y productos relacionados",22.547260999999999,"Variación de existencias (PC)","2022 p/"]
["P073","Jabón, preparados de limpieza, perfumes y preparados de toilet",15.797404999999999,"Variación de existencias (PC)","2022 p/"]
["P074","Otros productos químicos",105.724532,"Variación de existencias (PC)","2022 p/"]
["P075","Productos farmacéuticos",84.566524999999999,"Variación de existencias (PC)","2022 p/"]
["P076","Productos de caucho y plástico",-142.50206800000001,"Variación de existencias (PC)","2022 p/"]
["P077","Vidrio y productos de vidrio",190.060654,"Variación de existencias (PC)","2022 p/"]
["P078","Productos de cerámica y arcilla",135.17578800000001,"Variación de existencias (PC)","2022 p/"]
["P079","Cemento, cal y yeso",-278.365566,"Variación de existencias (PC)","2022 p/"]
["P080","Artículos de hormigón, cemento y yeso",-102.432519,"Variación de existencias (PC)","2022 p/"]
["P081","Piedras talladas para construcción y otros productos minerales no metálicos n.c.p.",63.394464999999997,"Variación de existencias (PC)","2022 p/"]
["P082","Métales básicos de hierro y acero, productos primarios de metales preciosos y otros metales no ferrosos",-1387.6978999999999,"Variación de existencias (PC)","2022 p/"]
["P083","Productos metálicos estructurales y sus partes de hierro o de acero",10.655733,"Variación de existencias (PC)","2022 p/"]
["P084","Otros productos elaborados de metal",73.451633999999999,"Variación de existencias (PC)","2022 p/"]
["P085","Maquinaria para usos generales y especiales, sus partes y piezas, excepto electrodomésticos",321.32788900000003,"Variación de existencias (PC)","2022 p/"]
["P086","Electrodomésticos y sus partes",-10.831262000000001,"Variación de existencias (PC)","2022 p/"]
["P087","Maquinaria de oficina, contabilidad e informática, sus partes y piezas",120.422044,"Variación de existencias (PC)","2022 p/"]
["P088","Maquinaria y aparatos eléctricos, sus partes y piezas",248.524066,"Variación de existencias (PC)","2022 p/"]
["P089","Equipo y aparatos de radio, televisión y comunicaciones",201.96978999999999,"Variación de existencias (PC)","2022 p/"]
["P090","Aparatos médicos, instrumentos ópticos y de precisión, relojes",-2.00163,"Variación de existencias (PC)","2022 p/"]
["P091","Equipo de transporte",-622.76867800000002,"Variación de existencias (PC)","2022 p/"]
["P092","Muebles",16.158829999999998,"Variación de existencias (PC)","2022 p/"]
["P093","Otros artículos n.c.p.",82.169402000000005,"Variación de existencias (PC)","2022 p/"]
["P094","Residuos y desechos",26.942129999999999,"Variación de existencias (PC)","2022 p/"]
["P095","Generación y distribución de energía eléctrica, gas, vapor y aire acondicionado",0,"Variación de existencias (PC)","2022 p/"]
["P096","Agua natural y distribución de agua natural",0,"Variación de existencias (PC)","2022 p/"]
["P097","Evacuación de aguas residuales, recogida, tratamiento y eliminación de desechos",0,"Variación de existencias (PC)","2022 p/"]
["P098","Edificaciones residenciales",246.51319799999999,"Variación de existencias (PC)","2022 p/"]
["P099","Edificaciones no residenciales",-611.37271799999996,"Variación de existencias (PC)","2022 p/"]
["P100","Obras de ingeniería civil",0,"Variación de existencias (PC)","2022 p/"]
["P101","Servicios generales y especializados de construcción",0,"Variación de existencias (PC)","2022 p/"]
["P102","Servicios de comercio",0,"Variación de existencias (PC)","2022 p/"]
["P103","Mantenimiento y reparación de vehículos automotores y motocicletas",0,"Variación de existencias (PC)","2022 p/"]
["P104","Servicio de transporte de pasajeros por vía terrestre",0,"Variación de existencias (PC)","2022 p/"]
["P105","Servicio de transporte de carga por vía terrestre",0,"Variación de existencias (PC)","2022 p/"]
["P106","Otros tipos de transporte",0,"Variación de existencias (PC)","2022 p/"]
["P107","Servicios de almacenamiento y depósito",0,"Variación de existencias (PC)","2022 p/"]
["P108","Otros servicios de apoyo al transporte",0,"Variación de existencias (PC)","2022 p/"]
["P109","Servicios postales y de mensajería",0,"Variación de existencias (PC)","2022 p/"]
["P110","Servicio de alojamiento",0,"Variación de existencias (PC)","2022 p/"]
["P111","Servicio de suministro de comidas y bebidas",0,"Variación de existencias (PC)","2022 p/"]
["P112","Servicios de información, telecomunicaciones y radiodifusión",0,"Variación de existencias (PC)","2022 p/"]
["P113","Servicios de banco central",0,"Variación de existencias (PC)","2022 p/"]
["P114","Otros servicios financieros y servicios de banca de inversión",0,"Variación de existencias (PC)","2022 p/"]
["P115","Servicios de Intermediación Financiera Medidos Indirectamente (SIFMI)",0,"Variación de existencias (PC)","2022 p/"]
["P116","Servicios de seguro, reaseguro y fondos de pensiones",0,"Variación de existencias (PC)","2022 p/"]
["P117","Servicios auxiliares de la intermediación financiera",0,"Variación de existencias (PC)","2022 p/"]
["P118","Servicios de alquiler de vivienda",0,"Variación de existencias (PC)","2022 p/"]
["P119","Otros servicios inmobiliarios, excepto alquiler de vivienda",0,"Variación de existencias (PC)","2022 p/"]
["P120","Servicios jurídicos, de contabilidad, auditoría, teneduría de libros y consultoría fiscal",0,"Variación de existencias (PC)","2022 p/"]
["P121","Servicios de tecnología de la información",0,"Variación de existencias (PC)","2022 p/"]
["P122","Servicios de arquitectura e ingeniería, ensayos y análisis técnicos",0,"Variación de existencias (PC)","2022 p/"]
["P123","Otros servicios profesionales, científicos y técnicos",0,"Variación de existencias (PC)","2022 p/"]
["P124","Servicios de publicidad y estudios de mercado",0,"Variación de existencias (PC)","2022 p/"]
["P125","Servicios de arrendamiento o alquiler sin operador",0,"Variación de existencias (PC)","2022 p/"]
["P126","Servicios  de agencias de empleo y de dotación de recursos humanos",0,"Variación de existencias (PC)","2022 p/"]
["P127","Servicios de agencias de viajes, operadores turísticos y actividades conexas",0,"Variación de existencias (PC)","2022 p/"]
["P128","Servicios de seguridad, sistemas de seguridad e investigación privada",0,"Variación de existencias (PC)","2022 p/"]
["P129","Servicios de limpieza",0,"Variación de existencias (PC)","2022 p/"]
["P130","Servicios telefónicos de centros de llamadas",0,"Variación de existencias (PC)","2022 p/"]
["P131","Servicios administrativos, de apoyo de oficina y otros servicios de apoyo a las empresas",0,"Variación de existencias (PC)","2022 p/"]
["P132","Servicios de mantenimiento, reparación e instalación de productos metálicos elaborados, maquinaria y equipo",0,"Variación de existencias (PC)","2022 p/"]
["P133","Servicios de reparación de otros bienes",0,"Variación de existencias (PC)","2022 p/"]
["P134","Servicios de apoyo a la agricultura, caza, silvicultura y pesca",0,"Variación de existencias (PC)","2022 p/"]
["P135","Servicios de apoyo a la explotación de minas y canteras y los relacionados con la distribución de electricidad, gas y agua",0,"Variación de existencias (PC)","2022 p/"]
["P136","Servicios de manufactura",0,"Variación de existencias (PC)","2022 p/"]
["P137","Servicios públicos del gobierno general",0,"Variación de existencias (PC)","2022 p/"]
["P138","Servicios públicos administrativos relacionados con la provisión de servicios educativos, de salud, servicios sociales, culturales y otros, sin contar los servicios de seguridad social",0,"Variación de existencias (PC)","2022 p/"]
["P139","Otros servicios administrativos",0,"Variación de existencias (PC)","2022 p/"]
["P140","Servicios públicos administrativos prestados a la comunidad en su conjunto",0,"Variación de existencias (PC)","2022 p/"]
["P141","Servicios administrativos relacionados con los sistemas de seguridad social de afiliación obligatoria",0,"Variación de existencias (PC)","2022 p/"]
["P142","Servicios de enseñanza",0,"Variación de existencias (PC)","2022 p/"]
["P143","Servicios de hospitalización",0,"Variación de existencias (PC)","2022 p/"]
["P144","Servicios médicos y dentales",0,"Variación de existencias (PC)","2022 p/"]
["P145","Otros servicios de atención de la salud humana",0,"Variación de existencias (PC)","2022 p/"]
["P146","Servicios audiovisuales, recreativos, culturales y deportivos",0,"Variación de existencias (PC)","2022 p/"]
["P147","Servicios de asociaciones que sirven a las empresas",0,"Variación de existencias (PC)","2022 p/"]
["P148","Servicios de asociaciones que sirven a los hogares",0,"Variación de existencias (PC)","2022 p/"]
["P149","Otros servicios",0,"Variación de existencias (PC)","2022 p/"]
["P150","Servicios domésticos",0,"Variación de existencias (PC)","2022 p/"]
["P151","Compras directas en el exterior por residentes",0,"Variación de existencias (PC)","2022 p/"]
["P152","Compras directas en el territorio nacional por no residentes",0,"Variación de existencias (PC)","2022 p/"]
["P001","Maíz",0,"Ajuste CIF/FOB","2022 p/"]
["P002","Frijoles",0,"Ajuste CIF/FOB","2022 p/"]
["P003","Leguminosas (legumbres secas) y semillas oleaginosas",0,"Ajuste CIF/FOB","2022 p/"]
["P004","Arroz",0,"Ajuste CIF/FOB","2022 p/"]
["P005","Otros cereales",0,"Ajuste CIF/FOB","2022 p/"]
["P006","Hortalizas",0,"Ajuste CIF/FOB","2022 p/"]
["P007","Sandías y melones",0,"Ajuste CIF/FOB","2022 p/"]
["P008","Ejotes y arvejas",0,"Ajuste CIF/FOB","2022 p/"]
["P009","Raíces y tubérculos",0,"Ajuste CIF/FOB","2022 p/"]
["P010","Caña de azúcar y otras plantas azucareras",0,"Ajuste CIF/FOB","2022 p/"]
["P011","Tabaco y otras plantas no perennes",0,"Ajuste CIF/FOB","2022 p/"]
["P012","Bananos, plátanos y otros",0,"Ajuste CIF/FOB","2022 p/"]
["P013","Frutas tropicales y subtropicales",0,"Ajuste CIF/FOB","2022 p/"]
["P014","Berries, otras frutas y semillas de frutas",0,"Ajuste CIF/FOB","2022 p/"]
["P015","Palma africana",0,"Ajuste CIF/FOB","2022 p/"]
["P016","Café en grano",0,"Ajuste CIF/FOB","2022 p/"]
["P017","Cardamomo",0,"Ajuste CIF/FOB","2022 p/"]
["P018","Caucho natural",0,"Ajuste CIF/FOB","2022 p/"]
["P019","Propagación de plantas",0,"Ajuste CIF/FOB","2022 p/"]
["P020","Otros frutos oleaginosos, otras plantas bebestibles y especias aromáticas",0,"Ajuste CIF/FOB","2022 p/"]
["P021","Ganado bovino",0,"Ajuste CIF/FOB","2022 p/"]
["P022","Ganado porcino y otro tipo de animales vivos n.c.p.",0,"Ajuste CIF/FOB","2022 p/"]
["P023","Aves de corral",0,"Ajuste CIF/FOB","2022 p/"]
["P024","Leche cruda",0,"Ajuste CIF/FOB","2022 p/"]
["P025","Huevos",0,"Ajuste CIF/FOB","2022 p/"]
["P026","Otros productos de animales vivos",0,"Ajuste CIF/FOB","2022 p/"]
["P027","Troncos de madera y leña",0,"Ajuste CIF/FOB","2022 p/"]
["P028","Productos forestales no madereros",0,"Ajuste CIF/FOB","2022 p/"]
["P029","Peces vivos, frescos o refrigerados",0,"Ajuste CIF/FOB","2022 p/"]
["P030","Crustáceos sin congelar y otros productos de la pesca",0,"Ajuste CIF/FOB","2022 p/"]
["P031","Petróleo crudo y gas natural",0,"Ajuste CIF/FOB","2022 p/"]
["P032","Minerales metálicos",0,"Ajuste CIF/FOB","2022 p/"]
["P033","Minerales no metálicos",0,"Ajuste CIF/FOB","2022 p/"]
["P034","Carne y despojos comestibles de ganado bovino; cueros y pieles de bovino y de otros animales",0,"Ajuste CIF/FOB","2022 p/"]
["P035","Carne y despojos comestibles de ganado porcino",0,"Ajuste CIF/FOB","2022 p/"]
["P036","Carne y despojos comestibles de aves",0,"Ajuste CIF/FOB","2022 p/"]
["P037","Carne y despojos de otros animales y conservas y preparados de carne",0,"Ajuste CIF/FOB","2022 p/"]
["P038","Pescado congelado, preparado o en conserva y sus productos",0,"Ajuste CIF/FOB","2022 p/"]
["P039","Crustáceos, moluscos y demás invertebrados acuáticos congelados, preparados o en conserva y sus productos",0,"Ajuste CIF/FOB","2022 p/"]
["P040","Vegetales preparados o en conserva, legumbres y papas",0,"Ajuste CIF/FOB","2022 p/"]
["P041","Preparaciones y conservas de frutas y nueces",0,"Ajuste CIF/FOB","2022 p/"]
["P042","Jugos de frutas",0,"Ajuste CIF/FOB","2022 p/"]
["P043","Aceites de origen vegetal",0,"Ajuste CIF/FOB","2022 p/"]
["P044","Margarina, grasas y otros aceites de origen animal y vegetal",0,"Ajuste CIF/FOB","2022 p/"]
["P045","Leche líquida y crema procesada",0,"Ajuste CIF/FOB","2022 p/"]
["P046","Otros productos lácteos n.c.p.",0,"Ajuste CIF/FOB","2022 p/"]
["P047","Harina de trigo",0,"Ajuste CIF/FOB","2022 p/"]
["P048","Arroz sin cáscara",0,"Ajuste CIF/FOB","2022 p/"]
["P049","Otros productos de molinería, almidones y productos de almidón",0,"Ajuste CIF/FOB","2022 p/"]
["P050","Pan y otros productos de panadería y repostería n.c.p.",0,"Ajuste CIF/FOB","2022 p/"]
["P051","Tortillas de maíz, incluso tostadas, horneadas o fritas",0,"Ajuste CIF/FOB","2022 p/"]
["P052","Azúcar de caña sin refinar y refinada, melaza y los demás azúcares n.c.p.",0,"Ajuste CIF/FOB","2022 p/"]
["P053","Productos alimenticios n.c.p.",0,"Ajuste CIF/FOB","2022 p/"]
["P054","Preparados para alimentación animal",0,"Ajuste CIF/FOB","2022 p/"]
["P055","Aguardientes, licores, vinos, demás bebidas espirituosas y productos del tabaco",0,"Ajuste CIF/FOB","2022 p/"]
["P056","Malta y cerveza de malta",0,"Ajuste CIF/FOB","2022 p/"]
["P057","Bebidas no alcohólicas",0,"Ajuste CIF/FOB","2022 p/"]
["P058","Aguas minerales y otras aguas embotelladas",0,"Ajuste CIF/FOB","2022 p/"]
["P059","Hilados, tejidos, telas y otros productos textiles excepto prendas de vestir",0,"Ajuste CIF/FOB","2022 p/"]
["P060","Prendas de vestir, adobo y teñido de pieles",0,"Ajuste CIF/FOB","2022 p/"]
["P061","Cuero de piel curtida o adobada y cuero artificial o regenerado y artículos de cuero",0,"Ajuste CIF/FOB","2022 p/"]
["P062","Calzado y sus partes, de cualquier material y de cualquier uso",0,"Ajuste CIF/FOB","2022 p/"]
["P063","Madera aserrada y acepillada, productos de madera, corcho, paja y materiales trenzables",0,"Ajuste CIF/FOB","2022 p/"]
["P064","Pasta de papel y papel",0,"Ajuste CIF/FOB","2022 p/"]
["P065","Envases de papel y cartón",0,"Ajuste CIF/FOB","2022 p/"]
["P066","Productos de la edición",0,"Ajuste CIF/FOB","2022 p/"]
["P067","Productos de la impresión",0,"Ajuste CIF/FOB","2022 p/"]
["P068","Gasolinas, diésel oil y fuel oils",0,"Ajuste CIF/FOB","2022 p/"]
["P069","Aceites, grasas lubricantes y otros aceites preparados",0,"Ajuste CIF/FOB","2022 p/"]
["P070","Gases de petróleo, otros productos de la refinación de petróleo n.c.p.",0,"Ajuste CIF/FOB","2022 p/"]
["P071","Abonos, fertilizantes y pesticidas",0,"Ajuste CIF/FOB","2022 p/"]
["P072","Pinturas, barnices, tintas y productos relacionados",0,"Ajuste CIF/FOB","2022 p/"]
["P073","Jabón, preparados de limpieza, perfumes y preparados de toilet",0,"Ajuste CIF/FOB","2022 p/"]
["P074","Otros productos químicos",0,"Ajuste CIF/FOB","2022 p/"]
["P075","Productos farmacéuticos",0,"Ajuste CIF/FOB","2022 p/"]
["P076","Productos de caucho y plástico",0,"Ajuste CIF/FOB","2022 p/"]
["P077","Vidrio y productos de vidrio",0,"Ajuste CIF/FOB","2022 p/"]
["P078","Productos de cerámica y arcilla",0,"Ajuste CIF/FOB","2022 p/"]
["P079","Cemento, cal y yeso",0,"Ajuste CIF/FOB","2022 p/"]
["P080","Artículos de hormigón, cemento y yeso",0,"Ajuste CIF/FOB","2022 p/"]
["P081","Piedras talladas para construcción y otros productos minerales no metálicos n.c.p.",0,"Ajuste CIF/FOB","2022 p/"]
["P082","Métales básicos de hierro y acero, productos primarios de metales preciosos y otros metales no ferrosos",0,"Ajuste CIF/FOB","2022 p/"]
["P083","Productos metálicos estructurales y sus partes de hierro o de acero",0,"Ajuste CIF/FOB","2022 p/"]
["P084","Otros productos elaborados de metal",0,"Ajuste CIF/FOB","2022 p/"]
["P085","Maquinaria para usos generales y especiales, sus partes y piezas, excepto electrodomésticos",0,"Ajuste CIF/FOB","2022 p/"]
["P086","Electrodomésticos y sus partes",0,"Ajuste CIF/FOB","2022 p/"]
["P087","Maquinaria de oficina, contabilidad e informática, sus partes y piezas",0,"Ajuste CIF/FOB","2022 p/"]
["P088","Maquinaria y aparatos eléctricos, sus partes y piezas",0,"Ajuste CIF/FOB","2022 p/"]
["P089","Equipo y aparatos de radio, televisión y comunicaciones",0,"Ajuste CIF/FOB","2022 p/"]
["P090","Aparatos médicos, instrumentos ópticos y de precisión, relojes",0,"Ajuste CIF/FOB","2022 p/"]
["P091","Equipo de transporte",0,"Ajuste CIF/FOB","2022 p/"]
["P092","Muebles",0,"Ajuste CIF/FOB","2022 p/"]
["P093","Otros artículos n.c.p.",0,"Ajuste CIF/FOB","2022 p/"]
["P094","Residuos y desechos",0,"Ajuste CIF/FOB","2022 p/"]
["P095","Generación y distribución de energía eléctrica, gas, vapor y aire acondicionado",0,"Ajuste CIF/FOB","2022 p/"]
["P096","Agua natural y distribución de agua natural",0,"Ajuste CIF/FOB","2022 p/"]
["P097","Evacuación de aguas residuales, recogida, tratamiento y eliminación de desechos",0,"Ajuste CIF/FOB","2022 p/"]
["P098","Edificaciones residenciales",0,"Ajuste CIF/FOB","2022 p/"]
["P099","Edificaciones no residenciales",0,"Ajuste CIF/FOB","2022 p/"]
["P100","Obras de ingeniería civil",0,"Ajuste CIF/FOB","2022 p/"]
["P101","Servicios generales y especializados de construcción",0,"Ajuste CIF/FOB","2022 p/"]
["P102","Servicios de comercio",0,"Ajuste CIF/FOB","2022 p/"]
["P103","Mantenimiento y reparación de vehículos automotores y motocicletas",0,"Ajuste CIF/FOB","2022 p/"]
["P104","Servicio de transporte de pasajeros por vía terrestre",0,"Ajuste CIF/FOB","2022 p/"]
["P105","Servicio de transporte de carga por vía terrestre",-2897.49451,"Ajuste CIF/FOB","2022 p/"]
["P106","Otros tipos de transporte",-15171.486473999999,"Ajuste CIF/FOB","2022 p/"]
["P107","Servicios de almacenamiento y depósito",0,"Ajuste CIF/FOB","2022 p/"]
["P108","Otros servicios de apoyo al transporte",0,"Ajuste CIF/FOB","2022 p/"]
["P109","Servicios postales y de mensajería",0,"Ajuste CIF/FOB","2022 p/"]
["P110","Servicio de alojamiento",0,"Ajuste CIF/FOB","2022 p/"]
["P111","Servicio de suministro de comidas y bebidas",0,"Ajuste CIF/FOB","2022 p/"]
["P112","Servicios de información, telecomunicaciones y radiodifusión",0,"Ajuste CIF/FOB","2022 p/"]
["P113","Servicios de banco central",0,"Ajuste CIF/FOB","2022 p/"]
["P114","Otros servicios financieros y servicios de banca de inversión",0,"Ajuste CIF/FOB","2022 p/"]
["P115","Servicios de Intermediación Financiera Medidos Indirectamente (SIFMI)",0,"Ajuste CIF/FOB","2022 p/"]
["P116","Servicios de seguro, reaseguro y fondos de pensiones",-1115.014054,"Ajuste CIF/FOB","2022 p/"]
["P117","Servicios auxiliares de la intermediación financiera",0,"Ajuste CIF/FOB","2022 p/"]
["P118","Servicios de alquiler de vivienda",0,"Ajuste CIF/FOB","2022 p/"]
["P119","Otros servicios inmobiliarios, excepto alquiler de vivienda",0,"Ajuste CIF/FOB","2022 p/"]
["P120","Servicios jurídicos, de contabilidad, auditoría, teneduría de libros y consultoría fiscal",0,"Ajuste CIF/FOB","2022 p/"]
["P121","Servicios de tecnología de la información",0,"Ajuste CIF/FOB","2022 p/"]
["P122","Servicios de arquitectura e ingeniería, ensayos y análisis técnicos",0,"Ajuste CIF/FOB","2022 p/"]
["P123","Otros servicios profesionales, científicos y técnicos",0,"Ajuste CIF/FOB","2022 p/"]
["P124","Servicios de publicidad y estudios de mercado",0,"Ajuste CIF/FOB","2022 p/"]
["P125","Servicios de arrendamiento o alquiler sin operador",0,"Ajuste CIF/FOB","2022 p/"]
["P126","Servicios  de agencias de empleo y de dotación de recursos humanos",0,"Ajuste CIF/FOB","2022 p/"]
["P127","Servicios de agencias de viajes, operadores turísticos y actividades conexas",0,"Ajuste CIF/FOB","2022 p/"]
["P128","Servicios de seguridad, sistemas de seguridad e investigación privada",0,"Ajuste CIF/FOB","2022 p/"]
["P129","Servicios de limpieza",0,"Ajuste CIF/FOB","2022 p/"]
["P130","Servicios telefónicos de centros de llamadas",0,"Ajuste CIF/FOB","2022 p/"]
["P131","Servicios administrativos, de apoyo de oficina y otros servicios de apoyo a las empresas",0,"Ajuste CIF/FOB","2022 p/"]
["P132","Servicios de mantenimiento, reparación e instalación de productos metálicos elaborados, maquinaria y equipo",0,"Ajuste CIF/FOB","2022 p/"]
["P133","Servicios de reparación de otros bienes",0,"Ajuste CIF/FOB","2022 p/"]
["P134","Servicios de apoyo a la agricultura, caza, silvicultura y pesca",0,"Ajuste CIF/FOB","2022 p/"]
["P135","Servicios de apoyo a la explotación de minas y canteras y los relacionados con la distribución de electricidad, gas y agua",0,"Ajuste CIF/FOB","2022 p/"]
["P136","Servicios de manufactura",0,"Ajuste CIF/FOB","2022 p/"]
["P137","Servicios públicos del gobierno general",0,"Ajuste CIF/FOB","2022 p/"]
["P138","Servicios públicos administrativos relacionados con la provisión de servicios educativos, de salud, servicios sociales, culturales y otros, sin contar los servicios de seguridad social",0,"Ajuste CIF/FOB","2022 p/"]
["P139","Otros servicios administrativos",0,"Ajuste CIF/FOB","2022 p/"]
["P140","Servicios públicos administrativos prestados a la comunidad en su conjunto",0,"Ajuste CIF/FOB","2022 p/"]
["P141","Servicios administrativos relacionados con los sistemas de seguridad social de afiliación obligatoria",0,"Ajuste CIF/FOB","2022 p/"]
["P142","Servicios de enseñanza",0,"Ajuste CIF/FOB","2022 p/"]
["P143","Servicios de hospitalización",0,"Ajuste CIF/FOB","2022 p/"]
["P144","Servicios médicos y dentales",0,"Ajuste CIF/FOB","2022 p/"]
["P145","Otros servicios de atención de la salud humana",0,"Ajuste CIF/FOB","2022 p/"]
["P146","Servicios audiovisuales, recreativos, culturales y deportivos",0,"Ajuste CIF/FOB","2022 p/"]
["P147","Servicios de asociaciones que sirven a las empresas",0,"Ajuste CIF/FOB","2022 p/"]
["P148","Servicios de asociaciones que sirven a los hogares",0,"Ajuste CIF/FOB","2022 p/"]
["P149","Otros servicios",0,"Ajuste CIF/FOB","2022 p/"]
["P150","Servicios domésticos",0,"Ajuste CIF/FOB","2022 p/"]
["P151","Compras directas en el exterior por residentes",0,"Ajuste CIF/FOB","2022 p/"]
["P152","Compras directas en el territorio nacional por no residentes",0,"Ajuste CIF/FOB","2022 p/"]